Workbook

Sheet J13
A1: Jenter 13 | C1: Sparebank1-CUP 2021
F2: SP1- CUP 1 | H2: SP1- CUP 2 | J2: SP1- CUP 3 | L2: SP1- CUP 4 | N2: SP1- CUP 5 | P2: SP1- CUP 6 | R2: Poeng | Y2: Fire beste | AC2: Sum
A3: Nr | B3: NAVN | C3: KLUBB | D3: POENG | E3: Fullført | F3: Nr. Poeng | H3: Nr. Poeng | J3: Nr. Poeng | L3: Nr. Poeng | N3: Nr. Poeng | P3: Nr. Poeng | R3: 1 | S3: 2 | T3: 3 | U3: 4 | V3: 5 | W3: 6 | X3: 7 | Y3: 1 | Z3: 2 | AA3: 3 | AB3: 4
A4: =AF4 -> 1 | B4: Hanna Fløttum Bones | C4: Rognes IL | D4: =IF(B4<>"",AC4,"") -> 380 | E4: =IF(AD4<4," ","F") -> F | F4: 1 | G4: =IF(F4>0,INDEX(Poeng!$A$1:$B$100,F4,2),"") -> 100 | H4: 3 | I4: =IF(H4>0,INDEX(Poeng!$A$1:$B$100,H4,2),"") -> 60 | J4: 1 | K4: =IF(J4>0,INDEX(Poeng!$A$1:$B$100,J4,2),"") -> 100 | L4: 1 | M4: =IF(L4>0,INDEX(Poeng!$A$1:$B$100,L4,2),"") -> 100 | N4: 3 | O4: =IF(N4>0,INDEX(Poeng!$A$1:$B$100,N4,2),"") -> 60 | P4: 2 | Q4: =IF(P4>0,INDEX(Poeng!$A$1:$B$100,P4,2),"") -> 80 | R4: =IF(F4>0,G4,0) -> 100 | S4: =IF(H4>0,I4,0) -> 60 | T4: =IF(J4>0,K4,0) -> 100 | U4: =IF(L4>0,M4,0) -> 100 | V4: =IF(N4>0,O4,0) -> 60 | W4: =IF(P4>0,Q4,0) -> 80 | X4: =IF(#REF!>0,#REF!,0) ->  | Y4: =LARGE(R4:W4,1) -> 100 | Z4: =LARGE(R4:W4,2) -> 100 | AA4: =LARGE(R4:W4,3) -> 100 | AB4: =LARGE(R4:W4,4) -> 80 | AC4: =SUM(Y4:AB4) -> 380 | AD4: =COUNT(F4:Q4)/2 -> 6 | AE4: =AC4*10^8+Y4*10^6/2+Z4*10^4/2+AA4*10^2/2+AB4/2 -> 38050505040 | AF4: =IF(B4<>"",RANK(AE4,AE$4:AE$72,0),"") -> 1
A5: 2 | B5: Marie Furuhaug | C5: Byåsen IL | D5: 360 | E5: F | F5: 2 | G5: =IF(F5>0,INDEX(Poeng!$A$1:$B$100,F5,2),"") -> 80 | H5: 1 | I5: =IF(H5>0,INDEX(Poeng!$A$1:$B$100,H5,2),"") -> 100 | J5: 2 | K5: =IF(J5>0,INDEX(Poeng!$A$1:$B$100,J5,2),"") -> 80 | L5: 2 | M5: =IF(L5>0,INDEX(Poeng!$A$1:$B$100,L5,2),"") -> 80 | N5: 2 | O5: =IF(N5>0,INDEX(Poeng!$A$1:$B$100,N5,2),"") -> 80 | P5: 1 | Q5: =IF(P5>0,INDEX(Poeng!$A$1:$B$100,P5,2),"") -> 100 | R5: 80 | S5: 100 | T5: 80 | U5: 80 | V5: 80 | W5: 100 | X5: =IF(#REF!>0,#REF!,0) ->  | Y5: 100 | Z5: 100 | AA5: 80 | AB5: 80 | AC5: 360 | AD5: 6 | AE5: 36050504040 | AF5: 2
A6: 3 | B6: Karianne Sundset | C6: Klæbu IL | D6: 260 | E6: F | F6: 4 | G6: =IF(F6>0,INDEX(Poeng!$A$1:$B$100,F6,2),"") -> 50 | H6: 4 | I6: =IF(H6>0,INDEX(Poeng!$A$1:$B$100,H6,2),"") -> 50 | J6: 3 | K6: =IF(J6>0,INDEX(Poeng!$A$1:$B$100,J6,2),"") -> 60 | L6: 4 | M6: =IF(L6>0,INDEX(Poeng!$A$1:$B$100,L6,2),"") -> 50 | N6: 1 | O6: =IF(N6>0,INDEX(Poeng!$A$1:$B$100,N6,2),"") -> 100 | P6: 4 | Q6: =IF(P6>0,INDEX(Poeng!$A$1:$B$100,P6,2),"") -> 50 | R6: 50 | S6: 50 | T6: 60 | U6: 50 | V6: 100 | W6: 50 | X6: =IF(#REF!>0,#REF!,0) ->  | Y6: 100 | Z6: 60 | AA6: 50 | AB6: 50 | AC6: 260 | AD6: 6 | AE6: 26050302525 | AF6: 3
A7: 4 | B7: Vilde Nordgård Leiren | C7: Byåsen IL | D7: 235 | E7: F | F7: 5 | G7: =IF(F7>0,INDEX(Poeng!$A$1:$B$100,F7,2),"") -> 45 | H7: 2 | I7: =IF(H7>0,INDEX(Poeng!$A$1:$B$100,H7,2),"") -> 80 | J7: 6 | K7: =IF(J7>0,INDEX(Poeng!$A$1:$B$100,J7,2),"") -> 40 | L7: 3 | M7: =IF(L7>0,INDEX(Poeng!$A$1:$B$100,L7,2),"") -> 60 | N7: 4 | O7: =IF(N7>0,INDEX(Poeng!$A$1:$B$100,N7,2),"") -> 50 | P7: 5 | Q7: =IF(P7>0,INDEX(Poeng!$A$1:$B$100,P7,2),"") -> 45 | R7: 45 | S7: 80 | T7: 40 | U7: 60 | V7: 50 | W7: 45 | X7: =IF(#REF!>0,#REF!,0) ->  | Y7: 80 | Z7: 60 | AA7: 50 | AB7: 45 | AC7: 235 | AD7: 6 | AE7: 2.354030252e+10 | AF7: 4
A8: 5 | B8: Erle Heksem Kjellås | C8: Buvik IL | D8: 215 | E8: F | F8: 3 | G8: =IF(F8>0,INDEX(Poeng!$A$1:$B$100,F8,2),"") -> 60 | H8: 6 | I8: =IF(H8>0,INDEX(Poeng!$A$1:$B$100,H8,2),"") -> 40 | J8: 4 | K8: =IF(J8>0,INDEX(Poeng!$A$1:$B$100,J8,2),"") -> 50 | L8: 6 | M8: =IF(L8>0,INDEX(Poeng!$A$1:$B$100,L8,2),"") -> 40 | N8: 5 | O8: =IF(N8>0,INDEX(Poeng!$A$1:$B$100,N8,2),"") -> 45 | P8: 3 | Q8: =IF(P8>0,INDEX(Poeng!$A$1:$B$100,P8,2),"") -> 60 | R8: 60 | S8: 40 | T8: 50 | U8: 40 | V8: 45 | W8: 60 | X8: =IF(#REF!>0,#REF!,0) ->  | Y8: 60 | Z8: 60 | AA8: 50 | AB8: 45 | AC8: 215 | AD8: 6 | AE8: 2.153030252e+10 | AF8: 5
A9: 6 | B9: Malin Lorvik Krogh | C9: Byåsen IL | D9: 165 | E9: F | F9: 6 | G9: =IF(F9>0,INDEX(Poeng!$A$1:$B$100,F9,2),"") -> 40 | H9: 5 | I9: =IF(H9>0,INDEX(Poeng!$A$1:$B$100,H9,2),"") -> 45 | J9: 7 | K9: =IF(J9>0,INDEX(Poeng!$A$1:$B$100,J9,2),"") -> 36 | L9: 8 | M9: =IF(L9>0,INDEX(Poeng!$A$1:$B$100,L9,2),"") -> 32 | N9: 6 | O9: =IF(N9>0,INDEX(Poeng!$A$1:$B$100,N9,2),"") -> 40 | P9: 6 | Q9: =IF(P9>0,INDEX(Poeng!$A$1:$B$100,P9,2),"") -> 40 | R9: 40 | S9: 45 | T9: 36 | U9: 32 | V9: 40 | W9: 40 | X9: =IF(#REF!>0,#REF!,0) ->  | Y9: 45 | Z9: 40 | AA9: 40 | AB9: 40 | AC9: 165 | AD9: 6 | AE9: 16522702020 | AF9: 6
A10: 7 | B10: Celine Storø | C10: Hommelvik IL | D10: 143 | E10: F | F10: 7 | G10: =IF(F10>0,INDEX(Poeng!$A$1:$B$100,F10,2),"") -> 36 | I10: =IF(H10>0,INDEX(Poeng!$A$1:$B$100,H10,2),"") ->  | J10: 5 | K10: =IF(J10>0,INDEX(Poeng!$A$1:$B$100,J10,2),"") -> 45 | M10: =IF(L10>0,INDEX(Poeng!$A$1:$B$100,L10,2),"") ->  | N10: 7 | O10: =IF(N10>0,INDEX(Poeng!$A$1:$B$100,N10,2),"") -> 36 | P10: 10 | Q10: =IF(P10>0,INDEX(Poeng!$A$1:$B$100,P10,2),"") -> 26 | R10: 36 | S10: 0 | T10: 45 | U10: 0 | V10: 36 | W10: 26 | X10: =IF(#REF!>0,#REF!,0) ->  | Y10: 45 | Z10: 36 | AA10: 36 | AB10: 26 | AC10: 143 | AD10: 4 | AE10: 14322681813 | AF10: 7
A11: 8 | B11: Johanne Jensås | C11: Ranheim SK | D11: 132 | E11: F | F11: 8 | G11: =IF(F11>0,INDEX(Poeng!$A$1:$B$100,F11,2),"") -> 32 | I11: =IF(H11>0,INDEX(Poeng!$A$1:$B$100,H11,2),"") ->  | J11: 8 | K11: =IF(J11>0,INDEX(Poeng!$A$1:$B$100,J11,2),"") -> 32 | M11: =IF(L11>0,INDEX(Poeng!$A$1:$B$100,L11,2),"") ->  | N11: 8 | O11: =IF(N11>0,INDEX(Poeng!$A$1:$B$100,N11,2),"") -> 32 | P11: 7 | Q11: =IF(P11>0,INDEX(Poeng!$A$1:$B$100,P11,2),"") -> 36 | R11: 32 | S11: 0 | T11: 32 | U11: 0 | V11: 32 | W11: 36 | X11: =IF(#REF!>0,#REF!,0) ->  | Y11: 36 | Z11: 32 | AA11: 32 | AB11: 32 | AC11: 132 | AD11: 4 | AE11: 13218161616 | AF11: 8
A12: 9 | B12: Mina Helene Nordgård | C12: Hommelvik IL | D12: 126 | E12: F | F12: 12 | G12: =IF(F12>0,INDEX(Poeng!$A$1:$B$100,F12,2),"") -> 22 | H12: 7 | I12: =IF(H12>0,INDEX(Poeng!$A$1:$B$100,H12,2),"") -> 36 | J12: 11 | K12: =IF(J12>0,INDEX(Poeng!$A$1:$B$100,J12,2),"") -> 24 | L12: 9 | M12: =IF(L12>0,INDEX(Poeng!$A$1:$B$100,L12,2),"") -> 29 | N12: 9 | O12: =IF(N12>0,INDEX(Poeng!$A$1:$B$100,N12,2),"") -> 29 | P12: 8 | Q12: =IF(P12>0,INDEX(Poeng!$A$1:$B$100,P12,2),"") -> 32 | R12: 22 | S12: 36 | T12: 24 | U12: 29 | V12: 29 | W12: 32 | X12: =IF(#REF!>0,#REF!,0) ->  | Y12: 36 | Z12: 32 | AA12: 29 | AB12: 29 | AC12: 126 | AD12: 6 | AE12: 1.261816146e+10 | AF12: 9
A13: 10 | B13: Tuva Skimmeli Halvorsen | C13: Buvik IL | D13: 107 | E13: F | F13: 10 | G13: =IF(F13>0,INDEX(Poeng!$A$1:$B$100,F13,2),"") -> 26 | H13: 9 | I13: =IF(H13>0,INDEX(Poeng!$A$1:$B$100,H13,2),"") -> 29 | J13: 10 | K13: =IF(J13>0,INDEX(Poeng!$A$1:$B$100,J13,2),"") -> 26 | M13: =IF(L13>0,INDEX(Poeng!$A$1:$B$100,L13,2),"") ->  | N13: 10 | O13: =IF(N13>0,INDEX(Poeng!$A$1:$B$100,N13,2),"") -> 26 | P13: 13 | Q13: =IF(P13>0,INDEX(Poeng!$A$1:$B$100,P13,2),"") -> 20 | R13: 26 | S13: 29 | T13: 26 | U13: 0 | V13: 26 | W13: 20 | X13: =IF(#REF!>0,#REF!,0) ->  | Y13: 29 | Z13: 26 | AA13: 26 | AB13: 26 | AC13: 107 | AD13: 5 | AE13: 10714631313 | AF13: 10
A14: 11 | B14: Selma Lorvik Krogh | C14: Byåsen IL | D14: 106 | E14: F | F14: 11 | G14: =IF(F14>0,INDEX(Poeng!$A$1:$B$100,F14,2),"") -> 24 | H14: 8 | I14: =IF(H14>0,INDEX(Poeng!$A$1:$B$100,H14,2),"") -> 32 | J14: 12 | K14: =IF(J14>0,INDEX(Poeng!$A$1:$B$100,J14,2),"") -> 22 | L14: 10 | M14: =IF(L14>0,INDEX(Poeng!$A$1:$B$100,L14,2),"") -> 26 | N14: 11 | O14: =IF(N14>0,INDEX(Poeng!$A$1:$B$100,N14,2),"") -> 24 | P14: 11 | Q14: =IF(P14>0,INDEX(Poeng!$A$1:$B$100,P14,2),"") -> 24 | R14: 24 | S14: 32 | T14: 22 | U14: 26 | V14: 24 | W14: 24 | X14: =IF(#REF!>0,#REF!,0) ->  | Y14: 32 | Z14: 26 | AA14: 24 | AB14: 24 | AC14: 106 | AD14: 6 | AE14: 10616131212 | AF14: 11
A15: 12 | B15: Thea Moen | C15: Hommelvik IL | D15: 58 | G15: =IF(F15>0,INDEX(Poeng!$A$1:$B$100,F15,2),"") ->  | I15: =IF(H15>0,INDEX(Poeng!$A$1:$B$100,H15,2),"") ->  | J15: 9 | K15: =IF(J15>0,INDEX(Poeng!$A$1:$B$100,J15,2),"") -> 29 | M15: =IF(L15>0,INDEX(Poeng!$A$1:$B$100,L15,2),"") ->  | O15: =IF(N15>0,INDEX(Poeng!$A$1:$B$100,N15,2),"") ->  | P15: 9 | Q15: =IF(P15>0,INDEX(Poeng!$A$1:$B$100,P15,2),"") -> 29 | R15: 0 | S15: 0 | T15: 29 | U15: 0 | V15: 0 | W15: 29 | X15: =IF(#REF!>0,#REF!,0) ->  | Y15: 29 | Z15: 29 | AA15: 0 | AB15: 0 | AC15: 58 | AD15: 2 | AE15: 5814645000 | AF15: 12
A16: 13 | B16: Frida Wangberg Lund | C16: Lånke IL | D16: 45 | G16: =IF(F16>0,INDEX(Poeng!$A$1:$B$100,F16,2),"") ->  | K16: =IF(J16>0,INDEX(Poeng!$A$1:$B$100,J16,2),"") ->  | L16: 5 | M16: =IF(L16>0,INDEX(Poeng!$A$1:$B$100,L16,2),"") -> 45 | O16: =IF(N16>0,INDEX(Poeng!$A$1:$B$100,N16,2),"") ->  | Q16: =IF(P16>0,INDEX(Poeng!$A$1:$B$100,P16,2),"") ->  | R16: 0 | S16: 0 | T16: 0 | U16: 45 | V16: 0 | W16: 0 | X16: =IF(#REF!>0,#REF!,0) ->  | Y16: 45 | Z16: 0 | AA16: 0 | AB16: 0 | AC16: 45 | AD16: 1 | AE16: 4522500000 | AF16: 13
A17: 14 | B17: Hennie Margrete Haram | C17: Strindheim IL | D17: 42 | F17: 13 | G17: =IF(F17>0,INDEX(Poeng!$A$1:$B$100,F17,2),"") -> 20 | I17: =IF(H17>0,INDEX(Poeng!$A$1:$B$100,H17,2),"") ->  | K17: =IF(J17>0,INDEX(Poeng!$A$1:$B$100,J17,2),"") ->  | M17: =IF(L17>0,INDEX(Poeng!$A$1:$B$100,L17,2),"") ->  | O17: =IF(N17>0,INDEX(Poeng!$A$1:$B$100,N17,2),"") ->  | P17: 12 | Q17: =IF(P17>0,INDEX(Poeng!$A$1:$B$100,P17,2),"") -> 22 | R17: 20 | S17: 0 | T17: 0 | U17: 0 | V17: 0 | W17: 22 | X17: =IF(#REF!>0,#REF!,0) ->  | Y17: 22 | Z17: 20 | AA17: 0 | AB17: 0 | AC17: 42 | AD17: 2 | AE17: 4211100000 | AF17: 14
A18: 15 | B18: Thea Marie Vesterfjell | C18: Byaasen skiklub | D18: 36 | G18: =IF(F18>0,INDEX(Poeng!$A$1:$B$100,F18,2),"") ->  | I18: =IF(H18>0,INDEX(Poeng!$A$1:$B$100,H18,2),"") ->  | K18: =IF(J18>0,INDEX(Poeng!$A$1:$B$100,J18,2),"") ->  | L18: 7 | M18: =IF(L18>0,INDEX(Poeng!$A$1:$B$100,L18,2),"") -> 36 | O18: =IF(N18>0,INDEX(Poeng!$A$1:$B$100,N18,2),"") ->  | Q18: =IF(P18>0,INDEX(Poeng!$A$1:$B$100,P18,2),"") ->  | R18: 0 | S18: 0 | T18: 0 | U18: 36 | V18: 0 | W18: 0 | X18: =IF(#REF!>0,#REF!,0) ->  | Y18: 36 | Z18: 0 | AA18: 0 | AB18: 0 | AC18: 36 | AD18: 1 | AE18: 3618000000 | AF18: 15
A19: 16 | B19: Asta Wekre | C19: Heimdal Ski | D19: 29 | F19: 9 | G19: =IF(F19>0,INDEX(Poeng!$A$1:$B$100,F19,2),"") -> 29 | I19: =IF(H19>0,INDEX(Poeng!$A$1:$B$100,H19,2),"") ->  | K19: =IF(J19>0,INDEX(Poeng!$A$1:$B$100,J19,2),"") ->  | M19: =IF(L19>0,INDEX(Poeng!$A$1:$B$100,L19,2),"") ->  | O19: =IF(N19>0,INDEX(Poeng!$A$1:$B$100,N19,2),"") ->  | Q19: =IF(P19>0,INDEX(Poeng!$A$1:$B$100,P19,2),"") ->  | R19: 29 | S19: 0 | T19: 0 | U19: 0 | V19: 0 | W19: 0 | X19: =IF(#REF!>0,#REF!,0) ->  | Y19: 29 | Z19: 0 | AA19: 0 | AB19: 0 | AC19: 29 | AD19: 1 | AE19: 2914500000 | AF19: 16
A20: =AF20 ->  | D20: =IF(B20<>"",AC20,"") ->  | E20: =IF(AD20<4," ","F") ->  | G20: =IF(F20>0,INDEX(Poeng!$A$1:$B$100,F20,2),"") ->  | I20: =IF(H20>0,INDEX(Poeng!$A$1:$B$100,H20,2),"") ->  | K20: =IF(J20>0,INDEX(Poeng!$A$1:$B$100,J20,2),"") ->  | M20: =IF(L20>0,INDEX(Poeng!$A$1:$B$100,L20,2),"") ->  | O20: =IF(N20>0,INDEX(Poeng!$A$1:$B$100,N20,2),"") ->  | Q20: =IF(P20>0,INDEX(Poeng!$A$1:$B$100,P20,2),"") ->  | R20: 0 | S20: 0 | T20: 0 | U20: 0 | V20: 0 | W20: 0 | X20: =IF(#REF!>0,#REF!,0) ->  | Y20: 0 | Z20: 0 | AA20: 0 | AB20: 0 | AC20: 0 | AD20: 0 | AE20: 0
G21: =IF(F21>0,INDEX(Poeng!$A$1:$B$100,F21,2),"") ->  | I21: =IF(H21>0,INDEX(Poeng!$A$1:$B$100,H21,2),"") ->  | K21: =IF(J21>0,INDEX(Poeng!$A$1:$B$100,J21,2),"") ->  | M21: =IF(L21>0,INDEX(Poeng!$A$1:$B$100,L21,2),"") ->  | O21: =IF(N21>0,INDEX(Poeng!$A$1:$B$100,N21,2),"") ->  | Q21: =IF(P21>0,INDEX(Poeng!$A$1:$B$100,P21,2),"") ->  | R21: 0 | S21: 0 | T21: 0 | U21: 0 | V21: 0 | W21: 0 | X21: =IF(#REF!>0,#REF!,0) ->  | Y21: 0 | Z21: 0 | AA21: 0 | AB21: 0 | AC21: 0 | AD21: 0 | AE21: 0
G22: =IF(F22>0,INDEX(Poeng!$A$1:$B$100,F22,2),"") ->  | I22: =IF(H22>0,INDEX(Poeng!$A$1:$B$100,H22,2),"") ->  | K22: =IF(J22>0,INDEX(Poeng!$A$1:$B$100,J22,2),"") ->  | M22: =IF(L22>0,INDEX(Poeng!$A$1:$B$100,L22,2),"") ->  | O22: =IF(N22>0,INDEX(Poeng!$A$1:$B$100,N22,2),"") ->  | Q22: =IF(P22>0,INDEX(Poeng!$A$1:$B$100,P22,2),"") ->  | R22: 0 | S22: 0 | T22: 0 | U22: 0 | V22: 0 | W22: 0 | X22: =IF(#REF!>0,#REF!,0) ->  | Y22: 0 | Z22: 0 | AA22: 0 | AB22: 0 | AC22: 0 | AD22: 0 | AE22: 0
A23: =AF23 ->  | D23: =IF(B23<>"",AC23,"") ->  | E23: =IF(AD23<4," ","F") ->  | G23: =IF(F23>0,INDEX(Poeng!$A$1:$B$100,F23,2),"") ->  | I23: =IF(H23>0,INDEX(Poeng!$A$1:$B$100,H23,2),"") ->  | K23: =IF(J23>0,INDEX(Poeng!$A$1:$B$100,J23,2),"") ->  | M23: =IF(L23>0,INDEX(Poeng!$A$1:$B$100,L23,2),"") ->  | O23: =IF(N23>0,INDEX(Poeng!$A$1:$B$100,N23,2),"") ->  | Q23: =IF(P23>0,INDEX(Poeng!$A$1:$B$100,P23,2),"") ->  | R23: 0 | S23: 0 | T23: 0 | U23: 0 | V23: 0 | W23: 0 | X23: =IF(#REF!>0,#REF!,0) ->  | Y23: 0 | Z23: 0 | AA23: 0 | AB23: 0 | AC23: 0 | AD23: 0 | AE23: 0
G24: =IF(F24>0,INDEX(Poeng!$A$1:$B$100,F24,2),"") ->  | I24: =IF(H24>0,INDEX(Poeng!$A$1:$B$100,H24,2),"") ->  | K24: =IF(J24>0,INDEX(Poeng!$A$1:$B$100,J24,2),"") ->  | M24: =IF(L24>0,INDEX(Poeng!$A$1:$B$100,L24,2),"") ->  | O24: =IF(N24>0,INDEX(Poeng!$A$1:$B$100,N24,2),"") ->  | Q24: =IF(P24>0,INDEX(Poeng!$A$1:$B$100,P24,2),"") ->  | R24: 0 | S24: 0 | T24: 0 | U24: 0 | V24: 0 | W24: 0 | X24: =IF(#REF!>0,#REF!,0) ->  | Y24: 0 | Z24: 0 | AA24: 0 | AB24: 0 | AC24: 0 | AD24: 0 | AE24: 0
G25: =IF(F25>0,INDEX(Poeng!$A$1:$B$100,F25,2),"") ->  | I25: =IF(H25>0,INDEX(Poeng!$A$1:$B$100,H25,2),"") ->  | K25: =IF(J25>0,INDEX(Poeng!$A$1:$B$100,J25,2),"") ->  | M25: =IF(L25>0,INDEX(Poeng!$A$1:$B$100,L25,2),"") ->  | O25: =IF(N25>0,INDEX(Poeng!$A$1:$B$100,N25,2),"") ->  | Q25: =IF(P25>0,INDEX(Poeng!$A$1:$B$100,P25,2),"") ->  | R25: 0 | S25: 0 | T25: 0 | U25: 0 | V25: 0 | W25: 0 | X25: =IF(#REF!>0,#REF!,0) ->  | Y25: 0 | Z25: 0 | AA25: 0 | AB25: 0 | AC25: 0 | AD25: 0 | AE25: 0
G26: =IF(F26>0,INDEX(Poeng!$A$1:$B$100,F26,2),"") ->  | I26: =IF(H26>0,INDEX(Poeng!$A$1:$B$100,H26,2),"") ->  | K26: =IF(J26>0,INDEX(Poeng!$A$1:$B$100,J26,2),"") ->  | M26: =IF(L26>0,INDEX(Poeng!$A$1:$B$100,L26,2),"") ->  | O26: =IF(N26>0,INDEX(Poeng!$A$1:$B$100,N26,2),"") ->  | Q26: =IF(P26>0,INDEX(Poeng!$A$1:$B$100,P26,2),"") ->  | R26: 0 | S26: 0 | T26: 0 | U26: 0 | V26: 0 | W26: 0 | X26: =IF(#REF!>0,#REF!,0) ->  | Y26: 0 | Z26: 0 | AA26: 0 | AB26: 0 | AC26: 0 | AD26: 0 | AE26: 0
G27: =IF(F27>0,INDEX(Poeng!$A$1:$B$100,F27,2),"") ->  | I27: =IF(H27>0,INDEX(Poeng!$A$1:$B$100,H27,2),"") ->  | K27: =IF(J27>0,INDEX(Poeng!$A$1:$B$100,J27,2),"") ->  | M27: =IF(L27>0,INDEX(Poeng!$A$1:$B$100,L27,2),"") ->  | O27: =IF(N27>0,INDEX(Poeng!$A$1:$B$100,N27,2),"") ->  | Q27: =IF(P27>0,INDEX(Poeng!$A$1:$B$100,P27,2),"") ->  | R27: 0 | S27: 0 | T27: 0 | U27: 0 | V27: 0 | W27: 0 | X27: =IF(#REF!>0,#REF!,0) ->  | Y27: 0 | Z27: 0 | AA27: 0 | AB27: 0 | AC27: 0 | AD27: 0 | AE27: 0
G28: =IF(F28>0,INDEX(Poeng!$A$1:$B$100,F28,2),"") ->  | I28: =IF(H28>0,INDEX(Poeng!$A$1:$B$100,H28,2),"") ->  | K28: =IF(J28>0,INDEX(Poeng!$A$1:$B$100,J28,2),"") ->  | M28: =IF(L28>0,INDEX(Poeng!$A$1:$B$100,L28,2),"") ->  | O28: =IF(N28>0,INDEX(Poeng!$A$1:$B$100,N28,2),"") ->  | Q28: =IF(P28>0,INDEX(Poeng!$A$1:$B$100,P28,2),"") ->  | R28: 0 | S28: 0 | T28: 0 | U28: 0 | V28: 0 | W28: 0 | X28: =IF(#REF!>0,#REF!,0) ->  | Y28: 0 | Z28: 0 | AA28: 0 | AB28: 0 | AC28: 0 | AD28: 0 | AE28: 0
G29: =IF(F29>0,INDEX(Poeng!$A$1:$B$100,F29,2),"") ->  | I29: =IF(H29>0,INDEX(Poeng!$A$1:$B$100,H29,2),"") ->  | K29: =IF(J29>0,INDEX(Poeng!$A$1:$B$100,J29,2),"") ->  | M29: =IF(L29>0,INDEX(Poeng!$A$1:$B$100,L29,2),"") ->  | O29: =IF(N29>0,INDEX(Poeng!$A$1:$B$100,N29,2),"") ->  | Q29: =IF(P29>0,INDEX(Poeng!$A$1:$B$100,P29,2),"") ->  | R29: 0 | S29: 0 | T29: 0 | U29: 0 | V29: 0 | W29: 0 | X29: =IF(#REF!>0,#REF!,0) ->  | Y29: 0 | Z29: 0 | AA29: 0 | AB29: 0 | AC29: 0 | AD29: 0 | AE29: 0
G30: =IF(F30>0,INDEX(Poeng!$A$1:$B$100,F30,2),"") ->  | I30: =IF(H30>0,INDEX(Poeng!$A$1:$B$100,H30,2),"") ->  | K30: =IF(J30>0,INDEX(Poeng!$A$1:$B$100,J30,2),"") ->  | M30: =IF(L30>0,INDEX(Poeng!$A$1:$B$100,L30,2),"") ->  | O30: =IF(N30>0,INDEX(Poeng!$A$1:$B$100,N30,2),"") ->  | Q30: =IF(P30>0,INDEX(Poeng!$A$1:$B$100,P30,2),"") ->  | R30: 0 | S30: 0 | T30: 0 | U30: 0 | V30: 0 | W30: 0 | X30: =IF(#REF!>0,#REF!,0) ->  | Y30: 0 | Z30: 0 | AA30: 0 | AB30: 0 | AC30: 0 | AD30: 0 | AE30: 0
G31: =IF(F31>0,INDEX(Poeng!$A$1:$B$100,F31,2),"") ->  | I31: =IF(H31>0,INDEX(Poeng!$A$1:$B$100,H31,2),"") ->  | K31: =IF(J31>0,INDEX(Poeng!$A$1:$B$100,J31,2),"") ->  | M31: =IF(L31>0,INDEX(Poeng!$A$1:$B$100,L31,2),"") ->  | O31: =IF(N31>0,INDEX(Poeng!$A$1:$B$100,N31,2),"") ->  | Q31: =IF(P31>0,INDEX(Poeng!$A$1:$B$100,P31,2),"") ->  | R31: 0 | S31: 0 | T31: 0 | U31: 0 | V31: 0 | W31: 0 | X31: =IF(#REF!>0,#REF!,0) ->  | Y31: 0 | Z31: 0 | AA31: 0 | AB31: 0 | AC31: 0 | AD31: 0 | AE31: 0
G32: =IF(F32>0,INDEX(Poeng!$A$1:$B$100,F32,2),"") ->  | I32: =IF(H32>0,INDEX(Poeng!$A$1:$B$100,H32,2),"") ->  | K32: =IF(J32>0,INDEX(Poeng!$A$1:$B$100,J32,2),"") ->  | M32: =IF(L32>0,INDEX(Poeng!$A$1:$B$100,L32,2),"") ->  | O32: =IF(N32>0,INDEX(Poeng!$A$1:$B$100,N32,2),"") ->  | Q32: =IF(P32>0,INDEX(Poeng!$A$1:$B$100,P32,2),"") ->  | R32: 0 | S32: 0 | T32: 0 | U32: 0 | V32: 0 | W32: 0 | X32: =IF(#REF!>0,#REF!,0) ->  | Y32: 0 | Z32: 0 | AA32: 0 | AB32: 0 | AC32: 0 | AD32: 0 | AE32: 0
G33: =IF(F33>0,INDEX(Poeng!$A$1:$B$100,F33,2),"") ->  | I33: =IF(H33>0,INDEX(Poeng!$A$1:$B$100,H33,2),"") ->  | K33: =IF(J33>0,INDEX(Poeng!$A$1:$B$100,J33,2),"") ->  | M33: =IF(L33>0,INDEX(Poeng!$A$1:$B$100,L33,2),"") ->  | O33: =IF(N33>0,INDEX(Poeng!$A$1:$B$100,N33,2),"") ->  | R33: 0 | S33: 0 | T33: 0 | U33: 0 | V33: 0 | W33: 0 | X33: =IF(#REF!>0,#REF!,0) ->  | Y33: 0 | Z33: 0 | AA33: 0 | AB33: 0 | AC33: 0 | AD33: 0 | AE33: 0
E34: =IF(AD34<4," ","F") ->  | G34: =IF(F34>0,INDEX(Poeng!$A$1:$B$100,F34,2),"") ->  | I34: =IF(H34>0,INDEX(Poeng!$A$1:$B$100,H34,2),"") ->  | K34: =IF(J34>0,INDEX(Poeng!$A$1:$B$100,J34,2),"") ->  | M34: =IF(L34>0,INDEX(Poeng!$A$1:$B$100,L34,2),"") ->  | O34: =IF(N34>0,INDEX(Poeng!$A$1:$B$100,N34,2),"") ->  | Q34: =IF(P34>0,INDEX(Poeng!$A$1:$B$100,P34,2),"") ->  | R34: 0 | S34: 0 | T34: 0 | U34: 0 | V34: 0 | W34: 0 | X34: =IF(#REF!>0,#REF!,0) ->  | Y34: =LARGE(R34:W34,1) -> 0 | Z34: =LARGE(R34:W34,2) -> 0 | AA34: =LARGE(R34:W34,3) -> 0 | AB34: =LARGE(R34:W34,4) -> 0 | AC34: =SUM(Y34:AB34) -> 0 | AD34: 0 | AE34: =AC34*10^8+Y34*10^6/2+Z34*10^4/2+AA34*10^2/2+AB34/2 -> 0
A35: =AF35 ->  | D35: =IF(B35<>"",AC35,"") ->  | G35: =IF(F35>0,INDEX(Poeng!$A$1:$B$100,F35,2),"") ->  | I35: =IF(H35>0,INDEX(Poeng!$A$1:$B$100,H35,2),"") ->  | K35: =IF(J35>0,INDEX(Poeng!$A$1:$B$100,J35,2),"") ->  | M35: =IF(L35>0,INDEX(Poeng!$A$1:$B$100,L35,2),"") ->  | O35: =IF(N35>0,INDEX(Poeng!$A$1:$B$100,N35,2),"") ->  | Q35: =IF(P35>0,INDEX(Poeng!$A$1:$B$100,P35,2),"") ->  | R35: =IF(F35>0,G35,0) -> 0 | S35: =IF(H35>0,I35,0) -> 0 | T35: =IF(J35>0,K35,0) -> 0 | U35: =IF(L35>0,M35,0) -> 0 | V35: =IF(N35>0,O35,0) -> 0 | W35: =IF(P35>0,Q35,0) -> 0 | X35: =IF(#REF!>0,#REF!,0) ->  | Y35: 0 | Z35: 0 | AA35: 0 | AB35: 0 | AC35: 0 | AD35: =COUNT(F35:Q35)/2 -> 0 | AE35: 0
G36: =IF(F36>0,INDEX(Poeng!$A$1:$B$100,F36,2),"") ->  | I36: =IF(H36>0,INDEX(Poeng!$A$1:$B$100,H36,2),"") ->  | K36: =IF(J36>0,INDEX(Poeng!$A$1:$B$100,J36,2),"") ->  | M36: =IF(L36>0,INDEX(Poeng!$A$1:$B$100,L36,2),"") ->  | O36: =IF(N36>0,INDEX(Poeng!$A$1:$B$100,N36,2),"") ->  | Q36: =IF(P36>0,INDEX(Poeng!$A$1:$B$100,P36,2),"") ->  | R36: 0 | S36: 0 | T36: 0 | U36: 0 | V36: 0 | W36: 0 | X36: =IF(#REF!>0,#REF!,0) ->  | Y36: 0 | Z36: 0 | AA36: 0 | AB36: 0 | AC36: 0 | AD36: 0 | AE36: 0 | AF36: =IF(B36<>"",RANK(AE36,AE$4:AE$72,0),"") -> 
G37: =IF(F37>0,INDEX(Poeng!$A$1:$B$100,F37,2),"") ->  | I37: =IF(H37>0,INDEX(Poeng!$A$1:$B$100,H37,2),"") ->  | K37: =IF(J37>0,INDEX(Poeng!$A$1:$B$100,J37,2),"") ->  | M37: =IF(L37>0,INDEX(Poeng!$A$1:$B$100,L37,2),"") ->  | O37: =IF(N37>0,INDEX(Poeng!$A$1:$B$100,N37,2),"") ->  | Q37: =IF(P37>0,INDEX(Poeng!$A$1:$B$100,P37,2),"") ->  | R37: 0 | S37: 0 | T37: 0 | U37: 0 | V37: 0 | W37: 0 | X37: =IF(#REF!>0,#REF!,0) ->  | Y37: 0 | Z37: 0 | AA37: 0 | AB37: 0 | AC37: 0 | AD37: 0 | AE37: 0
G38: =IF(F38>0,INDEX(Poeng!$A$1:$B$100,F38,2),"") ->  | I38: =IF(H38>0,INDEX(Poeng!$A$1:$B$100,H38,2),"") ->  | K38: =IF(J38>0,INDEX(Poeng!$A$1:$B$100,J38,2),"") ->  | M38: =IF(L38>0,INDEX(Poeng!$A$1:$B$100,L38,2),"") ->  | O38: =IF(N38>0,INDEX(Poeng!$A$1:$B$100,N38,2),"") ->  | Q38: =IF(P38>0,INDEX(Poeng!$A$1:$B$100,P38,2),"") ->  | R38: 0 | S38: 0 | T38: 0 | U38: 0 | V38: 0 | W38: 0 | X38: =IF(#REF!>0,#REF!,0) ->  | Y38: 0 | Z38: 0 | AA38: 0 | AB38: 0 | AC38: 0 | AD38: 0 | AE38: 0
G39: =IF(F39>0,INDEX(Poeng!$A$1:$B$100,F39,2),"") ->  | I39: =IF(H39>0,INDEX(Poeng!$A$1:$B$100,H39,2),"") ->  | K39: =IF(J39>0,INDEX(Poeng!$A$1:$B$100,J39,2),"") ->  | M39: =IF(L39>0,INDEX(Poeng!$A$1:$B$100,L39,2),"") ->  | O39: =IF(N39>0,INDEX(Poeng!$A$1:$B$100,N39,2),"") ->  | Q39: =IF(P39>0,INDEX(Poeng!$A$1:$B$100,P39,2),"") ->  | R39: 0 | S39: 0 | T39: 0 | U39: 0 | V39: 0 | W39: 0 | X39: =IF(#REF!>0,#REF!,0) ->  | Y39: 0 | Z39: 0 | AA39: 0 | AB39: 0 | AC39: 0 | AD39: 0 | AE39: 0
G40: =IF(F40>0,INDEX(Poeng!$A$1:$B$100,F40,2),"") ->  | I40: =IF(H40>0,INDEX(Poeng!$A$1:$B$100,H40,2),"") ->  | K40: =IF(J40>0,INDEX(Poeng!$A$1:$B$100,J40,2),"") ->  | M40: =IF(L40>0,INDEX(Poeng!$A$1:$B$100,L40,2),"") ->  | O40: =IF(N40>0,INDEX(Poeng!$A$1:$B$100,N40,2),"") ->  | Q40: =IF(P40>0,INDEX(Poeng!$A$1:$B$100,P40,2),"") ->  | R40: 0 | S40: 0 | T40: 0 | U40: 0 | V40: 0 | W40: 0 | X40: =IF(#REF!>0,#REF!,0) ->  | Y40: 0 | Z40: 0 | AA40: 0 | AB40: 0 | AC40: 0 | AD40: 0 | AE40: 0
G41: =IF(F41>0,INDEX(Poeng!$A$1:$B$100,F41,2),"") ->  | I41: =IF(H41>0,INDEX(Poeng!$A$1:$B$100,H41,2),"") ->  | K41: =IF(J41>0,INDEX(Poeng!$A$1:$B$100,J41,2),"") ->  | M41: =IF(L41>0,INDEX(Poeng!$A$1:$B$100,L41,2),"") ->  | O41: =IF(N41>0,INDEX(Poeng!$A$1:$B$100,N41,2),"") ->  | Q41: =IF(P41>0,INDEX(Poeng!$A$1:$B$100,P41,2),"") ->  | R41: 0 | S41: 0 | T41: 0 | U41: 0 | V41: 0 | W41: 0 | X41: =IF(#REF!>0,#REF!,0) ->  | Y41: 0 | Z41: 0 | AA41: 0 | AB41: 0 | AC41: 0 | AD41: 0 | AE41: 0
G42: =IF(F42>0,INDEX(Poeng!$A$1:$B$100,F42,2),"") ->  | I42: =IF(H42>0,INDEX(Poeng!$A$1:$B$100,H42,2),"") ->  | K42: =IF(J42>0,INDEX(Poeng!$A$1:$B$100,J42,2),"") ->  | M42: =IF(L42>0,INDEX(Poeng!$A$1:$B$100,L42,2),"") ->  | O42: =IF(N42>0,INDEX(Poeng!$A$1:$B$100,N42,2),"") ->  | Q42: =IF(P42>0,INDEX(Poeng!$A$1:$B$100,P42,2),"") ->  | R42: 0 | S42: 0 | T42: 0 | U42: 0 | V42: 0 | W42: 0 | X42: =IF(#REF!>0,#REF!,0) ->  | Y42: 0 | Z42: 0 | AA42: 0 | AB42: 0 | AC42: 0 | AD42: 0 | AE42: 0
G43: =IF(F43>0,INDEX(Poeng!$A$1:$B$100,F43,2),"") ->  | I43: =IF(H43>0,INDEX(Poeng!$A$1:$B$100,H43,2),"") ->  | K43: =IF(J43>0,INDEX(Poeng!$A$1:$B$100,J43,2),"") ->  | M43: =IF(L43>0,INDEX(Poeng!$A$1:$B$100,L43,2),"") ->  | O43: =IF(N43>0,INDEX(Poeng!$A$1:$B$100,N43,2),"") ->  | Q43: =IF(P43>0,INDEX(Poeng!$A$1:$B$100,P43,2),"") ->  | R43: 0 | S43: 0 | T43: 0 | U43: 0 | V43: 0 | W43: 0 | X43: =IF(#REF!>0,#REF!,0) ->  | Y43: 0 | Z43: 0 | AA43: 0 | AB43: 0 | AC43: 0 | AD43: 0 | AE43: 0
G44: =IF(F44>0,INDEX(Poeng!$A$1:$B$100,F44,2),"") ->  | I44: =IF(H44>0,INDEX(Poeng!$A$1:$B$100,H44,2),"") ->  | K44: =IF(J44>0,INDEX(Poeng!$A$1:$B$100,J44,2),"") ->  | M44: =IF(L44>0,INDEX(Poeng!$A$1:$B$100,L44,2),"") ->  | O44: =IF(N44>0,INDEX(Poeng!$A$1:$B$100,N44,2),"") ->  | Q44: =IF(P44>0,INDEX(Poeng!$A$1:$B$100,P44,2),"") ->  | R44: 0 | S44: 0 | T44: 0 | U44: 0 | V44: 0 | W44: 0 | X44: =IF(#REF!>0,#REF!,0) ->  | Y44: 0 | Z44: 0 | AA44: 0 | AB44: 0 | AC44: 0 | AD44: 0 | AE44: 0
G45: =IF(F45>0,INDEX(Poeng!$A$1:$B$100,F45,2),"") ->  | I45: =IF(H45>0,INDEX(Poeng!$A$1:$B$100,H45,2),"") ->  | K45: =IF(J45>0,INDEX(Poeng!$A$1:$B$100,J45,2),"") ->  | M45: =IF(L45>0,INDEX(Poeng!$A$1:$B$100,L45,2),"") ->  | O45: =IF(N45>0,INDEX(Poeng!$A$1:$B$100,N45,2),"") ->  | Q45: =IF(P45>0,INDEX(Poeng!$A$1:$B$100,P45,2),"") ->  | R45: 0 | S45: 0 | T45: 0 | U45: 0 | V45: 0 | W45: 0 | X45: =IF(#REF!>0,#REF!,0) ->  | Y45: 0 | Z45: 0 | AA45: 0 | AB45: 0 | AC45: 0 | AD45: 0 | AE45: 0
G46: =IF(F46>0,INDEX(Poeng!$A$1:$B$100,F46,2),"") ->  | I46: =IF(H46>0,INDEX(Poeng!$A$1:$B$100,H46,2),"") ->  | K46: =IF(J46>0,INDEX(Poeng!$A$1:$B$100,J46,2),"") ->  | M46: =IF(L46>0,INDEX(Poeng!$A$1:$B$100,L46,2),"") ->  | O46: =IF(N46>0,INDEX(Poeng!$A$1:$B$100,N46,2),"") ->  | Q46: =IF(P46>0,INDEX(Poeng!$A$1:$B$100,P46,2),"") ->  | R46: 0 | S46: 0 | T46: 0 | U46: 0 | V46: 0 | W46: 0 | X46: =IF(#REF!>0,#REF!,0) ->  | Y46: 0 | Z46: 0 | AA46: 0 | AB46: 0 | AC46: 0 | AD46: 0 | AE46: 0
G47: =IF(F47>0,INDEX(Poeng!$A$1:$B$100,F47,2),"") ->  | I47: =IF(H47>0,INDEX(Poeng!$A$1:$B$100,H47,2),"") ->  | K47: =IF(J47>0,INDEX(Poeng!$A$1:$B$100,J47,2),"") ->  | M47: =IF(L47>0,INDEX(Poeng!$A$1:$B$100,L47,2),"") ->  | O47: =IF(N47>0,INDEX(Poeng!$A$1:$B$100,N47,2),"") ->  | Q47: =IF(P47>0,INDEX(Poeng!$A$1:$B$100,P47,2),"") ->  | R47: 0 | S47: 0 | T47: 0 | U47: 0 | V47: 0 | W47: 0 | X47: =IF(#REF!>0,#REF!,0) ->  | Y47: 0 | Z47: 0 | AA47: 0 | AB47: 0 | AC47: 0 | AD47: 0 | AE47: 0
I48: =IF(H48>0,INDEX(Poeng!$A$1:$B$100,H48,2),"") ->  | K48: =IF(J48>0,INDEX(Poeng!$A$1:$B$100,J48,2),"") ->  | M48: =IF(L48>0,INDEX(Poeng!$A$1:$B$100,L48,2),"") ->  | O48: =IF(N48>0,INDEX(Poeng!$A$1:$B$100,N48,2),"") ->  | Q48: =IF(P48>0,INDEX(Poeng!$A$1:$B$100,P48,2),"") ->  | R48: 0 | S48: 0 | T48: 0 | U48: 0 | V48: 0 | W48: 0 | X48: =IF(#REF!>0,#REF!,0) ->  | Y48: 0 | Z48: 0 | AA48: 0 | AB48: 0 | AC48: 0 | AD48: 0 | AE48: 0
I49: =IF(H49>0,INDEX(Poeng!$A$1:$B$100,H49,2),"") ->  | K49: =IF(J49>0,INDEX(Poeng!$A$1:$B$100,J49,2),"") ->  | M49: =IF(L49>0,INDEX(Poeng!$A$1:$B$100,L49,2),"") ->  | O49: =IF(N49>0,INDEX(Poeng!$A$1:$B$100,N49,2),"") ->  | Q49: =IF(P49>0,INDEX(Poeng!$A$1:$B$100,P49,2),"") ->  | R49: 0 | S49: 0 | T49: 0 | U49: 0 | V49: 0 | W49: 0 | X49: =IF(#REF!>0,#REF!,0) ->  | Y49: 0 | Z49: 0 | AA49: 0 | AB49: 0 | AC49: 0 | AD49: 0 | AE49: 0
I50: =IF(H50>0,INDEX(Poeng!$A$1:$B$100,H50,2),"") ->  | K50: =IF(J50>0,INDEX(Poeng!$A$1:$B$100,J50,2),"") ->  | M50: =IF(L50>0,INDEX(Poeng!$A$1:$B$100,L50,2),"") ->  | O50: =IF(N50>0,INDEX(Poeng!$A$1:$B$100,N50,2),"") ->  | Q50: =IF(P50>0,INDEX(Poeng!$A$1:$B$100,P50,2),"") ->  | R50: 0 | S50: 0 | T50: 0 | U50: 0 | V50: 0 | W50: 0 | X50: =IF(#REF!>0,#REF!,0) ->  | Y50: 0 | Z50: 0 | AA50: 0 | AB50: 0 | AC50: 0 | AD50: 0 | AE50: 0
I51: =IF(H51>0,INDEX(Poeng!$A$1:$B$100,H51,2),"") ->  | K51: =IF(J51>0,INDEX(Poeng!$A$1:$B$100,J51,2),"") ->  | M51: =IF(L51>0,INDEX(Poeng!$A$1:$B$100,L51,2),"") ->  | O51: =IF(N51>0,INDEX(Poeng!$A$1:$B$100,N51,2),"") ->  | Q51: =IF(P51>0,INDEX(Poeng!$A$1:$B$100,P51,2),"") ->  | R51: 0 | S51: 0 | T51: 0 | U51: 0 | V51: 0 | W51: 0 | X51: =IF(#REF!>0,#REF!,0) ->  | Y51: 0 | Z51: 0 | AA51: 0 | AB51: 0 | AC51: 0 | AD51: 0 | AE51: 0
I52: =IF(H52>0,INDEX(Poeng!$A$1:$B$100,H52,2),"") ->  | K52: =IF(J52>0,INDEX(Poeng!$A$1:$B$100,J52,2),"") ->  | M52: =IF(L52>0,INDEX(Poeng!$A$1:$B$100,L52,2),"") ->  | O52: =IF(N52>0,INDEX(Poeng!$A$1:$B$100,N52,2),"") ->  | Q52: =IF(P52>0,INDEX(Poeng!$A$1:$B$100,P52,2),"") ->  | R52: 0 | S52: 0 | T52: 0 | U52: 0 | V52: 0 | W52: 0 | X52: =IF(#REF!>0,#REF!,0) ->  | Y52: 0 | Z52: 0 | AA52: 0 | AB52: 0 | AC52: 0 | AD52: 0 | AE52: 0
I53: =IF(H53>0,INDEX(Poeng!$A$1:$B$100,H53,2),"") ->  | K53: =IF(J53>0,INDEX(Poeng!$A$1:$B$100,J53,2),"") ->  | M53: =IF(L53>0,INDEX(Poeng!$A$1:$B$100,L53,2),"") ->  | O53: =IF(N53>0,INDEX(Poeng!$A$1:$B$100,N53,2),"") ->  | Q53: =IF(P53>0,INDEX(Poeng!$A$1:$B$100,P53,2),"") ->  | R53: 0 | S53: 0 | T53: 0 | U53: 0 | V53: 0 | W53: 0 | X53: =IF(#REF!>0,#REF!,0) ->  | Y53: 0 | Z53: 0 | AA53: 0 | AB53: 0 | AC53: 0 | AD53: 0 | AE53: 0
I54: =IF(H54>0,INDEX(Poeng!$A$1:$B$100,H54,2),"") ->  | K54: =IF(J54>0,INDEX(Poeng!$A$1:$B$100,J54,2),"") ->  | M54: =IF(L54>0,INDEX(Poeng!$A$1:$B$100,L54,2),"") ->  | O54: =IF(N54>0,INDEX(Poeng!$A$1:$B$100,N54,2),"") ->  | Q54: =IF(P54>0,INDEX(Poeng!$A$1:$B$100,P54,2),"") ->  | R54: 0 | S54: 0 | T54: 0 | U54: 0 | V54: 0 | W54: 0 | X54: =IF(#REF!>0,#REF!,0) ->  | Y54: 0 | Z54: 0 | AA54: 0 | AB54: 0 | AC54: 0 | AD54: 0 | AE54: 0
I55: =IF(H55>0,INDEX(Poeng!$A$1:$B$100,H55,2),"") ->  | K55: =IF(J55>0,INDEX(Poeng!$A$1:$B$100,J55,2),"") ->  | M55: =IF(L55>0,INDEX(Poeng!$A$1:$B$100,L55,2),"") ->  | O55: =IF(N55>0,INDEX(Poeng!$A$1:$B$100,N55,2),"") ->  | Q55: =IF(P55>0,INDEX(Poeng!$A$1:$B$100,P55,2),"") ->  | R55: 0 | S55: 0 | T55: 0 | U55: 0 | V55: 0 | W55: 0 | X55: =IF(#REF!>0,#REF!,0) ->  | Y55: 0 | Z55: 0 | AA55: 0 | AB55: 0 | AC55: 0 | AD55: 0 | AE55: 0
I56: =IF(H56>0,INDEX(Poeng!$A$1:$B$100,H56,2),"") ->  | K56: =IF(J56>0,INDEX(Poeng!$A$1:$B$100,J56,2),"") ->  | M56: =IF(L56>0,INDEX(Poeng!$A$1:$B$100,L56,2),"") ->  | O56: =IF(N56>0,INDEX(Poeng!$A$1:$B$100,N56,2),"") ->  | Q56: =IF(P56>0,INDEX(Poeng!$A$1:$B$100,P56,2),"") ->  | R56: 0 | S56: 0 | T56: 0 | U56: 0 | V56: 0 | W56: 0 | X56: =IF(#REF!>0,#REF!,0) ->  | Y56: 0 | Z56: 0 | AA56: 0 | AB56: 0 | AC56: 0 | AD56: 0 | AE56: 0
I57: =IF(H57>0,INDEX(Poeng!$A$1:$B$100,H57,2),"") ->  | K57: =IF(J57>0,INDEX(Poeng!$A$1:$B$100,J57,2),"") ->  | M57: =IF(L57>0,INDEX(Poeng!$A$1:$B$100,L57,2),"") ->  | O57: =IF(N57>0,INDEX(Poeng!$A$1:$B$100,N57,2),"") ->  | Q57: =IF(P57>0,INDEX(Poeng!$A$1:$B$100,P57,2),"") ->  | R57: 0 | S57: 0 | T57: 0 | U57: 0 | V57: 0 | W57: 0 | X57: =IF(#REF!>0,#REF!,0) ->  | Y57: 0 | Z57: 0 | AA57: 0 | AB57: 0 | AC57: 0 | AD57: 0 | AE57: 0
I58: =IF(H58>0,INDEX(Poeng!$A$1:$B$100,H58,2),"") ->  | K58: =IF(J58>0,INDEX(Poeng!$A$1:$B$100,J58,2),"") ->  | M58: =IF(L58>0,INDEX(Poeng!$A$1:$B$100,L58,2),"") ->  | O58: =IF(N58>0,INDEX(Poeng!$A$1:$B$100,N58,2),"") ->  | Q58: =IF(P58>0,INDEX(Poeng!$A$1:$B$100,P58,2),"") ->  | R58: 0 | S58: 0 | T58: 0 | U58: 0 | V58: 0 | W58: 0 | X58: =IF(#REF!>0,#REF!,0) ->  | Y58: 0 | Z58: 0 | AA58: 0 | AB58: 0 | AC58: 0 | AD58: 0 | AE58: 0
I59: =IF(H59>0,INDEX(Poeng!$A$1:$B$100,H59,2),"") ->  | K59: =IF(J59>0,INDEX(Poeng!$A$1:$B$100,J59,2),"") ->  | M59: =IF(L59>0,INDEX(Poeng!$A$1:$B$100,L59,2),"") ->  | O59: =IF(N59>0,INDEX(Poeng!$A$1:$B$100,N59,2),"") ->  | Q59: =IF(P59>0,INDEX(Poeng!$A$1:$B$100,P59,2),"") ->  | R59: 0 | S59: 0 | T59: 0 | U59: 0 | V59: 0 | W59: 0 | X59: =IF(#REF!>0,#REF!,0) ->  | Y59: 0 | Z59: 0 | AA59: 0 | AB59: 0 | AC59: 0 | AD59: 0 | AE59: 0
I60: =IF(H60>0,INDEX(Poeng!$A$1:$B$100,H60,2),"") ->  | K60: =IF(J60>0,INDEX(Poeng!$A$1:$B$100,J60,2),"") ->  | M60: =IF(L60>0,INDEX(Poeng!$A$1:$B$100,L60,2),"") ->  | O60: =IF(N60>0,INDEX(Poeng!$A$1:$B$100,N60,2),"") ->  | Q60: =IF(P60>0,INDEX(Poeng!$A$1:$B$100,P60,2),"") ->  | R60: 0 | S60: 0 | T60: 0 | U60: 0 | V60: 0 | W60: 0 | X60: =IF(#REF!>0,#REF!,0) ->  | Y60: 0 | Z60: 0 | AA60: 0 | AB60: 0 | AC60: 0 | AD60: 0 | AE60: 0
E61: =IF(AD61<4," ","F") ->  | I61: =IF(H61>0,INDEX(Poeng!$A$1:$B$100,H61,2),"") ->  | K61: =IF(J61>0,INDEX(Poeng!$A$1:$B$100,J61,2),"") ->  | M61: =IF(L61>0,INDEX(Poeng!$A$1:$B$100,L61,2),"") ->  | O61: =IF(N61>0,INDEX(Poeng!$A$1:$B$100,N61,2),"") ->  | Q61: =IF(P61>0,INDEX(Poeng!$A$1:$B$100,P61,2),"") ->  | R61: 0 | S61: 0 | T61: 0 | U61: 0 | V61: 0 | W61: 0 | X61: =IF(#REF!>0,#REF!,0) ->  | Y61: 0 | Z61: 0 | AA61: 0 | AB61: 0 | AC61: 0 | AD61: 0 | AE61: 0
I62: =IF(H62>0,INDEX(Poeng!$A$1:$B$100,H62,2),"") ->  | K62: =IF(J62>0,INDEX(Poeng!$A$1:$B$100,J62,2),"") ->  | M62: =IF(L62>0,INDEX(Poeng!$A$1:$B$100,L62,2),"") ->  | O62: =IF(N62>0,INDEX(Poeng!$A$1:$B$100,N62,2),"") ->  | Q62: =IF(P62>0,INDEX(Poeng!$A$1:$B$100,P62,2),"") ->  | R62: 0 | S62: 0 | T62: 0 | U62: 0 | V62: 0 | W62: 0 | X62: =IF(#REF!>0,#REF!,0) ->  | Y62: 0 | Z62: 0 | AA62: 0 | AB62: 0 | AC62: 0 | AD62: 0 | AE62: 0
I63: =IF(H63>0,INDEX(Poeng!$A$1:$B$100,H63,2),"") ->  | K63: =IF(J63>0,INDEX(Poeng!$A$1:$B$100,J63,2),"") ->  | M63: =IF(L63>0,INDEX(Poeng!$A$1:$B$100,L63,2),"") ->  | O63: =IF(N63>0,INDEX(Poeng!$A$1:$B$100,N63,2),"") ->  | Q63: =IF(P63>0,INDEX(Poeng!$A$1:$B$100,P63,2),"") ->  | R63: 0 | S63: 0 | T63: 0 | U63: 0 | V63: 0 | W63: 0 | X63: =IF(#REF!>0,#REF!,0) ->  | Y63: 0 | Z63: 0 | AA63: 0 | AB63: 0 | AC63: 0 | AD63: 0 | AE63: 0
I64: =IF(H64>0,INDEX(Poeng!$A$1:$B$100,H64,2),"") ->  | K64: =IF(J64>0,INDEX(Poeng!$A$1:$B$100,J64,2),"") ->  | M64: =IF(L64>0,INDEX(Poeng!$A$1:$B$100,L64,2),"") ->  | O64: =IF(N64>0,INDEX(Poeng!$A$1:$B$100,N64,2),"") ->  | Q64: =IF(P64>0,INDEX(Poeng!$A$1:$B$100,P64,2),"") ->  | R64: 0 | S64: 0 | T64: 0 | U64: 0 | V64: 0 | W64: 0 | X64: =IF(#REF!>0,#REF!,0) ->  | Y64: 0 | Z64: 0 | AA64: 0 | AB64: 0 | AC64: 0 | AD64: 0 | AE64: 0
I65: =IF(H65>0,INDEX(Poeng!$A$1:$B$100,H65,2),"") ->  | K65: =IF(J65>0,INDEX(Poeng!$A$1:$B$100,J65,2),"") ->  | M65: =IF(L65>0,INDEX(Poeng!$A$1:$B$100,L65,2),"") ->  | O65: =IF(N65>0,INDEX(Poeng!$A$1:$B$100,N65,2),"") ->  | Q65: =IF(P65>0,INDEX(Poeng!$A$1:$B$100,P65,2),"") ->  | R65: 0 | S65: 0 | T65: 0 | U65: 0 | V65: 0 | W65: 0 | X65: =IF(#REF!>0,#REF!,0) ->  | Y65: 0 | Z65: 0 | AA65: 0 | AB65: 0 | AC65: 0 | AD65: 0 | AE65: 0
I66: =IF(H66>0,INDEX(Poeng!$A$1:$B$100,H66,2),"") ->  | K66: =IF(J66>0,INDEX(Poeng!$A$1:$B$100,J66,2),"") ->  | M66: =IF(L66>0,INDEX(Poeng!$A$1:$B$100,L66,2),"") ->  | O66: =IF(N66>0,INDEX(Poeng!$A$1:$B$100,N66,2),"") ->  | Q66: =IF(P66>0,INDEX(Poeng!$A$1:$B$100,P66,2),"") ->  | R66: 0 | S66: 0 | T66: 0 | U66: 0 | V66: 0 | W66: 0 | X66: =IF(#REF!>0,#REF!,0) ->  | Y66: =LARGE(R66:W66,1) -> 0 | Z66: =LARGE(R66:W66,2) -> 0 | AA66: =LARGE(R66:W66,3) -> 0 | AB66: =LARGE(R66:W66,4) -> 0 | AC66: =SUM(Y66:AB66) -> 0 | AD66: 0 | AE66: =AC66*10^8+Y66*10^6/2+Z66*10^4/2+AA66*10^2/2+AB66/2 -> 0
A67: =AF67 ->  | D67: =IF(B67<>"",AC67,"") ->  | I67: =IF(H67>0,INDEX(Poeng!$A$1:$B$100,H67,2),"") ->  | K67: =IF(J67>0,INDEX(Poeng!$A$1:$B$100,J67,2),"") ->  | M67: =IF(L67>0,INDEX(Poeng!$A$1:$B$100,L67,2),"") ->  | O67: =IF(N67>0,INDEX(Poeng!$A$1:$B$100,N67,2),"") ->  | Q67: =IF(P67>0,INDEX(Poeng!$A$1:$B$100,P67,2),"") ->  | R67: =IF(F67>0,G67,0) -> 0 | S67: =IF(H67>0,I67,0) -> 0 | T67: =IF(J67>0,K67,0) -> 0 | U67: =IF(L67>0,M67,0) -> 0 | V67: =IF(N67>0,O67,0) -> 0 | W67: =IF(P67>0,Q67,0) -> 0 | X67: =IF(#REF!>0,#REF!,0) ->  | Y67: 0 | Z67: 0 | AA67: 0 | AB67: 0 | AC67: 0 | AD67: =COUNT(F67:Q67)/2 -> 0 | AE67: 0
I68: =IF(H68>0,INDEX(Poeng!$A$1:$B$100,H68,2),"") ->  | K68: =IF(J68>0,INDEX(Poeng!$A$1:$B$100,J68,2),"") ->  | M68: =IF(L68>0,INDEX(Poeng!$A$1:$B$100,L68,2),"") ->  | O68: =IF(N68>0,INDEX(Poeng!$A$1:$B$100,N68,2),"") ->  | Q68: =IF(P68>0,INDEX(Poeng!$A$1:$B$100,P68,2),"") ->  | R68: 0 | S68: 0 | T68: 0 | U68: 0 | V68: 0 | W68: 0 | X68: =IF(#REF!>0,#REF!,0) ->  | Y68: 0 | Z68: 0 | AA68: 0 | AB68: 0 | AC68: 0 | AD68: 0 | AE68: 0 | AF68: =IF(B68<>"",RANK(AE68,AE$4:AE$72,0),"") -> 
I69: =IF(H69>0,INDEX(Poeng!$A$1:$B$100,H69,2),"") ->  | K69: =IF(J69>0,INDEX(Poeng!$A$1:$B$100,J69,2),"") ->  | M69: =IF(L69>0,INDEX(Poeng!$A$1:$B$100,L69,2),"") ->  | O69: =IF(N69>0,INDEX(Poeng!$A$1:$B$100,N69,2),"") ->  | Q69: =IF(P69>0,INDEX(Poeng!$A$1:$B$100,P69,2),"") ->  | R69: 0 | S69: 0 | T69: 0 | U69: 0 | V69: 0 | W69: 0 | X69: =IF(#REF!>0,#REF!,0) ->  | Y69: 0 | Z69: 0 | AA69: 0 | AB69: 0 | AC69: 0 | AD69: 0 | AE69: 0
I70: =IF(H70>0,INDEX(Poeng!$A$1:$B$100,H70,2),"") ->  | K70: =IF(J70>0,INDEX(Poeng!$A$1:$B$100,J70,2),"") ->  | M70: =IF(L70>0,INDEX(Poeng!$A$1:$B$100,L70,2),"") ->  | O70: =IF(N70>0,INDEX(Poeng!$A$1:$B$100,N70,2),"") ->  | Q70: =IF(P70>0,INDEX(Poeng!$A$1:$B$100,P70,2),"") ->  | R70: 0 | S70: 0 | T70: 0 | U70: 0 | V70: 0 | W70: 0 | X70: =IF(#REF!>0,#REF!,0) ->  | Y70: 0 | Z70: 0 | AA70: 0 | AB70: 0 | AC70: 0 | AD70: 0 | AE70: 0
I71: =IF(H71>0,INDEX(Poeng!$A$1:$B$100,H71,2),"") ->  | K71: =IF(J71>0,INDEX(Poeng!$A$1:$B$100,J71,2),"") ->  | M71: =IF(L71>0,INDEX(Poeng!$A$1:$B$100,L71,2),"") ->  | O71: =IF(N71>0,INDEX(Poeng!$A$1:$B$100,N71,2),"") ->  | Q71: =IF(P71>0,INDEX(Poeng!$A$1:$B$100,P71,2),"") ->  | R71: 0 | S71: 0 | T71: 0 | U71: 0 | V71: 0 | W71: 0 | X71: =IF(#REF!>0,#REF!,0) ->  | Y71: 0 | Z71: 0 | AA71: 0 | AB71: 0 | AC71: 0 | AD71: 0 | AE71: 0
I72: =IF(H72>0,INDEX(Poeng!$A$1:$B$100,H72,2),"") ->  | K72: =IF(J72>0,INDEX(Poeng!$A$1:$B$100,J72,2),"") ->  | M72: =IF(L72>0,INDEX(Poeng!$A$1:$B$100,L72,2),"") ->  | O72: =IF(N72>0,INDEX(Poeng!$A$1:$B$100,N72,2),"") ->  | Q72: =IF(P72>0,INDEX(Poeng!$A$1:$B$100,P72,2),"") ->  | R72: 0 | S72: 0 | T72: 0 | U72: 0 | V72: 0 | W72: 0 | X72: =IF(#REF!>0,#REF!,0) ->  | Y72: 0 | Z72: 0 | AA72: 0 | AB72: 0 | AC72: 0 | AD72: 0 | AE72: 0
I73: =IF(H73>0,INDEX(Poeng!$A$1:$B$100,H73,2),"") ->  | K73: =IF(J73>0,INDEX(Poeng!$A$1:$B$100,J73,2),"") ->  | M73: =IF(L73>0,INDEX(Poeng!$A$1:$B$100,L73,2),"") ->  | O73: =IF(N73>0,INDEX(Poeng!$A$1:$B$100,N73,2),"") ->  | Q73: =IF(P73>0,INDEX(Poeng!$A$1:$B$100,P73,2),"") ->  | R73: 0 | S73: 0 | T73: 0 | U73: 0 | V73: 0 | W73: 0 | X73: =IF(#REF!>0,#REF!,0) ->  | Y73: 0 | Z73: 0 | AA73: 0 | AB73: 0 | AC73: 0 | AD73: 0 | AE73: 0
I74: =IF(H74>0,INDEX(Poeng!$A$1:$B$100,H74,2),"") ->  | K74: =IF(J74>0,INDEX(Poeng!$A$1:$B$100,J74,2),"") ->  | M74: =IF(L74>0,INDEX(Poeng!$A$1:$B$100,L74,2),"") ->  | O74: =IF(N74>0,INDEX(Poeng!$A$1:$B$100,N74,2),"") ->  | Q74: =IF(P74>0,INDEX(Poeng!$A$1:$B$100,P74,2),"") ->  | R74: 0 | S74: 0 | T74: 0 | U74: 0 | V74: 0 | W74: 0 | X74: =IF(#REF!>0,#REF!,0) ->  | Y74: 0 | Z74: 0 | AA74: 0 | AB74: 0 | AC74: 0 | AD74: 0 | AE74: 0
I75: =IF(H75>0,INDEX(Poeng!$A$1:$B$100,H75,2),"") ->  | K75: =IF(J75>0,INDEX(Poeng!$A$1:$B$100,J75,2),"") ->  | M75: =IF(L75>0,INDEX(Poeng!$A$1:$B$100,L75,2),"") ->  | O75: =IF(N75>0,INDEX(Poeng!$A$1:$B$100,N75,2),"") ->  | Q75: =IF(P75>0,INDEX(Poeng!$A$1:$B$100,P75,2),"") ->  | R75: 0 | S75: 0 | T75: 0 | U75: 0 | V75: 0 | W75: 0 | X75: =IF(#REF!>0,#REF!,0) ->  | Y75: 0 | Z75: 0 | AA75: 0 | AB75: 0 | AC75: 0 | AD75: 0 | AE75: 0
I76: =IF(H76>0,INDEX(Poeng!$A$1:$B$100,H76,2),"") ->  | K76: =IF(J76>0,INDEX(Poeng!$A$1:$B$100,J76,2),"") ->  | M76: =IF(L76>0,INDEX(Poeng!$A$1:$B$100,L76,2),"") ->  | O76: =IF(N76>0,INDEX(Poeng!$A$1:$B$100,N76,2),"") ->  | Q76: =IF(P76>0,INDEX(Poeng!$A$1:$B$100,P76,2),"") ->  | R76: 0 | S76: 0 | T76: 0 | U76: 0 | V76: 0 | W76: 0 | X76: =IF(#REF!>0,#REF!,0) ->  | Y76: 0 | Z76: 0 | AA76: 0 | AB76: 0 | AC76: 0 | AD76: 0 | AE76: 0
I77: =IF(H77>0,INDEX(Poeng!$A$1:$B$100,H77,2),"") ->  | K77: =IF(J77>0,INDEX(Poeng!$A$1:$B$100,J77,2),"") ->  | M77: =IF(L77>0,INDEX(Poeng!$A$1:$B$100,L77,2),"") ->  | O77: =IF(N77>0,INDEX(Poeng!$A$1:$B$100,N77,2),"") ->  | Q77: =IF(P77>0,INDEX(Poeng!$A$1:$B$100,P77,2),"") ->  | R77: 0 | S77: 0 | T77: 0 | U77: 0 | V77: 0 | W77: 0 | X77: =IF(#REF!>0,#REF!,0) ->  | Y77: 0 | Z77: 0 | AA77: 0 | AB77: 0 | AC77: 0 | AD77: 0 | AE77: 0
I78: =IF(H78>0,INDEX(Poeng!$A$1:$B$100,H78,2),"") ->  | K78: =IF(J78>0,INDEX(Poeng!$A$1:$B$100,J78,2),"") ->  | M78: =IF(L78>0,INDEX(Poeng!$A$1:$B$100,L78,2),"") ->  | O78: =IF(N78>0,INDEX(Poeng!$A$1:$B$100,N78,2),"") ->  | Q78: =IF(P78>0,INDEX(Poeng!$A$1:$B$100,P78,2),"") ->  | R78: 0 | S78: 0 | T78: 0 | U78: 0 | V78: 0 | W78: 0 | X78: =IF(#REF!>0,#REF!,0) ->  | Y78: 0 | Z78: 0 | AA78: 0 | AB78: 0 | AC78: 0 | AD78: 0 | AE78: 0
I79: =IF(H79>0,INDEX(Poeng!$A$1:$B$100,H79,2),"") ->  | K79: =IF(J79>0,INDEX(Poeng!$A$1:$B$100,J79,2),"") ->  | M79: =IF(L79>0,INDEX(Poeng!$A$1:$B$100,L79,2),"") ->  | O79: =IF(N79>0,INDEX(Poeng!$A$1:$B$100,N79,2),"") ->  | Q79: =IF(P79>0,INDEX(Poeng!$A$1:$B$100,P79,2),"") ->  | R79: 0 | S79: 0 | T79: 0 | U79: 0 | V79: 0 | W79: 0 | X79: =IF(#REF!>0,#REF!,0) ->  | Y79: 0 | Z79: 0 | AA79: 0 | AB79: 0 | AC79: 0 | AD79: 0 | AE79: 0
I80: =IF(H80>0,INDEX(Poeng!$A$1:$B$100,H80,2),"") ->  | K80: =IF(J80>0,INDEX(Poeng!$A$1:$B$100,J80,2),"") ->  | M80: =IF(L80>0,INDEX(Poeng!$A$1:$B$100,L80,2),"") ->  | O80: =IF(N80>0,INDEX(Poeng!$A$1:$B$100,N80,2),"") ->  | Q80: =IF(P80>0,INDEX(Poeng!$A$1:$B$100,P80,2),"") ->  | R80: 0 | S80: 0 | T80: 0 | U80: 0 | V80: 0 | W80: 0 | X80: =IF(#REF!>0,#REF!,0) ->  | Y80: 0 | Z80: 0 | AA80: 0 | AB80: 0 | AC80: 0 | AD80: 0 | AE80: 0
I81: =IF(H81>0,INDEX(Poeng!$A$1:$B$100,H81,2),"") ->  | K81: =IF(J81>0,INDEX(Poeng!$A$1:$B$100,J81,2),"") ->  | M81: =IF(L81>0,INDEX(Poeng!$A$1:$B$100,L81,2),"") ->  | O81: =IF(N81>0,INDEX(Poeng!$A$1:$B$100,N81,2),"") ->  | Q81: =IF(P81>0,INDEX(Poeng!$A$1:$B$100,P81,2),"") ->  | R81: 0 | S81: 0 | T81: 0 | U81: 0 | V81: 0 | W81: 0 | X81: =IF(#REF!>0,#REF!,0) ->  | Y81: 0 | Z81: 0 | AA81: 0 | AB81: 0 | AC81: 0 | AD81: 0 | AE81: 0
I82: =IF(H82>0,INDEX(Poeng!$A$1:$B$100,H82,2),"") ->  | K82: =IF(J82>0,INDEX(Poeng!$A$1:$B$100,J82,2),"") ->  | M82: =IF(L82>0,INDEX(Poeng!$A$1:$B$100,L82,2),"") ->  | O82: =IF(N82>0,INDEX(Poeng!$A$1:$B$100,N82,2),"") ->  | Q82: =IF(P82>0,INDEX(Poeng!$A$1:$B$100,P82,2),"") ->  | R82: 0 | S82: 0 | T82: 0 | U82: 0 | V82: 0 | W82: 0 | X82: =IF(#REF!>0,#REF!,0) ->  | Y82: 0 | Z82: 0 | AA82: 0 | AB82: 0 | AC82: 0 | AD82: 0 | AE82: 0
I83: =IF(H83>0,INDEX(Poeng!$A$1:$B$100,H83,2),"") ->  | K83: =IF(J83>0,INDEX(Poeng!$A$1:$B$100,J83,2),"") ->  | M83: =IF(L83>0,INDEX(Poeng!$A$1:$B$100,L83,2),"") ->  | O83: =IF(N83>0,INDEX(Poeng!$A$1:$B$100,N83,2),"") ->  | Q83: =IF(P83>0,INDEX(Poeng!$A$1:$B$100,P83,2),"") ->  | R83: 0 | S83: 0 | T83: 0 | U83: 0 | V83: 0 | W83: 0 | X83: =IF(#REF!>0,#REF!,0) ->  | Y83: 0 | Z83: 0 | AA83: 0 | AB83: 0 | AC83: 0 | AD83: 0 | AE83: 0
I84: =IF(H84>0,INDEX(Poeng!$A$1:$B$100,H84,2),"") ->  | K84: =IF(J84>0,INDEX(Poeng!$A$1:$B$100,J84,2),"") ->  | M84: =IF(L84>0,INDEX(Poeng!$A$1:$B$100,L84,2),"") ->  | O84: =IF(N84>0,INDEX(Poeng!$A$1:$B$100,N84,2),"") ->  | Q84: =IF(P84>0,INDEX(Poeng!$A$1:$B$100,P84,2),"") ->  | R84: 0 | S84: 0 | T84: 0 | U84: 0 | V84: 0 | W84: 0 | X84: =IF(#REF!>0,#REF!,0) ->  | Y84: 0 | Z84: 0 | AA84: 0 | AB84: 0 | AC84: 0 | AD84: 0 | AE84: 0
I85: =IF(H85>0,INDEX(Poeng!$A$1:$B$100,H85,2),"") ->  | K85: =IF(J85>0,INDEX(Poeng!$A$1:$B$100,J85,2),"") ->  | M85: =IF(L85>0,INDEX(Poeng!$A$1:$B$100,L85,2),"") ->  | O85: =IF(N85>0,INDEX(Poeng!$A$1:$B$100,N85,2),"") ->  | Q85: =IF(P85>0,INDEX(Poeng!$A$1:$B$100,P85,2),"") ->  | R85: 0 | S85: 0 | T85: 0 | U85: 0 | V85: 0 | W85: 0 | X85: =IF(#REF!>0,#REF!,0) ->  | Y85: 0 | Z85: 0 | AA85: 0 | AB85: 0 | AC85: 0 | AD85: 0 | AE85: 0
I86: =IF(H86>0,INDEX(Poeng!$A$1:$B$100,H86,2),"") ->  | K86: =IF(J86>0,INDEX(Poeng!$A$1:$B$100,J86,2),"") ->  | M86: =IF(L86>0,INDEX(Poeng!$A$1:$B$100,L86,2),"") ->  | O86: =IF(N86>0,INDEX(Poeng!$A$1:$B$100,N86,2),"") ->  | Q86: =IF(P86>0,INDEX(Poeng!$A$1:$B$100,P86,2),"") ->  | R86: 0 | S86: 0 | T86: 0 | U86: 0 | V86: 0 | W86: 0 | X86: =IF(#REF!>0,#REF!,0) ->  | Y86: 0 | Z86: 0 | AA86: 0 | AB86: 0 | AC86: 0 | AD86: 0 | AE86: 0
I87: =IF(H87>0,INDEX(Poeng!$A$1:$B$100,H87,2),"") ->  | K87: =IF(J87>0,INDEX(Poeng!$A$1:$B$100,J87,2),"") ->  | M87: =IF(L87>0,INDEX(Poeng!$A$1:$B$100,L87,2),"") ->  | O87: =IF(N87>0,INDEX(Poeng!$A$1:$B$100,N87,2),"") ->  | Q87: =IF(P87>0,INDEX(Poeng!$A$1:$B$100,P87,2),"") ->  | R87: 0 | S87: 0 | T87: 0 | U87: 0 | V87: 0 | W87: 0 | X87: =IF(#REF!>0,#REF!,0) ->  | Y87: 0 | Z87: 0 | AA87: 0 | AB87: 0 | AC87: 0 | AD87: 0 | AE87: 0
I88: =IF(H88>0,INDEX(Poeng!$A$1:$B$100,H88,2),"") ->  | K88: =IF(J88>0,INDEX(Poeng!$A$1:$B$100,J88,2),"") ->  | M88: =IF(L88>0,INDEX(Poeng!$A$1:$B$100,L88,2),"") ->  | O88: =IF(N88>0,INDEX(Poeng!$A$1:$B$100,N88,2),"") ->  | Q88: =IF(P88>0,INDEX(Poeng!$A$1:$B$100,P88,2),"") ->  | R88: 0 | S88: 0 | T88: 0 | U88: 0 | V88: 0 | W88: 0 | X88: =IF(#REF!>0,#REF!,0) ->  | Y88: 0 | Z88: 0 | AA88: 0 | AB88: 0 | AC88: 0 | AD88: 0 | AE88: 0
I89: =IF(H89>0,INDEX(Poeng!$A$1:$B$100,H89,2),"") ->  | K89: =IF(J89>0,INDEX(Poeng!$A$1:$B$100,J89,2),"") ->  | M89: =IF(L89>0,INDEX(Poeng!$A$1:$B$100,L89,2),"") ->  | O89: =IF(N89>0,INDEX(Poeng!$A$1:$B$100,N89,2),"") ->  | Q89: =IF(P89>0,INDEX(Poeng!$A$1:$B$100,P89,2),"") ->  | R89: 0 | S89: 0 | T89: 0 | U89: 0 | V89: 0 | W89: 0 | X89: =IF(#REF!>0,#REF!,0) ->  | Y89: 0 | Z89: 0 | AA89: 0 | AB89: 0 | AC89: 0 | AD89: 0 | AE89: 0
I90: =IF(H90>0,INDEX(Poeng!$A$1:$B$100,H90,2),"") ->  | K90: =IF(J90>0,INDEX(Poeng!$A$1:$B$100,J90,2),"") ->  | M90: =IF(L90>0,INDEX(Poeng!$A$1:$B$100,L90,2),"") ->  | O90: =IF(N90>0,INDEX(Poeng!$A$1:$B$100,N90,2),"") ->  | Q90: =IF(P90>0,INDEX(Poeng!$A$1:$B$100,P90,2),"") ->  | R90: 0 | S90: 0 | T90: 0 | U90: 0 | V90: 0 | W90: 0 | X90: =IF(#REF!>0,#REF!,0) ->  | Y90: 0 | Z90: 0 | AA90: 0 | AB90: 0 | AC90: 0 | AD90: 0 | AE90: 0
I91: =IF(H91>0,INDEX(Poeng!$A$1:$B$100,H91,2),"") ->  | K91: =IF(J91>0,INDEX(Poeng!$A$1:$B$100,J91,2),"") ->  | M91: =IF(L91>0,INDEX(Poeng!$A$1:$B$100,L91,2),"") ->  | O91: =IF(N91>0,INDEX(Poeng!$A$1:$B$100,N91,2),"") ->  | Q91: =IF(P91>0,INDEX(Poeng!$A$1:$B$100,P91,2),"") ->  | R91: 0 | S91: 0 | T91: 0 | U91: 0 | V91: 0 | W91: 0 | X91: =IF(#REF!>0,#REF!,0) ->  | Y91: 0 | Z91: 0 | AA91: 0 | AB91: 0 | AC91: 0 | AD91: 0 | AE91: 0
I92: =IF(H92>0,INDEX(Poeng!$A$1:$B$100,H92,2),"") ->  | K92: =IF(J92>0,INDEX(Poeng!$A$1:$B$100,J92,2),"") ->  | M92: =IF(L92>0,INDEX(Poeng!$A$1:$B$100,L92,2),"") ->  | O92: =IF(N92>0,INDEX(Poeng!$A$1:$B$100,N92,2),"") ->  | Q92: =IF(P92>0,INDEX(Poeng!$A$1:$B$100,P92,2),"") ->  | R92: 0 | S92: 0 | T92: 0 | U92: 0 | V92: 0 | W92: 0 | X92: =IF(#REF!>0,#REF!,0) ->  | Y92: 0 | Z92: 0 | AA92: 0 | AB92: 0 | AC92: 0 | AD92: 0 | AE92: 0
I93: =IF(H93>0,INDEX(Poeng!$A$1:$B$100,H93,2),"") ->  | K93: =IF(J93>0,INDEX(Poeng!$A$1:$B$100,J93,2),"") ->  | M93: =IF(L93>0,INDEX(Poeng!$A$1:$B$100,L93,2),"") ->  | O93: =IF(N93>0,INDEX(Poeng!$A$1:$B$100,N93,2),"") ->  | Q93: =IF(P93>0,INDEX(Poeng!$A$1:$B$100,P93,2),"") ->  | R93: 0 | S93: 0 | T93: 0 | U93: 0 | V93: 0 | W93: 0 | X93: =IF(#REF!>0,#REF!,0) ->  | Y93: 0 | Z93: 0 | AA93: 0 | AB93: 0 | AC93: 0 | AD93: 0 | AE93: 0
I94: =IF(H94>0,INDEX(Poeng!$A$1:$B$100,H94,2),"") ->  | K94: =IF(J94>0,INDEX(Poeng!$A$1:$B$100,J94,2),"") ->  | M94: =IF(L94>0,INDEX(Poeng!$A$1:$B$100,L94,2),"") ->  | O94: =IF(N94>0,INDEX(Poeng!$A$1:$B$100,N94,2),"") ->  | Q94: =IF(P94>0,INDEX(Poeng!$A$1:$B$100,P94,2),"") ->  | R94: 0 | S94: 0 | T94: 0 | U94: 0 | V94: 0 | W94: 0 | X94: =IF(#REF!>0,#REF!,0) ->  | Y94: 0 | Z94: 0 | AA94: 0 | AB94: 0 | AC94: 0 | AD94: 0 | AE94: 0
I95: =IF(H95>0,INDEX(Poeng!$A$1:$B$100,H95,2),"") ->  | K95: =IF(J95>0,INDEX(Poeng!$A$1:$B$100,J95,2),"") ->  | M95: =IF(L95>0,INDEX(Poeng!$A$1:$B$100,L95,2),"") ->  | O95: =IF(N95>0,INDEX(Poeng!$A$1:$B$100,N95,2),"") ->  | Q95: =IF(P95>0,INDEX(Poeng!$A$1:$B$100,P95,2),"") ->  | R95: 0 | S95: 0 | T95: 0 | U95: 0 | V95: 0 | W95: 0 | X95: =IF(#REF!>0,#REF!,0) ->  | Y95: 0 | Z95: 0 | AA95: 0 | AB95: 0 | AC95: 0 | AD95: 0 | AE95: 0
I96: =IF(H96>0,INDEX(Poeng!$A$1:$B$100,H96,2),"") ->  | K96: =IF(J96>0,INDEX(Poeng!$A$1:$B$100,J96,2),"") ->  | M96: =IF(L96>0,INDEX(Poeng!$A$1:$B$100,L96,2),"") ->  | O96: =IF(N96>0,INDEX(Poeng!$A$1:$B$100,N96,2),"") ->  | Q96: =IF(P96>0,INDEX(Poeng!$A$1:$B$100,P96,2),"") ->  | R96: 0 | S96: 0 | T96: 0 | U96: 0 | V96: 0 | W96: 0 | X96: =IF(#REF!>0,#REF!,0) ->  | Y96: 0 | Z96: 0 | AA96: 0 | AB96: 0 | AC96: 0 | AD96: 0 | AE96: 0
I97: =IF(H97>0,INDEX(Poeng!$A$1:$B$100,H97,2),"") ->  | K97: =IF(J97>0,INDEX(Poeng!$A$1:$B$100,J97,2),"") ->  | M97: =IF(L97>0,INDEX(Poeng!$A$1:$B$100,L97,2),"") ->  | O97: =IF(N97>0,INDEX(Poeng!$A$1:$B$100,N97,2),"") ->  | Q97: =IF(P97>0,INDEX(Poeng!$A$1:$B$100,P97,2),"") ->  | R97: 0 | S97: 0 | T97: 0 | U97: 0 | V97: 0 | W97: 0 | X97: =IF(#REF!>0,#REF!,0) ->  | Y97: 0 | Z97: 0 | AA97: 0 | AB97: 0 | AC97: 0 | AD97: 0 | AE97: 0

Sheet J14
A1: Jenter 14 | C1: Sparebank1-CUP 2021
F2: SP1- CUP 1 | H2: SP1- CUP 2 | J2: SP1- CUP 3 | L2: SP1- CUP 4 | N2: SP1- CUP 5 | P2: SP1- CUP 6 | R2: Poeng | Y2: Fire beste | AC2: Sum
A3: Nr | B3: NAVN | C3: KLUBB | D3: POENG | E3: Fullført | F3: Nr. Poeng | H3: Nr. Poeng | J3: Nr. Poeng | L3: Nr. Poeng | N3: Nr. Poeng | P3: Nr. Poeng | R3: 1 | S3: 2 | T3: 3 | U3: 4 | V3: 5 | W3: 6 | X3: 7 | Y3: 1 | Z3: 2 | AA3: 3 | AB3: 4
A4: =AF4 -> 1 | B4: Ingrid Wollan Benum | C4: Byåsen IL | D4: =IF(B4<>"",AC4,"") -> 400 | E4: =IF(AD4<4," ","F") -> F | F4: 2 | G4: =IF(F4>0,INDEX(Poeng!$A$1:$B$100,F4,2),"") -> 80 | H4: 1 | I4: =IF(H4>0,INDEX(Poeng!$A$1:$B$100,H4,2),"") -> 100 | J4: 1 | K4: =IF(J4>0,INDEX(Poeng!$A$1:$B$100,J4,2),"") -> 100 | L4: 1 | M4: =IF(L4>0,INDEX(Poeng!$A$1:$B$100,L4,2),"") -> 100 | N4: 1 | O4: =IF(N4>0,INDEX(Poeng!$A$1:$B$100,N4,2),"") -> 100 | P4: 1 | Q4: =IF(P4>0,INDEX(Poeng!$A$1:$B$100,P4,2),"") -> 100 | R4: =IF(F4>0,G4,0) -> 80 | S4: =IF(H4>0,I4,0) -> 100 | T4: =IF(J4>0,K4,0) -> 100 | U4: =IF(L4>0,M4,0) -> 100 | V4: =IF(N4>0,O4,0) -> 100 | W4: =IF(P4>0,Q4,0) -> 100 | X4: =IF(#REF!>0,#REF!,0) ->  | Y4: =LARGE(R4:W4,1) -> 100 | Z4: =LARGE(R4:W4,2) -> 100 | AA4: =LARGE(R4:W4,3) -> 100 | AB4: =LARGE(R4:W4,4) -> 100 | AC4: =SUM(Y4:AB4) -> 400 | AD4: =COUNT(F4:Q4)/2 -> 6 | AE4: =AC4*10^8+Y4*10^6/2+Z4*10^4/2+AA4*10^2/2+AB4/2 -> 40050505050 | AF4: =IF(B4<>"",RANK(AE4,AE$4:AE$73,0),"") -> 1
A5: 2 | B5: Ida Bjørgen | C5: Lundamo IL | D5: 270 | E5: F | F5: 7 | G5: =IF(F5>0,INDEX(Poeng!$A$1:$B$100,F5,2),"") -> 36 | H5: 2 | I5: =IF(H5>0,INDEX(Poeng!$A$1:$B$100,H5,2),"") -> 80 | J5: 2 | K5: =IF(J5>0,INDEX(Poeng!$A$1:$B$100,J5,2),"") -> 80 | L5: 4 | M5: =IF(L5>0,INDEX(Poeng!$A$1:$B$100,L5,2),"") -> 50 | N5: 3 | O5: =IF(N5>0,INDEX(Poeng!$A$1:$B$100,N5,2),"") -> 60 | P5: 6 | Q5: =IF(P5>0,INDEX(Poeng!$A$1:$B$100,P5,2),"") -> 40 | R5: 36 | S5: 80 | T5: 80 | U5: 50 | V5: 60 | W5: 40 | X5: =IF(#REF!>0,#REF!,0) ->  | Y5: 80 | Z5: 80 | AA5: 60 | AB5: 50 | AC5: 270 | AD5: 6 | AE5: 27040403025 | AF5: 2
A6: 3 | B6: Wilma Skjetlein | C6: Byåsen IL | D6: 250 | E6: F | F6: 6 | G6: =IF(F6>0,INDEX(Poeng!$A$1:$B$100,F6,2),"") -> 40 | I6: =IF(H6>0,INDEX(Poeng!$A$1:$B$100,H6,2),"") ->  | K6: =IF(J6>0,INDEX(Poeng!$A$1:$B$100,J6,2),"") ->  | L6: 2 | M6: =IF(L6>0,INDEX(Poeng!$A$1:$B$100,L6,2),"") -> 80 | N6: 2 | O6: =IF(N6>0,INDEX(Poeng!$A$1:$B$100,N6,2),"") -> 80 | P6: 4 | Q6: =IF(P6>0,INDEX(Poeng!$A$1:$B$100,P6,2),"") -> 50 | R6: 40 | S6: 0 | T6: 0 | U6: 80 | V6: 80 | W6: 50 | X6: =IF(#REF!>0,#REF!,0) ->  | Y6: 80 | Z6: 80 | AA6: 50 | AB6: 40 | AC6: 250 | AD6: 4 | AE6: 25040402520 | AF6: 3
A7: 4 | B7: Emilie Solheim Johnsen | C7: Byåsen IL | D7: 240 | E7: F | F7: 4 | G7: =IF(F7>0,INDEX(Poeng!$A$1:$B$100,F7,2),"") -> 50 | H7: 3 | I7: =IF(H7>0,INDEX(Poeng!$A$1:$B$100,H7,2),"") -> 60 | J7: 3 | K7: =IF(J7>0,INDEX(Poeng!$A$1:$B$100,J7,2),"") -> 60 | L7: 3 | M7: =IF(L7>0,INDEX(Poeng!$A$1:$B$100,L7,2),"") -> 60 | N7: 4 | O7: =IF(N7>0,INDEX(Poeng!$A$1:$B$100,N7,2),"") -> 50 | P7: 3 | Q7: =IF(P7>0,INDEX(Poeng!$A$1:$B$100,P7,2),"") -> 60 | R7: 50 | S7: 60 | T7: 60 | U7: 60 | V7: 50 | W7: 60 | X7: =IF(#REF!>0,#REF!,0) ->  | Y7: 60 | Z7: 60 | AA7: 60 | AB7: 60 | AC7: 240 | AD7: 6 | AE7: 24030303030 | AF7: 4
A8: 5 | B8: Guro Hovin Storlimo | C8: Lundamo IL | D8: 225 | E8: F | F8: 5 | G8: =IF(F8>0,INDEX(Poeng!$A$1:$B$100,F8,2),"") -> 45 | H8: 4 | I8: =IF(H8>0,INDEX(Poeng!$A$1:$B$100,H8,2),"") -> 50 | J8: 4 | K8: =IF(J8>0,INDEX(Poeng!$A$1:$B$100,J8,2),"") -> 50 | L8: 6 | M8: =IF(L8>0,INDEX(Poeng!$A$1:$B$100,L8,2),"") -> 40 | N8: 5 | O8: =IF(N8>0,INDEX(Poeng!$A$1:$B$100,N8,2),"") -> 45 | P8: 2 | Q8: =IF(P8>0,INDEX(Poeng!$A$1:$B$100,P8,2),"") -> 80 | R8: 45 | S8: 50 | T8: 50 | U8: 40 | V8: 45 | W8: 80 | X8: =IF(#REF!>0,#REF!,0) ->  | Y8: 80 | Z8: 50 | AA8: 50 | AB8: 45 | AC8: 225 | AD8: 6 | AE8: 2.254025252e+10 | AF8: 5
A9: 6 | B9: Marit Kvåle Gissinger | C9: Malvik IL | D9: 149 | E9: F | G9: =IF(F9>0,INDEX(Poeng!$A$1:$B$100,F9,2),"") ->  | H9: 7 | I9: =IF(H9>0,INDEX(Poeng!$A$1:$B$100,H9,2),"") -> 36 | J9: 7 | K9: =IF(J9>0,INDEX(Poeng!$A$1:$B$100,J9,2),"") -> 36 | L9: 8 | M9: =IF(L9>0,INDEX(Poeng!$A$1:$B$100,L9,2),"") -> 32 | O9: =IF(N9>0,INDEX(Poeng!$A$1:$B$100,N9,2),"") ->  | P9: 5 | Q9: =IF(P9>0,INDEX(Poeng!$A$1:$B$100,P9,2),"") -> 45 | R9: 0 | S9: 36 | T9: 36 | U9: 32 | V9: 0 | W9: 45 | X9: =IF(#REF!>0,#REF!,0) ->  | Y9: 45 | Z9: 36 | AA9: 36 | AB9: 32 | AC9: 149 | AD9: 4 | AE9: 14922681816 | AF9: 6
A10: 7 | B10: Ragnhild Arnsteindatter Hansen | C10: Malvik IL | D10: 133 | E10: F | G10: =IF(F10>0,INDEX(Poeng!$A$1:$B$100,F10,2),"") ->  | H10: 6 | I10: =IF(H10>0,INDEX(Poeng!$A$1:$B$100,H10,2),"") -> 40 | J10: 9 | K10: =IF(J10>0,INDEX(Poeng!$A$1:$B$100,J10,2),"") -> 29 | M10: =IF(L10>0,INDEX(Poeng!$A$1:$B$100,L10,2),"") ->  | N10: 8 | O10: =IF(N10>0,INDEX(Poeng!$A$1:$B$100,N10,2),"") -> 32 | P10: 8 | Q10: =IF(P10>0,INDEX(Poeng!$A$1:$B$100,P10,2),"") -> 32 | R10: 0 | S10: 40 | T10: 29 | U10: 0 | V10: 32 | W10: 32 | X10: =IF(#REF!>0,#REF!,0) ->  | Y10: 40 | Z10: 32 | AA10: 32 | AB10: 29 | AC10: 133 | AD10: 4 | AE10: 1.332016161e+10 | AF10: 7
A11: 8 | B11: Elin Græsli | C11: Tydal IL | D11: 112 | F11: 8 | G11: =IF(F11>0,INDEX(Poeng!$A$1:$B$100,F11,2),"") -> 32 | I11: =IF(H11>0,INDEX(Poeng!$A$1:$B$100,H11,2),"") ->  | J11: 6 | K11: =IF(J11>0,INDEX(Poeng!$A$1:$B$100,J11,2),"") -> 40 | M11: =IF(L11>0,INDEX(Poeng!$A$1:$B$100,L11,2),"") ->  | N11: 6 | O11: =IF(N11>0,INDEX(Poeng!$A$1:$B$100,N11,2),"") -> 40 | Q11: =IF(P11>0,INDEX(Poeng!$A$1:$B$100,P11,2),"") ->  | R11: 32 | S11: 0 | T11: 40 | U11: 0 | V11: 40 | W11: 0 | X11: =IF(#REF!>0,#REF!,0) ->  | Y11: 40 | Z11: 40 | AA11: 32 | AB11: 0 | AC11: 112 | AD11: 3 | AE11: 11220201600 | AF11: 8
A12: 9 | B12: Hedda Gyllan Romulslie | C12: Malvik IL | D12: 104 | G12: =IF(F12>0,INDEX(Poeng!$A$1:$B$100,F12,2),"") ->  | I12: =IF(H12>0,INDEX(Poeng!$A$1:$B$100,H12,2),"") ->  | J12: 8 | K12: =IF(J12>0,INDEX(Poeng!$A$1:$B$100,J12,2),"") -> 32 | M12: =IF(L12>0,INDEX(Poeng!$A$1:$B$100,L12,2),"") ->  | N12: 7 | O12: =IF(N12>0,INDEX(Poeng!$A$1:$B$100,N12,2),"") -> 36 | P12: 7 | Q12: =IF(P12>0,INDEX(Poeng!$A$1:$B$100,P12,2),"") -> 36 | R12: 0 | S12: 0 | T12: 32 | U12: 0 | V12: 36 | W12: 36 | X12: =IF(#REF!>0,#REF!,0) ->  | Y12: 36 | Z12: 36 | AA12: 32 | AB12: 0 | AC12: 104 | AD12: 3 | AE12: 10418181600 | AF12: 9
A13: 10 | B13: Stine Hårstad | C13: Rennebu IL | D13: 100 | F13: 1 | G13: =IF(F13>0,INDEX(Poeng!$A$1:$B$100,F13,2),"") -> 100 | I13: =IF(H13>0,INDEX(Poeng!$A$1:$B$100,H13,2),"") ->  | K13: =IF(J13>0,INDEX(Poeng!$A$1:$B$100,J13,2),"") ->  | M13: =IF(L13>0,INDEX(Poeng!$A$1:$B$100,L13,2),"") ->  | O13: =IF(N13>0,INDEX(Poeng!$A$1:$B$100,N13,2),"") ->  | Q13: =IF(P13>0,INDEX(Poeng!$A$1:$B$100,P13,2),"") ->  | R13: 100 | S13: 0 | T13: 0 | U13: 0 | V13: 0 | W13: 0 | X13: =IF(#REF!>0,#REF!,0) ->  | Y13: 100 | Z13: 0 | AA13: 0 | AB13: 0 | AC13: 100 | AD13: 1 | AE13: 10050000000 | AF13: 10
A14: 11 | B14: Thilde Melting Kvam | C14: Buvik IL | D14: 100 | F14: 9 | G14: =IF(F14>0,INDEX(Poeng!$A$1:$B$100,F14,2),"") -> 29 | H14: 5 | I14: =IF(H14>0,INDEX(Poeng!$A$1:$B$100,H14,2),"") -> 45 | K14: =IF(J14>0,INDEX(Poeng!$A$1:$B$100,J14,2),"") ->  | M14: =IF(L14>0,INDEX(Poeng!$A$1:$B$100,L14,2),"") ->  | O14: =IF(N14>0,INDEX(Poeng!$A$1:$B$100,N14,2),"") ->  | P14: 10 | Q14: =IF(P14>0,INDEX(Poeng!$A$1:$B$100,P14,2),"") -> 26 | R14: 29 | S14: 45 | T14: 0 | U14: 0 | V14: 0 | W14: 26 | X14: =IF(#REF!>0,#REF!,0) ->  | Y14: 45 | Z14: 29 | AA14: 26 | AB14: 0 | AC14: 100 | AD14: 3 | AE14: 10022646300 | AF14: 11
A15: 12 | B15: Vilmas Rathe Hauge | C15: Byaasen Skiklub | D15: 90 | G15: =IF(F15>0,INDEX(Poeng!$A$1:$B$100,F15,2),"") ->  | I15: =IF(H15>0,INDEX(Poeng!$A$1:$B$100,H15,2),"") ->  | J15: 5 | K15: =IF(J15>0,INDEX(Poeng!$A$1:$B$100,J15,2),"") -> 45 | L15: 5 | M15: =IF(L15>0,INDEX(Poeng!$A$1:$B$100,L15,2),"") -> 45 | O15: =IF(N15>0,INDEX(Poeng!$A$1:$B$100,N15,2),"") ->  | Q15: =IF(P15>0,INDEX(Poeng!$A$1:$B$100,P15,2),"") ->  | R15: 0 | S15: 0 | T15: 45 | U15: 45 | V15: 0 | W15: 0 | X15: =IF(#REF!>0,#REF!,0) ->  | Y15: 45 | Z15: 45 | AA15: 0 | AB15: 0 | AC15: 90 | AD15: 2 | AE15: 9022725000 | AF15: 12
A16: 13 | B16: Malin Skogstad | C16: Leik, IL | D16: 60 | F16: 3 | G16: =IF(F16>0,INDEX(Poeng!$A$1:$B$100,F16,2),"") -> 60 | I16: =IF(H16>0,INDEX(Poeng!$A$1:$B$100,H16,2),"") ->  | K16: =IF(J16>0,INDEX(Poeng!$A$1:$B$100,J16,2),"") ->  | M16: =IF(L16>0,INDEX(Poeng!$A$1:$B$100,L16,2),"") ->  | O16: =IF(N16>0,INDEX(Poeng!$A$1:$B$100,N16,2),"") ->  | Q16: =IF(P16>0,INDEX(Poeng!$A$1:$B$100,P16,2),"") ->  | R16: 60 | S16: 0 | T16: 0 | U16: 0 | V16: 0 | W16: 0 | X16: =IF(#REF!>0,#REF!,0) ->  | Y16: 60 | Z16: 0 | AA16: 0 | AB16: 0 | AC16: 60 | AD16: 1 | AE16: 6030000000 | AF16: 13
A17: 14 | B17: Tuva Husby Grandetrø | C17: Skaun IL | D17: 36 | G17: =IF(F17>0,INDEX(Poeng!$A$1:$B$100,F17,2),"") ->  | I17: =IF(H17>0,INDEX(Poeng!$A$1:$B$100,H17,2),"") ->  | K17: =IF(J17>0,INDEX(Poeng!$A$1:$B$100,J17,2),"") ->  | L17: 7 | M17: =IF(L17>0,INDEX(Poeng!$A$1:$B$100,L17,2),"") -> 36 | O17: =IF(N17>0,INDEX(Poeng!$A$1:$B$100,N17,2),"") ->  | Q17: =IF(P17>0,INDEX(Poeng!$A$1:$B$100,P17,2),"") ->  | R17: 0 | S17: 0 | T17: 0 | U17: 36 | V17: 0 | W17: 0 | X17: =IF(#REF!>0,#REF!,0) ->  | Y17: 36 | Z17: 0 | AA17: 0 | AB17: 0 | AC17: 36 | AD17: 1 | AE17: 3618000000 | AF17: 14
A18: 15 | B18: Vilma Elshaug-Tørstad | C18: Strindheim IL | D18: 29 | G18: =IF(F18>0,INDEX(Poeng!$A$1:$B$100,F18,2),"") ->  | I18: =IF(H18>0,INDEX(Poeng!$A$1:$B$100,H18,2),"") ->  | K18: =IF(J18>0,INDEX(Poeng!$A$1:$B$100,J18,2),"") ->  | M18: =IF(L18>0,INDEX(Poeng!$A$1:$B$100,L18,2),"") ->  | O18: =IF(N18>0,INDEX(Poeng!$A$1:$B$100,N18,2),"") ->  | P18: 9 | Q18: =IF(P18>0,INDEX(Poeng!$A$1:$B$100,P18,2),"") -> 29 | R18: =IF(F18>0,G18,0) -> 0 | S18: =IF(H18>0,I18,0) -> 0 | T18: =IF(J18>0,K18,0) -> 0 | U18: =IF(L18>0,M18,0) -> 0 | V18: =IF(N18>0,O18,0) -> 0 | W18: =IF(P18>0,Q18,0) -> 29 | X18: =IF(#REF!>0,#REF!,0) ->  | Y18: =LARGE(R18:W18,1) -> 29 | Z18: =LARGE(R18:W18,2) -> 0 | AA18: =LARGE(R18:W18,3) -> 0 | AB18: =LARGE(R18:W18,4) -> 0 | AC18: =SUM(Y18:AB18) -> 29 | AD18: =COUNT(F18:Q18)/2 -> 1 | AE18: =AC18*10^8+Y18*10^6/2+Z18*10^4/2+AA18*10^2/2+AB18/2 -> 2914500000 | AF18: 15
A19: 16 | B19: Elvira Kvarme | C19: Strindheim IL | D19: 26 | F19: 10 | G19: =IF(F19>0,INDEX(Poeng!$A$1:$B$100,F19,2),"") -> 26 | I19: =IF(H19>0,INDEX(Poeng!$A$1:$B$100,H19,2),"") ->  | K19: =IF(J19>0,INDEX(Poeng!$A$1:$B$100,J19,2),"") ->  | M19: =IF(L19>0,INDEX(Poeng!$A$1:$B$100,L19,2),"") ->  | O19: =IF(N19>0,INDEX(Poeng!$A$1:$B$100,N19,2),"") ->  | Q19: =IF(P19>0,INDEX(Poeng!$A$1:$B$100,P19,2),"") ->  | R19: 26 | S19: 0 | T19: 0 | U19: 0 | V19: 0 | W19: 0 | X19: =IF(#REF!>0,#REF!,0) ->  | Y19: 26 | Z19: 0 | AA19: 0 | AB19: 0 | AC19: 26 | AD19: 1 | AE19: 2613000000 | AF19: 16
A20: 16 | B20: Kjersti Græsli | C20: Tydal IL | D20: 26 | G20: =IF(F20>0,INDEX(Poeng!$A$1:$B$100,F20,2),"") ->  | I20: =IF(H20>0,INDEX(Poeng!$A$1:$B$100,H20,2),"") ->  | J20: 10 | K20: =IF(J20>0,INDEX(Poeng!$A$1:$B$100,J20,2),"") -> 26 | M20: =IF(L20>0,INDEX(Poeng!$A$1:$B$100,L20,2),"") ->  | O20: =IF(N20>0,INDEX(Poeng!$A$1:$B$100,N20,2),"") ->  | Q20: =IF(P20>0,INDEX(Poeng!$A$1:$B$100,P20,2),"") ->  | R20: 0 | S20: 0 | T20: 26 | U20: 0 | V20: 0 | W20: 0 | X20: =IF(#REF!>0,#REF!,0) ->  | Y20: 26 | Z20: 0 | AA20: 0 | AB20: 0 | AC20: 26 | AD20: 1 | AE20: 2613000000 | AF20: 16
A21: =AF21 ->  | D21: =IF(B21<>"",AC21,"") ->  | E21: =IF(AD21<4," ","F") ->  | G21: =IF(F21>0,INDEX(Poeng!$A$1:$B$100,F21,2),"") ->  | I21: =IF(H21>0,INDEX(Poeng!$A$1:$B$100,H21,2),"") ->  | K21: =IF(J21>0,INDEX(Poeng!$A$1:$B$100,J21,2),"") ->  | M21: =IF(L21>0,INDEX(Poeng!$A$1:$B$100,L21,2),"") ->  | O21: =IF(N21>0,INDEX(Poeng!$A$1:$B$100,N21,2),"") ->  | Q21: =IF(P21>0,INDEX(Poeng!$A$1:$B$100,P21,2),"") ->  | R21: 0 | S21: 0 | T21: 0 | U21: 0 | V21: 0 | W21: 0 | X21: =IF(#REF!>0,#REF!,0) ->  | Y21: 0 | Z21: 0 | AA21: 0 | AB21: 0 | AC21: 0 | AD21: 0 | AE21: 0
G22: =IF(F22>0,INDEX(Poeng!$A$1:$B$100,F22,2),"") ->  | I22: =IF(H22>0,INDEX(Poeng!$A$1:$B$100,H22,2),"") ->  | K22: =IF(J22>0,INDEX(Poeng!$A$1:$B$100,J22,2),"") ->  | M22: =IF(L22>0,INDEX(Poeng!$A$1:$B$100,L22,2),"") ->  | O22: =IF(N22>0,INDEX(Poeng!$A$1:$B$100,N22,2),"") ->  | Q22: =IF(P22>0,INDEX(Poeng!$A$1:$B$100,P22,2),"") ->  | R22: 0 | S22: 0 | T22: 0 | U22: 0 | V22: 0 | W22: 0 | X22: =IF(#REF!>0,#REF!,0) ->  | Y22: 0 | Z22: 0 | AA22: 0 | AB22: 0 | AC22: 0 | AD22: 0 | AE22: 0
G23: =IF(F23>0,INDEX(Poeng!$A$1:$B$100,F23,2),"") ->  | I23: =IF(H23>0,INDEX(Poeng!$A$1:$B$100,H23,2),"") ->  | K23: =IF(J23>0,INDEX(Poeng!$A$1:$B$100,J23,2),"") ->  | M23: =IF(L23>0,INDEX(Poeng!$A$1:$B$100,L23,2),"") ->  | O23: =IF(N23>0,INDEX(Poeng!$A$1:$B$100,N23,2),"") ->  | Q23: =IF(P23>0,INDEX(Poeng!$A$1:$B$100,P23,2),"") ->  | R23: 0 | S23: 0 | T23: 0 | U23: 0 | V23: 0 | W23: 0 | X23: =IF(#REF!>0,#REF!,0) ->  | Y23: 0 | Z23: 0 | AA23: 0 | AB23: 0 | AC23: 0 | AD23: 0 | AE23: 0
G24: =IF(F24>0,INDEX(Poeng!$A$1:$B$100,F24,2),"") ->  | I24: =IF(H24>0,INDEX(Poeng!$A$1:$B$100,H24,2),"") ->  | K24: =IF(J24>0,INDEX(Poeng!$A$1:$B$100,J24,2),"") ->  | M24: =IF(L24>0,INDEX(Poeng!$A$1:$B$100,L24,2),"") ->  | O24: =IF(N24>0,INDEX(Poeng!$A$1:$B$100,N24,2),"") ->  | Q24: =IF(P24>0,INDEX(Poeng!$A$1:$B$100,P24,2),"") ->  | R24: 0 | S24: 0 | T24: 0 | U24: 0 | V24: 0 | W24: 0 | X24: =IF(#REF!>0,#REF!,0) ->  | Y24: 0 | Z24: 0 | AA24: 0 | AB24: 0 | AC24: 0 | AD24: 0 | AE24: 0
G25: =IF(F25>0,INDEX(Poeng!$A$1:$B$100,F25,2),"") ->  | I25: =IF(H25>0,INDEX(Poeng!$A$1:$B$100,H25,2),"") ->  | K25: =IF(J25>0,INDEX(Poeng!$A$1:$B$100,J25,2),"") ->  | M25: =IF(L25>0,INDEX(Poeng!$A$1:$B$100,L25,2),"") ->  | O25: =IF(N25>0,INDEX(Poeng!$A$1:$B$100,N25,2),"") ->  | Q25: =IF(P25>0,INDEX(Poeng!$A$1:$B$100,P25,2),"") ->  | R25: 0 | S25: 0 | T25: 0 | U25: 0 | V25: 0 | W25: 0 | X25: =IF(#REF!>0,#REF!,0) ->  | Y25: 0 | Z25: 0 | AA25: 0 | AB25: 0 | AC25: 0 | AD25: 0 | AE25: 0
E26: =IF(AD26<4," ","F") ->  | G26: =IF(F26>0,INDEX(Poeng!$A$1:$B$100,F26,2),"") ->  | I26: =IF(H26>0,INDEX(Poeng!$A$1:$B$100,H26,2),"") ->  | K26: =IF(J26>0,INDEX(Poeng!$A$1:$B$100,J26,2),"") ->  | M26: =IF(L26>0,INDEX(Poeng!$A$1:$B$100,L26,2),"") ->  | O26: =IF(N26>0,INDEX(Poeng!$A$1:$B$100,N26,2),"") ->  | Q26: =IF(P26>0,INDEX(Poeng!$A$1:$B$100,P26,2),"") ->  | R26: 0 | S26: 0 | T26: 0 | U26: 0 | V26: 0 | W26: 0 | X26: =IF(#REF!>0,#REF!,0) ->  | Y26: 0 | Z26: 0 | AA26: 0 | AB26: 0 | AC26: 0 | AD26: 0 | AE26: 0
G27: =IF(F27>0,INDEX(Poeng!$A$1:$B$100,F27,2),"") ->  | I27: =IF(H27>0,INDEX(Poeng!$A$1:$B$100,H27,2),"") ->  | K27: =IF(J27>0,INDEX(Poeng!$A$1:$B$100,J27,2),"") ->  | M27: =IF(L27>0,INDEX(Poeng!$A$1:$B$100,L27,2),"") ->  | O27: =IF(N27>0,INDEX(Poeng!$A$1:$B$100,N27,2),"") ->  | Q27: =IF(P27>0,INDEX(Poeng!$A$1:$B$100,P27,2),"") ->  | R27: 0 | S27: 0 | T27: 0 | U27: 0 | V27: 0 | W27: 0 | X27: =IF(#REF!>0,#REF!,0) ->  | Y27: 0 | Z27: 0 | AA27: 0 | AB27: 0 | AC27: 0 | AD27: 0 | AE27: 0
G28: =IF(F28>0,INDEX(Poeng!$A$1:$B$100,F28,2),"") ->  | I28: =IF(H28>0,INDEX(Poeng!$A$1:$B$100,H28,2),"") ->  | K28: =IF(J28>0,INDEX(Poeng!$A$1:$B$100,J28,2),"") ->  | M28: =IF(L28>0,INDEX(Poeng!$A$1:$B$100,L28,2),"") ->  | O28: =IF(N28>0,INDEX(Poeng!$A$1:$B$100,N28,2),"") ->  | Q28: =IF(P28>0,INDEX(Poeng!$A$1:$B$100,P28,2),"") ->  | R28: 0 | S28: 0 | T28: 0 | U28: 0 | V28: 0 | W28: 0 | X28: =IF(#REF!>0,#REF!,0) ->  | Y28: 0 | Z28: 0 | AA28: 0 | AB28: 0 | AC28: 0 | AD28: 0 | AE28: 0
G29: =IF(F29>0,INDEX(Poeng!$A$1:$B$100,F29,2),"") ->  | I29: =IF(H29>0,INDEX(Poeng!$A$1:$B$100,H29,2),"") ->  | K29: =IF(J29>0,INDEX(Poeng!$A$1:$B$100,J29,2),"") ->  | M29: =IF(L29>0,INDEX(Poeng!$A$1:$B$100,L29,2),"") ->  | O29: =IF(N29>0,INDEX(Poeng!$A$1:$B$100,N29,2),"") ->  | Q29: =IF(P29>0,INDEX(Poeng!$A$1:$B$100,P29,2),"") ->  | R29: 0 | S29: 0 | T29: 0 | U29: 0 | V29: 0 | W29: 0 | X29: =IF(#REF!>0,#REF!,0) ->  | Y29: 0 | Z29: 0 | AA29: 0 | AB29: 0 | AC29: 0 | AD29: 0 | AE29: 0
G30: =IF(F30>0,INDEX(Poeng!$A$1:$B$100,F30,2),"") ->  | I30: =IF(H30>0,INDEX(Poeng!$A$1:$B$100,H30,2),"") ->  | K30: =IF(J30>0,INDEX(Poeng!$A$1:$B$100,J30,2),"") ->  | M30: =IF(L30>0,INDEX(Poeng!$A$1:$B$100,L30,2),"") ->  | O30: =IF(N30>0,INDEX(Poeng!$A$1:$B$100,N30,2),"") ->  | R30: 0 | S30: 0 | T30: 0 | U30: 0 | V30: 0 | W30: 0 | X30: =IF(#REF!>0,#REF!,0) ->  | Y30: 0 | Z30: 0 | AA30: 0 | AB30: 0 | AC30: 0 | AD30: 0 | AE30: 0
G31: =IF(F31>0,INDEX(Poeng!$A$1:$B$100,F31,2),"") ->  | I31: =IF(H31>0,INDEX(Poeng!$A$1:$B$100,H31,2),"") ->  | K31: =IF(J31>0,INDEX(Poeng!$A$1:$B$100,J31,2),"") ->  | M31: =IF(L31>0,INDEX(Poeng!$A$1:$B$100,L31,2),"") ->  | O31: =IF(N31>0,INDEX(Poeng!$A$1:$B$100,N31,2),"") ->  | Q31: =IF(P31>0,INDEX(Poeng!$A$1:$B$100,P31,2),"") ->  | R31: 0 | S31: 0 | T31: 0 | U31: 0 | V31: 0 | W31: 0 | X31: =IF(#REF!>0,#REF!,0) ->  | Y31: 0 | Z31: 0 | AA31: 0 | AB31: 0 | AC31: 0 | AD31: 0 | AE31: 0
G32: =IF(F32>0,INDEX(Poeng!$A$1:$B$100,F32,2),"") ->  | I32: =IF(H32>0,INDEX(Poeng!$A$1:$B$100,H32,2),"") ->  | K32: =IF(J32>0,INDEX(Poeng!$A$1:$B$100,J32,2),"") ->  | M32: =IF(L32>0,INDEX(Poeng!$A$1:$B$100,L32,2),"") ->  | O32: =IF(N32>0,INDEX(Poeng!$A$1:$B$100,N32,2),"") ->  | Q32: =IF(P32>0,INDEX(Poeng!$A$1:$B$100,P32,2),"") ->  | R32: 0 | S32: 0 | T32: 0 | U32: 0 | V32: 0 | W32: 0 | X32: =IF(#REF!>0,#REF!,0) ->  | Y32: 0 | Z32: 0 | AA32: 0 | AB32: 0 | AC32: 0 | AD32: 0 | AE32: 0
G33: =IF(F33>0,INDEX(Poeng!$A$1:$B$100,F33,2),"") ->  | I33: =IF(H33>0,INDEX(Poeng!$A$1:$B$100,H33,2),"") ->  | K33: =IF(J33>0,INDEX(Poeng!$A$1:$B$100,J33,2),"") ->  | M33: =IF(L33>0,INDEX(Poeng!$A$1:$B$100,L33,2),"") ->  | O33: =IF(N33>0,INDEX(Poeng!$A$1:$B$100,N33,2),"") ->  | Q33: =IF(P33>0,INDEX(Poeng!$A$1:$B$100,P33,2),"") ->  | R33: 0 | S33: 0 | T33: 0 | U33: 0 | V33: 0 | W33: 0 | X33: =IF(#REF!>0,#REF!,0) ->  | Y33: 0 | Z33: 0 | AA33: 0 | AB33: 0 | AC33: 0 | AD33: 0 | AE33: 0
G34: =IF(F34>0,INDEX(Poeng!$A$1:$B$100,F34,2),"") ->  | I34: =IF(H34>0,INDEX(Poeng!$A$1:$B$100,H34,2),"") ->  | K34: =IF(J34>0,INDEX(Poeng!$A$1:$B$100,J34,2),"") ->  | M34: =IF(L34>0,INDEX(Poeng!$A$1:$B$100,L34,2),"") ->  | O34: =IF(N34>0,INDEX(Poeng!$A$1:$B$100,N34,2),"") ->  | Q34: =IF(P34>0,INDEX(Poeng!$A$1:$B$100,P34,2),"") ->  | R34: 0 | S34: 0 | T34: 0 | U34: 0 | V34: 0 | W34: 0 | X34: =IF(#REF!>0,#REF!,0) ->  | Y34: 0 | Z34: 0 | AA34: 0 | AB34: 0 | AC34: 0 | AD34: 0 | AE34: 0
A35: =AF35 ->  | D35: =IF(B35<>"",AC35,"") ->  | E35: =IF(AD35<4," ","F") ->  | G35: =IF(F35>0,INDEX(Poeng!$A$1:$B$100,F35,2),"") ->  | I35: =IF(H35>0,INDEX(Poeng!$A$1:$B$100,H35,2),"") ->  | K35: =IF(J35>0,INDEX(Poeng!$A$1:$B$100,J35,2),"") ->  | M35: =IF(L35>0,INDEX(Poeng!$A$1:$B$100,L35,2),"") ->  | O35: =IF(N35>0,INDEX(Poeng!$A$1:$B$100,N35,2),"") ->  | Q35: =IF(P35>0,INDEX(Poeng!$A$1:$B$100,P35,2),"") ->  | R35: 0 | S35: 0 | T35: 0 | U35: 0 | V35: 0 | W35: 0 | X35: =IF(#REF!>0,#REF!,0) ->  | Y35: 0 | Z35: 0 | AA35: 0 | AB35: 0 | AC35: 0 | AD35: 0 | AE35: 0
A36: =AF36 ->  | D36: =IF(B36<>"",AC36,"") ->  | G36: =IF(F36>0,INDEX(Poeng!$A$1:$B$100,F36,2),"") ->  | I36: =IF(H36>0,INDEX(Poeng!$A$1:$B$100,H36,2),"") ->  | K36: =IF(J36>0,INDEX(Poeng!$A$1:$B$100,J36,2),"") ->  | M36: =IF(L36>0,INDEX(Poeng!$A$1:$B$100,L36,2),"") ->  | O36: =IF(N36>0,INDEX(Poeng!$A$1:$B$100,N36,2),"") ->  | Q36: =IF(P36>0,INDEX(Poeng!$A$1:$B$100,P36,2),"") ->  | R36: =IF(F36>0,G36,0) -> 0 | S36: =IF(H36>0,I36,0) -> 0 | T36: =IF(J36>0,K36,0) -> 0 | U36: =IF(L36>0,M36,0) -> 0 | V36: =IF(N36>0,O36,0) -> 0 | W36: =IF(P36>0,Q36,0) -> 0 | X36: =IF(#REF!>0,#REF!,0) ->  | Y36: =LARGE(R36:W36,1) -> 0 | Z36: =LARGE(R36:W36,2) -> 0 | AA36: =LARGE(R36:W36,3) -> 0 | AB36: =LARGE(R36:W36,4) -> 0 | AC36: =SUM(Y36:AB36) -> 0 | AD36: =COUNT(F36:Q36)/2 -> 0 | AE36: =AC36*10^8+Y36*10^6/2+Z36*10^4/2+AA36*10^2/2+AB36/2 -> 0 | AF36: =IF(B36<>"",RANK(AE36,AE$4:AE$73,0),"") -> 
G37: =IF(F37>0,INDEX(Poeng!$A$1:$B$100,F37,2),"") ->  | I37: =IF(H37>0,INDEX(Poeng!$A$1:$B$100,H37,2),"") ->  | K37: =IF(J37>0,INDEX(Poeng!$A$1:$B$100,J37,2),"") ->  | M37: =IF(L37>0,INDEX(Poeng!$A$1:$B$100,L37,2),"") ->  | O37: =IF(N37>0,INDEX(Poeng!$A$1:$B$100,N37,2),"") ->  | Q37: =IF(P37>0,INDEX(Poeng!$A$1:$B$100,P37,2),"") ->  | R37: 0 | S37: 0 | T37: 0 | U37: 0 | V37: 0 | W37: 0 | X37: =IF(#REF!>0,#REF!,0) ->  | Y37: 0 | Z37: 0 | AA37: 0 | AB37: 0 | AC37: 0 | AD37: 0 | AE37: 0
G38: =IF(F38>0,INDEX(Poeng!$A$1:$B$100,F38,2),"") ->  | I38: =IF(H38>0,INDEX(Poeng!$A$1:$B$100,H38,2),"") ->  | K38: =IF(J38>0,INDEX(Poeng!$A$1:$B$100,J38,2),"") ->  | M38: =IF(L38>0,INDEX(Poeng!$A$1:$B$100,L38,2),"") ->  | O38: =IF(N38>0,INDEX(Poeng!$A$1:$B$100,N38,2),"") ->  | Q38: =IF(P38>0,INDEX(Poeng!$A$1:$B$100,P38,2),"") ->  | R38: 0 | S38: 0 | T38: 0 | U38: 0 | V38: 0 | W38: 0 | X38: =IF(#REF!>0,#REF!,0) ->  | Y38: 0 | Z38: 0 | AA38: 0 | AB38: 0 | AC38: 0 | AD38: 0 | AE38: 0
G39: =IF(F39>0,INDEX(Poeng!$A$1:$B$100,F39,2),"") ->  | I39: =IF(H39>0,INDEX(Poeng!$A$1:$B$100,H39,2),"") ->  | K39: =IF(J39>0,INDEX(Poeng!$A$1:$B$100,J39,2),"") ->  | M39: =IF(L39>0,INDEX(Poeng!$A$1:$B$100,L39,2),"") ->  | O39: =IF(N39>0,INDEX(Poeng!$A$1:$B$100,N39,2),"") ->  | Q39: =IF(P39>0,INDEX(Poeng!$A$1:$B$100,P39,2),"") ->  | R39: 0 | S39: 0 | T39: 0 | U39: 0 | V39: 0 | W39: 0 | X39: =IF(#REF!>0,#REF!,0) ->  | Y39: 0 | Z39: 0 | AA39: 0 | AB39: 0 | AC39: 0 | AD39: 0 | AE39: 0
G40: =IF(F40>0,INDEX(Poeng!$A$1:$B$100,F40,2),"") ->  | I40: =IF(H40>0,INDEX(Poeng!$A$1:$B$100,H40,2),"") ->  | K40: =IF(J40>0,INDEX(Poeng!$A$1:$B$100,J40,2),"") ->  | M40: =IF(L40>0,INDEX(Poeng!$A$1:$B$100,L40,2),"") ->  | O40: =IF(N40>0,INDEX(Poeng!$A$1:$B$100,N40,2),"") ->  | Q40: =IF(P40>0,INDEX(Poeng!$A$1:$B$100,P40,2),"") ->  | R40: 0 | S40: 0 | T40: 0 | U40: 0 | V40: 0 | W40: 0 | X40: =IF(#REF!>0,#REF!,0) ->  | Y40: 0 | Z40: 0 | AA40: 0 | AB40: 0 | AC40: 0 | AD40: 0 | AE40: 0
G41: =IF(F41>0,INDEX(Poeng!$A$1:$B$100,F41,2),"") ->  | I41: =IF(H41>0,INDEX(Poeng!$A$1:$B$100,H41,2),"") ->  | K41: =IF(J41>0,INDEX(Poeng!$A$1:$B$100,J41,2),"") ->  | M41: =IF(L41>0,INDEX(Poeng!$A$1:$B$100,L41,2),"") ->  | O41: =IF(N41>0,INDEX(Poeng!$A$1:$B$100,N41,2),"") ->  | Q41: =IF(P41>0,INDEX(Poeng!$A$1:$B$100,P41,2),"") ->  | R41: 0 | S41: 0 | T41: 0 | U41: 0 | V41: 0 | W41: 0 | X41: =IF(#REF!>0,#REF!,0) ->  | Y41: 0 | Z41: 0 | AA41: 0 | AB41: 0 | AC41: 0 | AD41: 0 | AE41: 0
G42: =IF(F42>0,INDEX(Poeng!$A$1:$B$100,F42,2),"") ->  | I42: =IF(H42>0,INDEX(Poeng!$A$1:$B$100,H42,2),"") ->  | K42: =IF(J42>0,INDEX(Poeng!$A$1:$B$100,J42,2),"") ->  | M42: =IF(L42>0,INDEX(Poeng!$A$1:$B$100,L42,2),"") ->  | O42: =IF(N42>0,INDEX(Poeng!$A$1:$B$100,N42,2),"") ->  | Q42: =IF(P42>0,INDEX(Poeng!$A$1:$B$100,P42,2),"") ->  | R42: 0 | S42: 0 | T42: 0 | U42: 0 | V42: 0 | W42: 0 | X42: =IF(#REF!>0,#REF!,0) ->  | Y42: 0 | Z42: 0 | AA42: 0 | AB42: 0 | AC42: 0 | AD42: 0 | AE42: 0
G43: =IF(F43>0,INDEX(Poeng!$A$1:$B$100,F43,2),"") ->  | I43: =IF(H43>0,INDEX(Poeng!$A$1:$B$100,H43,2),"") ->  | K43: =IF(J43>0,INDEX(Poeng!$A$1:$B$100,J43,2),"") ->  | M43: =IF(L43>0,INDEX(Poeng!$A$1:$B$100,L43,2),"") ->  | O43: =IF(N43>0,INDEX(Poeng!$A$1:$B$100,N43,2),"") ->  | Q43: =IF(P43>0,INDEX(Poeng!$A$1:$B$100,P43,2),"") ->  | R43: 0 | S43: 0 | T43: 0 | U43: 0 | V43: 0 | W43: 0 | X43: =IF(#REF!>0,#REF!,0) ->  | Y43: 0 | Z43: 0 | AA43: 0 | AB43: 0 | AC43: 0 | AD43: 0 | AE43: 0
G44: =IF(F44>0,INDEX(Poeng!$A$1:$B$100,F44,2),"") ->  | I44: =IF(H44>0,INDEX(Poeng!$A$1:$B$100,H44,2),"") ->  | K44: =IF(J44>0,INDEX(Poeng!$A$1:$B$100,J44,2),"") ->  | M44: =IF(L44>0,INDEX(Poeng!$A$1:$B$100,L44,2),"") ->  | O44: =IF(N44>0,INDEX(Poeng!$A$1:$B$100,N44,2),"") ->  | Q44: =IF(P44>0,INDEX(Poeng!$A$1:$B$100,P44,2),"") ->  | R44: 0 | S44: 0 | T44: 0 | U44: 0 | V44: 0 | W44: 0 | X44: =IF(#REF!>0,#REF!,0) ->  | Y44: 0 | Z44: 0 | AA44: 0 | AB44: 0 | AC44: 0 | AD44: 0 | AE44: 0
G45: =IF(F45>0,INDEX(Poeng!$A$1:$B$100,F45,2),"") ->  | I45: =IF(H45>0,INDEX(Poeng!$A$1:$B$100,H45,2),"") ->  | K45: =IF(J45>0,INDEX(Poeng!$A$1:$B$100,J45,2),"") ->  | M45: =IF(L45>0,INDEX(Poeng!$A$1:$B$100,L45,2),"") ->  | O45: =IF(N45>0,INDEX(Poeng!$A$1:$B$100,N45,2),"") ->  | Q45: =IF(P45>0,INDEX(Poeng!$A$1:$B$100,P45,2),"") ->  | R45: 0 | S45: 0 | T45: 0 | U45: 0 | V45: 0 | W45: 0 | X45: =IF(#REF!>0,#REF!,0) ->  | Y45: 0 | Z45: 0 | AA45: 0 | AB45: 0 | AC45: 0 | AD45: 0 | AE45: 0
G46: =IF(F46>0,INDEX(Poeng!$A$1:$B$100,F46,2),"") ->  | I46: =IF(H46>0,INDEX(Poeng!$A$1:$B$100,H46,2),"") ->  | K46: =IF(J46>0,INDEX(Poeng!$A$1:$B$100,J46,2),"") ->  | M46: =IF(L46>0,INDEX(Poeng!$A$1:$B$100,L46,2),"") ->  | O46: =IF(N46>0,INDEX(Poeng!$A$1:$B$100,N46,2),"") ->  | Q46: =IF(P46>0,INDEX(Poeng!$A$1:$B$100,P46,2),"") ->  | R46: 0 | S46: 0 | T46: 0 | U46: 0 | V46: 0 | W46: 0 | X46: =IF(#REF!>0,#REF!,0) ->  | Y46: 0 | Z46: 0 | AA46: 0 | AB46: 0 | AC46: 0 | AD46: 0 | AE46: 0
G47: =IF(F47>0,INDEX(Poeng!$A$1:$B$100,F47,2),"") ->  | I47: =IF(H47>0,INDEX(Poeng!$A$1:$B$100,H47,2),"") ->  | K47: =IF(J47>0,INDEX(Poeng!$A$1:$B$100,J47,2),"") ->  | M47: =IF(L47>0,INDEX(Poeng!$A$1:$B$100,L47,2),"") ->  | O47: =IF(N47>0,INDEX(Poeng!$A$1:$B$100,N47,2),"") ->  | Q47: =IF(P47>0,INDEX(Poeng!$A$1:$B$100,P47,2),"") ->  | R47: 0 | S47: 0 | T47: 0 | U47: 0 | V47: 0 | W47: 0 | X47: =IF(#REF!>0,#REF!,0) ->  | Y47: 0 | Z47: 0 | AA47: 0 | AB47: 0 | AC47: 0 | AD47: 0 | AE47: 0
G48: =IF(F48>0,INDEX(Poeng!$A$1:$B$100,F48,2),"") ->  | I48: =IF(H48>0,INDEX(Poeng!$A$1:$B$100,H48,2),"") ->  | K48: =IF(J48>0,INDEX(Poeng!$A$1:$B$100,J48,2),"") ->  | M48: =IF(L48>0,INDEX(Poeng!$A$1:$B$100,L48,2),"") ->  | O48: =IF(N48>0,INDEX(Poeng!$A$1:$B$100,N48,2),"") ->  | Q48: =IF(P48>0,INDEX(Poeng!$A$1:$B$100,P48,2),"") ->  | R48: 0 | S48: 0 | T48: 0 | U48: 0 | V48: 0 | W48: 0 | X48: =IF(#REF!>0,#REF!,0) ->  | Y48: 0 | Z48: 0 | AA48: 0 | AB48: 0 | AC48: 0 | AD48: 0 | AE48: 0
I49: =IF(H49>0,INDEX(Poeng!$A$1:$B$100,H49,2),"") ->  | K49: =IF(J49>0,INDEX(Poeng!$A$1:$B$100,J49,2),"") ->  | M49: =IF(L49>0,INDEX(Poeng!$A$1:$B$100,L49,2),"") ->  | O49: =IF(N49>0,INDEX(Poeng!$A$1:$B$100,N49,2),"") ->  | Q49: =IF(P49>0,INDEX(Poeng!$A$1:$B$100,P49,2),"") ->  | R49: 0 | S49: 0 | T49: 0 | U49: 0 | V49: 0 | W49: 0 | X49: =IF(#REF!>0,#REF!,0) ->  | Y49: 0 | Z49: 0 | AA49: 0 | AB49: 0 | AC49: 0 | AD49: 0 | AE49: 0
I50: =IF(H50>0,INDEX(Poeng!$A$1:$B$100,H50,2),"") ->  | K50: =IF(J50>0,INDEX(Poeng!$A$1:$B$100,J50,2),"") ->  | M50: =IF(L50>0,INDEX(Poeng!$A$1:$B$100,L50,2),"") ->  | O50: =IF(N50>0,INDEX(Poeng!$A$1:$B$100,N50,2),"") ->  | Q50: =IF(P50>0,INDEX(Poeng!$A$1:$B$100,P50,2),"") ->  | R50: 0 | S50: 0 | T50: 0 | U50: 0 | V50: 0 | W50: 0 | X50: =IF(#REF!>0,#REF!,0) ->  | Y50: 0 | Z50: 0 | AA50: 0 | AB50: 0 | AC50: 0 | AD50: 0 | AE50: 0
I51: =IF(H51>0,INDEX(Poeng!$A$1:$B$100,H51,2),"") ->  | K51: =IF(J51>0,INDEX(Poeng!$A$1:$B$100,J51,2),"") ->  | M51: =IF(L51>0,INDEX(Poeng!$A$1:$B$100,L51,2),"") ->  | O51: =IF(N51>0,INDEX(Poeng!$A$1:$B$100,N51,2),"") ->  | Q51: =IF(P51>0,INDEX(Poeng!$A$1:$B$100,P51,2),"") ->  | R51: 0 | S51: 0 | T51: 0 | U51: 0 | V51: 0 | W51: 0 | X51: =IF(#REF!>0,#REF!,0) ->  | Y51: 0 | Z51: 0 | AA51: 0 | AB51: 0 | AC51: 0 | AD51: 0 | AE51: 0
I52: =IF(H52>0,INDEX(Poeng!$A$1:$B$100,H52,2),"") ->  | K52: =IF(J52>0,INDEX(Poeng!$A$1:$B$100,J52,2),"") ->  | M52: =IF(L52>0,INDEX(Poeng!$A$1:$B$100,L52,2),"") ->  | O52: =IF(N52>0,INDEX(Poeng!$A$1:$B$100,N52,2),"") ->  | Q52: =IF(P52>0,INDEX(Poeng!$A$1:$B$100,P52,2),"") ->  | R52: 0 | S52: 0 | T52: 0 | U52: 0 | V52: 0 | W52: 0 | X52: =IF(#REF!>0,#REF!,0) ->  | Y52: 0 | Z52: 0 | AA52: 0 | AB52: 0 | AC52: 0 | AD52: 0 | AE52: 0
I53: =IF(H53>0,INDEX(Poeng!$A$1:$B$100,H53,2),"") ->  | K53: =IF(J53>0,INDEX(Poeng!$A$1:$B$100,J53,2),"") ->  | M53: =IF(L53>0,INDEX(Poeng!$A$1:$B$100,L53,2),"") ->  | O53: =IF(N53>0,INDEX(Poeng!$A$1:$B$100,N53,2),"") ->  | Q53: =IF(P53>0,INDEX(Poeng!$A$1:$B$100,P53,2),"") ->  | R53: 0 | S53: 0 | T53: 0 | U53: 0 | V53: 0 | W53: 0 | X53: =IF(#REF!>0,#REF!,0) ->  | Y53: 0 | Z53: 0 | AA53: 0 | AB53: 0 | AC53: 0 | AD53: 0 | AE53: 0
I54: =IF(H54>0,INDEX(Poeng!$A$1:$B$100,H54,2),"") ->  | K54: =IF(J54>0,INDEX(Poeng!$A$1:$B$100,J54,2),"") ->  | M54: =IF(L54>0,INDEX(Poeng!$A$1:$B$100,L54,2),"") ->  | O54: =IF(N54>0,INDEX(Poeng!$A$1:$B$100,N54,2),"") ->  | Q54: =IF(P54>0,INDEX(Poeng!$A$1:$B$100,P54,2),"") ->  | R54: 0 | S54: 0 | T54: 0 | U54: 0 | V54: 0 | W54: 0 | X54: =IF(#REF!>0,#REF!,0) ->  | Y54: 0 | Z54: 0 | AA54: 0 | AB54: 0 | AC54: 0 | AD54: 0 | AE54: 0
I55: =IF(H55>0,INDEX(Poeng!$A$1:$B$100,H55,2),"") ->  | K55: =IF(J55>0,INDEX(Poeng!$A$1:$B$100,J55,2),"") ->  | M55: =IF(L55>0,INDEX(Poeng!$A$1:$B$100,L55,2),"") ->  | O55: =IF(N55>0,INDEX(Poeng!$A$1:$B$100,N55,2),"") ->  | Q55: =IF(P55>0,INDEX(Poeng!$A$1:$B$100,P55,2),"") ->  | R55: 0 | S55: 0 | T55: 0 | U55: 0 | V55: 0 | W55: 0 | X55: =IF(#REF!>0,#REF!,0) ->  | Y55: 0 | Z55: 0 | AA55: 0 | AB55: 0 | AC55: 0 | AD55: 0 | AE55: 0
I56: =IF(H56>0,INDEX(Poeng!$A$1:$B$100,H56,2),"") ->  | K56: =IF(J56>0,INDEX(Poeng!$A$1:$B$100,J56,2),"") ->  | M56: =IF(L56>0,INDEX(Poeng!$A$1:$B$100,L56,2),"") ->  | O56: =IF(N56>0,INDEX(Poeng!$A$1:$B$100,N56,2),"") ->  | Q56: =IF(P56>0,INDEX(Poeng!$A$1:$B$100,P56,2),"") ->  | R56: 0 | S56: 0 | T56: 0 | U56: 0 | V56: 0 | W56: 0 | X56: =IF(#REF!>0,#REF!,0) ->  | Y56: 0 | Z56: 0 | AA56: 0 | AB56: 0 | AC56: 0 | AD56: 0 | AE56: 0
I57: =IF(H57>0,INDEX(Poeng!$A$1:$B$100,H57,2),"") ->  | K57: =IF(J57>0,INDEX(Poeng!$A$1:$B$100,J57,2),"") ->  | M57: =IF(L57>0,INDEX(Poeng!$A$1:$B$100,L57,2),"") ->  | O57: =IF(N57>0,INDEX(Poeng!$A$1:$B$100,N57,2),"") ->  | Q57: =IF(P57>0,INDEX(Poeng!$A$1:$B$100,P57,2),"") ->  | R57: 0 | S57: 0 | T57: 0 | U57: 0 | V57: 0 | W57: 0 | X57: =IF(#REF!>0,#REF!,0) ->  | Y57: 0 | Z57: 0 | AA57: 0 | AB57: 0 | AC57: 0 | AD57: 0 | AE57: 0
I58: =IF(H58>0,INDEX(Poeng!$A$1:$B$100,H58,2),"") ->  | K58: =IF(J58>0,INDEX(Poeng!$A$1:$B$100,J58,2),"") ->  | M58: =IF(L58>0,INDEX(Poeng!$A$1:$B$100,L58,2),"") ->  | O58: =IF(N58>0,INDEX(Poeng!$A$1:$B$100,N58,2),"") ->  | Q58: =IF(P58>0,INDEX(Poeng!$A$1:$B$100,P58,2),"") ->  | R58: 0 | S58: 0 | T58: 0 | U58: 0 | V58: 0 | W58: 0 | X58: =IF(#REF!>0,#REF!,0) ->  | Y58: 0 | Z58: 0 | AA58: 0 | AB58: 0 | AC58: 0 | AD58: 0 | AE58: 0
I59: =IF(H59>0,INDEX(Poeng!$A$1:$B$100,H59,2),"") ->  | K59: =IF(J59>0,INDEX(Poeng!$A$1:$B$100,J59,2),"") ->  | M59: =IF(L59>0,INDEX(Poeng!$A$1:$B$100,L59,2),"") ->  | O59: =IF(N59>0,INDEX(Poeng!$A$1:$B$100,N59,2),"") ->  | Q59: =IF(P59>0,INDEX(Poeng!$A$1:$B$100,P59,2),"") ->  | R59: 0 | S59: 0 | T59: 0 | U59: 0 | V59: 0 | W59: 0 | X59: =IF(#REF!>0,#REF!,0) ->  | Y59: 0 | Z59: 0 | AA59: 0 | AB59: 0 | AC59: 0 | AD59: 0 | AE59: 0
E60: =IF(AD60<4," ","F") ->  | I60: =IF(H60>0,INDEX(Poeng!$A$1:$B$100,H60,2),"") ->  | K60: =IF(J60>0,INDEX(Poeng!$A$1:$B$100,J60,2),"") ->  | M60: =IF(L60>0,INDEX(Poeng!$A$1:$B$100,L60,2),"") ->  | O60: =IF(N60>0,INDEX(Poeng!$A$1:$B$100,N60,2),"") ->  | Q60: =IF(P60>0,INDEX(Poeng!$A$1:$B$100,P60,2),"") ->  | R60: 0 | S60: 0 | T60: 0 | U60: 0 | V60: 0 | W60: 0 | X60: =IF(#REF!>0,#REF!,0) ->  | Y60: 0 | Z60: 0 | AA60: 0 | AB60: 0 | AC60: 0 | AD60: 0 | AE60: 0
I61: =IF(H61>0,INDEX(Poeng!$A$1:$B$100,H61,2),"") ->  | K61: =IF(J61>0,INDEX(Poeng!$A$1:$B$100,J61,2),"") ->  | M61: =IF(L61>0,INDEX(Poeng!$A$1:$B$100,L61,2),"") ->  | O61: =IF(N61>0,INDEX(Poeng!$A$1:$B$100,N61,2),"") ->  | Q61: =IF(P61>0,INDEX(Poeng!$A$1:$B$100,P61,2),"") ->  | R61: 0 | S61: 0 | T61: 0 | U61: 0 | V61: 0 | W61: 0 | X61: =IF(#REF!>0,#REF!,0) ->  | Y61: 0 | Z61: 0 | AA61: 0 | AB61: 0 | AC61: 0 | AD61: 0 | AE61: 0
I62: =IF(H62>0,INDEX(Poeng!$A$1:$B$100,H62,2),"") ->  | K62: =IF(J62>0,INDEX(Poeng!$A$1:$B$100,J62,2),"") ->  | M62: =IF(L62>0,INDEX(Poeng!$A$1:$B$100,L62,2),"") ->  | O62: =IF(N62>0,INDEX(Poeng!$A$1:$B$100,N62,2),"") ->  | Q62: =IF(P62>0,INDEX(Poeng!$A$1:$B$100,P62,2),"") ->  | R62: 0 | S62: 0 | T62: 0 | U62: 0 | V62: 0 | W62: 0 | X62: =IF(#REF!>0,#REF!,0) ->  | Y62: 0 | Z62: 0 | AA62: 0 | AB62: 0 | AC62: 0 | AD62: 0 | AE62: 0
I63: =IF(H63>0,INDEX(Poeng!$A$1:$B$100,H63,2),"") ->  | K63: =IF(J63>0,INDEX(Poeng!$A$1:$B$100,J63,2),"") ->  | M63: =IF(L63>0,INDEX(Poeng!$A$1:$B$100,L63,2),"") ->  | O63: =IF(N63>0,INDEX(Poeng!$A$1:$B$100,N63,2),"") ->  | Q63: =IF(P63>0,INDEX(Poeng!$A$1:$B$100,P63,2),"") ->  | R63: 0 | S63: 0 | T63: 0 | U63: 0 | V63: 0 | W63: 0 | X63: =IF(#REF!>0,#REF!,0) ->  | Y63: 0 | Z63: 0 | AA63: 0 | AB63: 0 | AC63: 0 | AD63: 0 | AE63: 0
I64: =IF(H64>0,INDEX(Poeng!$A$1:$B$100,H64,2),"") ->  | K64: =IF(J64>0,INDEX(Poeng!$A$1:$B$100,J64,2),"") ->  | M64: =IF(L64>0,INDEX(Poeng!$A$1:$B$100,L64,2),"") ->  | O64: =IF(N64>0,INDEX(Poeng!$A$1:$B$100,N64,2),"") ->  | Q64: =IF(P64>0,INDEX(Poeng!$A$1:$B$100,P64,2),"") ->  | R64: 0 | S64: 0 | T64: 0 | U64: 0 | V64: 0 | W64: 0 | X64: =IF(#REF!>0,#REF!,0) ->  | Y64: 0 | Z64: 0 | AA64: 0 | AB64: 0 | AC64: 0 | AD64: 0 | AE64: 0
I65: =IF(H65>0,INDEX(Poeng!$A$1:$B$100,H65,2),"") ->  | K65: =IF(J65>0,INDEX(Poeng!$A$1:$B$100,J65,2),"") ->  | M65: =IF(L65>0,INDEX(Poeng!$A$1:$B$100,L65,2),"") ->  | O65: =IF(N65>0,INDEX(Poeng!$A$1:$B$100,N65,2),"") ->  | Q65: =IF(P65>0,INDEX(Poeng!$A$1:$B$100,P65,2),"") ->  | R65: 0 | S65: 0 | T65: 0 | U65: 0 | V65: 0 | W65: 0 | X65: =IF(#REF!>0,#REF!,0) ->  | Y65: 0 | Z65: 0 | AA65: 0 | AB65: 0 | AC65: 0 | AD65: 0 | AE65: 0
I66: =IF(H66>0,INDEX(Poeng!$A$1:$B$100,H66,2),"") ->  | K66: =IF(J66>0,INDEX(Poeng!$A$1:$B$100,J66,2),"") ->  | M66: =IF(L66>0,INDEX(Poeng!$A$1:$B$100,L66,2),"") ->  | O66: =IF(N66>0,INDEX(Poeng!$A$1:$B$100,N66,2),"") ->  | Q66: =IF(P66>0,INDEX(Poeng!$A$1:$B$100,P66,2),"") ->  | R66: 0 | S66: 0 | T66: 0 | U66: 0 | V66: 0 | W66: 0 | X66: =IF(#REF!>0,#REF!,0) ->  | Y66: 0 | Z66: 0 | AA66: 0 | AB66: 0 | AC66: 0 | AD66: 0 | AE66: 0
I67: =IF(H67>0,INDEX(Poeng!$A$1:$B$100,H67,2),"") ->  | K67: =IF(J67>0,INDEX(Poeng!$A$1:$B$100,J67,2),"") ->  | M67: =IF(L67>0,INDEX(Poeng!$A$1:$B$100,L67,2),"") ->  | O67: =IF(N67>0,INDEX(Poeng!$A$1:$B$100,N67,2),"") ->  | Q67: =IF(P67>0,INDEX(Poeng!$A$1:$B$100,P67,2),"") ->  | R67: 0 | S67: 0 | T67: 0 | U67: 0 | V67: 0 | W67: 0 | X67: =IF(#REF!>0,#REF!,0) ->  | Y67: =LARGE(R67:W67,1) -> 0 | Z67: =LARGE(R67:W67,2) -> 0 | AA67: =LARGE(R67:W67,3) -> 0 | AB67: =LARGE(R67:W67,4) -> 0 | AC67: =SUM(Y67:AB67) -> 0 | AD67: 0 | AE67: =AC67*10^8+Y67*10^6/2+Z67*10^4/2+AA67*10^2/2+AB67/2 -> 0
A68: =AF68 ->  | D68: =IF(B68<>"",AC68,"") ->  | I68: =IF(H68>0,INDEX(Poeng!$A$1:$B$100,H68,2),"") ->  | K68: =IF(J68>0,INDEX(Poeng!$A$1:$B$100,J68,2),"") ->  | M68: =IF(L68>0,INDEX(Poeng!$A$1:$B$100,L68,2),"") ->  | O68: =IF(N68>0,INDEX(Poeng!$A$1:$B$100,N68,2),"") ->  | Q68: =IF(P68>0,INDEX(Poeng!$A$1:$B$100,P68,2),"") ->  | R68: =IF(F68>0,G68,0) -> 0 | S68: =IF(H68>0,I68,0) -> 0 | T68: =IF(J68>0,K68,0) -> 0 | U68: =IF(L68>0,M68,0) -> 0 | V68: =IF(N68>0,O68,0) -> 0 | W68: =IF(P68>0,Q68,0) -> 0 | X68: =IF(#REF!>0,#REF!,0) ->  | Y68: 0 | Z68: 0 | AA68: 0 | AB68: 0 | AC68: 0 | AD68: =COUNT(F68:Q68)/2 -> 0 | AE68: 0 | AF68: =IF(B68<>"",RANK(AE68,AE$4:AE$73,0),"") -> 
I69: =IF(H69>0,INDEX(Poeng!$A$1:$B$100,H69,2),"") ->  | K69: =IF(J69>0,INDEX(Poeng!$A$1:$B$100,J69,2),"") ->  | M69: =IF(L69>0,INDEX(Poeng!$A$1:$B$100,L69,2),"") ->  | O69: =IF(N69>0,INDEX(Poeng!$A$1:$B$100,N69,2),"") ->  | Q69: =IF(P69>0,INDEX(Poeng!$A$1:$B$100,P69,2),"") ->  | R69: 0 | S69: 0 | T69: 0 | U69: 0 | V69: 0 | W69: 0 | X69: =IF(#REF!>0,#REF!,0) ->  | Y69: 0 | Z69: 0 | AA69: 0 | AB69: 0 | AC69: 0 | AD69: 0 | AE69: 0
I70: =IF(H70>0,INDEX(Poeng!$A$1:$B$100,H70,2),"") ->  | K70: =IF(J70>0,INDEX(Poeng!$A$1:$B$100,J70,2),"") ->  | M70: =IF(L70>0,INDEX(Poeng!$A$1:$B$100,L70,2),"") ->  | O70: =IF(N70>0,INDEX(Poeng!$A$1:$B$100,N70,2),"") ->  | Q70: =IF(P70>0,INDEX(Poeng!$A$1:$B$100,P70,2),"") ->  | R70: 0 | S70: 0 | T70: 0 | U70: 0 | V70: 0 | W70: 0 | X70: =IF(#REF!>0,#REF!,0) ->  | Y70: 0 | Z70: 0 | AA70: 0 | AB70: 0 | AC70: 0 | AD70: 0 | AE70: 0
I71: =IF(H71>0,INDEX(Poeng!$A$1:$B$100,H71,2),"") ->  | K71: =IF(J71>0,INDEX(Poeng!$A$1:$B$100,J71,2),"") ->  | M71: =IF(L71>0,INDEX(Poeng!$A$1:$B$100,L71,2),"") ->  | O71: =IF(N71>0,INDEX(Poeng!$A$1:$B$100,N71,2),"") ->  | Q71: =IF(P71>0,INDEX(Poeng!$A$1:$B$100,P71,2),"") ->  | R71: 0 | S71: 0 | T71: 0 | U71: 0 | V71: 0 | W71: 0 | X71: =IF(#REF!>0,#REF!,0) ->  | Y71: 0 | Z71: 0 | AA71: 0 | AB71: 0 | AC71: 0 | AD71: 0 | AE71: 0
I72: =IF(H72>0,INDEX(Poeng!$A$1:$B$100,H72,2),"") ->  | K72: =IF(J72>0,INDEX(Poeng!$A$1:$B$100,J72,2),"") ->  | M72: =IF(L72>0,INDEX(Poeng!$A$1:$B$100,L72,2),"") ->  | O72: =IF(N72>0,INDEX(Poeng!$A$1:$B$100,N72,2),"") ->  | Q72: =IF(P72>0,INDEX(Poeng!$A$1:$B$100,P72,2),"") ->  | R72: 0 | S72: 0 | T72: 0 | U72: 0 | V72: 0 | W72: 0 | X72: =IF(#REF!>0,#REF!,0) ->  | Y72: 0 | Z72: 0 | AA72: 0 | AB72: 0 | AC72: 0 | AD72: 0 | AE72: 0
I73: =IF(H73>0,INDEX(Poeng!$A$1:$B$100,H73,2),"") ->  | K73: =IF(J73>0,INDEX(Poeng!$A$1:$B$100,J73,2),"") ->  | M73: =IF(L73>0,INDEX(Poeng!$A$1:$B$100,L73,2),"") ->  | O73: =IF(N73>0,INDEX(Poeng!$A$1:$B$100,N73,2),"") ->  | Q73: =IF(P73>0,INDEX(Poeng!$A$1:$B$100,P73,2),"") ->  | R73: 0 | S73: 0 | T73: 0 | U73: 0 | V73: 0 | W73: 0 | X73: =IF(#REF!>0,#REF!,0) ->  | Y73: 0 | Z73: 0 | AA73: 0 | AB73: 0 | AC73: 0 | AD73: 0 | AE73: 0
I74: =IF(H74>0,INDEX(Poeng!$A$1:$B$100,H74,2),"") ->  | K74: =IF(J74>0,INDEX(Poeng!$A$1:$B$100,J74,2),"") ->  | M74: =IF(L74>0,INDEX(Poeng!$A$1:$B$100,L74,2),"") ->  | O74: =IF(N74>0,INDEX(Poeng!$A$1:$B$100,N74,2),"") ->  | Q74: =IF(P74>0,INDEX(Poeng!$A$1:$B$100,P74,2),"") ->  | R74: 0 | S74: 0 | T74: 0 | U74: 0 | V74: 0 | W74: 0 | X74: =IF(#REF!>0,#REF!,0) ->  | Y74: 0 | Z74: 0 | AA74: 0 | AB74: 0 | AC74: 0 | AD74: 0 | AE74: 0
I75: =IF(H75>0,INDEX(Poeng!$A$1:$B$100,H75,2),"") ->  | K75: =IF(J75>0,INDEX(Poeng!$A$1:$B$100,J75,2),"") ->  | M75: =IF(L75>0,INDEX(Poeng!$A$1:$B$100,L75,2),"") ->  | O75: =IF(N75>0,INDEX(Poeng!$A$1:$B$100,N75,2),"") ->  | Q75: =IF(P75>0,INDEX(Poeng!$A$1:$B$100,P75,2),"") ->  | R75: 0 | S75: 0 | T75: 0 | U75: 0 | V75: 0 | W75: 0 | X75: =IF(#REF!>0,#REF!,0) ->  | Y75: 0 | Z75: 0 | AA75: 0 | AB75: 0 | AC75: 0 | AD75: 0 | AE75: 0
I76: =IF(H76>0,INDEX(Poeng!$A$1:$B$100,H76,2),"") ->  | K76: =IF(J76>0,INDEX(Poeng!$A$1:$B$100,J76,2),"") ->  | M76: =IF(L76>0,INDEX(Poeng!$A$1:$B$100,L76,2),"") ->  | O76: =IF(N76>0,INDEX(Poeng!$A$1:$B$100,N76,2),"") ->  | Q76: =IF(P76>0,INDEX(Poeng!$A$1:$B$100,P76,2),"") ->  | R76: 0 | S76: 0 | T76: 0 | U76: 0 | V76: 0 | W76: 0 | X76: =IF(#REF!>0,#REF!,0) ->  | Y76: 0 | Z76: 0 | AA76: 0 | AB76: 0 | AC76: 0 | AD76: 0 | AE76: 0
I77: =IF(H77>0,INDEX(Poeng!$A$1:$B$100,H77,2),"") ->  | K77: =IF(J77>0,INDEX(Poeng!$A$1:$B$100,J77,2),"") ->  | M77: =IF(L77>0,INDEX(Poeng!$A$1:$B$100,L77,2),"") ->  | O77: =IF(N77>0,INDEX(Poeng!$A$1:$B$100,N77,2),"") ->  | Q77: =IF(P77>0,INDEX(Poeng!$A$1:$B$100,P77,2),"") ->  | R77: 0 | S77: 0 | T77: 0 | U77: 0 | V77: 0 | W77: 0 | X77: =IF(#REF!>0,#REF!,0) ->  | Y77: 0 | Z77: 0 | AA77: 0 | AB77: 0 | AC77: 0 | AD77: 0 | AE77: 0
I78: =IF(H78>0,INDEX(Poeng!$A$1:$B$100,H78,2),"") ->  | K78: =IF(J78>0,INDEX(Poeng!$A$1:$B$100,J78,2),"") ->  | M78: =IF(L78>0,INDEX(Poeng!$A$1:$B$100,L78,2),"") ->  | O78: =IF(N78>0,INDEX(Poeng!$A$1:$B$100,N78,2),"") ->  | Q78: =IF(P78>0,INDEX(Poeng!$A$1:$B$100,P78,2),"") ->  | R78: 0 | S78: 0 | T78: 0 | U78: 0 | V78: 0 | W78: 0 | X78: =IF(#REF!>0,#REF!,0) ->  | Y78: 0 | Z78: 0 | AA78: 0 | AB78: 0 | AC78: 0 | AD78: 0 | AE78: 0
I79: =IF(H79>0,INDEX(Poeng!$A$1:$B$100,H79,2),"") ->  | K79: =IF(J79>0,INDEX(Poeng!$A$1:$B$100,J79,2),"") ->  | M79: =IF(L79>0,INDEX(Poeng!$A$1:$B$100,L79,2),"") ->  | O79: =IF(N79>0,INDEX(Poeng!$A$1:$B$100,N79,2),"") ->  | Q79: =IF(P79>0,INDEX(Poeng!$A$1:$B$100,P79,2),"") ->  | R79: 0 | S79: 0 | T79: 0 | U79: 0 | V79: 0 | W79: 0 | X79: =IF(#REF!>0,#REF!,0) ->  | Y79: 0 | Z79: 0 | AA79: 0 | AB79: 0 | AC79: 0 | AD79: 0 | AE79: 0
I80: =IF(H80>0,INDEX(Poeng!$A$1:$B$100,H80,2),"") ->  | K80: =IF(J80>0,INDEX(Poeng!$A$1:$B$100,J80,2),"") ->  | M80: =IF(L80>0,INDEX(Poeng!$A$1:$B$100,L80,2),"") ->  | O80: =IF(N80>0,INDEX(Poeng!$A$1:$B$100,N80,2),"") ->  | Q80: =IF(P80>0,INDEX(Poeng!$A$1:$B$100,P80,2),"") ->  | R80: 0 | S80: 0 | T80: 0 | U80: 0 | V80: 0 | W80: 0 | X80: =IF(#REF!>0,#REF!,0) ->  | Y80: 0 | Z80: 0 | AA80: 0 | AB80: 0 | AC80: 0 | AD80: 0 | AE80: 0
I81: =IF(H81>0,INDEX(Poeng!$A$1:$B$100,H81,2),"") ->  | K81: =IF(J81>0,INDEX(Poeng!$A$1:$B$100,J81,2),"") ->  | M81: =IF(L81>0,INDEX(Poeng!$A$1:$B$100,L81,2),"") ->  | O81: =IF(N81>0,INDEX(Poeng!$A$1:$B$100,N81,2),"") ->  | Q81: =IF(P81>0,INDEX(Poeng!$A$1:$B$100,P81,2),"") ->  | R81: 0 | S81: 0 | T81: 0 | U81: 0 | V81: 0 | W81: 0 | X81: =IF(#REF!>0,#REF!,0) ->  | Y81: 0 | Z81: 0 | AA81: 0 | AB81: 0 | AC81: 0 | AD81: 0 | AE81: 0
I82: =IF(H82>0,INDEX(Poeng!$A$1:$B$100,H82,2),"") ->  | K82: =IF(J82>0,INDEX(Poeng!$A$1:$B$100,J82,2),"") ->  | M82: =IF(L82>0,INDEX(Poeng!$A$1:$B$100,L82,2),"") ->  | O82: =IF(N82>0,INDEX(Poeng!$A$1:$B$100,N82,2),"") ->  | Q82: =IF(P82>0,INDEX(Poeng!$A$1:$B$100,P82,2),"") ->  | R82: 0 | S82: 0 | T82: 0 | U82: 0 | V82: 0 | W82: 0 | X82: =IF(#REF!>0,#REF!,0) ->  | Y82: 0 | Z82: 0 | AA82: 0 | AB82: 0 | AC82: 0 | AD82: 0 | AE82: 0
I83: =IF(H83>0,INDEX(Poeng!$A$1:$B$100,H83,2),"") ->  | K83: =IF(J83>0,INDEX(Poeng!$A$1:$B$100,J83,2),"") ->  | M83: =IF(L83>0,INDEX(Poeng!$A$1:$B$100,L83,2),"") ->  | O83: =IF(N83>0,INDEX(Poeng!$A$1:$B$100,N83,2),"") ->  | Q83: =IF(P83>0,INDEX(Poeng!$A$1:$B$100,P83,2),"") ->  | R83: 0 | S83: 0 | T83: 0 | U83: 0 | V83: 0 | W83: 0 | X83: =IF(#REF!>0,#REF!,0) ->  | Y83: 0 | Z83: 0 | AA83: 0 | AB83: 0 | AC83: 0 | AD83: 0 | AE83: 0
I84: =IF(H84>0,INDEX(Poeng!$A$1:$B$100,H84,2),"") ->  | K84: =IF(J84>0,INDEX(Poeng!$A$1:$B$100,J84,2),"") ->  | M84: =IF(L84>0,INDEX(Poeng!$A$1:$B$100,L84,2),"") ->  | O84: =IF(N84>0,INDEX(Poeng!$A$1:$B$100,N84,2),"") ->  | Q84: =IF(P84>0,INDEX(Poeng!$A$1:$B$100,P84,2),"") ->  | R84: 0 | S84: 0 | T84: 0 | U84: 0 | V84: 0 | W84: 0 | X84: =IF(#REF!>0,#REF!,0) ->  | Y84: 0 | Z84: 0 | AA84: 0 | AB84: 0 | AC84: 0 | AD84: 0 | AE84: 0
I85: =IF(H85>0,INDEX(Poeng!$A$1:$B$100,H85,2),"") ->  | K85: =IF(J85>0,INDEX(Poeng!$A$1:$B$100,J85,2),"") ->  | M85: =IF(L85>0,INDEX(Poeng!$A$1:$B$100,L85,2),"") ->  | O85: =IF(N85>0,INDEX(Poeng!$A$1:$B$100,N85,2),"") ->  | Q85: =IF(P85>0,INDEX(Poeng!$A$1:$B$100,P85,2),"") ->  | R85: 0 | S85: 0 | T85: 0 | U85: 0 | V85: 0 | W85: 0 | X85: =IF(#REF!>0,#REF!,0) ->  | Y85: 0 | Z85: 0 | AA85: 0 | AB85: 0 | AC85: 0 | AD85: 0 | AE85: 0
I86: =IF(H86>0,INDEX(Poeng!$A$1:$B$100,H86,2),"") ->  | K86: =IF(J86>0,INDEX(Poeng!$A$1:$B$100,J86,2),"") ->  | M86: =IF(L86>0,INDEX(Poeng!$A$1:$B$100,L86,2),"") ->  | O86: =IF(N86>0,INDEX(Poeng!$A$1:$B$100,N86,2),"") ->  | Q86: =IF(P86>0,INDEX(Poeng!$A$1:$B$100,P86,2),"") ->  | R86: 0 | S86: 0 | T86: 0 | U86: 0 | V86: 0 | W86: 0 | X86: =IF(#REF!>0,#REF!,0) ->  | Y86: 0 | Z86: 0 | AA86: 0 | AB86: 0 | AC86: 0 | AD86: 0 | AE86: 0
I87: =IF(H87>0,INDEX(Poeng!$A$1:$B$100,H87,2),"") ->  | K87: =IF(J87>0,INDEX(Poeng!$A$1:$B$100,J87,2),"") ->  | M87: =IF(L87>0,INDEX(Poeng!$A$1:$B$100,L87,2),"") ->  | O87: =IF(N87>0,INDEX(Poeng!$A$1:$B$100,N87,2),"") ->  | Q87: =IF(P87>0,INDEX(Poeng!$A$1:$B$100,P87,2),"") ->  | R87: 0 | S87: 0 | T87: 0 | U87: 0 | V87: 0 | W87: 0 | X87: =IF(#REF!>0,#REF!,0) ->  | Y87: 0 | Z87: 0 | AA87: 0 | AB87: 0 | AC87: 0 | AD87: 0 | AE87: 0
I88: =IF(H88>0,INDEX(Poeng!$A$1:$B$100,H88,2),"") ->  | K88: =IF(J88>0,INDEX(Poeng!$A$1:$B$100,J88,2),"") ->  | M88: =IF(L88>0,INDEX(Poeng!$A$1:$B$100,L88,2),"") ->  | O88: =IF(N88>0,INDEX(Poeng!$A$1:$B$100,N88,2),"") ->  | Q88: =IF(P88>0,INDEX(Poeng!$A$1:$B$100,P88,2),"") ->  | R88: 0 | S88: 0 | T88: 0 | U88: 0 | V88: 0 | W88: 0 | X88: =IF(#REF!>0,#REF!,0) ->  | Y88: 0 | Z88: 0 | AA88: 0 | AB88: 0 | AC88: 0 | AD88: 0 | AE88: 0
I89: =IF(H89>0,INDEX(Poeng!$A$1:$B$100,H89,2),"") ->  | K89: =IF(J89>0,INDEX(Poeng!$A$1:$B$100,J89,2),"") ->  | M89: =IF(L89>0,INDEX(Poeng!$A$1:$B$100,L89,2),"") ->  | O89: =IF(N89>0,INDEX(Poeng!$A$1:$B$100,N89,2),"") ->  | Q89: =IF(P89>0,INDEX(Poeng!$A$1:$B$100,P89,2),"") ->  | R89: 0 | S89: 0 | T89: 0 | U89: 0 | V89: 0 | W89: 0 | X89: =IF(#REF!>0,#REF!,0) ->  | Y89: 0 | Z89: 0 | AA89: 0 | AB89: 0 | AC89: 0 | AD89: 0 | AE89: 0
I90: =IF(H90>0,INDEX(Poeng!$A$1:$B$100,H90,2),"") ->  | K90: =IF(J90>0,INDEX(Poeng!$A$1:$B$100,J90,2),"") ->  | M90: =IF(L90>0,INDEX(Poeng!$A$1:$B$100,L90,2),"") ->  | O90: =IF(N90>0,INDEX(Poeng!$A$1:$B$100,N90,2),"") ->  | Q90: =IF(P90>0,INDEX(Poeng!$A$1:$B$100,P90,2),"") ->  | R90: 0 | S90: 0 | T90: 0 | U90: 0 | V90: 0 | W90: 0 | X90: =IF(#REF!>0,#REF!,0) ->  | Y90: 0 | Z90: 0 | AA90: 0 | AB90: 0 | AC90: 0 | AD90: 0 | AE90: 0
I91: =IF(H91>0,INDEX(Poeng!$A$1:$B$100,H91,2),"") ->  | K91: =IF(J91>0,INDEX(Poeng!$A$1:$B$100,J91,2),"") ->  | M91: =IF(L91>0,INDEX(Poeng!$A$1:$B$100,L91,2),"") ->  | O91: =IF(N91>0,INDEX(Poeng!$A$1:$B$100,N91,2),"") ->  | Q91: =IF(P91>0,INDEX(Poeng!$A$1:$B$100,P91,2),"") ->  | R91: 0 | S91: 0 | T91: 0 | U91: 0 | V91: 0 | W91: 0 | X91: =IF(#REF!>0,#REF!,0) ->  | Y91: 0 | Z91: 0 | AA91: 0 | AB91: 0 | AC91: 0 | AD91: 0 | AE91: 0
E92: =IF(AD92<4," ","F") ->  | I92: =IF(H92>0,INDEX(Poeng!$A$1:$B$100,H92,2),"") ->  | K92: =IF(J92>0,INDEX(Poeng!$A$1:$B$100,J92,2),"") ->  | M92: =IF(L92>0,INDEX(Poeng!$A$1:$B$100,L92,2),"") ->  | O92: =IF(N92>0,INDEX(Poeng!$A$1:$B$100,N92,2),"") ->  | Q92: =IF(P92>0,INDEX(Poeng!$A$1:$B$100,P92,2),"") ->  | R92: 0 | S92: 0 | T92: 0 | U92: 0 | V92: 0 | W92: 0 | X92: =IF(#REF!>0,#REF!,0) ->  | Y92: 0 | Z92: 0 | AA92: 0 | AB92: 0 | AC92: 0 | AD92: 0 | AE92: 0
I93: =IF(H93>0,INDEX(Poeng!$A$1:$B$100,H93,2),"") ->  | K93: =IF(J93>0,INDEX(Poeng!$A$1:$B$100,J93,2),"") ->  | M93: =IF(L93>0,INDEX(Poeng!$A$1:$B$100,L93,2),"") ->  | O93: =IF(N93>0,INDEX(Poeng!$A$1:$B$100,N93,2),"") ->  | Q93: =IF(P93>0,INDEX(Poeng!$A$1:$B$100,P93,2),"") ->  | R93: 0 | S93: 0 | T93: 0 | U93: 0 | V93: 0 | W93: 0 | X93: =IF(#REF!>0,#REF!,0) ->  | Y93: 0 | Z93: 0 | AA93: 0 | AB93: 0 | AC93: 0 | AD93: 0 | AE93: 0
I94: =IF(H94>0,INDEX(Poeng!$A$1:$B$100,H94,2),"") ->  | K94: =IF(J94>0,INDEX(Poeng!$A$1:$B$100,J94,2),"") ->  | M94: =IF(L94>0,INDEX(Poeng!$A$1:$B$100,L94,2),"") ->  | O94: =IF(N94>0,INDEX(Poeng!$A$1:$B$100,N94,2),"") ->  | Q94: =IF(P94>0,INDEX(Poeng!$A$1:$B$100,P94,2),"") ->  | R94: 0 | S94: 0 | T94: 0 | U94: 0 | V94: 0 | W94: 0 | X94: =IF(#REF!>0,#REF!,0) ->  | Y94: 0 | Z94: 0 | AA94: 0 | AB94: 0 | AC94: 0 | AD94: 0 | AE94: 0
I95: =IF(H95>0,INDEX(Poeng!$A$1:$B$100,H95,2),"") ->  | K95: =IF(J95>0,INDEX(Poeng!$A$1:$B$100,J95,2),"") ->  | M95: =IF(L95>0,INDEX(Poeng!$A$1:$B$100,L95,2),"") ->  | O95: =IF(N95>0,INDEX(Poeng!$A$1:$B$100,N95,2),"") ->  | Q95: =IF(P95>0,INDEX(Poeng!$A$1:$B$100,P95,2),"") ->  | R95: 0 | S95: 0 | T95: 0 | U95: 0 | V95: 0 | W95: 0 | X95: =IF(#REF!>0,#REF!,0) ->  | Y95: 0 | Z95: 0 | AA95: 0 | AB95: 0 | AC95: 0 | AD95: 0 | AE95: 0
I96: =IF(H96>0,INDEX(Poeng!$A$1:$B$100,H96,2),"") ->  | K96: =IF(J96>0,INDEX(Poeng!$A$1:$B$100,J96,2),"") ->  | M96: =IF(L96>0,INDEX(Poeng!$A$1:$B$100,L96,2),"") ->  | O96: =IF(N96>0,INDEX(Poeng!$A$1:$B$100,N96,2),"") ->  | Q96: =IF(P96>0,INDEX(Poeng!$A$1:$B$100,P96,2),"") ->  | R96: 0 | S96: 0 | T96: 0 | U96: 0 | V96: 0 | W96: 0 | X96: =IF(#REF!>0,#REF!,0) ->  | Y96: 0 | Z96: 0 | AA96: 0 | AB96: 0 | AC96: 0 | AD96: 0 | AE96: 0
I97: =IF(H97>0,INDEX(Poeng!$A$1:$B$100,H97,2),"") ->  | K97: =IF(J97>0,INDEX(Poeng!$A$1:$B$100,J97,2),"") ->  | M97: =IF(L97>0,INDEX(Poeng!$A$1:$B$100,L97,2),"") ->  | O97: =IF(N97>0,INDEX(Poeng!$A$1:$B$100,N97,2),"") ->  | Q97: =IF(P97>0,INDEX(Poeng!$A$1:$B$100,P97,2),"") ->  | R97: 0 | S97: 0 | T97: 0 | U97: 0 | V97: 0 | W97: 0 | X97: =IF(#REF!>0,#REF!,0) ->  | Y97: 0 | Z97: 0 | AA97: 0 | AB97: 0 | AC97: 0 | AD97: 0 | AE97: 0
I98: =IF(H98>0,INDEX(Poeng!$A$1:$B$100,H98,2),"") ->  | K98: =IF(J98>0,INDEX(Poeng!$A$1:$B$100,J98,2),"") ->  | M98: =IF(L98>0,INDEX(Poeng!$A$1:$B$100,L98,2),"") ->  | O98: =IF(N98>0,INDEX(Poeng!$A$1:$B$100,N98,2),"") ->  | Q98: =IF(P98>0,INDEX(Poeng!$A$1:$B$100,P98,2),"") ->  | R98: 0 | S98: 0 | T98: 0 | U98: 0 | V98: 0 | W98: 0 | X98: =IF(#REF!>0,#REF!,0) ->  | Y98: 0 | Z98: 0 | AA98: 0 | AB98: 0 | AC98: 0 | AD98: 0 | AE98: 0

Sheet J15
A1: Jenter 15 | C1: Sparebank1-CUP 2021
F2: SP1- CUP 1 | H2: SP1- CUP 2 | J2: SP1- CUP 3 | L2: SP1- CUP 4 | N2: SP1- CUP 5 | P2: SP1- CUP 6 | R2: Poeng | Y2: Fire beste | AC2: Sum
A3: Nr | B3: NAVN | C3: KLUBB | D3: POENG | E3: Fullført | F3: Nr. Poeng | H3: Nr. Poeng | J3: Nr. Poeng | L3: Nr. Poeng | N3: Nr. Poeng | P3: Nr. Poeng | R3: 1 | S3: 2 | T3: 3 | U3: 4 | V3: 5 | W3: 6 | X3: 7 | Y3: 1 | Z3: 2 | AA3: 3 | AB3: 4
A4: =AF4 -> 1 | B4: Marie Wollan Benum | C4: Byåsen IL | D4: =IF(B4<>"",AC4,"") -> 400 | E4: =IF(AD4<4," ","F") -> F | G4: =IF(F4>0,INDEX(Poeng!$A$1:$B$100,F4,2),"") ->  | H4: 1 | I4: =IF(H4>0,INDEX(Poeng!$A$1:$B$100,H4,2),"") -> 100 | J4: 1 | K4: =IF(J4>0,INDEX(Poeng!$A$1:$B$100,J4,2),"") -> 100 | L4: 1 | M4: =IF(L4>0,INDEX(Poeng!$A$1:$B$100,L4,2),"") -> 100 | N4: 1 | O4: =IF(N4>0,INDEX(Poeng!$A$1:$B$100,N4,2),"") -> 100 | P4: 1 | Q4: =IF(P4>0,INDEX(Poeng!$A$1:$B$100,P4,2),"") -> 100 | R4: =IF(F4>0,G4,0) -> 0 | S4: =IF(H4>0,I4,0) -> 100 | T4: =IF(J4>0,K4,0) -> 100 | U4: =IF(L4>0,M4,0) -> 100 | V4: =IF(N4>0,O4,0) -> 100 | W4: =IF(P4>0,Q4,0) -> 100 | X4: =IF(#REF!>0,#REF!,0) ->  | Y4: =LARGE(R4:W4,1) -> 100 | Z4: =LARGE(R4:W4,2) -> 100 | AA4: =LARGE(R4:W4,3) -> 100 | AB4: =LARGE(R4:W4,4) -> 100 | AC4: =SUM(Y4:AB4) -> 400 | AD4: =COUNT(F4:Q4)/2 -> 5 | AE4: =AC4*10^8+Y4*10^6/2+Z4*10^4/2+AA4*10^2/2+AB4/2 -> 40050505050 | AF4: =IF(B4<>"",RANK(AE4,AE$4:AE$71,0),"") -> 1
A5: 2 | B5: Nora Hafsmo | C5: Byåsen IL | D5: 340 | E5: F | F5: 1 | G5: =IF(F5>0,INDEX(Poeng!$A$1:$B$100,F5,2),"") -> 100 | H5: 2 | I5: =IF(H5>0,INDEX(Poeng!$A$1:$B$100,H5,2),"") -> 80 | J5: 3 | K5: =IF(J5>0,INDEX(Poeng!$A$1:$B$100,J5,2),"") -> 60 | L5: 2 | M5: =IF(L5>0,INDEX(Poeng!$A$1:$B$100,L5,2),"") -> 80 | N5: 2 | O5: =IF(N5>0,INDEX(Poeng!$A$1:$B$100,N5,2),"") -> 80 | P5: 2 | Q5: =IF(P5>0,INDEX(Poeng!$A$1:$B$100,P5,2),"") -> 80 | R5: 100 | S5: 80 | T5: 60 | U5: 80 | V5: 80 | W5: 80 | X5: =IF(#REF!>0,#REF!,0) ->  | Y5: 100 | Z5: 80 | AA5: 80 | AB5: 80 | AC5: 340 | AD5: 6 | AE5: 34050404040 | AF5: 2
A6: 3 | B6: Agnes Vatterholm Jernberg | C6: Byaasen Skiklub | D6: 230 | E6: F | F6: 3 | G6: =IF(F6>0,INDEX(Poeng!$A$1:$B$100,F6,2),"") -> 60 | H6: 3 | I6: =IF(H6>0,INDEX(Poeng!$A$1:$B$100,H6,2),"") -> 60 | J6: 6 | K6: =IF(J6>0,INDEX(Poeng!$A$1:$B$100,J6,2),"") -> 40 | L6: 4 | M6: =IF(L6>0,INDEX(Poeng!$A$1:$B$100,L6,2),"") -> 50 | N6: 3 | O6: =IF(N6>0,INDEX(Poeng!$A$1:$B$100,N6,2),"") -> 60 | P6: 5 | Q6: =IF(P6>0,INDEX(Poeng!$A$1:$B$100,P6,2),"") -> 45 | R6: 60 | S6: 60 | T6: 40 | U6: 50 | V6: 60 | W6: 45 | X6: =IF(#REF!>0,#REF!,0) ->  | Y6: 60 | Z6: 60 | AA6: 60 | AB6: 50 | AC6: 230 | AD6: 6 | AE6: 23030303025 | AF6: 3
A7: 4 | B7: Juni Hagelid Norheim | C7: Byåsen IL | D7: 205 | E7: F | F7: 4 | G7: =IF(F7>0,INDEX(Poeng!$A$1:$B$100,F7,2),"") -> 50 | I7: =IF(H7>0,INDEX(Poeng!$A$1:$B$100,H7,2),"") ->  | J7: 4 | K7: =IF(J7>0,INDEX(Poeng!$A$1:$B$100,J7,2),"") -> 50 | M7: =IF(L7>0,INDEX(Poeng!$A$1:$B$100,L7,2),"") ->  | N7: 5 | O7: =IF(N7>0,INDEX(Poeng!$A$1:$B$100,N7,2),"") -> 45 | P7: 3 | Q7: =IF(P7>0,INDEX(Poeng!$A$1:$B$100,P7,2),"") -> 60 | R7: 50 | S7: 0 | T7: 50 | U7: 0 | V7: 45 | W7: 60 | X7: =IF(#REF!>0,#REF!,0) ->  | Y7: 60 | Z7: 50 | AA7: 50 | AB7: 45 | AC7: 205 | AD7: 4 | AE7: 2.053025252e+10 | AF7: 4
A8: 5 | B8: Kristin Petersen | C8: Heimdal Ski | D8: 181 | E8: F | F8: 7 | G8: =IF(F8>0,INDEX(Poeng!$A$1:$B$100,F8,2),"") -> 36 | H8: 4 | I8: =IF(H8>0,INDEX(Poeng!$A$1:$B$100,H8,2),"") -> 50 | J8: 8 | K8: =IF(J8>0,INDEX(Poeng!$A$1:$B$100,J8,2),"") -> 32 | L8: 5 | M8: =IF(L8>0,INDEX(Poeng!$A$1:$B$100,L8,2),"") -> 45 | N8: 4 | O8: =IF(N8>0,INDEX(Poeng!$A$1:$B$100,N8,2),"") -> 50 | P8: 7 | Q8: =IF(P8>0,INDEX(Poeng!$A$1:$B$100,P8,2),"") -> 36 | R8: 36 | S8: 50 | T8: 32 | U8: 45 | V8: 50 | W8: 36 | X8: =IF(#REF!>0,#REF!,0) ->  | Y8: 50 | Z8: 50 | AA8: 45 | AB8: 36 | AC8: 181 | AD8: 6 | AE8: 18125252268 | AF8: 5
A9: 6 | B9: Ella Fjær Skåre | C9: Strindheim IL | D9: 176 | E9: F | F9: 5 | G9: =IF(F9>0,INDEX(Poeng!$A$1:$B$100,F9,2),"") -> 45 | I9: =IF(H9>0,INDEX(Poeng!$A$1:$B$100,H9,2),"") ->  | J9: 5 | K9: =IF(J9>0,INDEX(Poeng!$A$1:$B$100,J9,2),"") -> 45 | M9: =IF(L9>0,INDEX(Poeng!$A$1:$B$100,L9,2),"") ->  | N9: 7 | O9: =IF(N9>0,INDEX(Poeng!$A$1:$B$100,N9,2),"") -> 36 | P9: 4 | Q9: =IF(P9>0,INDEX(Poeng!$A$1:$B$100,P9,2),"") -> 50 | R9: 45 | S9: 0 | T9: 45 | U9: 0 | V9: 36 | W9: 50 | X9: =IF(#REF!>0,#REF!,0) ->  | Y9: 50 | Z9: 45 | AA9: 45 | AB9: 36 | AC9: 176 | AD9: 4 | AE9: 17625227268 | AF9: 6
A10: 7 | B10: Lina Brathole Hindberg | C10: Strindheim IL | D10: 160 | F10: 2 | G10: =IF(F10>0,INDEX(Poeng!$A$1:$B$100,F10,2),"") -> 80 | I10: =IF(H10>0,INDEX(Poeng!$A$1:$B$100,H10,2),"") ->  | J10: 2 | K10: =IF(J10>0,INDEX(Poeng!$A$1:$B$100,J10,2),"") -> 80 | M10: =IF(L10>0,INDEX(Poeng!$A$1:$B$100,L10,2),"") ->  | O10: =IF(N10>0,INDEX(Poeng!$A$1:$B$100,N10,2),"") ->  | Q10: =IF(P10>0,INDEX(Poeng!$A$1:$B$100,P10,2),"") ->  | R10: 80 | S10: 0 | T10: 80 | U10: 0 | V10: 0 | W10: 0 | X10: =IF(#REF!>0,#REF!,0) ->  | Y10: 80 | Z10: 80 | AA10: 0 | AB10: 0 | AC10: 160 | AD10: 2 | AE10: 16040400000 | AF10: 7
A11: 8 | B11: Frida Vikin | C11: Rennebu IL | D11: 120 | F11: 6 | G11: =IF(F11>0,INDEX(Poeng!$A$1:$B$100,F11,2),"") -> 40 | I11: =IF(H11>0,INDEX(Poeng!$A$1:$B$100,H11,2),"") ->  | K11: =IF(J11>0,INDEX(Poeng!$A$1:$B$100,J11,2),"") ->  | L11: 6 | M11: =IF(L11>0,INDEX(Poeng!$A$1:$B$100,L11,2),"") -> 40 | O11: =IF(N11>0,INDEX(Poeng!$A$1:$B$100,N11,2),"") ->  | P11: 6 | Q11: =IF(P11>0,INDEX(Poeng!$A$1:$B$100,P11,2),"") -> 40 | R11: 40 | S11: 0 | T11: 0 | U11: 40 | V11: 0 | W11: 40 | X11: =IF(#REF!>0,#REF!,0) ->  | Y11: 40 | Z11: 40 | AA11: 40 | AB11: 0 | AC11: 120 | AD11: 3 | AE11: 12020202000 | AF11: 8
A12: 9 | B12: Hanna Aasbø | C12: Surnadal IL | D12: 109 | G12: =IF(F12>0,INDEX(Poeng!$A$1:$B$100,F12,2),"") ->  | H12: 5 | I12: =IF(H12>0,INDEX(Poeng!$A$1:$B$100,H12,2),"") -> 45 | K12: =IF(J12>0,INDEX(Poeng!$A$1:$B$100,J12,2),"") ->  | L12: 8 | M12: =IF(L12>0,INDEX(Poeng!$A$1:$B$100,L12,2),"") -> 32 | O12: =IF(N12>0,INDEX(Poeng!$A$1:$B$100,N12,2),"") ->  | P12: 8 | Q12: =IF(P12>0,INDEX(Poeng!$A$1:$B$100,P12,2),"") -> 32 | R12: 0 | S12: 45 | T12: 0 | U12: 32 | V12: 0 | W12: 32 | X12: =IF(#REF!>0,#REF!,0) ->  | Y12: 45 | Z12: 32 | AA12: 32 | AB12: 0 | AC12: 109 | AD12: 3 | AE12: 10922661600 | AF12: 9
A13: 10 | B13: Nora Vågø Kristensen | C13: Klæbu IL | D13: 105 | G13: =IF(F13>0,INDEX(Poeng!$A$1:$B$100,F13,2),"") ->  | I13: =IF(H13>0,INDEX(Poeng!$A$1:$B$100,H13,2),"") ->  | J13: 7 | K13: =IF(J13>0,INDEX(Poeng!$A$1:$B$100,J13,2),"") -> 36 | M13: =IF(L13>0,INDEX(Poeng!$A$1:$B$100,L13,2),"") ->  | N13: 6 | O13: =IF(N13>0,INDEX(Poeng!$A$1:$B$100,N13,2),"") -> 40 | P13: 9 | Q13: =IF(P13>0,INDEX(Poeng!$A$1:$B$100,P13,2),"") -> 29 | R13: 0 | S13: 0 | T13: 36 | U13: 0 | V13: 40 | W13: 29 | X13: =IF(#REF!>0,#REF!,0) ->  | Y13: 40 | Z13: 36 | AA13: 29 | AB13: 0 | AC13: 105 | AD13: 3 | AE13: 10520181450 | AF13: 10
A14: 11 | B14: Margareta Melø Gjermundnes | C14: Nidelv IL | D14: 68 | G14: =IF(F14>0,INDEX(Poeng!$A$1:$B$100,F14,2),"") ->  | I14: =IF(H14>0,INDEX(Poeng!$A$1:$B$100,H14,2),"") ->  | K14: =IF(J14>0,INDEX(Poeng!$A$1:$B$100,J14,2),"") ->  | L14: 7 | M14: =IF(L14>0,INDEX(Poeng!$A$1:$B$100,L14,2),"") -> 36 | N14: 8 | O14: =IF(N14>0,INDEX(Poeng!$A$1:$B$100,N14,2),"") -> 32 | Q14: =IF(P14>0,INDEX(Poeng!$A$1:$B$100,P14,2),"") ->  | R14: 0 | S14: 0 | T14: 0 | U14: 36 | V14: 32 | W14: 0 | X14: =IF(#REF!>0,#REF!,0) ->  | Y14: 36 | Z14: 32 | AA14: 0 | AB14: 0 | AC14: 68 | AD14: 2 | AE14: 6818160000 | AF14: 11
A15: 12 | B15: Nora Ytterhus | C15: Rennebu IL | D15: 60 | G15: =IF(F15>0,INDEX(Poeng!$A$1:$B$100,F15,2),"") ->  | I15: =IF(H15>0,INDEX(Poeng!$A$1:$B$100,H15,2),"") ->  | K15: =IF(J15>0,INDEX(Poeng!$A$1:$B$100,J15,2),"") ->  | L15: 3 | M15: =IF(L15>0,INDEX(Poeng!$A$1:$B$100,L15,2),"") -> 60 | O15: =IF(N15>0,INDEX(Poeng!$A$1:$B$100,N15,2),"") ->  | Q15: =IF(P15>0,INDEX(Poeng!$A$1:$B$100,P15,2),"") ->  | R15: 0 | S15: 0 | T15: 0 | U15: 60 | V15: 0 | W15: 0 | X15: =IF(#REF!>0,#REF!,0) ->  | Y15: 60 | Z15: 0 | AA15: 0 | AB15: 0 | AC15: 60 | AD15: 1 | AE15: 6030000000 | AF15: 12
A16: 13 | B16: Selma Sunde Rabben | C16: Strindheim IL | D16: 58 | G16: =IF(F16>0,INDEX(Poeng!$A$1:$B$100,F16,2),"") ->  | I16: =IF(H16>0,INDEX(Poeng!$A$1:$B$100,H16,2),"") ->  | J16: 9 | K16: =IF(J16>0,INDEX(Poeng!$A$1:$B$100,J16,2),"") -> 29 | M16: =IF(L16>0,INDEX(Poeng!$A$1:$B$100,L16,2),"") ->  | N16: 9 | O16: =IF(N16>0,INDEX(Poeng!$A$1:$B$100,N16,2),"") -> 29 | Q16: =IF(P16>0,INDEX(Poeng!$A$1:$B$100,P16,2),"") ->  | R16: 0 | S16: 0 | T16: 29 | U16: 0 | V16: 29 | W16: 0 | X16: =IF(#REF!>0,#REF!,0) ->  | Y16: 29 | Z16: 29 | AA16: 0 | AB16: 0 | AC16: 58 | AD16: 2 | AE16: 5814645000 | AF16: 13
A17: 14 | B17: Hanne Wekre | C17: Heimdal Ski | D17: 32 | F17: 8 | G17: =IF(F17>0,INDEX(Poeng!$A$1:$B$100,F17,2),"") -> 32 | I17: =IF(H17>0,INDEX(Poeng!$A$1:$B$100,H17,2),"") ->  | K17: =IF(J17>0,INDEX(Poeng!$A$1:$B$100,J17,2),"") ->  | M17: =IF(L17>0,INDEX(Poeng!$A$1:$B$100,L17,2),"") ->  | O17: =IF(N17>0,INDEX(Poeng!$A$1:$B$100,N17,2),"") ->  | Q17: =IF(P17>0,INDEX(Poeng!$A$1:$B$100,P17,2),"") ->  | R17: 32 | S17: 0 | T17: 0 | U17: 0 | V17: 0 | W17: 0 | X17: =IF(#REF!>0,#REF!,0) ->  | Y17: 32 | Z17: 0 | AA17: 0 | AB17: 0 | AC17: 32 | AD17: 1 | AE17: 3216000000 | AF17: 14
A18: =AF18 ->  | D18: =IF(B18<>"",AC18,"") ->  | E18: =IF(AD18<4," ","F") ->  | G18: =IF(F18>0,INDEX(Poeng!$A$1:$B$100,F18,2),"") ->  | I18: =IF(H18>0,INDEX(Poeng!$A$1:$B$100,H18,2),"") ->  | K18: =IF(J18>0,INDEX(Poeng!$A$1:$B$100,J18,2),"") ->  | M18: =IF(L18>0,INDEX(Poeng!$A$1:$B$100,L18,2),"") ->  | O18: =IF(N18>0,INDEX(Poeng!$A$1:$B$100,N18,2),"") ->  | Q18: =IF(P18>0,INDEX(Poeng!$A$1:$B$100,P18,2),"") ->  | R18: 0 | S18: 0 | T18: 0 | U18: 0 | V18: 0 | W18: 0 | X18: =IF(#REF!>0,#REF!,0) ->  | Y18: 0 | Z18: 0 | AA18: 0 | AB18: 0 | AC18: 0 | AD18: 0 | AE18: 0
G19: =IF(F19>0,INDEX(Poeng!$A$1:$B$100,F19,2),"") ->  | I19: =IF(H19>0,INDEX(Poeng!$A$1:$B$100,H19,2),"") ->  | K19: =IF(J19>0,INDEX(Poeng!$A$1:$B$100,J19,2),"") ->  | M19: =IF(L19>0,INDEX(Poeng!$A$1:$B$100,L19,2),"") ->  | O19: =IF(N19>0,INDEX(Poeng!$A$1:$B$100,N19,2),"") ->  | Q19: =IF(P19>0,INDEX(Poeng!$A$1:$B$100,P19,2),"") ->  | R19: 0 | S19: 0 | T19: 0 | U19: 0 | V19: 0 | W19: 0 | X19: =IF(#REF!>0,#REF!,0) ->  | Y19: 0 | Z19: 0 | AA19: 0 | AB19: 0 | AC19: 0 | AD19: 0 | AE19: 0
A20: =AF20 ->  | D20: =IF(B20<>"",AC20,"") ->  | E20: =IF(AD20<4," ","F") ->  | G20: =IF(F20>0,INDEX(Poeng!$A$1:$B$100,F20,2),"") ->  | I20: =IF(H20>0,INDEX(Poeng!$A$1:$B$100,H20,2),"") ->  | K20: =IF(J20>0,INDEX(Poeng!$A$1:$B$100,J20,2),"") ->  | M20: =IF(L20>0,INDEX(Poeng!$A$1:$B$100,L20,2),"") ->  | O20: =IF(N20>0,INDEX(Poeng!$A$1:$B$100,N20,2),"") ->  | Q20: =IF(P20>0,INDEX(Poeng!$A$1:$B$100,P20,2),"") ->  | R20: 0 | S20: 0 | T20: 0 | U20: 0 | V20: 0 | W20: 0 | X20: =IF(#REF!>0,#REF!,0) ->  | Y20: 0 | Z20: 0 | AA20: 0 | AB20: 0 | AC20: 0 | AD20: 0 | AE20: 0
G21: =IF(F21>0,INDEX(Poeng!$A$1:$B$100,F21,2),"") ->  | I21: =IF(H21>0,INDEX(Poeng!$A$1:$B$100,H21,2),"") ->  | K21: =IF(J21>0,INDEX(Poeng!$A$1:$B$100,J21,2),"") ->  | M21: =IF(L21>0,INDEX(Poeng!$A$1:$B$100,L21,2),"") ->  | O21: =IF(N21>0,INDEX(Poeng!$A$1:$B$100,N21,2),"") ->  | Q21: =IF(P21>0,INDEX(Poeng!$A$1:$B$100,P21,2),"") ->  | R21: 0 | S21: 0 | T21: 0 | U21: 0 | V21: 0 | W21: 0 | X21: =IF(#REF!>0,#REF!,0) ->  | Y21: 0 | Z21: 0 | AA21: 0 | AB21: 0 | AC21: 0 | AD21: 0 | AE21: 0
G22: =IF(F22>0,INDEX(Poeng!$A$1:$B$100,F22,2),"") ->  | I22: =IF(H22>0,INDEX(Poeng!$A$1:$B$100,H22,2),"") ->  | K22: =IF(J22>0,INDEX(Poeng!$A$1:$B$100,J22,2),"") ->  | M22: =IF(L22>0,INDEX(Poeng!$A$1:$B$100,L22,2),"") ->  | O22: =IF(N22>0,INDEX(Poeng!$A$1:$B$100,N22,2),"") ->  | Q22: =IF(P22>0,INDEX(Poeng!$A$1:$B$100,P22,2),"") ->  | R22: 0 | S22: 0 | T22: 0 | U22: 0 | V22: 0 | W22: 0 | X22: =IF(#REF!>0,#REF!,0) ->  | Y22: 0 | Z22: 0 | AA22: 0 | AB22: 0 | AC22: 0 | AD22: 0 | AE22: 0
G23: =IF(F23>0,INDEX(Poeng!$A$1:$B$100,F23,2),"") ->  | I23: =IF(H23>0,INDEX(Poeng!$A$1:$B$100,H23,2),"") ->  | K23: =IF(J23>0,INDEX(Poeng!$A$1:$B$100,J23,2),"") ->  | M23: =IF(L23>0,INDEX(Poeng!$A$1:$B$100,L23,2),"") ->  | O23: =IF(N23>0,INDEX(Poeng!$A$1:$B$100,N23,2),"") ->  | Q23: =IF(P23>0,INDEX(Poeng!$A$1:$B$100,P23,2),"") ->  | R23: 0 | S23: 0 | T23: 0 | U23: 0 | V23: 0 | W23: 0 | X23: =IF(#REF!>0,#REF!,0) ->  | Y23: 0 | Z23: 0 | AA23: 0 | AB23: 0 | AC23: 0 | AD23: 0 | AE23: 0
E24: =IF(AD24<4," ","F") ->  | I24: =IF(H24>0,INDEX(Poeng!$A$1:$B$100,H24,2),"") ->  | K24: =IF(J24>0,INDEX(Poeng!$A$1:$B$100,J24,2),"") ->  | M24: =IF(L24>0,INDEX(Poeng!$A$1:$B$100,L24,2),"") ->  | O24: =IF(N24>0,INDEX(Poeng!$A$1:$B$100,N24,2),"") ->  | Q24: =IF(P24>0,INDEX(Poeng!$A$1:$B$100,P24,2),"") ->  | R24: 0 | S24: 0 | T24: 0 | U24: 0 | V24: 0 | W24: 0 | X24: =IF(#REF!>0,#REF!,0) ->  | Y24: 0 | Z24: 0 | AA24: 0 | AB24: 0 | AC24: 0 | AD24: 0 | AE24: 0
G25: =IF(F25>0,INDEX(Poeng!$A$1:$B$100,F25,2),"") ->  | I25: =IF(H25>0,INDEX(Poeng!$A$1:$B$100,H25,2),"") ->  | K25: =IF(J25>0,INDEX(Poeng!$A$1:$B$100,J25,2),"") ->  | M25: =IF(L25>0,INDEX(Poeng!$A$1:$B$100,L25,2),"") ->  | O25: =IF(N25>0,INDEX(Poeng!$A$1:$B$100,N25,2),"") ->  | Q25: =IF(P25>0,INDEX(Poeng!$A$1:$B$100,P25,2),"") ->  | R25: 0 | S25: 0 | T25: 0 | U25: 0 | V25: 0 | W25: 0 | X25: =IF(#REF!>0,#REF!,0) ->  | Y25: 0 | Z25: 0 | AA25: 0 | AB25: 0 | AC25: 0 | AD25: 0 | AE25: 0
G26: =IF(F26>0,INDEX(Poeng!$A$1:$B$100,F26,2),"") ->  | I26: =IF(H26>0,INDEX(Poeng!$A$1:$B$100,H26,2),"") ->  | K26: =IF(J26>0,INDEX(Poeng!$A$1:$B$100,J26,2),"") ->  | M26: =IF(L26>0,INDEX(Poeng!$A$1:$B$100,L26,2),"") ->  | O26: =IF(N26>0,INDEX(Poeng!$A$1:$B$100,N26,2),"") ->  | R26: 0 | S26: 0 | T26: 0 | U26: 0 | V26: 0 | W26: 0 | X26: =IF(#REF!>0,#REF!,0) ->  | Y26: 0 | Z26: 0 | AA26: 0 | AB26: 0 | AC26: 0 | AD26: 0 | AE26: 0
G27: =IF(F27>0,INDEX(Poeng!$A$1:$B$100,F27,2),"") ->  | I27: =IF(H27>0,INDEX(Poeng!$A$1:$B$100,H27,2),"") ->  | K27: =IF(J27>0,INDEX(Poeng!$A$1:$B$100,J27,2),"") ->  | M27: =IF(L27>0,INDEX(Poeng!$A$1:$B$100,L27,2),"") ->  | O27: =IF(N27>0,INDEX(Poeng!$A$1:$B$100,N27,2),"") ->  | Q27: =IF(P27>0,INDEX(Poeng!$A$1:$B$100,P27,2),"") ->  | R27: 0 | S27: 0 | T27: 0 | U27: 0 | V27: 0 | W27: 0 | X27: =IF(#REF!>0,#REF!,0) ->  | Y27: 0 | Z27: 0 | AA27: 0 | AB27: 0 | AC27: 0 | AD27: 0 | AE27: 0
G28: =IF(F28>0,INDEX(Poeng!$A$1:$B$100,F28,2),"") ->  | I28: =IF(H28>0,INDEX(Poeng!$A$1:$B$100,H28,2),"") ->  | K28: =IF(J28>0,INDEX(Poeng!$A$1:$B$100,J28,2),"") ->  | M28: =IF(L28>0,INDEX(Poeng!$A$1:$B$100,L28,2),"") ->  | O28: =IF(N28>0,INDEX(Poeng!$A$1:$B$100,N28,2),"") ->  | Q28: =IF(P28>0,INDEX(Poeng!$A$1:$B$100,P28,2),"") ->  | R28: 0 | S28: 0 | T28: 0 | U28: 0 | V28: 0 | W28: 0 | X28: =IF(#REF!>0,#REF!,0) ->  | Y28: 0 | Z28: 0 | AA28: 0 | AB28: 0 | AC28: 0 | AD28: 0 | AE28: 0
G29: =IF(F29>0,INDEX(Poeng!$A$1:$B$100,F29,2),"") ->  | I29: =IF(H29>0,INDEX(Poeng!$A$1:$B$100,H29,2),"") ->  | K29: =IF(J29>0,INDEX(Poeng!$A$1:$B$100,J29,2),"") ->  | M29: =IF(L29>0,INDEX(Poeng!$A$1:$B$100,L29,2),"") ->  | O29: =IF(N29>0,INDEX(Poeng!$A$1:$B$100,N29,2),"") ->  | Q29: =IF(P29>0,INDEX(Poeng!$A$1:$B$100,P29,2),"") ->  | R29: 0 | S29: 0 | T29: 0 | U29: 0 | V29: 0 | W29: 0 | X29: =IF(#REF!>0,#REF!,0) ->  | Y29: 0 | Z29: 0 | AA29: 0 | AB29: 0 | AC29: 0 | AD29: 0 | AE29: 0
E30: =IF(AD30<4," ","F") ->  | G30: =IF(F30>0,INDEX(Poeng!$A$1:$B$100,F30,2),"") ->  | I30: =IF(H30>0,INDEX(Poeng!$A$1:$B$100,H30,2),"") ->  | K30: =IF(J30>0,INDEX(Poeng!$A$1:$B$100,J30,2),"") ->  | O30: =IF(N30>0,INDEX(Poeng!$A$1:$B$100,N30,2),"") ->  | Q30: =IF(P30>0,INDEX(Poeng!$A$1:$B$100,P30,2),"") ->  | R30: 0 | S30: 0 | T30: 0 | U30: 0 | V30: 0 | W30: 0 | X30: =IF(#REF!>0,#REF!,0) ->  | Y30: 0 | Z30: 0 | AA30: 0 | AB30: 0 | AC30: 0 | AD30: 0 | AE30: 0
A31: =AF31 ->  | E31: =IF(AD31<4," ","F") ->  | G31: =IF(F31>0,INDEX(Poeng!$A$1:$B$100,F31,2),"") ->  | I31: =IF(H31>0,INDEX(Poeng!$A$1:$B$100,H31,2),"") ->  | K31: =IF(J31>0,INDEX(Poeng!$A$1:$B$100,J31,2),"") ->  | M31: =IF(L31>0,INDEX(Poeng!$A$1:$B$100,L31,2),"") ->  | O31: =IF(N31>0,INDEX(Poeng!$A$1:$B$100,N31,2),"") ->  | Q31: =IF(P31>0,INDEX(Poeng!$A$1:$B$100,P31,2),"") ->  | R31: 0 | S31: 0 | T31: 0 | U31: 0 | V31: 0 | W31: 0 | X31: =IF(#REF!>0,#REF!,0) ->  | Y31: =LARGE(R31:W31,1) -> 0 | Z31: =LARGE(R31:W31,2) -> 0 | AA31: =LARGE(R31:W31,3) -> 0 | AB31: =LARGE(R31:W31,4) -> 0 | AC31: =SUM(Y31:AB31) -> 0 | AD31: 0 | AE31: =AC31*10^8+Y31*10^6/2+Z31*10^4/2+AA31*10^2/2+AB31/2 -> 0
G32: =IF(F32>0,INDEX(Poeng!$A$1:$B$100,F32,2),"") ->  | I32: =IF(H32>0,INDEX(Poeng!$A$1:$B$100,H32,2),"") ->  | K32: =IF(J32>0,INDEX(Poeng!$A$1:$B$100,J32,2),"") ->  | M32: =IF(L32>0,INDEX(Poeng!$A$1:$B$100,L32,2),"") ->  | O32: =IF(N32>0,INDEX(Poeng!$A$1:$B$100,N32,2),"") ->  | Q32: =IF(P32>0,INDEX(Poeng!$A$1:$B$100,P32,2),"") ->  | R32: 0 | S32: 0 | T32: 0 | U32: 0 | V32: 0 | W32: 0 | X32: =IF(#REF!>0,#REF!,0) ->  | Y32: 0 | Z32: 0 | AA32: 0 | AB32: 0 | AC32: 0 | AD32: 0 | AE32: 0
G33: =IF(F33>0,INDEX(Poeng!$A$1:$B$100,F33,2),"") ->  | I33: =IF(H33>0,INDEX(Poeng!$A$1:$B$100,H33,2),"") ->  | K33: =IF(J33>0,INDEX(Poeng!$A$1:$B$100,J33,2),"") ->  | M33: =IF(L33>0,INDEX(Poeng!$A$1:$B$100,L33,2),"") ->  | O33: =IF(N33>0,INDEX(Poeng!$A$1:$B$100,N33,2),"") ->  | Q33: =IF(P33>0,INDEX(Poeng!$A$1:$B$100,P33,2),"") ->  | R33: 0 | S33: 0 | T33: 0 | U33: 0 | V33: 0 | W33: 0 | X33: =IF(#REF!>0,#REF!,0) ->  | Y33: 0 | Z33: 0 | AA33: 0 | AB33: 0 | AC33: 0 | AD33: 0 | AE33: 0
G34: =IF(F34>0,INDEX(Poeng!$A$1:$B$100,F34,2),"") ->  | I34: =IF(H34>0,INDEX(Poeng!$A$1:$B$100,H34,2),"") ->  | K34: =IF(J34>0,INDEX(Poeng!$A$1:$B$100,J34,2),"") ->  | M34: =IF(L34>0,INDEX(Poeng!$A$1:$B$100,L34,2),"") ->  | O34: =IF(N34>0,INDEX(Poeng!$A$1:$B$100,N34,2),"") ->  | Q34: =IF(P34>0,INDEX(Poeng!$A$1:$B$100,P34,2),"") ->  | R34: 0 | S34: 0 | T34: 0 | U34: 0 | V34: 0 | W34: 0 | X34: =IF(#REF!>0,#REF!,0) ->  | Y34: 0 | Z34: 0 | AA34: 0 | AB34: 0 | AC34: 0 | AD34: 0 | AE34: 0
G35: =IF(F35>0,INDEX(Poeng!$A$1:$B$100,F35,2),"") ->  | I35: =IF(H35>0,INDEX(Poeng!$A$1:$B$100,H35,2),"") ->  | K35: =IF(J35>0,INDEX(Poeng!$A$1:$B$100,J35,2),"") ->  | M35: =IF(L35>0,INDEX(Poeng!$A$1:$B$100,L35,2),"") ->  | O35: =IF(N35>0,INDEX(Poeng!$A$1:$B$100,N35,2),"") ->  | Q35: =IF(P35>0,INDEX(Poeng!$A$1:$B$100,P35,2),"") ->  | R35: 0 | S35: 0 | T35: 0 | U35: 0 | V35: 0 | W35: 0 | X35: =IF(#REF!>0,#REF!,0) ->  | Y35: 0 | Z35: 0 | AA35: 0 | AB35: 0 | AC35: 0 | AD35: 0 | AE35: 0
D36: =IF(B36<>"",AC36,"") ->  | G36: =IF(F36>0,INDEX(Poeng!$A$1:$B$100,F36,2),"") ->  | I36: =IF(H36>0,INDEX(Poeng!$A$1:$B$100,H36,2),"") ->  | K36: =IF(J36>0,INDEX(Poeng!$A$1:$B$100,J36,2),"") ->  | M36: =IF(L36>0,INDEX(Poeng!$A$1:$B$100,L36,2),"") ->  | O36: =IF(N36>0,INDEX(Poeng!$A$1:$B$100,N36,2),"") ->  | Q36: =IF(P36>0,INDEX(Poeng!$A$1:$B$100,P36,2),"") ->  | R36: =IF(F36>0,G36,0) -> 0 | S36: =IF(H36>0,I36,0) -> 0 | T36: =IF(J36>0,K36,0) -> 0 | U36: =IF(L36>0,M36,0) -> 0 | V36: =IF(N36>0,O36,0) -> 0 | W36: =IF(P36>0,Q36,0) -> 0 | X36: =IF(#REF!>0,#REF!,0) ->  | Y36: 0 | Z36: 0 | AA36: 0 | AB36: 0 | AC36: 0 | AD36: =COUNT(F36:Q36)/2 -> 0 | AE36: 0 | AF36: =IF(B36<>"",RANK(AE36,AE$4:AE$71,0),"") -> 
G37: =IF(F37>0,INDEX(Poeng!$A$1:$B$100,F37,2),"") ->  | I37: =IF(H37>0,INDEX(Poeng!$A$1:$B$100,H37,2),"") ->  | K37: =IF(J37>0,INDEX(Poeng!$A$1:$B$100,J37,2),"") ->  | M37: =IF(L37>0,INDEX(Poeng!$A$1:$B$100,L37,2),"") ->  | O37: =IF(N37>0,INDEX(Poeng!$A$1:$B$100,N37,2),"") ->  | Q37: =IF(P37>0,INDEX(Poeng!$A$1:$B$100,P37,2),"") ->  | R37: 0 | S37: 0 | T37: 0 | U37: 0 | V37: 0 | W37: 0 | X37: =IF(#REF!>0,#REF!,0) ->  | Y37: 0 | Z37: 0 | AA37: 0 | AB37: 0 | AC37: 0 | AD37: 0 | AE37: 0
G38: =IF(F38>0,INDEX(Poeng!$A$1:$B$100,F38,2),"") ->  | I38: =IF(H38>0,INDEX(Poeng!$A$1:$B$100,H38,2),"") ->  | K38: =IF(J38>0,INDEX(Poeng!$A$1:$B$100,J38,2),"") ->  | M38: =IF(L38>0,INDEX(Poeng!$A$1:$B$100,L38,2),"") ->  | O38: =IF(N38>0,INDEX(Poeng!$A$1:$B$100,N38,2),"") ->  | Q38: =IF(P38>0,INDEX(Poeng!$A$1:$B$100,P38,2),"") ->  | R38: 0 | S38: 0 | T38: 0 | U38: 0 | V38: 0 | W38: 0 | X38: =IF(#REF!>0,#REF!,0) ->  | Y38: 0 | Z38: 0 | AA38: 0 | AB38: 0 | AC38: 0 | AD38: 0 | AE38: 0
G39: =IF(F39>0,INDEX(Poeng!$A$1:$B$100,F39,2),"") ->  | I39: =IF(H39>0,INDEX(Poeng!$A$1:$B$100,H39,2),"") ->  | K39: =IF(J39>0,INDEX(Poeng!$A$1:$B$100,J39,2),"") ->  | M39: =IF(L39>0,INDEX(Poeng!$A$1:$B$100,L39,2),"") ->  | O39: =IF(N39>0,INDEX(Poeng!$A$1:$B$100,N39,2),"") ->  | Q39: =IF(P39>0,INDEX(Poeng!$A$1:$B$100,P39,2),"") ->  | R39: 0 | S39: 0 | T39: 0 | U39: 0 | V39: 0 | W39: 0 | X39: =IF(#REF!>0,#REF!,0) ->  | Y39: 0 | Z39: 0 | AA39: 0 | AB39: 0 | AC39: 0 | AD39: 0 | AE39: 0
G40: =IF(F40>0,INDEX(Poeng!$A$1:$B$100,F40,2),"") ->  | I40: =IF(H40>0,INDEX(Poeng!$A$1:$B$100,H40,2),"") ->  | K40: =IF(J40>0,INDEX(Poeng!$A$1:$B$100,J40,2),"") ->  | M40: =IF(L40>0,INDEX(Poeng!$A$1:$B$100,L40,2),"") ->  | O40: =IF(N40>0,INDEX(Poeng!$A$1:$B$100,N40,2),"") ->  | Q40: =IF(P40>0,INDEX(Poeng!$A$1:$B$100,P40,2),"") ->  | R40: 0 | S40: 0 | T40: 0 | U40: 0 | V40: 0 | W40: 0 | X40: =IF(#REF!>0,#REF!,0) ->  | Y40: 0 | Z40: 0 | AA40: 0 | AB40: 0 | AC40: 0 | AD40: 0 | AE40: 0
G41: =IF(F41>0,INDEX(Poeng!$A$1:$B$100,F41,2),"") ->  | I41: =IF(H41>0,INDEX(Poeng!$A$1:$B$100,H41,2),"") ->  | K41: =IF(J41>0,INDEX(Poeng!$A$1:$B$100,J41,2),"") ->  | M41: =IF(L41>0,INDEX(Poeng!$A$1:$B$100,L41,2),"") ->  | O41: =IF(N41>0,INDEX(Poeng!$A$1:$B$100,N41,2),"") ->  | Q41: =IF(P41>0,INDEX(Poeng!$A$1:$B$100,P41,2),"") ->  | R41: 0 | S41: 0 | T41: 0 | U41: 0 | V41: 0 | W41: 0 | X41: =IF(#REF!>0,#REF!,0) ->  | Y41: 0 | Z41: 0 | AA41: 0 | AB41: 0 | AC41: 0 | AD41: 0 | AE41: 0
G42: =IF(F42>0,INDEX(Poeng!$A$1:$B$100,F42,2),"") ->  | I42: =IF(H42>0,INDEX(Poeng!$A$1:$B$100,H42,2),"") ->  | K42: =IF(J42>0,INDEX(Poeng!$A$1:$B$100,J42,2),"") ->  | M42: =IF(L42>0,INDEX(Poeng!$A$1:$B$100,L42,2),"") ->  | O42: =IF(N42>0,INDEX(Poeng!$A$1:$B$100,N42,2),"") ->  | Q42: =IF(P42>0,INDEX(Poeng!$A$1:$B$100,P42,2),"") ->  | R42: 0 | S42: 0 | T42: 0 | U42: 0 | V42: 0 | W42: 0 | X42: =IF(#REF!>0,#REF!,0) ->  | Y42: 0 | Z42: 0 | AA42: 0 | AB42: 0 | AC42: 0 | AD42: 0 | AE42: 0
G43: =IF(F43>0,INDEX(Poeng!$A$1:$B$100,F43,2),"") ->  | I43: =IF(H43>0,INDEX(Poeng!$A$1:$B$100,H43,2),"") ->  | K43: =IF(J43>0,INDEX(Poeng!$A$1:$B$100,J43,2),"") ->  | M43: =IF(L43>0,INDEX(Poeng!$A$1:$B$100,L43,2),"") ->  | O43: =IF(N43>0,INDEX(Poeng!$A$1:$B$100,N43,2),"") ->  | Q43: =IF(P43>0,INDEX(Poeng!$A$1:$B$100,P43,2),"") ->  | R43: 0 | S43: 0 | T43: 0 | U43: 0 | V43: 0 | W43: 0 | X43: =IF(#REF!>0,#REF!,0) ->  | Y43: 0 | Z43: 0 | AA43: 0 | AB43: 0 | AC43: 0 | AD43: 0 | AE43: 0
G44: =IF(F44>0,INDEX(Poeng!$A$1:$B$100,F44,2),"") ->  | I44: =IF(H44>0,INDEX(Poeng!$A$1:$B$100,H44,2),"") ->  | K44: =IF(J44>0,INDEX(Poeng!$A$1:$B$100,J44,2),"") ->  | M44: =IF(L44>0,INDEX(Poeng!$A$1:$B$100,L44,2),"") ->  | O44: =IF(N44>0,INDEX(Poeng!$A$1:$B$100,N44,2),"") ->  | Q44: =IF(P44>0,INDEX(Poeng!$A$1:$B$100,P44,2),"") ->  | R44: 0 | S44: 0 | T44: 0 | U44: 0 | V44: 0 | W44: 0 | X44: =IF(#REF!>0,#REF!,0) ->  | Y44: 0 | Z44: 0 | AA44: 0 | AB44: 0 | AC44: 0 | AD44: 0 | AE44: 0
G45: =IF(F45>0,INDEX(Poeng!$A$1:$B$100,F45,2),"") ->  | I45: =IF(H45>0,INDEX(Poeng!$A$1:$B$100,H45,2),"") ->  | K45: =IF(J45>0,INDEX(Poeng!$A$1:$B$100,J45,2),"") ->  | M45: =IF(L45>0,INDEX(Poeng!$A$1:$B$100,L45,2),"") ->  | O45: =IF(N45>0,INDEX(Poeng!$A$1:$B$100,N45,2),"") ->  | Q45: =IF(P45>0,INDEX(Poeng!$A$1:$B$100,P45,2),"") ->  | R45: 0 | S45: 0 | T45: 0 | U45: 0 | V45: 0 | W45: 0 | X45: =IF(#REF!>0,#REF!,0) ->  | Y45: 0 | Z45: 0 | AA45: 0 | AB45: 0 | AC45: 0 | AD45: 0 | AE45: 0
G46: =IF(F46>0,INDEX(Poeng!$A$1:$B$100,F46,2),"") ->  | I46: =IF(H46>0,INDEX(Poeng!$A$1:$B$100,H46,2),"") ->  | K46: =IF(J46>0,INDEX(Poeng!$A$1:$B$100,J46,2),"") ->  | M46: =IF(L46>0,INDEX(Poeng!$A$1:$B$100,L46,2),"") ->  | O46: =IF(N46>0,INDEX(Poeng!$A$1:$B$100,N46,2),"") ->  | Q46: =IF(P46>0,INDEX(Poeng!$A$1:$B$100,P46,2),"") ->  | R46: 0 | S46: 0 | T46: 0 | U46: 0 | V46: 0 | W46: 0 | X46: =IF(#REF!>0,#REF!,0) ->  | Y46: 0 | Z46: 0 | AA46: 0 | AB46: 0 | AC46: 0 | AD46: 0 | AE46: 0
I47: =IF(H47>0,INDEX(Poeng!$A$1:$B$100,H47,2),"") ->  | K47: =IF(J47>0,INDEX(Poeng!$A$1:$B$100,J47,2),"") ->  | M47: =IF(L47>0,INDEX(Poeng!$A$1:$B$100,L47,2),"") ->  | O47: =IF(N47>0,INDEX(Poeng!$A$1:$B$100,N47,2),"") ->  | Q47: =IF(P47>0,INDEX(Poeng!$A$1:$B$100,P47,2),"") ->  | R47: 0 | S47: 0 | T47: 0 | U47: 0 | V47: 0 | W47: 0 | X47: =IF(#REF!>0,#REF!,0) ->  | Y47: 0 | Z47: 0 | AA47: 0 | AB47: 0 | AC47: 0 | AD47: 0 | AE47: 0
I48: =IF(H48>0,INDEX(Poeng!$A$1:$B$100,H48,2),"") ->  | K48: =IF(J48>0,INDEX(Poeng!$A$1:$B$100,J48,2),"") ->  | M48: =IF(L48>0,INDEX(Poeng!$A$1:$B$100,L48,2),"") ->  | O48: =IF(N48>0,INDEX(Poeng!$A$1:$B$100,N48,2),"") ->  | Q48: =IF(P48>0,INDEX(Poeng!$A$1:$B$100,P48,2),"") ->  | R48: 0 | S48: 0 | T48: 0 | U48: 0 | V48: 0 | W48: 0 | X48: =IF(#REF!>0,#REF!,0) ->  | Y48: 0 | Z48: 0 | AA48: 0 | AB48: 0 | AC48: 0 | AD48: 0 | AE48: 0
I49: =IF(H49>0,INDEX(Poeng!$A$1:$B$100,H49,2),"") ->  | K49: =IF(J49>0,INDEX(Poeng!$A$1:$B$100,J49,2),"") ->  | M49: =IF(L49>0,INDEX(Poeng!$A$1:$B$100,L49,2),"") ->  | O49: =IF(N49>0,INDEX(Poeng!$A$1:$B$100,N49,2),"") ->  | Q49: =IF(P49>0,INDEX(Poeng!$A$1:$B$100,P49,2),"") ->  | R49: 0 | S49: 0 | T49: 0 | U49: 0 | V49: 0 | W49: 0 | X49: =IF(#REF!>0,#REF!,0) ->  | Y49: 0 | Z49: 0 | AA49: 0 | AB49: 0 | AC49: 0 | AD49: 0 | AE49: 0
I50: =IF(H50>0,INDEX(Poeng!$A$1:$B$100,H50,2),"") ->  | K50: =IF(J50>0,INDEX(Poeng!$A$1:$B$100,J50,2),"") ->  | M50: =IF(L50>0,INDEX(Poeng!$A$1:$B$100,L50,2),"") ->  | O50: =IF(N50>0,INDEX(Poeng!$A$1:$B$100,N50,2),"") ->  | Q50: =IF(P50>0,INDEX(Poeng!$A$1:$B$100,P50,2),"") ->  | R50: 0 | S50: 0 | T50: 0 | U50: 0 | V50: 0 | W50: 0 | X50: =IF(#REF!>0,#REF!,0) ->  | Y50: 0 | Z50: 0 | AA50: 0 | AB50: 0 | AC50: 0 | AD50: 0 | AE50: 0
I51: =IF(H51>0,INDEX(Poeng!$A$1:$B$100,H51,2),"") ->  | K51: =IF(J51>0,INDEX(Poeng!$A$1:$B$100,J51,2),"") ->  | M51: =IF(L51>0,INDEX(Poeng!$A$1:$B$100,L51,2),"") ->  | O51: =IF(N51>0,INDEX(Poeng!$A$1:$B$100,N51,2),"") ->  | Q51: =IF(P51>0,INDEX(Poeng!$A$1:$B$100,P51,2),"") ->  | R51: 0 | S51: 0 | T51: 0 | U51: 0 | V51: 0 | W51: 0 | X51: =IF(#REF!>0,#REF!,0) ->  | Y51: 0 | Z51: 0 | AA51: 0 | AB51: 0 | AC51: 0 | AD51: 0 | AE51: 0
I52: =IF(H52>0,INDEX(Poeng!$A$1:$B$100,H52,2),"") ->  | K52: =IF(J52>0,INDEX(Poeng!$A$1:$B$100,J52,2),"") ->  | M52: =IF(L52>0,INDEX(Poeng!$A$1:$B$100,L52,2),"") ->  | O52: =IF(N52>0,INDEX(Poeng!$A$1:$B$100,N52,2),"") ->  | Q52: =IF(P52>0,INDEX(Poeng!$A$1:$B$100,P52,2),"") ->  | R52: 0 | S52: 0 | T52: 0 | U52: 0 | V52: 0 | W52: 0 | X52: =IF(#REF!>0,#REF!,0) ->  | Y52: 0 | Z52: 0 | AA52: 0 | AB52: 0 | AC52: 0 | AD52: 0 | AE52: 0
I53: =IF(H53>0,INDEX(Poeng!$A$1:$B$100,H53,2),"") ->  | K53: =IF(J53>0,INDEX(Poeng!$A$1:$B$100,J53,2),"") ->  | M53: =IF(L53>0,INDEX(Poeng!$A$1:$B$100,L53,2),"") ->  | O53: =IF(N53>0,INDEX(Poeng!$A$1:$B$100,N53,2),"") ->  | Q53: =IF(P53>0,INDEX(Poeng!$A$1:$B$100,P53,2),"") ->  | R53: 0 | S53: 0 | T53: 0 | U53: 0 | V53: 0 | W53: 0 | X53: =IF(#REF!>0,#REF!,0) ->  | Y53: 0 | Z53: 0 | AA53: 0 | AB53: 0 | AC53: 0 | AD53: 0 | AE53: 0
I54: =IF(H54>0,INDEX(Poeng!$A$1:$B$100,H54,2),"") ->  | K54: =IF(J54>0,INDEX(Poeng!$A$1:$B$100,J54,2),"") ->  | M54: =IF(L54>0,INDEX(Poeng!$A$1:$B$100,L54,2),"") ->  | O54: =IF(N54>0,INDEX(Poeng!$A$1:$B$100,N54,2),"") ->  | Q54: =IF(P54>0,INDEX(Poeng!$A$1:$B$100,P54,2),"") ->  | R54: 0 | S54: 0 | T54: 0 | U54: 0 | V54: 0 | W54: 0 | X54: =IF(#REF!>0,#REF!,0) ->  | Y54: 0 | Z54: 0 | AA54: 0 | AB54: 0 | AC54: 0 | AD54: 0 | AE54: 0
I55: =IF(H55>0,INDEX(Poeng!$A$1:$B$100,H55,2),"") ->  | K55: =IF(J55>0,INDEX(Poeng!$A$1:$B$100,J55,2),"") ->  | M55: =IF(L55>0,INDEX(Poeng!$A$1:$B$100,L55,2),"") ->  | O55: =IF(N55>0,INDEX(Poeng!$A$1:$B$100,N55,2),"") ->  | Q55: =IF(P55>0,INDEX(Poeng!$A$1:$B$100,P55,2),"") ->  | R55: 0 | S55: 0 | T55: 0 | U55: 0 | V55: 0 | W55: 0 | X55: =IF(#REF!>0,#REF!,0) ->  | Y55: 0 | Z55: 0 | AA55: 0 | AB55: 0 | AC55: 0 | AD55: 0 | AE55: 0
I56: =IF(H56>0,INDEX(Poeng!$A$1:$B$100,H56,2),"") ->  | K56: =IF(J56>0,INDEX(Poeng!$A$1:$B$100,J56,2),"") ->  | M56: =IF(L56>0,INDEX(Poeng!$A$1:$B$100,L56,2),"") ->  | O56: =IF(N56>0,INDEX(Poeng!$A$1:$B$100,N56,2),"") ->  | Q56: =IF(P56>0,INDEX(Poeng!$A$1:$B$100,P56,2),"") ->  | R56: 0 | S56: 0 | T56: 0 | U56: 0 | V56: 0 | W56: 0 | X56: =IF(#REF!>0,#REF!,0) ->  | Y56: 0 | Z56: 0 | AA56: 0 | AB56: 0 | AC56: 0 | AD56: 0 | AE56: 0
I57: =IF(H57>0,INDEX(Poeng!$A$1:$B$100,H57,2),"") ->  | K57: =IF(J57>0,INDEX(Poeng!$A$1:$B$100,J57,2),"") ->  | M57: =IF(L57>0,INDEX(Poeng!$A$1:$B$100,L57,2),"") ->  | O57: =IF(N57>0,INDEX(Poeng!$A$1:$B$100,N57,2),"") ->  | Q57: =IF(P57>0,INDEX(Poeng!$A$1:$B$100,P57,2),"") ->  | R57: 0 | S57: 0 | T57: 0 | U57: 0 | V57: 0 | W57: 0 | X57: =IF(#REF!>0,#REF!,0) ->  | Y57: 0 | Z57: 0 | AA57: 0 | AB57: 0 | AC57: 0 | AD57: 0 | AE57: 0
I58: =IF(H58>0,INDEX(Poeng!$A$1:$B$100,H58,2),"") ->  | K58: =IF(J58>0,INDEX(Poeng!$A$1:$B$100,J58,2),"") ->  | M58: =IF(L58>0,INDEX(Poeng!$A$1:$B$100,L58,2),"") ->  | O58: =IF(N58>0,INDEX(Poeng!$A$1:$B$100,N58,2),"") ->  | Q58: =IF(P58>0,INDEX(Poeng!$A$1:$B$100,P58,2),"") ->  | R58: 0 | S58: 0 | T58: 0 | U58: 0 | V58: 0 | W58: 0 | X58: =IF(#REF!>0,#REF!,0) ->  | Y58: 0 | Z58: 0 | AA58: 0 | AB58: 0 | AC58: 0 | AD58: 0 | AE58: 0
I59: =IF(H59>0,INDEX(Poeng!$A$1:$B$100,H59,2),"") ->  | K59: =IF(J59>0,INDEX(Poeng!$A$1:$B$100,J59,2),"") ->  | M59: =IF(L59>0,INDEX(Poeng!$A$1:$B$100,L59,2),"") ->  | O59: =IF(N59>0,INDEX(Poeng!$A$1:$B$100,N59,2),"") ->  | Q59: =IF(P59>0,INDEX(Poeng!$A$1:$B$100,P59,2),"") ->  | R59: 0 | S59: 0 | T59: 0 | U59: 0 | V59: 0 | W59: 0 | X59: =IF(#REF!>0,#REF!,0) ->  | Y59: 0 | Z59: 0 | AA59: 0 | AB59: 0 | AC59: 0 | AD59: 0 | AE59: 0
I60: =IF(H60>0,INDEX(Poeng!$A$1:$B$100,H60,2),"") ->  | K60: =IF(J60>0,INDEX(Poeng!$A$1:$B$100,J60,2),"") ->  | M60: =IF(L60>0,INDEX(Poeng!$A$1:$B$100,L60,2),"") ->  | O60: =IF(N60>0,INDEX(Poeng!$A$1:$B$100,N60,2),"") ->  | Q60: =IF(P60>0,INDEX(Poeng!$A$1:$B$100,P60,2),"") ->  | R60: 0 | S60: 0 | T60: 0 | U60: 0 | V60: 0 | W60: 0 | X60: =IF(#REF!>0,#REF!,0) ->  | Y60: 0 | Z60: 0 | AA60: 0 | AB60: 0 | AC60: 0 | AD60: 0 | AE60: 0
I61: =IF(H61>0,INDEX(Poeng!$A$1:$B$100,H61,2),"") ->  | K61: =IF(J61>0,INDEX(Poeng!$A$1:$B$100,J61,2),"") ->  | M61: =IF(L61>0,INDEX(Poeng!$A$1:$B$100,L61,2),"") ->  | O61: =IF(N61>0,INDEX(Poeng!$A$1:$B$100,N61,2),"") ->  | Q61: =IF(P61>0,INDEX(Poeng!$A$1:$B$100,P61,2),"") ->  | R61: 0 | S61: 0 | T61: 0 | U61: 0 | V61: 0 | W61: 0 | X61: =IF(#REF!>0,#REF!,0) ->  | Y61: 0 | Z61: 0 | AA61: 0 | AB61: 0 | AC61: 0 | AD61: 0 | AE61: 0
I62: =IF(H62>0,INDEX(Poeng!$A$1:$B$100,H62,2),"") ->  | K62: =IF(J62>0,INDEX(Poeng!$A$1:$B$100,J62,2),"") ->  | M62: =IF(L62>0,INDEX(Poeng!$A$1:$B$100,L62,2),"") ->  | O62: =IF(N62>0,INDEX(Poeng!$A$1:$B$100,N62,2),"") ->  | Q62: =IF(P62>0,INDEX(Poeng!$A$1:$B$100,P62,2),"") ->  | R62: 0 | S62: 0 | T62: 0 | U62: 0 | V62: 0 | W62: 0 | X62: =IF(#REF!>0,#REF!,0) ->  | Y62: 0 | Z62: 0 | AA62: 0 | AB62: 0 | AC62: 0 | AD62: 0 | AE62: 0
I63: =IF(H63>0,INDEX(Poeng!$A$1:$B$100,H63,2),"") ->  | K63: =IF(J63>0,INDEX(Poeng!$A$1:$B$100,J63,2),"") ->  | M63: =IF(L63>0,INDEX(Poeng!$A$1:$B$100,L63,2),"") ->  | O63: =IF(N63>0,INDEX(Poeng!$A$1:$B$100,N63,2),"") ->  | Q63: =IF(P63>0,INDEX(Poeng!$A$1:$B$100,P63,2),"") ->  | R63: 0 | S63: 0 | T63: 0 | U63: 0 | V63: 0 | W63: 0 | X63: =IF(#REF!>0,#REF!,0) ->  | Y63: 0 | Z63: 0 | AA63: 0 | AB63: 0 | AC63: 0 | AD63: 0 | AE63: 0
I64: =IF(H64>0,INDEX(Poeng!$A$1:$B$100,H64,2),"") ->  | K64: =IF(J64>0,INDEX(Poeng!$A$1:$B$100,J64,2),"") ->  | M64: =IF(L64>0,INDEX(Poeng!$A$1:$B$100,L64,2),"") ->  | O64: =IF(N64>0,INDEX(Poeng!$A$1:$B$100,N64,2),"") ->  | Q64: =IF(P64>0,INDEX(Poeng!$A$1:$B$100,P64,2),"") ->  | R64: 0 | S64: 0 | T64: 0 | U64: 0 | V64: 0 | W64: 0 | X64: =IF(#REF!>0,#REF!,0) ->  | Y64: 0 | Z64: 0 | AA64: 0 | AB64: 0 | AC64: 0 | AD64: 0 | AE64: 0
A65: =AF65 ->  | I65: =IF(H65>0,INDEX(Poeng!$A$1:$B$100,H65,2),"") ->  | K65: =IF(J65>0,INDEX(Poeng!$A$1:$B$100,J65,2),"") ->  | M65: =IF(L65>0,INDEX(Poeng!$A$1:$B$100,L65,2),"") ->  | O65: =IF(N65>0,INDEX(Poeng!$A$1:$B$100,N65,2),"") ->  | Q65: =IF(P65>0,INDEX(Poeng!$A$1:$B$100,P65,2),"") ->  | R65: 0 | S65: 0 | T65: 0 | U65: 0 | V65: 0 | W65: 0 | X65: =IF(#REF!>0,#REF!,0) ->  | Y65: =LARGE(R65:W65,1) -> 0 | Z65: =LARGE(R65:W65,2) -> 0 | AA65: =LARGE(R65:W65,3) -> 0 | AB65: =LARGE(R65:W65,4) -> 0 | AC65: =SUM(Y65:AB65) -> 0 | AD65: 0 | AE65: =AC65*10^8+Y65*10^6/2+Z65*10^4/2+AA65*10^2/2+AB65/2 -> 0
I66: =IF(H66>0,INDEX(Poeng!$A$1:$B$100,H66,2),"") ->  | K66: =IF(J66>0,INDEX(Poeng!$A$1:$B$100,J66,2),"") ->  | M66: =IF(L66>0,INDEX(Poeng!$A$1:$B$100,L66,2),"") ->  | O66: =IF(N66>0,INDEX(Poeng!$A$1:$B$100,N66,2),"") ->  | Q66: =IF(P66>0,INDEX(Poeng!$A$1:$B$100,P66,2),"") ->  | R66: 0 | S66: 0 | T66: 0 | U66: 0 | V66: 0 | W66: 0 | X66: =IF(#REF!>0,#REF!,0) ->  | Y66: 0 | Z66: 0 | AA66: 0 | AB66: 0 | AC66: 0 | AD66: 0 | AE66: 0
I67: =IF(H67>0,INDEX(Poeng!$A$1:$B$100,H67,2),"") ->  | K67: =IF(J67>0,INDEX(Poeng!$A$1:$B$100,J67,2),"") ->  | M67: =IF(L67>0,INDEX(Poeng!$A$1:$B$100,L67,2),"") ->  | O67: =IF(N67>0,INDEX(Poeng!$A$1:$B$100,N67,2),"") ->  | Q67: =IF(P67>0,INDEX(Poeng!$A$1:$B$100,P67,2),"") ->  | R67: 0 | S67: 0 | T67: 0 | U67: 0 | V67: 0 | W67: 0 | X67: =IF(#REF!>0,#REF!,0) ->  | Y67: 0 | Z67: 0 | AA67: 0 | AB67: 0 | AC67: 0 | AD67: 0 | AE67: 0
D68: =IF(B68<>"",AC68,"") ->  | I68: =IF(H68>0,INDEX(Poeng!$A$1:$B$100,H68,2),"") ->  | K68: =IF(J68>0,INDEX(Poeng!$A$1:$B$100,J68,2),"") ->  | M68: =IF(L68>0,INDEX(Poeng!$A$1:$B$100,L68,2),"") ->  | O68: =IF(N68>0,INDEX(Poeng!$A$1:$B$100,N68,2),"") ->  | Q68: =IF(P68>0,INDEX(Poeng!$A$1:$B$100,P68,2),"") ->  | R68: =IF(F68>0,G68,0) -> 0 | S68: =IF(H68>0,I68,0) -> 0 | T68: =IF(J68>0,K68,0) -> 0 | U68: =IF(L68>0,M68,0) -> 0 | V68: =IF(N68>0,O68,0) -> 0 | W68: =IF(P68>0,Q68,0) -> 0 | X68: =IF(#REF!>0,#REF!,0) ->  | Y68: 0 | Z68: 0 | AA68: 0 | AB68: 0 | AC68: 0 | AD68: =COUNT(F68:Q68)/2 -> 0 | AE68: 0 | AF68: =IF(B68<>"",RANK(AE68,AE$4:AE$71,0),"") -> 
I69: =IF(H69>0,INDEX(Poeng!$A$1:$B$100,H69,2),"") ->  | K69: =IF(J69>0,INDEX(Poeng!$A$1:$B$100,J69,2),"") ->  | M69: =IF(L69>0,INDEX(Poeng!$A$1:$B$100,L69,2),"") ->  | O69: =IF(N69>0,INDEX(Poeng!$A$1:$B$100,N69,2),"") ->  | Q69: =IF(P69>0,INDEX(Poeng!$A$1:$B$100,P69,2),"") ->  | R69: 0 | S69: 0 | T69: 0 | U69: 0 | V69: 0 | W69: 0 | X69: =IF(#REF!>0,#REF!,0) ->  | Y69: 0 | Z69: 0 | AA69: 0 | AB69: 0 | AC69: 0 | AD69: 0 | AE69: 0
I70: =IF(H70>0,INDEX(Poeng!$A$1:$B$100,H70,2),"") ->  | K70: =IF(J70>0,INDEX(Poeng!$A$1:$B$100,J70,2),"") ->  | M70: =IF(L70>0,INDEX(Poeng!$A$1:$B$100,L70,2),"") ->  | O70: =IF(N70>0,INDEX(Poeng!$A$1:$B$100,N70,2),"") ->  | Q70: =IF(P70>0,INDEX(Poeng!$A$1:$B$100,P70,2),"") ->  | R70: 0 | S70: 0 | T70: 0 | U70: 0 | V70: 0 | W70: 0 | X70: =IF(#REF!>0,#REF!,0) ->  | Y70: 0 | Z70: 0 | AA70: 0 | AB70: 0 | AC70: 0 | AD70: 0 | AE70: 0
I71: =IF(H71>0,INDEX(Poeng!$A$1:$B$100,H71,2),"") ->  | K71: =IF(J71>0,INDEX(Poeng!$A$1:$B$100,J71,2),"") ->  | M71: =IF(L71>0,INDEX(Poeng!$A$1:$B$100,L71,2),"") ->  | O71: =IF(N71>0,INDEX(Poeng!$A$1:$B$100,N71,2),"") ->  | Q71: =IF(P71>0,INDEX(Poeng!$A$1:$B$100,P71,2),"") ->  | R71: 0 | S71: 0 | T71: 0 | U71: 0 | V71: 0 | W71: 0 | X71: =IF(#REF!>0,#REF!,0) ->  | Y71: 0 | Z71: 0 | AA71: 0 | AB71: 0 | AC71: 0 | AD71: 0 | AE71: 0
I72: =IF(H72>0,INDEX(Poeng!$A$1:$B$100,H72,2),"") ->  | K72: =IF(J72>0,INDEX(Poeng!$A$1:$B$100,J72,2),"") ->  | M72: =IF(L72>0,INDEX(Poeng!$A$1:$B$100,L72,2),"") ->  | O72: =IF(N72>0,INDEX(Poeng!$A$1:$B$100,N72,2),"") ->  | Q72: =IF(P72>0,INDEX(Poeng!$A$1:$B$100,P72,2),"") ->  | R72: 0 | S72: 0 | T72: 0 | U72: 0 | V72: 0 | W72: 0 | X72: =IF(#REF!>0,#REF!,0) ->  | Y72: 0 | Z72: 0 | AA72: 0 | AB72: 0 | AC72: 0 | AD72: 0 | AE72: 0
I73: =IF(H73>0,INDEX(Poeng!$A$1:$B$100,H73,2),"") ->  | K73: =IF(J73>0,INDEX(Poeng!$A$1:$B$100,J73,2),"") ->  | M73: =IF(L73>0,INDEX(Poeng!$A$1:$B$100,L73,2),"") ->  | O73: =IF(N73>0,INDEX(Poeng!$A$1:$B$100,N73,2),"") ->  | Q73: =IF(P73>0,INDEX(Poeng!$A$1:$B$100,P73,2),"") ->  | R73: 0 | S73: 0 | T73: 0 | U73: 0 | V73: 0 | W73: 0 | X73: =IF(#REF!>0,#REF!,0) ->  | Y73: 0 | Z73: 0 | AA73: 0 | AB73: 0 | AC73: 0 | AD73: 0 | AE73: 0
I74: =IF(H74>0,INDEX(Poeng!$A$1:$B$100,H74,2),"") ->  | K74: =IF(J74>0,INDEX(Poeng!$A$1:$B$100,J74,2),"") ->  | M74: =IF(L74>0,INDEX(Poeng!$A$1:$B$100,L74,2),"") ->  | O74: =IF(N74>0,INDEX(Poeng!$A$1:$B$100,N74,2),"") ->  | Q74: =IF(P74>0,INDEX(Poeng!$A$1:$B$100,P74,2),"") ->  | R74: 0 | S74: 0 | T74: 0 | U74: 0 | V74: 0 | W74: 0 | X74: =IF(#REF!>0,#REF!,0) ->  | Y74: 0 | Z74: 0 | AA74: 0 | AB74: 0 | AC74: 0 | AD74: 0 | AE74: 0
I75: =IF(H75>0,INDEX(Poeng!$A$1:$B$100,H75,2),"") ->  | K75: =IF(J75>0,INDEX(Poeng!$A$1:$B$100,J75,2),"") ->  | M75: =IF(L75>0,INDEX(Poeng!$A$1:$B$100,L75,2),"") ->  | O75: =IF(N75>0,INDEX(Poeng!$A$1:$B$100,N75,2),"") ->  | Q75: =IF(P75>0,INDEX(Poeng!$A$1:$B$100,P75,2),"") ->  | R75: 0 | S75: 0 | T75: 0 | U75: 0 | V75: 0 | W75: 0 | X75: =IF(#REF!>0,#REF!,0) ->  | Y75: 0 | Z75: 0 | AA75: 0 | AB75: 0 | AC75: 0 | AD75: 0 | AE75: 0
I76: =IF(H76>0,INDEX(Poeng!$A$1:$B$100,H76,2),"") ->  | K76: =IF(J76>0,INDEX(Poeng!$A$1:$B$100,J76,2),"") ->  | M76: =IF(L76>0,INDEX(Poeng!$A$1:$B$100,L76,2),"") ->  | O76: =IF(N76>0,INDEX(Poeng!$A$1:$B$100,N76,2),"") ->  | Q76: =IF(P76>0,INDEX(Poeng!$A$1:$B$100,P76,2),"") ->  | R76: 0 | S76: 0 | T76: 0 | U76: 0 | V76: 0 | W76: 0 | X76: =IF(#REF!>0,#REF!,0) ->  | Y76: 0 | Z76: 0 | AA76: 0 | AB76: 0 | AC76: 0 | AD76: 0 | AE76: 0
I77: =IF(H77>0,INDEX(Poeng!$A$1:$B$100,H77,2),"") ->  | K77: =IF(J77>0,INDEX(Poeng!$A$1:$B$100,J77,2),"") ->  | M77: =IF(L77>0,INDEX(Poeng!$A$1:$B$100,L77,2),"") ->  | O77: =IF(N77>0,INDEX(Poeng!$A$1:$B$100,N77,2),"") ->  | Q77: =IF(P77>0,INDEX(Poeng!$A$1:$B$100,P77,2),"") ->  | R77: 0 | S77: 0 | T77: 0 | U77: 0 | V77: 0 | W77: 0 | X77: =IF(#REF!>0,#REF!,0) ->  | Y77: 0 | Z77: 0 | AA77: 0 | AB77: 0 | AC77: 0 | AD77: 0 | AE77: 0
I78: =IF(H78>0,INDEX(Poeng!$A$1:$B$100,H78,2),"") ->  | K78: =IF(J78>0,INDEX(Poeng!$A$1:$B$100,J78,2),"") ->  | M78: =IF(L78>0,INDEX(Poeng!$A$1:$B$100,L78,2),"") ->  | O78: =IF(N78>0,INDEX(Poeng!$A$1:$B$100,N78,2),"") ->  | Q78: =IF(P78>0,INDEX(Poeng!$A$1:$B$100,P78,2),"") ->  | R78: 0 | S78: 0 | T78: 0 | U78: 0 | V78: 0 | W78: 0 | X78: =IF(#REF!>0,#REF!,0) ->  | Y78: 0 | Z78: 0 | AA78: 0 | AB78: 0 | AC78: 0 | AD78: 0 | AE78: 0
I79: =IF(H79>0,INDEX(Poeng!$A$1:$B$100,H79,2),"") ->  | K79: =IF(J79>0,INDEX(Poeng!$A$1:$B$100,J79,2),"") ->  | M79: =IF(L79>0,INDEX(Poeng!$A$1:$B$100,L79,2),"") ->  | O79: =IF(N79>0,INDEX(Poeng!$A$1:$B$100,N79,2),"") ->  | Q79: =IF(P79>0,INDEX(Poeng!$A$1:$B$100,P79,2),"") ->  | R79: 0 | S79: 0 | T79: 0 | U79: 0 | V79: 0 | W79: 0 | X79: =IF(#REF!>0,#REF!,0) ->  | Y79: 0 | Z79: 0 | AA79: 0 | AB79: 0 | AC79: 0 | AD79: 0 | AE79: 0
I80: =IF(H80>0,INDEX(Poeng!$A$1:$B$100,H80,2),"") ->  | K80: =IF(J80>0,INDEX(Poeng!$A$1:$B$100,J80,2),"") ->  | M80: =IF(L80>0,INDEX(Poeng!$A$1:$B$100,L80,2),"") ->  | O80: =IF(N80>0,INDEX(Poeng!$A$1:$B$100,N80,2),"") ->  | Q80: =IF(P80>0,INDEX(Poeng!$A$1:$B$100,P80,2),"") ->  | R80: 0 | S80: 0 | T80: 0 | U80: 0 | V80: 0 | W80: 0 | X80: =IF(#REF!>0,#REF!,0) ->  | Y80: 0 | Z80: 0 | AA80: 0 | AB80: 0 | AC80: 0 | AD80: 0 | AE80: 0
I81: =IF(H81>0,INDEX(Poeng!$A$1:$B$100,H81,2),"") ->  | K81: =IF(J81>0,INDEX(Poeng!$A$1:$B$100,J81,2),"") ->  | M81: =IF(L81>0,INDEX(Poeng!$A$1:$B$100,L81,2),"") ->  | O81: =IF(N81>0,INDEX(Poeng!$A$1:$B$100,N81,2),"") ->  | Q81: =IF(P81>0,INDEX(Poeng!$A$1:$B$100,P81,2),"") ->  | R81: 0 | S81: 0 | T81: 0 | U81: 0 | V81: 0 | W81: 0 | X81: =IF(#REF!>0,#REF!,0) ->  | Y81: 0 | Z81: 0 | AA81: 0 | AB81: 0 | AC81: 0 | AD81: 0 | AE81: 0
I82: =IF(H82>0,INDEX(Poeng!$A$1:$B$100,H82,2),"") ->  | K82: =IF(J82>0,INDEX(Poeng!$A$1:$B$100,J82,2),"") ->  | M82: =IF(L82>0,INDEX(Poeng!$A$1:$B$100,L82,2),"") ->  | O82: =IF(N82>0,INDEX(Poeng!$A$1:$B$100,N82,2),"") ->  | Q82: =IF(P82>0,INDEX(Poeng!$A$1:$B$100,P82,2),"") ->  | R82: 0 | S82: 0 | T82: 0 | U82: 0 | V82: 0 | W82: 0 | X82: =IF(#REF!>0,#REF!,0) ->  | Y82: 0 | Z82: 0 | AA82: 0 | AB82: 0 | AC82: 0 | AD82: 0 | AE82: 0
I83: =IF(H83>0,INDEX(Poeng!$A$1:$B$100,H83,2),"") ->  | K83: =IF(J83>0,INDEX(Poeng!$A$1:$B$100,J83,2),"") ->  | M83: =IF(L83>0,INDEX(Poeng!$A$1:$B$100,L83,2),"") ->  | O83: =IF(N83>0,INDEX(Poeng!$A$1:$B$100,N83,2),"") ->  | Q83: =IF(P83>0,INDEX(Poeng!$A$1:$B$100,P83,2),"") ->  | R83: 0 | S83: 0 | T83: 0 | U83: 0 | V83: 0 | W83: 0 | X83: =IF(#REF!>0,#REF!,0) ->  | Y83: 0 | Z83: 0 | AA83: 0 | AB83: 0 | AC83: 0 | AD83: 0 | AE83: 0
I84: =IF(H84>0,INDEX(Poeng!$A$1:$B$100,H84,2),"") ->  | K84: =IF(J84>0,INDEX(Poeng!$A$1:$B$100,J84,2),"") ->  | M84: =IF(L84>0,INDEX(Poeng!$A$1:$B$100,L84,2),"") ->  | O84: =IF(N84>0,INDEX(Poeng!$A$1:$B$100,N84,2),"") ->  | Q84: =IF(P84>0,INDEX(Poeng!$A$1:$B$100,P84,2),"") ->  | R84: 0 | S84: 0 | T84: 0 | U84: 0 | V84: 0 | W84: 0 | X84: =IF(#REF!>0,#REF!,0) ->  | Y84: 0 | Z84: 0 | AA84: 0 | AB84: 0 | AC84: 0 | AD84: 0 | AE84: 0
I85: =IF(H85>0,INDEX(Poeng!$A$1:$B$100,H85,2),"") ->  | K85: =IF(J85>0,INDEX(Poeng!$A$1:$B$100,J85,2),"") ->  | M85: =IF(L85>0,INDEX(Poeng!$A$1:$B$100,L85,2),"") ->  | O85: =IF(N85>0,INDEX(Poeng!$A$1:$B$100,N85,2),"") ->  | Q85: =IF(P85>0,INDEX(Poeng!$A$1:$B$100,P85,2),"") ->  | R85: 0 | S85: 0 | T85: 0 | U85: 0 | V85: 0 | W85: 0 | X85: =IF(#REF!>0,#REF!,0) ->  | Y85: 0 | Z85: 0 | AA85: 0 | AB85: 0 | AC85: 0 | AD85: 0 | AE85: 0
I86: =IF(H86>0,INDEX(Poeng!$A$1:$B$100,H86,2),"") ->  | K86: =IF(J86>0,INDEX(Poeng!$A$1:$B$100,J86,2),"") ->  | M86: =IF(L86>0,INDEX(Poeng!$A$1:$B$100,L86,2),"") ->  | O86: =IF(N86>0,INDEX(Poeng!$A$1:$B$100,N86,2),"") ->  | Q86: =IF(P86>0,INDEX(Poeng!$A$1:$B$100,P86,2),"") ->  | R86: 0 | S86: 0 | T86: 0 | U86: 0 | V86: 0 | W86: 0 | X86: =IF(#REF!>0,#REF!,0) ->  | Y86: 0 | Z86: 0 | AA86: 0 | AB86: 0 | AC86: 0 | AD86: 0 | AE86: 0
I87: =IF(H87>0,INDEX(Poeng!$A$1:$B$100,H87,2),"") ->  | K87: =IF(J87>0,INDEX(Poeng!$A$1:$B$100,J87,2),"") ->  | M87: =IF(L87>0,INDEX(Poeng!$A$1:$B$100,L87,2),"") ->  | O87: =IF(N87>0,INDEX(Poeng!$A$1:$B$100,N87,2),"") ->  | Q87: =IF(P87>0,INDEX(Poeng!$A$1:$B$100,P87,2),"") ->  | R87: 0 | S87: 0 | T87: 0 | U87: 0 | V87: 0 | W87: 0 | X87: =IF(#REF!>0,#REF!,0) ->  | Y87: 0 | Z87: 0 | AA87: 0 | AB87: 0 | AC87: 0 | AD87: 0 | AE87: 0
I88: =IF(H88>0,INDEX(Poeng!$A$1:$B$100,H88,2),"") ->  | K88: =IF(J88>0,INDEX(Poeng!$A$1:$B$100,J88,2),"") ->  | M88: =IF(L88>0,INDEX(Poeng!$A$1:$B$100,L88,2),"") ->  | O88: =IF(N88>0,INDEX(Poeng!$A$1:$B$100,N88,2),"") ->  | Q88: =IF(P88>0,INDEX(Poeng!$A$1:$B$100,P88,2),"") ->  | R88: 0 | S88: 0 | T88: 0 | U88: 0 | V88: 0 | W88: 0 | X88: =IF(#REF!>0,#REF!,0) ->  | Y88: 0 | Z88: 0 | AA88: 0 | AB88: 0 | AC88: 0 | AD88: 0 | AE88: 0
I89: =IF(H89>0,INDEX(Poeng!$A$1:$B$100,H89,2),"") ->  | K89: =IF(J89>0,INDEX(Poeng!$A$1:$B$100,J89,2),"") ->  | M89: =IF(L89>0,INDEX(Poeng!$A$1:$B$100,L89,2),"") ->  | O89: =IF(N89>0,INDEX(Poeng!$A$1:$B$100,N89,2),"") ->  | Q89: =IF(P89>0,INDEX(Poeng!$A$1:$B$100,P89,2),"") ->  | R89: 0 | S89: 0 | T89: 0 | U89: 0 | V89: 0 | W89: 0 | X89: =IF(#REF!>0,#REF!,0) ->  | Y89: 0 | Z89: 0 | AA89: 0 | AB89: 0 | AC89: 0 | AD89: 0 | AE89: 0
I90: =IF(H90>0,INDEX(Poeng!$A$1:$B$100,H90,2),"") ->  | K90: =IF(J90>0,INDEX(Poeng!$A$1:$B$100,J90,2),"") ->  | M90: =IF(L90>0,INDEX(Poeng!$A$1:$B$100,L90,2),"") ->  | O90: =IF(N90>0,INDEX(Poeng!$A$1:$B$100,N90,2),"") ->  | Q90: =IF(P90>0,INDEX(Poeng!$A$1:$B$100,P90,2),"") ->  | R90: 0 | S90: 0 | T90: 0 | U90: 0 | V90: 0 | W90: 0 | X90: =IF(#REF!>0,#REF!,0) ->  | Y90: 0 | Z90: 0 | AA90: 0 | AB90: 0 | AC90: 0 | AD90: 0 | AE90: 0
I91: =IF(H91>0,INDEX(Poeng!$A$1:$B$100,H91,2),"") ->  | K91: =IF(J91>0,INDEX(Poeng!$A$1:$B$100,J91,2),"") ->  | M91: =IF(L91>0,INDEX(Poeng!$A$1:$B$100,L91,2),"") ->  | O91: =IF(N91>0,INDEX(Poeng!$A$1:$B$100,N91,2),"") ->  | Q91: =IF(P91>0,INDEX(Poeng!$A$1:$B$100,P91,2),"") ->  | R91: 0 | S91: 0 | T91: 0 | U91: 0 | V91: 0 | W91: 0 | X91: =IF(#REF!>0,#REF!,0) ->  | Y91: 0 | Z91: 0 | AA91: 0 | AB91: 0 | AC91: 0 | AD91: 0 | AE91: 0
E92: =IF(AD92<4," ","F") ->  | I92: =IF(H92>0,INDEX(Poeng!$A$1:$B$100,H92,2),"") ->  | K92: =IF(J92>0,INDEX(Poeng!$A$1:$B$100,J92,2),"") ->  | M92: =IF(L92>0,INDEX(Poeng!$A$1:$B$100,L92,2),"") ->  | O92: =IF(N92>0,INDEX(Poeng!$A$1:$B$100,N92,2),"") ->  | Q92: =IF(P92>0,INDEX(Poeng!$A$1:$B$100,P92,2),"") ->  | R92: 0 | S92: 0 | T92: 0 | U92: 0 | V92: 0 | W92: 0 | X92: =IF(#REF!>0,#REF!,0) ->  | Y92: 0 | Z92: 0 | AA92: 0 | AB92: 0 | AC92: 0 | AD92: 0 | AE92: 0
E93: =IF(AD93<4," ","F") ->  | I93: =IF(H93>0,INDEX(Poeng!$A$1:$B$100,H93,2),"") ->  | K93: =IF(J93>0,INDEX(Poeng!$A$1:$B$100,J93,2),"") ->  | M93: =IF(L93>0,INDEX(Poeng!$A$1:$B$100,L93,2),"") ->  | O93: =IF(N93>0,INDEX(Poeng!$A$1:$B$100,N93,2),"") ->  | Q93: =IF(P93>0,INDEX(Poeng!$A$1:$B$100,P93,2),"") ->  | R93: 0 | S93: 0 | T93: 0 | U93: 0 | V93: 0 | W93: 0 | X93: =IF(#REF!>0,#REF!,0) ->  | Y93: 0 | Z93: 0 | AA93: 0 | AB93: 0 | AC93: 0 | AD93: 0 | AE93: 0
E94: =IF(AD94<4," ","F") ->  | I94: =IF(H94>0,INDEX(Poeng!$A$1:$B$100,H94,2),"") ->  | K94: =IF(J94>0,INDEX(Poeng!$A$1:$B$100,J94,2),"") ->  | M94: =IF(L94>0,INDEX(Poeng!$A$1:$B$100,L94,2),"") ->  | O94: =IF(N94>0,INDEX(Poeng!$A$1:$B$100,N94,2),"") ->  | Q94: =IF(P94>0,INDEX(Poeng!$A$1:$B$100,P94,2),"") ->  | R94: 0 | S94: 0 | T94: 0 | U94: 0 | V94: 0 | W94: 0 | X94: =IF(#REF!>0,#REF!,0) ->  | Y94: 0 | Z94: 0 | AA94: 0 | AB94: 0 | AC94: 0 | AD94: 0 | AE94: 0
E95: =IF(AD95<4," ","F") ->  | I95: =IF(H95>0,INDEX(Poeng!$A$1:$B$100,H95,2),"") ->  | K95: =IF(J95>0,INDEX(Poeng!$A$1:$B$100,J95,2),"") ->  | M95: =IF(L95>0,INDEX(Poeng!$A$1:$B$100,L95,2),"") ->  | O95: =IF(N95>0,INDEX(Poeng!$A$1:$B$100,N95,2),"") ->  | Q95: =IF(P95>0,INDEX(Poeng!$A$1:$B$100,P95,2),"") ->  | R95: 0 | S95: 0 | T95: 0 | U95: 0 | V95: 0 | W95: 0 | X95: =IF(#REF!>0,#REF!,0) ->  | Y95: 0 | Z95: 0 | AA95: 0 | AB95: 0 | AC95: 0 | AD95: 0 | AE95: 0
E96: =IF(AD96<4," ","F") ->  | I96: =IF(H96>0,INDEX(Poeng!$A$1:$B$100,H96,2),"") ->  | K96: =IF(J96>0,INDEX(Poeng!$A$1:$B$100,J96,2),"") ->  | M96: =IF(L96>0,INDEX(Poeng!$A$1:$B$100,L96,2),"") ->  | O96: =IF(N96>0,INDEX(Poeng!$A$1:$B$100,N96,2),"") ->  | Q96: =IF(P96>0,INDEX(Poeng!$A$1:$B$100,P96,2),"") ->  | R96: 0 | S96: 0 | T96: 0 | U96: 0 | V96: 0 | W96: 0 | X96: =IF(#REF!>0,#REF!,0) ->  | Y96: 0 | Z96: 0 | AA96: 0 | AB96: 0 | AC96: 0 | AD96: 0 | AE96: 0

Sheet J16
A1: Jenter 16 | C1: Sparebank1-CUP 2021
F2: SP1- CUP 1 | H2: SP1- CUP 2 | J2: SP1- CUP 3 | L2: SP1- CUP 4 | N2: SP1- CUP 5 | P2: SP1- CUP 6 | R2: Poeng | Y2: Fire beste | AC2: Sum
A3: Nr | B3: NAVN | C3: KLUBB | D3: POENG | E3: Fullført | F3: Nr. Poeng | H3: Nr. Poeng | J3: Nr. Poeng | L3: Nr. Poeng | N3: Nr. Poeng | P3: Nr. Poeng | R3: 1 | S3: 2 | T3: 3 | U3: 4 | V3: 5 | W3: 6 | X3: 7 | Y3: 1 | Z3: 2 | AA3: 3 | AB3: 4
A4: =AF4 -> 1 | B4: Petronella Haram | C4: Strindheim IL | D4: =IF(B4<>"",AC4,"") -> 400 | E4: =IF(AD4<4," ","F") -> F | F4: 1 | G4: =IF(F4>0,INDEX(Poeng!$A$1:$B$100,F4,2),"") -> 100 | H4: 1 | I4: =IF(H4>0,INDEX(Poeng!$A$1:$B$100,H4,2),"") -> 100 | J4: 2 | K4: =IF(J4>0,INDEX(Poeng!$A$1:$B$100,J4,2),"") -> 80 | L4: 1 | M4: =IF(L4>0,INDEX(Poeng!$A$1:$B$100,L4,2),"") -> 100 | N4: 1 | O4: =IF(N4>0,INDEX(Poeng!$A$1:$B$100,N4,2),"") -> 100 | P4: 1 | Q4: =IF(P4>0,INDEX(Poeng!$A$1:$B$100,P4,2),"") -> 100 | R4: =IF(F4>0,G4,0) -> 100 | S4: =IF(H4>0,I4,0) -> 100 | T4: =IF(J4>0,K4,0) -> 80 | U4: =IF(L4>0,M4,0) -> 100 | V4: =IF(N4>0,O4,0) -> 100 | W4: =IF(P4>0,Q4,0) -> 100 | X4: =IF(#REF!>0,#REF!,0) ->  | Y4: =LARGE(R4:W4,1) -> 100 | Z4: =LARGE(R4:W4,2) -> 100 | AA4: =LARGE(R4:W4,3) -> 100 | AB4: =LARGE(R4:W4,4) -> 100 | AC4: =SUM(Y4:AB4) -> 400 | AD4: =COUNT(F4:Q4)/2 -> 6 | AE4: =AC4*10^8+Y4*10^6/2+Z4*10^4/2+AA4*10^2/2+AB4/2 -> 40050505050 | AF4: =IF(B4<>"",RANK(AE4,AE$4:AE$70,0),"") -> 1
A5: 2 | B5: Emma Kalvøy Bye | C5: Byåsen IL | D5: 300 | E5: F | F5: 3 | G5: =IF(F5>0,INDEX(Poeng!$A$1:$B$100,F5,2),"") -> 60 | H5: 11 | I5: =IF(H5>0,INDEX(Poeng!$A$1:$B$100,H5,2),"") -> 24 | J5: 1 | K5: =IF(J5>0,INDEX(Poeng!$A$1:$B$100,J5,2),"") -> 100 | L5: 2 | M5: =IF(L5>0,INDEX(Poeng!$A$1:$B$100,L5,2),"") -> 80 | N5: 4 | O5: =IF(N5>0,INDEX(Poeng!$A$1:$B$100,N5,2),"") -> 50 | P5: 3 | Q5: =IF(P5>0,INDEX(Poeng!$A$1:$B$100,P5,2),"") -> 60 | R5: 60 | S5: 24 | T5: 100 | U5: 80 | V5: 50 | W5: 60 | X5: =IF(#REF!>0,#REF!,0) ->  | Y5: 100 | Z5: 80 | AA5: 60 | AB5: 60 | AC5: 300 | AD5: 6 | AE5: 30050403030 | AF5: 2
A6: 3 | B6: Una Arnesen Kittelsen | C6: Byaasen Skiklub | D6: 260 | E6: F | G6: =IF(F6>0,INDEX(Poeng!$A$1:$B$100,F6,2),"") ->  | H6: 3 | I6: =IF(H6>0,INDEX(Poeng!$A$1:$B$100,H6,2),"") -> 60 | J6: 3 | K6: =IF(J6>0,INDEX(Poeng!$A$1:$B$100,J6,2),"") -> 60 | L6: 3 | M6: =IF(L6>0,INDEX(Poeng!$A$1:$B$100,L6,2),"") -> 60 | N6: 3 | O6: =IF(N6>0,INDEX(Poeng!$A$1:$B$100,N6,2),"") -> 60 | P6: 2 | Q6: =IF(P6>0,INDEX(Poeng!$A$1:$B$100,P6,2),"") -> 80 | R6: 0 | S6: 60 | T6: 60 | U6: 60 | V6: 60 | W6: 80 | X6: =IF(#REF!>0,#REF!,0) ->  | Y6: 80 | Z6: 60 | AA6: 60 | AB6: 60 | AC6: 260 | AD6: 5 | AE6: 26040303030 | AF6: 3
A7: 4 | B7: Kristine Aune Aakerli | C7: Heimdal Ski | D7: 255 | E7: F | F7: 2 | G7: =IF(F7>0,INDEX(Poeng!$A$1:$B$100,F7,2),"") -> 80 | H7: 2 | I7: =IF(H7>0,INDEX(Poeng!$A$1:$B$100,H7,2),"") -> 80 | J7: 12 | K7: =IF(J7>0,INDEX(Poeng!$A$1:$B$100,J7,2),"") -> 22 | L7: 8 | M7: =IF(L7>0,INDEX(Poeng!$A$1:$B$100,L7,2),"") -> 32 | N7: 5 | O7: =IF(N7>0,INDEX(Poeng!$A$1:$B$100,N7,2),"") -> 45 | P7: 4 | Q7: =IF(P7>0,INDEX(Poeng!$A$1:$B$100,P7,2),"") -> 50 | R7: 80 | S7: 80 | T7: 22 | U7: 32 | V7: 45 | W7: 50 | X7: =IF(#REF!>0,#REF!,0) ->  | Y7: 80 | Z7: 80 | AA7: 50 | AB7: 45 | AC7: 255 | AD7: 6 | AE7: 2.554040252e+10 | AF7: 4
A8: 5 | B8: Madelen Løvoll Vikan | C8: Byåsen IL | D8: 196 | E8: F | F8: 10 | G8: =IF(F8>0,INDEX(Poeng!$A$1:$B$100,F8,2),"") -> 26 | I8: =IF(H8>0,INDEX(Poeng!$A$1:$B$100,H8,2),"") ->  | K8: =IF(J8>0,INDEX(Poeng!$A$1:$B$100,J8,2),"") ->  | L8: 4 | M8: =IF(L8>0,INDEX(Poeng!$A$1:$B$100,L8,2),"") -> 50 | N8: 2 | O8: =IF(N8>0,INDEX(Poeng!$A$1:$B$100,N8,2),"") -> 80 | P8: 6 | Q8: =IF(P8>0,INDEX(Poeng!$A$1:$B$100,P8,2),"") -> 40 | R8: 26 | S8: 0 | T8: 0 | U8: 50 | V8: 80 | W8: 40 | X8: =IF(#REF!>0,#REF!,0) ->  | Y8: 80 | Z8: 50 | AA8: 40 | AB8: 26 | AC8: 196 | AD8: 4 | AE8: 19640252013 | AF8: 5
A9: 6 | B9: Embla Aksnes | C9: Hommelvik IL | D9: 175 | E9: F | F9: 7 | G9: =IF(F9>0,INDEX(Poeng!$A$1:$B$100,F9,2),"") -> 36 | H9: 6 | I9: =IF(H9>0,INDEX(Poeng!$A$1:$B$100,H9,2),"") -> 40 | J9: 4 | K9: =IF(J9>0,INDEX(Poeng!$A$1:$B$100,J9,2),"") -> 50 | L9: 6 | M9: =IF(L9>0,INDEX(Poeng!$A$1:$B$100,L9,2),"") -> 40 | O9: =IF(N9>0,INDEX(Poeng!$A$1:$B$100,N9,2),"") ->  | P9: 5 | Q9: =IF(P9>0,INDEX(Poeng!$A$1:$B$100,P9,2),"") -> 45 | R9: 36 | S9: 40 | T9: 50 | U9: 40 | V9: 0 | W9: 45 | X9: =IF(#REF!>0,#REF!,0) ->  | Y9: 50 | Z9: 45 | AA9: 40 | AB9: 40 | AC9: 175 | AD9: 5 | AE9: 17525227020 | AF9: 6
A10: 7 | B10: Oda Sæter | C10: Byåsen IL | D10: 149 | E10: F | F10: 9 | G10: =IF(F10>0,INDEX(Poeng!$A$1:$B$100,F10,2),"") -> 29 | H10: 7 | I10: =IF(H10>0,INDEX(Poeng!$A$1:$B$100,H10,2),"") -> 36 | J10: 5 | K10: =IF(J10>0,INDEX(Poeng!$A$1:$B$100,J10,2),"") -> 45 | L10: 11 | M10: =IF(L10>0,INDEX(Poeng!$A$1:$B$100,L10,2),"") -> 24 | N10: 7 | O10: =IF(N10>0,INDEX(Poeng!$A$1:$B$100,N10,2),"") -> 36 | P10: 8 | Q10: =IF(P10>0,INDEX(Poeng!$A$1:$B$100,P10,2),"") -> 32 | R10: 29 | S10: 36 | T10: 45 | U10: 24 | V10: 36 | W10: 32 | X10: =IF(#REF!>0,#REF!,0) ->  | Y10: 45 | Z10: 36 | AA10: 36 | AB10: 32 | AC10: 149 | AD10: 6 | AE10: 14922681816 | AF10: 7
A11: 8 | B11: Helene Gross-Benberg | C11: Byåsen IL | D11: 140 | F11: 4 | G11: =IF(F11>0,INDEX(Poeng!$A$1:$B$100,F11,2),"") -> 50 | H11: 5 | I11: =IF(H11>0,INDEX(Poeng!$A$1:$B$100,H11,2),"") -> 45 | K11: =IF(J11>0,INDEX(Poeng!$A$1:$B$100,J11,2),"") ->  | L11: 5 | M11: =IF(L11>0,INDEX(Poeng!$A$1:$B$100,L11,2),"") -> 45 | O11: =IF(N11>0,INDEX(Poeng!$A$1:$B$100,N11,2),"") ->  | Q11: =IF(P11>0,INDEX(Poeng!$A$1:$B$100,P11,2),"") ->  | R11: 50 | S11: 45 | T11: 0 | U11: 45 | V11: 0 | W11: 0 | X11: =IF(#REF!>0,#REF!,0) ->  | Y11: 50 | Z11: 45 | AA11: 45 | AB11: 0 | AC11: 140 | AD11: 3 | AE11: 14025227250 | AF11: 8
A12: 9 | B12: Alexandra Gaddass Sand | C12: Strindheim IL | D12: 138 | E12: F | F12: 11 | G12: =IF(F12>0,INDEX(Poeng!$A$1:$B$100,F12,2),"") -> 24 | H12: 9 | I12: =IF(H12>0,INDEX(Poeng!$A$1:$B$100,H12,2),"") -> 29 | J12: 6 | K12: =IF(J12>0,INDEX(Poeng!$A$1:$B$100,J12,2),"") -> 40 | L12: 10 | M12: =IF(L12>0,INDEX(Poeng!$A$1:$B$100,L12,2),"") -> 26 | N12: 6 | O12: =IF(N12>0,INDEX(Poeng!$A$1:$B$100,N12,2),"") -> 40 | P12: 9 | Q12: =IF(P12>0,INDEX(Poeng!$A$1:$B$100,P12,2),"") -> 29 | R12: 24 | S12: 29 | T12: 40 | U12: 26 | V12: 40 | W12: 29 | X12: =IF(#REF!>0,#REF!,0) ->  | Y12: 40 | Z12: 40 | AA12: 29 | AB12: 29 | AC12: 138 | AD12: 6 | AE12: 1.382020146e+10 | AF12: 9
A13: 10 | B13: Maria Strømdal Wik | C13: Byaasen Skiklub | D13: 126 | G13: =IF(F13>0,INDEX(Poeng!$A$1:$B$100,F13,2),"") ->  | H13: 4 | I13: =IF(H13>0,INDEX(Poeng!$A$1:$B$100,H13,2),"") -> 50 | K13: =IF(J13>0,INDEX(Poeng!$A$1:$B$100,J13,2),"") ->  | L13: 6 | M13: =IF(L13>0,INDEX(Poeng!$A$1:$B$100,L13,2),"") -> 40 | O13: =IF(N13>0,INDEX(Poeng!$A$1:$B$100,N13,2),"") ->  | P13: 7 | Q13: =IF(P13>0,INDEX(Poeng!$A$1:$B$100,P13,2),"") -> 36 | R13: 0 | S13: 50 | T13: 0 | U13: 40 | V13: 0 | W13: 36 | X13: =IF(#REF!>0,#REF!,0) ->  | Y13: 50 | Z13: 40 | AA13: 36 | AB13: 0 | AC13: 126 | AD13: 3 | AE13: 12625201800 | AF13: 10
A14: 11 | B14: Lina Storler Snøfugl | C14: Byaasen Skiklub | D14: 120 | E14: F | F14: 8 | G14: =IF(F14>0,INDEX(Poeng!$A$1:$B$100,F14,2),"") -> 32 | H14: 10 | I14: =IF(H14>0,INDEX(Poeng!$A$1:$B$100,H14,2),"") -> 26 | J14: 7 | K14: =IF(J14>0,INDEX(Poeng!$A$1:$B$100,J14,2),"") -> 36 | M14: =IF(L14>0,INDEX(Poeng!$A$1:$B$100,L14,2),"") ->  | O14: =IF(N14>0,INDEX(Poeng!$A$1:$B$100,N14,2),"") ->  | P14: 10 | Q14: =IF(P14>0,INDEX(Poeng!$A$1:$B$100,P14,2),"") -> 26 | R14: 32 | S14: 26 | T14: 36 | U14: 0 | V14: 0 | W14: 26 | X14: =IF(#REF!>0,#REF!,0) ->  | Y14: 36 | Z14: 32 | AA14: 26 | AB14: 26 | AC14: 120 | AD14: 4 | AE14: 12018161313 | AF14: 11
A15: 12 | B15: Sigrid Haugskott | C15: Buvik IL | D15: 117 | E15: F | G15: =IF(F15>0,INDEX(Poeng!$A$1:$B$100,F15,2),"") ->  | H15: 8 | I15: =IF(H15>0,INDEX(Poeng!$A$1:$B$100,H15,2),"") -> 32 | J15: 8 | K15: =IF(J15>0,INDEX(Poeng!$A$1:$B$100,J15,2),"") -> 32 | L15: 9 | M15: =IF(L15>0,INDEX(Poeng!$A$1:$B$100,L15,2),"") -> 29 | O15: =IF(N15>0,INDEX(Poeng!$A$1:$B$100,N15,2),"") ->  | P15: 11 | Q15: =IF(P15>0,INDEX(Poeng!$A$1:$B$100,P15,2),"") -> 24 | R15: 0 | S15: 32 | T15: 32 | U15: 29 | V15: 0 | W15: 24 | X15: =IF(#REF!>0,#REF!,0) ->  | Y15: 32 | Z15: 32 | AA15: 29 | AB15: 24 | AC15: 117 | AD15: 4 | AE15: 11716161462 | AF15: 12
A16: 13 | B16: Maja Kyllo | C16: Hommelvik IL | D16: 102 | E16: F | F16: 12 | G16: =IF(F16>0,INDEX(Poeng!$A$1:$B$100,F16,2),"") -> 22 | I16: =IF(H16>0,INDEX(Poeng!$A$1:$B$100,H16,2),"") ->  | J16: 10 | K16: =IF(J16>0,INDEX(Poeng!$A$1:$B$100,J16,2),"") -> 26 | M16: =IF(L16>0,INDEX(Poeng!$A$1:$B$100,L16,2),"") ->  | N16: 8 | O16: =IF(N16>0,INDEX(Poeng!$A$1:$B$100,N16,2),"") -> 32 | P16: 12 | Q16: =IF(P16>0,INDEX(Poeng!$A$1:$B$100,P16,2),"") -> 22 | R16: 22 | S16: 0 | T16: 26 | U16: 0 | V16: 32 | W16: 22 | X16: =IF(#REF!>0,#REF!,0) ->  | Y16: 32 | Z16: 26 | AA16: 22 | AB16: 22 | AC16: 102 | AD16: 4 | AE16: 10216131111 | AF16: 13
A17: 14 | B17: Iris Waagan Øksnes | C17: Hommelvik IL | D17: 95 | E17: F | G17: =IF(F17>0,INDEX(Poeng!$A$1:$B$100,F17,2),"") ->  | H17: 12 | I17: =IF(H17>0,INDEX(Poeng!$A$1:$B$100,H17,2),"") -> 22 | J17: 11 | K17: =IF(J17>0,INDEX(Poeng!$A$1:$B$100,J17,2),"") -> 24 | L17: 13 | M17: =IF(L17>0,INDEX(Poeng!$A$1:$B$100,L17,2),"") -> 20 | N17: 9 | O17: =IF(N17>0,INDEX(Poeng!$A$1:$B$100,N17,2),"") -> 29 | P17: 15 | Q17: =IF(P17>0,INDEX(Poeng!$A$1:$B$100,P17,2),"") -> 16 | R17: 0 | S17: 22 | T17: 24 | U17: 20 | V17: 29 | W17: 16 | X17: =IF(#REF!>0,#REF!,0) ->  | Y17: 29 | Z17: 24 | AA17: 22 | AB17: 20 | AC17: 95 | AD17: 5 | AE17: 9514621110 | AF17: 14
A18: 15 | B18: Oda Elise Berg | C18: Leksvik IL | D18: 81 | F18: 5 | G18: =IF(F18>0,INDEX(Poeng!$A$1:$B$100,F18,2),"") -> 45 | I18: =IF(H18>0,INDEX(Poeng!$A$1:$B$100,H18,2),"") ->  | K18: =IF(J18>0,INDEX(Poeng!$A$1:$B$100,J18,2),"") ->  | L18: 7 | M18: =IF(L18>0,INDEX(Poeng!$A$1:$B$100,L18,2),"") -> 36 | O18: =IF(N18>0,INDEX(Poeng!$A$1:$B$100,N18,2),"") ->  | Q18: =IF(P18>0,INDEX(Poeng!$A$1:$B$100,P18,2),"") ->  | R18: 45 | S18: 0 | T18: 0 | U18: 36 | V18: 0 | W18: 0 | X18: =IF(#REF!>0,#REF!,0) ->  | Y18: 45 | Z18: 36 | AA18: 0 | AB18: 0 | AC18: 81 | AD18: 2 | AE18: 8122680000 | AF18: 15
A19: 16 | B19: Ine Løseth | C19: Buvik IL | D19: 69 | G19: =IF(F19>0,INDEX(Poeng!$A$1:$B$100,F19,2),"") ->  | I19: =IF(H19>0,INDEX(Poeng!$A$1:$B$100,H19,2),"") ->  | J19: 9 | K19: =IF(J19>0,INDEX(Poeng!$A$1:$B$100,J19,2),"") -> 29 | L19: 12 | M19: =IF(L19>0,INDEX(Poeng!$A$1:$B$100,L19,2),"") -> 22 | O19: =IF(N19>0,INDEX(Poeng!$A$1:$B$100,N19,2),"") ->  | P19: 14 | Q19: =IF(P19>0,INDEX(Poeng!$A$1:$B$100,P19,2),"") -> 18 | R19: =IF(F19>0,G19,0) -> 0 | S19: =IF(H19>0,I19,0) -> 0 | T19: =IF(J19>0,K19,0) -> 29 | U19: =IF(L19>0,M19,0) -> 22 | V19: =IF(N19>0,O19,0) -> 0 | W19: =IF(P19>0,Q19,0) -> 18 | X19: =IF(#REF!>0,#REF!,0) ->  | Y19: =LARGE(R19:W19,1) -> 29 | Z19: =LARGE(R19:W19,2) -> 22 | AA19: =LARGE(R19:W19,3) -> 18 | AB19: =LARGE(R19:W19,4) -> 0 | AC19: =SUM(Y19:AB19) -> 69 | AD19: =COUNT(F19:Q19)/2 -> 3 | AE19: =AC19*10^8+Y19*10^6/2+Z19*10^4/2+AA19*10^2/2+AB19/2 -> 6914610900 | AF19: 16
A20: 17 | B20: Dina Berg Solli | C20: Selbu IL | D20: 46 | I20: =IF(H20>0,INDEX(Poeng!$A$1:$B$100,H20,2),"") ->  | K20: =IF(J20>0,INDEX(Poeng!$A$1:$B$100,J20,2),"") ->  | M20: =IF(L20>0,INDEX(Poeng!$A$1:$B$100,L20,2),"") ->  | N20: 10 | O20: =IF(N20>0,INDEX(Poeng!$A$1:$B$100,N20,2),"") -> 26 | P20: 13 | Q20: =IF(P20>0,INDEX(Poeng!$A$1:$B$100,P20,2),"") -> 20 | R20: 0 | S20: 0 | T20: 0 | U20: 0 | V20: 26 | W20: 20 | X20: =IF(#REF!>0,#REF!,0) ->  | Y20: 26 | Z20: 20 | AA20: 0 | AB20: 0 | AC20: 46 | AD20: 2 | AE20: 4613100000 | AF20: 17
A21: 18 | B21: Lisa Sagen | C21: Byåsen IL | D21: 40 | F21: 6 | G21: =IF(F21>0,INDEX(Poeng!$A$1:$B$100,F21,2),"") -> 40 | I21: =IF(H21>0,INDEX(Poeng!$A$1:$B$100,H21,2),"") ->  | K21: =IF(J21>0,INDEX(Poeng!$A$1:$B$100,J21,2),"") ->  | M21: =IF(L21>0,INDEX(Poeng!$A$1:$B$100,L21,2),"") ->  | O21: =IF(N21>0,INDEX(Poeng!$A$1:$B$100,N21,2),"") ->  | Q21: =IF(P21>0,INDEX(Poeng!$A$1:$B$100,P21,2),"") ->  | R21: =IF(F21>0,G21,0) -> 40 | S21: =IF(H21>0,I21,0) -> 0 | T21: =IF(J21>0,K21,0) -> 0 | U21: =IF(L21>0,M21,0) -> 0 | V21: =IF(N21>0,O21,0) -> 0 | W21: =IF(P21>0,Q21,0) -> 0 | X21: =IF(#REF!>0,#REF!,0) ->  | Y21: =LARGE(R21:W21,1) -> 40 | Z21: =LARGE(R21:W21,2) -> 0 | AA21: =LARGE(R21:W21,3) -> 0 | AB21: =LARGE(R21:W21,4) -> 0 | AC21: =SUM(Y21:AB21) -> 40 | AD21: =COUNT(F21:Q21)/2 -> 1 | AE21: =AC21*10^8+Y21*10^6/2+Z21*10^4/2+AA21*10^2/2+AB21/2 -> 4020000000 | AF21: =IF(B21<>"",RANK(AE21,AE$4:AE$70,0),"") -> 18
A22: =AF22 ->  | D22: =IF(B22<>"",AC22,"") ->  | E22: =IF(AD22<4," ","F") ->  | G22: =IF(F22>0,INDEX(Poeng!$A$1:$B$100,F22,2),"") ->  | I22: =IF(H22>0,INDEX(Poeng!$A$1:$B$100,H22,2),"") ->  | K22: =IF(J22>0,INDEX(Poeng!$A$1:$B$100,J22,2),"") ->  | M22: =IF(L22>0,INDEX(Poeng!$A$1:$B$100,L22,2),"") ->  | O22: =IF(N22>0,INDEX(Poeng!$A$1:$B$100,N22,2),"") ->  | Q22: =IF(P22>0,INDEX(Poeng!$A$1:$B$100,P22,2),"") ->  | R22: 0 | S22: 0 | T22: 0 | U22: 0 | V22: 0 | W22: 0 | X22: =IF(#REF!>0,#REF!,0) ->  | Y22: 0 | Z22: 0 | AA22: 0 | AB22: 0 | AC22: 0 | AD22: 0 | AE22: 0
G23: =IF(F23>0,INDEX(Poeng!$A$1:$B$100,F23,2),"") ->  | I23: =IF(H23>0,INDEX(Poeng!$A$1:$B$100,H23,2),"") ->  | K23: =IF(J23>0,INDEX(Poeng!$A$1:$B$100,J23,2),"") ->  | M23: =IF(L23>0,INDEX(Poeng!$A$1:$B$100,L23,2),"") ->  | O23: =IF(N23>0,INDEX(Poeng!$A$1:$B$100,N23,2),"") ->  | Q23: =IF(P23>0,INDEX(Poeng!$A$1:$B$100,P23,2),"") ->  | R23: 0 | S23: 0 | T23: 0 | U23: 0 | V23: 0 | W23: 0 | X23: =IF(#REF!>0,#REF!,0) ->  | Y23: 0 | Z23: 0 | AA23: 0 | AB23: 0 | AC23: 0 | AD23: 0 | AE23: 0
G24: =IF(F24>0,INDEX(Poeng!$A$1:$B$100,F24,2),"") ->  | I24: =IF(H24>0,INDEX(Poeng!$A$1:$B$100,H24,2),"") ->  | K24: =IF(J24>0,INDEX(Poeng!$A$1:$B$100,J24,2),"") ->  | M24: =IF(L24>0,INDEX(Poeng!$A$1:$B$100,L24,2),"") ->  | O24: =IF(N24>0,INDEX(Poeng!$A$1:$B$100,N24,2),"") ->  | Q24: =IF(P24>0,INDEX(Poeng!$A$1:$B$100,P24,2),"") ->  | R24: 0 | S24: 0 | T24: 0 | U24: 0 | V24: 0 | W24: 0 | X24: =IF(#REF!>0,#REF!,0) ->  | Y24: 0 | Z24: 0 | AA24: 0 | AB24: 0 | AC24: 0 | AD24: 0 | AE24: 0
G25: =IF(F25>0,INDEX(Poeng!$A$1:$B$100,F25,2),"") ->  | I25: =IF(H25>0,INDEX(Poeng!$A$1:$B$100,H25,2),"") ->  | K25: =IF(J25>0,INDEX(Poeng!$A$1:$B$100,J25,2),"") ->  | M25: =IF(L25>0,INDEX(Poeng!$A$1:$B$100,L25,2),"") ->  | O25: =IF(N25>0,INDEX(Poeng!$A$1:$B$100,N25,2),"") ->  | Q25: =IF(P25>0,INDEX(Poeng!$A$1:$B$100,P25,2),"") ->  | R25: 0 | S25: 0 | T25: 0 | U25: 0 | V25: 0 | W25: 0 | X25: =IF(#REF!>0,#REF!,0) ->  | Y25: 0 | Z25: 0 | AA25: 0 | AB25: 0 | AC25: 0 | AD25: 0 | AE25: 0
O26: =IF(N26>0,INDEX(Poeng!$A$1:$B$100,N26,2),"") ->  | Q26: =IF(P26>0,INDEX(Poeng!$A$1:$B$100,P26,2),"") ->  | R26: 0 | S26: 0 | T26: 0 | U26: 0 | V26: 0 | W26: 0 | X26: =IF(#REF!>0,#REF!,0) ->  | Y26: 0 | Z26: 0 | AA26: 0 | AB26: 0 | AC26: 0 | AD26: 0 | AE26: 0
E27: =IF(AD27<4," ","F") ->  | G27: =IF(F27>0,INDEX(Poeng!$A$1:$B$100,F27,2),"") ->  | I27: =IF(H27>0,INDEX(Poeng!$A$1:$B$100,H27,2),"") ->  | K27: =IF(J27>0,INDEX(Poeng!$A$1:$B$100,J27,2),"") ->  | M27: =IF(L27>0,INDEX(Poeng!$A$1:$B$100,L27,2),"") ->  | O27: =IF(N27>0,INDEX(Poeng!$A$1:$B$100,N27,2),"") ->  | Q27: =IF(P27>0,INDEX(Poeng!$A$1:$B$100,P27,2),"") ->  | R27: 0 | S27: 0 | T27: 0 | U27: 0 | V27: 0 | W27: 0 | X27: =IF(#REF!>0,#REF!,0) ->  | Y27: 0 | Z27: 0 | AA27: 0 | AB27: 0 | AC27: 0 | AD27: 0 | AE27: 0
G28: =IF(F28>0,INDEX(Poeng!$A$1:$B$100,F28,2),"") ->  | I28: =IF(H28>0,INDEX(Poeng!$A$1:$B$100,H28,2),"") ->  | K28: =IF(J28>0,INDEX(Poeng!$A$1:$B$100,J28,2),"") ->  | M28: =IF(L28>0,INDEX(Poeng!$A$1:$B$100,L28,2),"") ->  | O28: =IF(N28>0,INDEX(Poeng!$A$1:$B$100,N28,2),"") ->  | Q28: =IF(P28>0,INDEX(Poeng!$A$1:$B$100,P28,2),"") ->  | R28: 0 | S28: 0 | T28: 0 | U28: 0 | V28: 0 | W28: 0 | X28: =IF(#REF!>0,#REF!,0) ->  | Y28: 0 | Z28: 0 | AA28: 0 | AB28: 0 | AC28: 0 | AD28: 0 | AE28: 0
G29: =IF(F29>0,INDEX(Poeng!$A$1:$B$100,F29,2),"") ->  | I29: =IF(H29>0,INDEX(Poeng!$A$1:$B$100,H29,2),"") ->  | K29: =IF(J29>0,INDEX(Poeng!$A$1:$B$100,J29,2),"") ->  | M29: =IF(L29>0,INDEX(Poeng!$A$1:$B$100,L29,2),"") ->  | O29: =IF(N29>0,INDEX(Poeng!$A$1:$B$100,N29,2),"") ->  | R29: 0 | S29: 0 | T29: 0 | U29: 0 | V29: 0 | W29: 0 | X29: =IF(#REF!>0,#REF!,0) ->  | Y29: 0 | Z29: 0 | AA29: 0 | AB29: 0 | AC29: 0 | AD29: 0 | AE29: 0
G30: =IF(F30>0,INDEX(Poeng!$A$1:$B$100,F30,2),"") ->  | I30: =IF(H30>0,INDEX(Poeng!$A$1:$B$100,H30,2),"") ->  | K30: =IF(J30>0,INDEX(Poeng!$A$1:$B$100,J30,2),"") ->  | M30: =IF(L30>0,INDEX(Poeng!$A$1:$B$100,L30,2),"") ->  | O30: =IF(N30>0,INDEX(Poeng!$A$1:$B$100,N30,2),"") ->  | Q30: =IF(P30>0,INDEX(Poeng!$A$1:$B$100,P30,2),"") ->  | R30: 0 | S30: 0 | T30: 0 | U30: 0 | V30: 0 | W30: 0 | X30: =IF(#REF!>0,#REF!,0) ->  | Y30: 0 | Z30: 0 | AA30: 0 | AB30: 0 | AC30: 0 | AD30: 0 | AE30: 0
G31: =IF(F31>0,INDEX(Poeng!$A$1:$B$100,F31,2),"") ->  | I31: =IF(H31>0,INDEX(Poeng!$A$1:$B$100,H31,2),"") ->  | K31: =IF(J31>0,INDEX(Poeng!$A$1:$B$100,J31,2),"") ->  | M31: =IF(L31>0,INDEX(Poeng!$A$1:$B$100,L31,2),"") ->  | O31: =IF(N31>0,INDEX(Poeng!$A$1:$B$100,N31,2),"") ->  | Q31: =IF(P31>0,INDEX(Poeng!$A$1:$B$100,P31,2),"") ->  | R31: 0 | S31: 0 | T31: 0 | U31: 0 | V31: 0 | W31: 0 | X31: =IF(#REF!>0,#REF!,0) ->  | Y31: 0 | Z31: 0 | AA31: 0 | AB31: 0 | AC31: 0 | AD31: 0 | AE31: 0
G32: =IF(F32>0,INDEX(Poeng!$A$1:$B$100,F32,2),"") ->  | I32: =IF(H32>0,INDEX(Poeng!$A$1:$B$100,H32,2),"") ->  | K32: =IF(J32>0,INDEX(Poeng!$A$1:$B$100,J32,2),"") ->  | M32: =IF(L32>0,INDEX(Poeng!$A$1:$B$100,L32,2),"") ->  | O32: =IF(N32>0,INDEX(Poeng!$A$1:$B$100,N32,2),"") ->  | Q32: =IF(P32>0,INDEX(Poeng!$A$1:$B$100,P32,2),"") ->  | R32: 0 | S32: 0 | T32: 0 | U32: 0 | V32: 0 | W32: 0 | X32: =IF(#REF!>0,#REF!,0) ->  | Y32: 0 | Z32: 0 | AA32: 0 | AB32: 0 | AC32: 0 | AD32: 0 | AE32: 0
G33: =IF(F33>0,INDEX(Poeng!$A$1:$B$100,F33,2),"") ->  | I33: =IF(H33>0,INDEX(Poeng!$A$1:$B$100,H33,2),"") ->  | K33: =IF(J33>0,INDEX(Poeng!$A$1:$B$100,J33,2),"") ->  | M33: =IF(L33>0,INDEX(Poeng!$A$1:$B$100,L33,2),"") ->  | O33: =IF(N33>0,INDEX(Poeng!$A$1:$B$100,N33,2),"") ->  | Q33: =IF(P33>0,INDEX(Poeng!$A$1:$B$100,P33,2),"") ->  | R33: 0 | S33: 0 | T33: 0 | U33: 0 | V33: 0 | W33: 0 | X33: =IF(#REF!>0,#REF!,0) ->  | Y33: 0 | Z33: 0 | AA33: 0 | AB33: 0 | AC33: 0 | AD33: 0 | AE33: 0
G34: =IF(F34>0,INDEX(Poeng!$A$1:$B$100,F34,2),"") ->  | I34: =IF(H34>0,INDEX(Poeng!$A$1:$B$100,H34,2),"") ->  | K34: =IF(J34>0,INDEX(Poeng!$A$1:$B$100,J34,2),"") ->  | M34: =IF(L34>0,INDEX(Poeng!$A$1:$B$100,L34,2),"") ->  | O34: =IF(N34>0,INDEX(Poeng!$A$1:$B$100,N34,2),"") ->  | Q34: =IF(P34>0,INDEX(Poeng!$A$1:$B$100,P34,2),"") ->  | R34: 0 | S34: 0 | T34: 0 | U34: 0 | V34: 0 | W34: 0 | X34: =IF(#REF!>0,#REF!,0) ->  | Y34: 0 | Z34: 0 | AA34: 0 | AB34: 0 | AC34: 0 | AD34: 0 | AE34: 0
A35: =AF35 ->  | D35: =IF(B35<>"",AC35,"") ->  | G35: =IF(F35>0,INDEX(Poeng!$A$1:$B$100,F35,2),"") ->  | I35: =IF(H35>0,INDEX(Poeng!$A$1:$B$100,H35,2),"") ->  | K35: =IF(J35>0,INDEX(Poeng!$A$1:$B$100,J35,2),"") ->  | M35: =IF(L35>0,INDEX(Poeng!$A$1:$B$100,L35,2),"") ->  | O35: =IF(N35>0,INDEX(Poeng!$A$1:$B$100,N35,2),"") ->  | Q35: =IF(P35>0,INDEX(Poeng!$A$1:$B$100,P35,2),"") ->  | R35: =IF(F35>0,G35,0) -> 0 | S35: =IF(H35>0,I35,0) -> 0 | T35: =IF(J35>0,K35,0) -> 0 | U35: =IF(L35>0,M35,0) -> 0 | V35: =IF(N35>0,O35,0) -> 0 | W35: =IF(P35>0,Q35,0) -> 0 | X35: =IF(#REF!>0,#REF!,0) ->  | Y35: =LARGE(R35:W35,1) -> 0 | Z35: =LARGE(R35:W35,2) -> 0 | AA35: =LARGE(R35:W35,3) -> 0 | AB35: =LARGE(R35:W35,4) -> 0 | AC35: =SUM(Y35:AB35) -> 0 | AD35: =COUNT(F35:Q35)/2 -> 0 | AE35: =AC35*10^8+Y35*10^6/2+Z35*10^4/2+AA35*10^2/2+AB35/2 -> 0
G36: =IF(F36>0,INDEX(Poeng!$A$1:$B$100,F36,2),"") ->  | I36: =IF(H36>0,INDEX(Poeng!$A$1:$B$100,H36,2),"") ->  | K36: =IF(J36>0,INDEX(Poeng!$A$1:$B$100,J36,2),"") ->  | M36: =IF(L36>0,INDEX(Poeng!$A$1:$B$100,L36,2),"") ->  | O36: =IF(N36>0,INDEX(Poeng!$A$1:$B$100,N36,2),"") ->  | Q36: =IF(P36>0,INDEX(Poeng!$A$1:$B$100,P36,2),"") ->  | R36: 0 | S36: 0 | T36: 0 | U36: 0 | V36: 0 | W36: 0 | X36: =IF(#REF!>0,#REF!,0) ->  | Y36: 0 | Z36: 0 | AA36: 0 | AB36: 0 | AC36: 0 | AD36: 0 | AE36: 0 | AF36: =IF(B36<>"",RANK(AE36,AE$4:AE$70,0),"") -> 
G37: =IF(F37>0,INDEX(Poeng!$A$1:$B$100,F37,2),"") ->  | I37: =IF(H37>0,INDEX(Poeng!$A$1:$B$100,H37,2),"") ->  | K37: =IF(J37>0,INDEX(Poeng!$A$1:$B$100,J37,2),"") ->  | M37: =IF(L37>0,INDEX(Poeng!$A$1:$B$100,L37,2),"") ->  | O37: =IF(N37>0,INDEX(Poeng!$A$1:$B$100,N37,2),"") ->  | Q37: =IF(P37>0,INDEX(Poeng!$A$1:$B$100,P37,2),"") ->  | R37: 0 | S37: 0 | T37: 0 | U37: 0 | V37: 0 | W37: 0 | X37: =IF(#REF!>0,#REF!,0) ->  | Y37: 0 | Z37: 0 | AA37: 0 | AB37: 0 | AC37: 0 | AD37: 0 | AE37: 0
G38: =IF(F38>0,INDEX(Poeng!$A$1:$B$100,F38,2),"") ->  | I38: =IF(H38>0,INDEX(Poeng!$A$1:$B$100,H38,2),"") ->  | K38: =IF(J38>0,INDEX(Poeng!$A$1:$B$100,J38,2),"") ->  | M38: =IF(L38>0,INDEX(Poeng!$A$1:$B$100,L38,2),"") ->  | O38: =IF(N38>0,INDEX(Poeng!$A$1:$B$100,N38,2),"") ->  | Q38: =IF(P38>0,INDEX(Poeng!$A$1:$B$100,P38,2),"") ->  | R38: 0 | S38: 0 | T38: 0 | U38: 0 | V38: 0 | W38: 0 | X38: =IF(#REF!>0,#REF!,0) ->  | Y38: 0 | Z38: 0 | AA38: 0 | AB38: 0 | AC38: 0 | AD38: 0 | AE38: 0
G39: =IF(F39>0,INDEX(Poeng!$A$1:$B$100,F39,2),"") ->  | I39: =IF(H39>0,INDEX(Poeng!$A$1:$B$100,H39,2),"") ->  | K39: =IF(J39>0,INDEX(Poeng!$A$1:$B$100,J39,2),"") ->  | M39: =IF(L39>0,INDEX(Poeng!$A$1:$B$100,L39,2),"") ->  | O39: =IF(N39>0,INDEX(Poeng!$A$1:$B$100,N39,2),"") ->  | Q39: =IF(P39>0,INDEX(Poeng!$A$1:$B$100,P39,2),"") ->  | R39: 0 | S39: 0 | T39: 0 | U39: 0 | V39: 0 | W39: 0 | X39: =IF(#REF!>0,#REF!,0) ->  | Y39: 0 | Z39: 0 | AA39: 0 | AB39: 0 | AC39: 0 | AD39: 0 | AE39: 0
G40: =IF(F40>0,INDEX(Poeng!$A$1:$B$100,F40,2),"") ->  | I40: =IF(H40>0,INDEX(Poeng!$A$1:$B$100,H40,2),"") ->  | K40: =IF(J40>0,INDEX(Poeng!$A$1:$B$100,J40,2),"") ->  | M40: =IF(L40>0,INDEX(Poeng!$A$1:$B$100,L40,2),"") ->  | O40: =IF(N40>0,INDEX(Poeng!$A$1:$B$100,N40,2),"") ->  | Q40: =IF(P40>0,INDEX(Poeng!$A$1:$B$100,P40,2),"") ->  | R40: 0 | S40: 0 | T40: 0 | U40: 0 | V40: 0 | W40: 0 | X40: =IF(#REF!>0,#REF!,0) ->  | Y40: 0 | Z40: 0 | AA40: 0 | AB40: 0 | AC40: 0 | AD40: 0 | AE40: 0
G41: =IF(F41>0,INDEX(Poeng!$A$1:$B$100,F41,2),"") ->  | I41: =IF(H41>0,INDEX(Poeng!$A$1:$B$100,H41,2),"") ->  | K41: =IF(J41>0,INDEX(Poeng!$A$1:$B$100,J41,2),"") ->  | M41: =IF(L41>0,INDEX(Poeng!$A$1:$B$100,L41,2),"") ->  | O41: =IF(N41>0,INDEX(Poeng!$A$1:$B$100,N41,2),"") ->  | Q41: =IF(P41>0,INDEX(Poeng!$A$1:$B$100,P41,2),"") ->  | R41: 0 | S41: 0 | T41: 0 | U41: 0 | V41: 0 | W41: 0 | X41: =IF(#REF!>0,#REF!,0) ->  | Y41: 0 | Z41: 0 | AA41: 0 | AB41: 0 | AC41: 0 | AD41: 0 | AE41: 0
G42: =IF(F42>0,INDEX(Poeng!$A$1:$B$100,F42,2),"") ->  | I42: =IF(H42>0,INDEX(Poeng!$A$1:$B$100,H42,2),"") ->  | K42: =IF(J42>0,INDEX(Poeng!$A$1:$B$100,J42,2),"") ->  | M42: =IF(L42>0,INDEX(Poeng!$A$1:$B$100,L42,2),"") ->  | O42: =IF(N42>0,INDEX(Poeng!$A$1:$B$100,N42,2),"") ->  | Q42: =IF(P42>0,INDEX(Poeng!$A$1:$B$100,P42,2),"") ->  | R42: 0 | S42: 0 | T42: 0 | U42: 0 | V42: 0 | W42: 0 | X42: =IF(#REF!>0,#REF!,0) ->  | Y42: 0 | Z42: 0 | AA42: 0 | AB42: 0 | AC42: 0 | AD42: 0 | AE42: 0
G43: =IF(F43>0,INDEX(Poeng!$A$1:$B$100,F43,2),"") ->  | I43: =IF(H43>0,INDEX(Poeng!$A$1:$B$100,H43,2),"") ->  | K43: =IF(J43>0,INDEX(Poeng!$A$1:$B$100,J43,2),"") ->  | M43: =IF(L43>0,INDEX(Poeng!$A$1:$B$100,L43,2),"") ->  | O43: =IF(N43>0,INDEX(Poeng!$A$1:$B$100,N43,2),"") ->  | Q43: =IF(P43>0,INDEX(Poeng!$A$1:$B$100,P43,2),"") ->  | R43: 0 | S43: 0 | T43: 0 | U43: 0 | V43: 0 | W43: 0 | X43: =IF(#REF!>0,#REF!,0) ->  | Y43: 0 | Z43: 0 | AA43: 0 | AB43: 0 | AC43: 0 | AD43: 0 | AE43: 0
G44: =IF(F44>0,INDEX(Poeng!$A$1:$B$100,F44,2),"") ->  | I44: =IF(H44>0,INDEX(Poeng!$A$1:$B$100,H44,2),"") ->  | K44: =IF(J44>0,INDEX(Poeng!$A$1:$B$100,J44,2),"") ->  | M44: =IF(L44>0,INDEX(Poeng!$A$1:$B$100,L44,2),"") ->  | O44: =IF(N44>0,INDEX(Poeng!$A$1:$B$100,N44,2),"") ->  | Q44: =IF(P44>0,INDEX(Poeng!$A$1:$B$100,P44,2),"") ->  | R44: 0 | S44: 0 | T44: 0 | U44: 0 | V44: 0 | W44: 0 | X44: =IF(#REF!>0,#REF!,0) ->  | Y44: 0 | Z44: 0 | AA44: 0 | AB44: 0 | AC44: 0 | AD44: 0 | AE44: 0
G45: =IF(F45>0,INDEX(Poeng!$A$1:$B$100,F45,2),"") ->  | I45: =IF(H45>0,INDEX(Poeng!$A$1:$B$100,H45,2),"") ->  | K45: =IF(J45>0,INDEX(Poeng!$A$1:$B$100,J45,2),"") ->  | M45: =IF(L45>0,INDEX(Poeng!$A$1:$B$100,L45,2),"") ->  | O45: =IF(N45>0,INDEX(Poeng!$A$1:$B$100,N45,2),"") ->  | Q45: =IF(P45>0,INDEX(Poeng!$A$1:$B$100,P45,2),"") ->  | R45: 0 | S45: 0 | T45: 0 | U45: 0 | V45: 0 | W45: 0 | X45: =IF(#REF!>0,#REF!,0) ->  | Y45: 0 | Z45: 0 | AA45: 0 | AB45: 0 | AC45: 0 | AD45: 0 | AE45: 0
I46: =IF(H46>0,INDEX(Poeng!$A$1:$B$100,H46,2),"") ->  | K46: =IF(J46>0,INDEX(Poeng!$A$1:$B$100,J46,2),"") ->  | M46: =IF(L46>0,INDEX(Poeng!$A$1:$B$100,L46,2),"") ->  | O46: =IF(N46>0,INDEX(Poeng!$A$1:$B$100,N46,2),"") ->  | Q46: =IF(P46>0,INDEX(Poeng!$A$1:$B$100,P46,2),"") ->  | R46: 0 | S46: 0 | T46: 0 | U46: 0 | V46: 0 | W46: 0 | X46: =IF(#REF!>0,#REF!,0) ->  | Y46: 0 | Z46: 0 | AA46: 0 | AB46: 0 | AC46: 0 | AD46: 0 | AE46: 0
I47: =IF(H47>0,INDEX(Poeng!$A$1:$B$100,H47,2),"") ->  | K47: =IF(J47>0,INDEX(Poeng!$A$1:$B$100,J47,2),"") ->  | M47: =IF(L47>0,INDEX(Poeng!$A$1:$B$100,L47,2),"") ->  | O47: =IF(N47>0,INDEX(Poeng!$A$1:$B$100,N47,2),"") ->  | Q47: =IF(P47>0,INDEX(Poeng!$A$1:$B$100,P47,2),"") ->  | R47: 0 | S47: 0 | T47: 0 | U47: 0 | V47: 0 | W47: 0 | X47: =IF(#REF!>0,#REF!,0) ->  | Y47: 0 | Z47: 0 | AA47: 0 | AB47: 0 | AC47: 0 | AD47: 0 | AE47: 0
I48: =IF(H48>0,INDEX(Poeng!$A$1:$B$100,H48,2),"") ->  | K48: =IF(J48>0,INDEX(Poeng!$A$1:$B$100,J48,2),"") ->  | M48: =IF(L48>0,INDEX(Poeng!$A$1:$B$100,L48,2),"") ->  | O48: =IF(N48>0,INDEX(Poeng!$A$1:$B$100,N48,2),"") ->  | Q48: =IF(P48>0,INDEX(Poeng!$A$1:$B$100,P48,2),"") ->  | R48: 0 | S48: 0 | T48: 0 | U48: 0 | V48: 0 | W48: 0 | X48: =IF(#REF!>0,#REF!,0) ->  | Y48: 0 | Z48: 0 | AA48: 0 | AB48: 0 | AC48: 0 | AD48: 0 | AE48: 0
I49: =IF(H49>0,INDEX(Poeng!$A$1:$B$100,H49,2),"") ->  | K49: =IF(J49>0,INDEX(Poeng!$A$1:$B$100,J49,2),"") ->  | M49: =IF(L49>0,INDEX(Poeng!$A$1:$B$100,L49,2),"") ->  | O49: =IF(N49>0,INDEX(Poeng!$A$1:$B$100,N49,2),"") ->  | Q49: =IF(P49>0,INDEX(Poeng!$A$1:$B$100,P49,2),"") ->  | R49: 0 | S49: 0 | T49: 0 | U49: 0 | V49: 0 | W49: 0 | X49: =IF(#REF!>0,#REF!,0) ->  | Y49: 0 | Z49: 0 | AA49: 0 | AB49: 0 | AC49: 0 | AD49: 0 | AE49: 0
I50: =IF(H50>0,INDEX(Poeng!$A$1:$B$100,H50,2),"") ->  | K50: =IF(J50>0,INDEX(Poeng!$A$1:$B$100,J50,2),"") ->  | M50: =IF(L50>0,INDEX(Poeng!$A$1:$B$100,L50,2),"") ->  | O50: =IF(N50>0,INDEX(Poeng!$A$1:$B$100,N50,2),"") ->  | Q50: =IF(P50>0,INDEX(Poeng!$A$1:$B$100,P50,2),"") ->  | R50: 0 | S50: 0 | T50: 0 | U50: 0 | V50: 0 | W50: 0 | X50: =IF(#REF!>0,#REF!,0) ->  | Y50: 0 | Z50: 0 | AA50: 0 | AB50: 0 | AC50: 0 | AD50: 0 | AE50: 0
I51: =IF(H51>0,INDEX(Poeng!$A$1:$B$100,H51,2),"") ->  | K51: =IF(J51>0,INDEX(Poeng!$A$1:$B$100,J51,2),"") ->  | M51: =IF(L51>0,INDEX(Poeng!$A$1:$B$100,L51,2),"") ->  | O51: =IF(N51>0,INDEX(Poeng!$A$1:$B$100,N51,2),"") ->  | Q51: =IF(P51>0,INDEX(Poeng!$A$1:$B$100,P51,2),"") ->  | R51: 0 | S51: 0 | T51: 0 | U51: 0 | V51: 0 | W51: 0 | X51: =IF(#REF!>0,#REF!,0) ->  | Y51: 0 | Z51: 0 | AA51: 0 | AB51: 0 | AC51: 0 | AD51: 0 | AE51: 0
I52: =IF(H52>0,INDEX(Poeng!$A$1:$B$100,H52,2),"") ->  | K52: =IF(J52>0,INDEX(Poeng!$A$1:$B$100,J52,2),"") ->  | M52: =IF(L52>0,INDEX(Poeng!$A$1:$B$100,L52,2),"") ->  | O52: =IF(N52>0,INDEX(Poeng!$A$1:$B$100,N52,2),"") ->  | Q52: =IF(P52>0,INDEX(Poeng!$A$1:$B$100,P52,2),"") ->  | R52: 0 | S52: 0 | T52: 0 | U52: 0 | V52: 0 | W52: 0 | X52: =IF(#REF!>0,#REF!,0) ->  | Y52: 0 | Z52: 0 | AA52: 0 | AB52: 0 | AC52: 0 | AD52: 0 | AE52: 0
I53: =IF(H53>0,INDEX(Poeng!$A$1:$B$100,H53,2),"") ->  | K53: =IF(J53>0,INDEX(Poeng!$A$1:$B$100,J53,2),"") ->  | M53: =IF(L53>0,INDEX(Poeng!$A$1:$B$100,L53,2),"") ->  | O53: =IF(N53>0,INDEX(Poeng!$A$1:$B$100,N53,2),"") ->  | Q53: =IF(P53>0,INDEX(Poeng!$A$1:$B$100,P53,2),"") ->  | R53: 0 | S53: 0 | T53: 0 | U53: 0 | V53: 0 | W53: 0 | X53: =IF(#REF!>0,#REF!,0) ->  | Y53: 0 | Z53: 0 | AA53: 0 | AB53: 0 | AC53: 0 | AD53: 0 | AE53: 0
I54: =IF(H54>0,INDEX(Poeng!$A$1:$B$100,H54,2),"") ->  | K54: =IF(J54>0,INDEX(Poeng!$A$1:$B$100,J54,2),"") ->  | M54: =IF(L54>0,INDEX(Poeng!$A$1:$B$100,L54,2),"") ->  | O54: =IF(N54>0,INDEX(Poeng!$A$1:$B$100,N54,2),"") ->  | Q54: =IF(P54>0,INDEX(Poeng!$A$1:$B$100,P54,2),"") ->  | R54: 0 | S54: 0 | T54: 0 | U54: 0 | V54: 0 | W54: 0 | X54: =IF(#REF!>0,#REF!,0) ->  | Y54: 0 | Z54: 0 | AA54: 0 | AB54: 0 | AC54: 0 | AD54: 0 | AE54: 0 | AF54: =IF(B54<>"",RANK(AE54,AE$4:AE$69,0),"") -> 
I55: =IF(H55>0,INDEX(Poeng!$A$1:$B$100,H55,2),"") ->  | K55: =IF(J55>0,INDEX(Poeng!$A$1:$B$100,J55,2),"") ->  | M55: =IF(L55>0,INDEX(Poeng!$A$1:$B$100,L55,2),"") ->  | O55: =IF(N55>0,INDEX(Poeng!$A$1:$B$100,N55,2),"") ->  | Q55: =IF(P55>0,INDEX(Poeng!$A$1:$B$100,P55,2),"") ->  | R55: 0 | S55: 0 | T55: 0 | U55: 0 | V55: 0 | W55: 0 | X55: =IF(#REF!>0,#REF!,0) ->  | Y55: 0 | Z55: 0 | AA55: 0 | AB55: 0 | AC55: 0 | AD55: 0 | AE55: 0
I56: =IF(H56>0,INDEX(Poeng!$A$1:$B$100,H56,2),"") ->  | K56: =IF(J56>0,INDEX(Poeng!$A$1:$B$100,J56,2),"") ->  | M56: =IF(L56>0,INDEX(Poeng!$A$1:$B$100,L56,2),"") ->  | O56: =IF(N56>0,INDEX(Poeng!$A$1:$B$100,N56,2),"") ->  | Q56: =IF(P56>0,INDEX(Poeng!$A$1:$B$100,P56,2),"") ->  | R56: 0 | S56: 0 | T56: 0 | U56: 0 | V56: 0 | W56: 0 | X56: =IF(#REF!>0,#REF!,0) ->  | Y56: 0 | Z56: 0 | AA56: 0 | AB56: 0 | AC56: 0 | AD56: 0 | AE56: 0
I57: =IF(H57>0,INDEX(Poeng!$A$1:$B$100,H57,2),"") ->  | K57: =IF(J57>0,INDEX(Poeng!$A$1:$B$100,J57,2),"") ->  | M57: =IF(L57>0,INDEX(Poeng!$A$1:$B$100,L57,2),"") ->  | O57: =IF(N57>0,INDEX(Poeng!$A$1:$B$100,N57,2),"") ->  | Q57: =IF(P57>0,INDEX(Poeng!$A$1:$B$100,P57,2),"") ->  | R57: 0 | S57: 0 | T57: 0 | U57: 0 | V57: 0 | W57: 0 | X57: =IF(#REF!>0,#REF!,0) ->  | Y57: 0 | Z57: 0 | AA57: 0 | AB57: 0 | AC57: 0 | AD57: 0 | AE57: 0
I58: =IF(H58>0,INDEX(Poeng!$A$1:$B$100,H58,2),"") ->  | K58: =IF(J58>0,INDEX(Poeng!$A$1:$B$100,J58,2),"") ->  | M58: =IF(L58>0,INDEX(Poeng!$A$1:$B$100,L58,2),"") ->  | O58: =IF(N58>0,INDEX(Poeng!$A$1:$B$100,N58,2),"") ->  | Q58: =IF(P58>0,INDEX(Poeng!$A$1:$B$100,P58,2),"") ->  | R58: 0 | S58: 0 | T58: 0 | U58: 0 | V58: 0 | W58: 0 | X58: =IF(#REF!>0,#REF!,0) ->  | Y58: 0 | Z58: 0 | AA58: 0 | AB58: 0 | AC58: 0 | AD58: 0 | AE58: 0
E59: =IF(AD59<4," ","F") ->  | I59: =IF(H59>0,INDEX(Poeng!$A$1:$B$100,H59,2),"") ->  | K59: =IF(J59>0,INDEX(Poeng!$A$1:$B$100,J59,2),"") ->  | M59: =IF(L59>0,INDEX(Poeng!$A$1:$B$100,L59,2),"") ->  | O59: =IF(N59>0,INDEX(Poeng!$A$1:$B$100,N59,2),"") ->  | Q59: =IF(P59>0,INDEX(Poeng!$A$1:$B$100,P59,2),"") ->  | R59: 0 | S59: 0 | T59: 0 | U59: 0 | V59: 0 | W59: 0 | X59: =IF(#REF!>0,#REF!,0) ->  | Y59: 0 | Z59: 0 | AA59: 0 | AB59: 0 | AC59: 0 | AD59: 0 | AE59: 0
I60: =IF(H60>0,INDEX(Poeng!$A$1:$B$100,H60,2),"") ->  | K60: =IF(J60>0,INDEX(Poeng!$A$1:$B$100,J60,2),"") ->  | M60: =IF(L60>0,INDEX(Poeng!$A$1:$B$100,L60,2),"") ->  | O60: =IF(N60>0,INDEX(Poeng!$A$1:$B$100,N60,2),"") ->  | Q60: =IF(P60>0,INDEX(Poeng!$A$1:$B$100,P60,2),"") ->  | R60: 0 | S60: 0 | T60: 0 | U60: 0 | V60: 0 | W60: 0 | X60: =IF(#REF!>0,#REF!,0) ->  | Y60: 0 | Z60: 0 | AA60: 0 | AB60: 0 | AC60: 0 | AD60: 0 | AE60: 0
I61: =IF(H61>0,INDEX(Poeng!$A$1:$B$100,H61,2),"") ->  | K61: =IF(J61>0,INDEX(Poeng!$A$1:$B$100,J61,2),"") ->  | M61: =IF(L61>0,INDEX(Poeng!$A$1:$B$100,L61,2),"") ->  | O61: =IF(N61>0,INDEX(Poeng!$A$1:$B$100,N61,2),"") ->  | Q61: =IF(P61>0,INDEX(Poeng!$A$1:$B$100,P61,2),"") ->  | R61: 0 | S61: 0 | T61: 0 | U61: 0 | V61: 0 | W61: 0 | X61: =IF(#REF!>0,#REF!,0) ->  | Y61: 0 | Z61: 0 | AA61: 0 | AB61: 0 | AC61: 0 | AD61: 0 | AE61: 0
I62: =IF(H62>0,INDEX(Poeng!$A$1:$B$100,H62,2),"") ->  | K62: =IF(J62>0,INDEX(Poeng!$A$1:$B$100,J62,2),"") ->  | M62: =IF(L62>0,INDEX(Poeng!$A$1:$B$100,L62,2),"") ->  | O62: =IF(N62>0,INDEX(Poeng!$A$1:$B$100,N62,2),"") ->  | Q62: =IF(P62>0,INDEX(Poeng!$A$1:$B$100,P62,2),"") ->  | R62: 0 | S62: 0 | T62: 0 | U62: 0 | V62: 0 | W62: 0 | X62: =IF(#REF!>0,#REF!,0) ->  | Y62: 0 | Z62: 0 | AA62: 0 | AB62: 0 | AC62: 0 | AD62: 0 | AE62: 0
I63: =IF(H63>0,INDEX(Poeng!$A$1:$B$100,H63,2),"") ->  | K63: =IF(J63>0,INDEX(Poeng!$A$1:$B$100,J63,2),"") ->  | M63: =IF(L63>0,INDEX(Poeng!$A$1:$B$100,L63,2),"") ->  | O63: =IF(N63>0,INDEX(Poeng!$A$1:$B$100,N63,2),"") ->  | Q63: =IF(P63>0,INDEX(Poeng!$A$1:$B$100,P63,2),"") ->  | R63: 0 | S63: 0 | T63: 0 | U63: 0 | V63: 0 | W63: 0 | X63: =IF(#REF!>0,#REF!,0) ->  | Y63: 0 | Z63: 0 | AA63: 0 | AB63: 0 | AC63: 0 | AD63: 0 | AE63: 0
I64: =IF(H64>0,INDEX(Poeng!$A$1:$B$100,H64,2),"") ->  | K64: =IF(J64>0,INDEX(Poeng!$A$1:$B$100,J64,2),"") ->  | M64: =IF(L64>0,INDEX(Poeng!$A$1:$B$100,L64,2),"") ->  | O64: =IF(N64>0,INDEX(Poeng!$A$1:$B$100,N64,2),"") ->  | Q64: =IF(P64>0,INDEX(Poeng!$A$1:$B$100,P64,2),"") ->  | R64: 0 | S64: 0 | T64: 0 | U64: 0 | V64: 0 | W64: 0 | X64: =IF(#REF!>0,#REF!,0) ->  | Y64: 0 | Z64: 0 | AA64: 0 | AB64: 0 | AC64: 0 | AD64: 0 | AE64: 0
I65: =IF(H65>0,INDEX(Poeng!$A$1:$B$100,H65,2),"") ->  | K65: =IF(J65>0,INDEX(Poeng!$A$1:$B$100,J65,2),"") ->  | M65: =IF(L65>0,INDEX(Poeng!$A$1:$B$100,L65,2),"") ->  | O65: =IF(N65>0,INDEX(Poeng!$A$1:$B$100,N65,2),"") ->  | Q65: =IF(P65>0,INDEX(Poeng!$A$1:$B$100,P65,2),"") ->  | R65: 0 | S65: 0 | T65: 0 | U65: 0 | V65: 0 | W65: 0 | X65: =IF(#REF!>0,#REF!,0) ->  | Y65: 0 | Z65: 0 | AA65: 0 | AB65: 0 | AC65: 0 | AD65: 0 | AE65: 0
I66: =IF(H66>0,INDEX(Poeng!$A$1:$B$100,H66,2),"") ->  | K66: =IF(J66>0,INDEX(Poeng!$A$1:$B$100,J66,2),"") ->  | M66: =IF(L66>0,INDEX(Poeng!$A$1:$B$100,L66,2),"") ->  | O66: =IF(N66>0,INDEX(Poeng!$A$1:$B$100,N66,2),"") ->  | Q66: =IF(P66>0,INDEX(Poeng!$A$1:$B$100,P66,2),"") ->  | R66: 0 | S66: 0 | T66: 0 | U66: 0 | V66: 0 | W66: 0 | X66: =IF(#REF!>0,#REF!,0) ->  | Y66: 0 | Z66: 0 | AA66: 0 | AB66: 0 | AC66: 0 | AD66: 0 | AE66: 0
A67: =AF67 ->  | D67: =IF(B67<>"",AC67,"") ->  | I67: =IF(H67>0,INDEX(Poeng!$A$1:$B$100,H67,2),"") ->  | K67: =IF(J67>0,INDEX(Poeng!$A$1:$B$100,J67,2),"") ->  | M67: =IF(L67>0,INDEX(Poeng!$A$1:$B$100,L67,2),"") ->  | O67: =IF(N67>0,INDEX(Poeng!$A$1:$B$100,N67,2),"") ->  | Q67: =IF(P67>0,INDEX(Poeng!$A$1:$B$100,P67,2),"") ->  | R67: =IF(F67>0,G67,0) -> 0 | S67: =IF(H67>0,I67,0) -> 0 | T67: =IF(J67>0,K67,0) -> 0 | U67: =IF(L67>0,M67,0) -> 0 | V67: =IF(N67>0,O67,0) -> 0 | W67: =IF(P67>0,Q67,0) -> 0 | X67: =IF(#REF!>0,#REF!,0) ->  | Y67: =LARGE(R67:W67,1) -> 0 | Z67: =LARGE(R67:W67,2) -> 0 | AA67: =LARGE(R67:W67,3) -> 0 | AB67: =LARGE(R67:W67,4) -> 0 | AC67: =SUM(Y67:AB67) -> 0 | AD67: =COUNT(F67:Q67)/2 -> 0 | AE67: =AC67*10^8+Y67*10^6/2+Z67*10^4/2+AA67*10^2/2+AB67/2 -> 0
I68: =IF(H68>0,INDEX(Poeng!$A$1:$B$100,H68,2),"") ->  | K68: =IF(J68>0,INDEX(Poeng!$A$1:$B$100,J68,2),"") ->  | M68: =IF(L68>0,INDEX(Poeng!$A$1:$B$100,L68,2),"") ->  | O68: =IF(N68>0,INDEX(Poeng!$A$1:$B$100,N68,2),"") ->  | Q68: =IF(P68>0,INDEX(Poeng!$A$1:$B$100,P68,2),"") ->  | R68: 0 | S68: 0 | T68: 0 | U68: 0 | V68: 0 | W68: 0 | X68: =IF(#REF!>0,#REF!,0) ->  | Y68: 0 | Z68: 0 | AA68: 0 | AB68: 0 | AC68: 0 | AD68: 0 | AE68: 0
I69: =IF(H69>0,INDEX(Poeng!$A$1:$B$100,H69,2),"") ->  | K69: =IF(J69>0,INDEX(Poeng!$A$1:$B$100,J69,2),"") ->  | M69: =IF(L69>0,INDEX(Poeng!$A$1:$B$100,L69,2),"") ->  | O69: =IF(N69>0,INDEX(Poeng!$A$1:$B$100,N69,2),"") ->  | Q69: =IF(P69>0,INDEX(Poeng!$A$1:$B$100,P69,2),"") ->  | R69: 0 | S69: 0 | T69: 0 | U69: 0 | V69: 0 | W69: 0 | X69: =IF(#REF!>0,#REF!,0) ->  | Y69: 0 | Z69: 0 | AA69: 0 | AB69: 0 | AC69: 0 | AD69: 0 | AE69: 0
I70: =IF(H70>0,INDEX(Poeng!$A$1:$B$100,H70,2),"") ->  | K70: =IF(J70>0,INDEX(Poeng!$A$1:$B$100,J70,2),"") ->  | M70: =IF(L70>0,INDEX(Poeng!$A$1:$B$100,L70,2),"") ->  | O70: =IF(N70>0,INDEX(Poeng!$A$1:$B$100,N70,2),"") ->  | Q70: =IF(P70>0,INDEX(Poeng!$A$1:$B$100,P70,2),"") ->  | R70: 0 | S70: 0 | T70: 0 | U70: 0 | V70: 0 | W70: 0 | X70: =IF(#REF!>0,#REF!,0) ->  | Y70: 0 | Z70: 0 | AA70: 0 | AB70: 0 | AC70: 0 | AD70: 0 | AE70: 0
I71: =IF(H71>0,INDEX(Poeng!$A$1:$B$100,H71,2),"") ->  | K71: =IF(J71>0,INDEX(Poeng!$A$1:$B$100,J71,2),"") ->  | M71: =IF(L71>0,INDEX(Poeng!$A$1:$B$100,L71,2),"") ->  | O71: =IF(N71>0,INDEX(Poeng!$A$1:$B$100,N71,2),"") ->  | Q71: =IF(P71>0,INDEX(Poeng!$A$1:$B$100,P71,2),"") ->  | R71: 0 | S71: 0 | T71: 0 | U71: 0 | V71: 0 | W71: 0 | X71: =IF(#REF!>0,#REF!,0) ->  | Y71: 0 | Z71: 0 | AA71: 0 | AB71: 0 | AC71: 0 | AD71: 0 | AE71: 0
I72: =IF(H72>0,INDEX(Poeng!$A$1:$B$100,H72,2),"") ->  | K72: =IF(J72>0,INDEX(Poeng!$A$1:$B$100,J72,2),"") ->  | M72: =IF(L72>0,INDEX(Poeng!$A$1:$B$100,L72,2),"") ->  | O72: =IF(N72>0,INDEX(Poeng!$A$1:$B$100,N72,2),"") ->  | Q72: =IF(P72>0,INDEX(Poeng!$A$1:$B$100,P72,2),"") ->  | R72: 0 | S72: 0 | T72: 0 | U72: 0 | V72: 0 | W72: 0 | X72: =IF(#REF!>0,#REF!,0) ->  | Y72: 0 | Z72: 0 | AA72: 0 | AB72: 0 | AC72: 0 | AD72: 0 | AE72: 0
I73: =IF(H73>0,INDEX(Poeng!$A$1:$B$100,H73,2),"") ->  | K73: =IF(J73>0,INDEX(Poeng!$A$1:$B$100,J73,2),"") ->  | M73: =IF(L73>0,INDEX(Poeng!$A$1:$B$100,L73,2),"") ->  | O73: =IF(N73>0,INDEX(Poeng!$A$1:$B$100,N73,2),"") ->  | Q73: =IF(P73>0,INDEX(Poeng!$A$1:$B$100,P73,2),"") ->  | R73: 0 | S73: 0 | T73: 0 | U73: 0 | V73: 0 | W73: 0 | X73: =IF(#REF!>0,#REF!,0) ->  | Y73: 0 | Z73: 0 | AA73: 0 | AB73: 0 | AC73: 0 | AD73: 0 | AE73: 0
I74: =IF(H74>0,INDEX(Poeng!$A$1:$B$100,H74,2),"") ->  | K74: =IF(J74>0,INDEX(Poeng!$A$1:$B$100,J74,2),"") ->  | M74: =IF(L74>0,INDEX(Poeng!$A$1:$B$100,L74,2),"") ->  | O74: =IF(N74>0,INDEX(Poeng!$A$1:$B$100,N74,2),"") ->  | Q74: =IF(P74>0,INDEX(Poeng!$A$1:$B$100,P74,2),"") ->  | R74: 0 | S74: 0 | T74: 0 | U74: 0 | V74: 0 | W74: 0 | X74: =IF(#REF!>0,#REF!,0) ->  | Y74: 0 | Z74: 0 | AA74: 0 | AB74: 0 | AC74: 0 | AD74: 0 | AE74: 0
I75: =IF(H75>0,INDEX(Poeng!$A$1:$B$100,H75,2),"") ->  | K75: =IF(J75>0,INDEX(Poeng!$A$1:$B$100,J75,2),"") ->  | M75: =IF(L75>0,INDEX(Poeng!$A$1:$B$100,L75,2),"") ->  | O75: =IF(N75>0,INDEX(Poeng!$A$1:$B$100,N75,2),"") ->  | Q75: =IF(P75>0,INDEX(Poeng!$A$1:$B$100,P75,2),"") ->  | R75: 0 | S75: 0 | T75: 0 | U75: 0 | V75: 0 | W75: 0 | X75: =IF(#REF!>0,#REF!,0) ->  | Y75: 0 | Z75: 0 | AA75: 0 | AB75: 0 | AC75: 0 | AD75: 0 | AE75: 0
I76: =IF(H76>0,INDEX(Poeng!$A$1:$B$100,H76,2),"") ->  | K76: =IF(J76>0,INDEX(Poeng!$A$1:$B$100,J76,2),"") ->  | M76: =IF(L76>0,INDEX(Poeng!$A$1:$B$100,L76,2),"") ->  | O76: =IF(N76>0,INDEX(Poeng!$A$1:$B$100,N76,2),"") ->  | Q76: =IF(P76>0,INDEX(Poeng!$A$1:$B$100,P76,2),"") ->  | R76: 0 | S76: 0 | T76: 0 | U76: 0 | V76: 0 | W76: 0 | X76: =IF(#REF!>0,#REF!,0) ->  | Y76: 0 | Z76: 0 | AA76: 0 | AB76: 0 | AC76: 0 | AD76: 0 | AE76: 0
I77: =IF(H77>0,INDEX(Poeng!$A$1:$B$100,H77,2),"") ->  | K77: =IF(J77>0,INDEX(Poeng!$A$1:$B$100,J77,2),"") ->  | M77: =IF(L77>0,INDEX(Poeng!$A$1:$B$100,L77,2),"") ->  | O77: =IF(N77>0,INDEX(Poeng!$A$1:$B$100,N77,2),"") ->  | Q77: =IF(P77>0,INDEX(Poeng!$A$1:$B$100,P77,2),"") ->  | R77: 0 | S77: 0 | T77: 0 | U77: 0 | V77: 0 | W77: 0 | X77: =IF(#REF!>0,#REF!,0) ->  | Y77: 0 | Z77: 0 | AA77: 0 | AB77: 0 | AC77: 0 | AD77: 0 | AE77: 0
I78: =IF(H78>0,INDEX(Poeng!$A$1:$B$100,H78,2),"") ->  | K78: =IF(J78>0,INDEX(Poeng!$A$1:$B$100,J78,2),"") ->  | M78: =IF(L78>0,INDEX(Poeng!$A$1:$B$100,L78,2),"") ->  | O78: =IF(N78>0,INDEX(Poeng!$A$1:$B$100,N78,2),"") ->  | Q78: =IF(P78>0,INDEX(Poeng!$A$1:$B$100,P78,2),"") ->  | R78: 0 | S78: 0 | T78: 0 | U78: 0 | V78: 0 | W78: 0 | X78: =IF(#REF!>0,#REF!,0) ->  | Y78: 0 | Z78: 0 | AA78: 0 | AB78: 0 | AC78: 0 | AD78: 0 | AE78: 0
I79: =IF(H79>0,INDEX(Poeng!$A$1:$B$100,H79,2),"") ->  | K79: =IF(J79>0,INDEX(Poeng!$A$1:$B$100,J79,2),"") ->  | M79: =IF(L79>0,INDEX(Poeng!$A$1:$B$100,L79,2),"") ->  | O79: =IF(N79>0,INDEX(Poeng!$A$1:$B$100,N79,2),"") ->  | Q79: =IF(P79>0,INDEX(Poeng!$A$1:$B$100,P79,2),"") ->  | R79: 0 | S79: 0 | T79: 0 | U79: 0 | V79: 0 | W79: 0 | X79: =IF(#REF!>0,#REF!,0) ->  | Y79: 0 | Z79: 0 | AA79: 0 | AB79: 0 | AC79: 0 | AD79: 0 | AE79: 0
I80: =IF(H80>0,INDEX(Poeng!$A$1:$B$100,H80,2),"") ->  | K80: =IF(J80>0,INDEX(Poeng!$A$1:$B$100,J80,2),"") ->  | M80: =IF(L80>0,INDEX(Poeng!$A$1:$B$100,L80,2),"") ->  | O80: =IF(N80>0,INDEX(Poeng!$A$1:$B$100,N80,2),"") ->  | Q80: =IF(P80>0,INDEX(Poeng!$A$1:$B$100,P80,2),"") ->  | R80: 0 | S80: 0 | T80: 0 | U80: 0 | V80: 0 | W80: 0 | X80: =IF(#REF!>0,#REF!,0) ->  | Y80: 0 | Z80: 0 | AA80: 0 | AB80: 0 | AC80: 0 | AD80: 0 | AE80: 0
I81: =IF(H81>0,INDEX(Poeng!$A$1:$B$100,H81,2),"") ->  | K81: =IF(J81>0,INDEX(Poeng!$A$1:$B$100,J81,2),"") ->  | M81: =IF(L81>0,INDEX(Poeng!$A$1:$B$100,L81,2),"") ->  | O81: =IF(N81>0,INDEX(Poeng!$A$1:$B$100,N81,2),"") ->  | Q81: =IF(P81>0,INDEX(Poeng!$A$1:$B$100,P81,2),"") ->  | R81: 0 | S81: 0 | T81: 0 | U81: 0 | V81: 0 | W81: 0 | X81: =IF(#REF!>0,#REF!,0) ->  | Y81: 0 | Z81: 0 | AA81: 0 | AB81: 0 | AC81: 0 | AD81: 0 | AE81: 0
I82: =IF(H82>0,INDEX(Poeng!$A$1:$B$100,H82,2),"") ->  | K82: =IF(J82>0,INDEX(Poeng!$A$1:$B$100,J82,2),"") ->  | M82: =IF(L82>0,INDEX(Poeng!$A$1:$B$100,L82,2),"") ->  | O82: =IF(N82>0,INDEX(Poeng!$A$1:$B$100,N82,2),"") ->  | Q82: =IF(P82>0,INDEX(Poeng!$A$1:$B$100,P82,2),"") ->  | R82: 0 | S82: 0 | T82: 0 | U82: 0 | V82: 0 | W82: 0 | X82: =IF(#REF!>0,#REF!,0) ->  | Y82: 0 | Z82: 0 | AA82: 0 | AB82: 0 | AC82: 0 | AD82: 0 | AE82: 0
I83: =IF(H83>0,INDEX(Poeng!$A$1:$B$100,H83,2),"") ->  | K83: =IF(J83>0,INDEX(Poeng!$A$1:$B$100,J83,2),"") ->  | M83: =IF(L83>0,INDEX(Poeng!$A$1:$B$100,L83,2),"") ->  | O83: =IF(N83>0,INDEX(Poeng!$A$1:$B$100,N83,2),"") ->  | Q83: =IF(P83>0,INDEX(Poeng!$A$1:$B$100,P83,2),"") ->  | R83: 0 | S83: 0 | T83: 0 | U83: 0 | V83: 0 | W83: 0 | X83: =IF(#REF!>0,#REF!,0) ->  | Y83: 0 | Z83: 0 | AA83: 0 | AB83: 0 | AC83: 0 | AD83: 0 | AE83: 0
I84: =IF(H84>0,INDEX(Poeng!$A$1:$B$100,H84,2),"") ->  | K84: =IF(J84>0,INDEX(Poeng!$A$1:$B$100,J84,2),"") ->  | M84: =IF(L84>0,INDEX(Poeng!$A$1:$B$100,L84,2),"") ->  | O84: =IF(N84>0,INDEX(Poeng!$A$1:$B$100,N84,2),"") ->  | Q84: =IF(P84>0,INDEX(Poeng!$A$1:$B$100,P84,2),"") ->  | R84: 0 | S84: 0 | T84: 0 | U84: 0 | V84: 0 | W84: 0 | X84: =IF(#REF!>0,#REF!,0) ->  | Y84: 0 | Z84: 0 | AA84: 0 | AB84: 0 | AC84: 0 | AD84: 0 | AE84: 0
I85: =IF(H85>0,INDEX(Poeng!$A$1:$B$100,H85,2),"") ->  | K85: =IF(J85>0,INDEX(Poeng!$A$1:$B$100,J85,2),"") ->  | M85: =IF(L85>0,INDEX(Poeng!$A$1:$B$100,L85,2),"") ->  | O85: =IF(N85>0,INDEX(Poeng!$A$1:$B$100,N85,2),"") ->  | Q85: =IF(P85>0,INDEX(Poeng!$A$1:$B$100,P85,2),"") ->  | R85: 0 | S85: 0 | T85: 0 | U85: 0 | V85: 0 | W85: 0 | X85: =IF(#REF!>0,#REF!,0) ->  | Y85: 0 | Z85: 0 | AA85: 0 | AB85: 0 | AC85: 0 | AD85: 0 | AE85: 0
I86: =IF(H86>0,INDEX(Poeng!$A$1:$B$100,H86,2),"") ->  | K86: =IF(J86>0,INDEX(Poeng!$A$1:$B$100,J86,2),"") ->  | M86: =IF(L86>0,INDEX(Poeng!$A$1:$B$100,L86,2),"") ->  | O86: =IF(N86>0,INDEX(Poeng!$A$1:$B$100,N86,2),"") ->  | Q86: =IF(P86>0,INDEX(Poeng!$A$1:$B$100,P86,2),"") ->  | R86: 0 | S86: 0 | T86: 0 | U86: 0 | V86: 0 | W86: 0 | X86: =IF(#REF!>0,#REF!,0) ->  | Y86: 0 | Z86: 0 | AA86: 0 | AB86: 0 | AC86: 0 | AD86: 0 | AE86: 0
I87: =IF(H87>0,INDEX(Poeng!$A$1:$B$100,H87,2),"") ->  | K87: =IF(J87>0,INDEX(Poeng!$A$1:$B$100,J87,2),"") ->  | M87: =IF(L87>0,INDEX(Poeng!$A$1:$B$100,L87,2),"") ->  | O87: =IF(N87>0,INDEX(Poeng!$A$1:$B$100,N87,2),"") ->  | Q87: =IF(P87>0,INDEX(Poeng!$A$1:$B$100,P87,2),"") ->  | R87: 0 | S87: 0 | T87: 0 | U87: 0 | V87: 0 | W87: 0 | X87: =IF(#REF!>0,#REF!,0) ->  | Y87: 0 | Z87: 0 | AA87: 0 | AB87: 0 | AC87: 0 | AD87: 0 | AE87: 0
I88: =IF(H88>0,INDEX(Poeng!$A$1:$B$100,H88,2),"") ->  | K88: =IF(J88>0,INDEX(Poeng!$A$1:$B$100,J88,2),"") ->  | M88: =IF(L88>0,INDEX(Poeng!$A$1:$B$100,L88,2),"") ->  | O88: =IF(N88>0,INDEX(Poeng!$A$1:$B$100,N88,2),"") ->  | Q88: =IF(P88>0,INDEX(Poeng!$A$1:$B$100,P88,2),"") ->  | R88: 0 | S88: 0 | T88: 0 | U88: 0 | V88: 0 | W88: 0 | X88: =IF(#REF!>0,#REF!,0) ->  | Y88: 0 | Z88: 0 | AA88: 0 | AB88: 0 | AC88: 0 | AD88: 0 | AE88: 0
I89: =IF(H89>0,INDEX(Poeng!$A$1:$B$100,H89,2),"") ->  | K89: =IF(J89>0,INDEX(Poeng!$A$1:$B$100,J89,2),"") ->  | M89: =IF(L89>0,INDEX(Poeng!$A$1:$B$100,L89,2),"") ->  | O89: =IF(N89>0,INDEX(Poeng!$A$1:$B$100,N89,2),"") ->  | Q89: =IF(P89>0,INDEX(Poeng!$A$1:$B$100,P89,2),"") ->  | R89: 0 | S89: 0 | T89: 0 | U89: 0 | V89: 0 | W89: 0 | X89: =IF(#REF!>0,#REF!,0) ->  | Y89: 0 | Z89: 0 | AA89: 0 | AB89: 0 | AC89: 0 | AD89: 0 | AE89: 0
I90: =IF(H90>0,INDEX(Poeng!$A$1:$B$100,H90,2),"") ->  | K90: =IF(J90>0,INDEX(Poeng!$A$1:$B$100,J90,2),"") ->  | M90: =IF(L90>0,INDEX(Poeng!$A$1:$B$100,L90,2),"") ->  | O90: =IF(N90>0,INDEX(Poeng!$A$1:$B$100,N90,2),"") ->  | Q90: =IF(P90>0,INDEX(Poeng!$A$1:$B$100,P90,2),"") ->  | R90: 0 | S90: 0 | T90: 0 | U90: 0 | V90: 0 | W90: 0 | X90: =IF(#REF!>0,#REF!,0) ->  | Y90: 0 | Z90: 0 | AA90: 0 | AB90: 0 | AC90: 0 | AD90: 0 | AE90: 0
I91: =IF(H91>0,INDEX(Poeng!$A$1:$B$100,H91,2),"") ->  | K91: =IF(J91>0,INDEX(Poeng!$A$1:$B$100,J91,2),"") ->  | M91: =IF(L91>0,INDEX(Poeng!$A$1:$B$100,L91,2),"") ->  | O91: =IF(N91>0,INDEX(Poeng!$A$1:$B$100,N91,2),"") ->  | Q91: =IF(P91>0,INDEX(Poeng!$A$1:$B$100,P91,2),"") ->  | R91: 0 | S91: 0 | T91: 0 | U91: 0 | V91: 0 | W91: 0 | X91: =IF(#REF!>0,#REF!,0) ->  | Y91: 0 | Z91: 0 | AA91: 0 | AB91: 0 | AC91: 0 | AD91: 0 | AE91: 0
I92: =IF(H92>0,INDEX(Poeng!$A$1:$B$100,H92,2),"") ->  | K92: =IF(J92>0,INDEX(Poeng!$A$1:$B$100,J92,2),"") ->  | M92: =IF(L92>0,INDEX(Poeng!$A$1:$B$100,L92,2),"") ->  | O92: =IF(N92>0,INDEX(Poeng!$A$1:$B$100,N92,2),"") ->  | Q92: =IF(P92>0,INDEX(Poeng!$A$1:$B$100,P92,2),"") ->  | R92: 0 | S92: 0 | T92: 0 | U92: 0 | V92: 0 | W92: 0 | X92: =IF(#REF!>0,#REF!,0) ->  | Y92: 0 | Z92: 0 | AA92: 0 | AB92: 0 | AC92: 0 | AD92: 0 | AE92: 0
I93: =IF(H93>0,INDEX(Poeng!$A$1:$B$100,H93,2),"") ->  | K93: =IF(J93>0,INDEX(Poeng!$A$1:$B$100,J93,2),"") ->  | M93: =IF(L93>0,INDEX(Poeng!$A$1:$B$100,L93,2),"") ->  | O93: =IF(N93>0,INDEX(Poeng!$A$1:$B$100,N93,2),"") ->  | Q93: =IF(P93>0,INDEX(Poeng!$A$1:$B$100,P93,2),"") ->  | R93: 0 | S93: 0 | T93: 0 | U93: 0 | V93: 0 | W93: 0 | X93: =IF(#REF!>0,#REF!,0) ->  | Y93: 0 | Z93: 0 | AA93: 0 | AB93: 0 | AC93: 0 | AD93: 0 | AE93: 0
I94: =IF(H94>0,INDEX(Poeng!$A$1:$B$100,H94,2),"") ->  | K94: =IF(J94>0,INDEX(Poeng!$A$1:$B$100,J94,2),"") ->  | M94: =IF(L94>0,INDEX(Poeng!$A$1:$B$100,L94,2),"") ->  | O94: =IF(N94>0,INDEX(Poeng!$A$1:$B$100,N94,2),"") ->  | Q94: =IF(P94>0,INDEX(Poeng!$A$1:$B$100,P94,2),"") ->  | R94: 0 | S94: 0 | T94: 0 | U94: 0 | V94: 0 | W94: 0 | X94: =IF(#REF!>0,#REF!,0) ->  | Y94: 0 | Z94: 0 | AA94: 0 | AB94: 0 | AC94: 0 | AD94: 0 | AE94: 0

Sheet G13
A1: Gutter 13 | C1: Sparebank1-CUP 2021
F2: SP1- CUP 1 | H2: SP1- CUP 2 | J2: SP1- CUP 3 | L2: SP1- CUP 4 | N2: SP1- CUP 5 | P2: SP1- CUP 6 | R2: Poeng | Y2: Fire beste | AC2: Sum
A3: Nr | B3: NAVN | C3: KLUBB | D3: POENG | E3: Fullført | F3: Nr. Poeng | H3: Nr. Poeng | J3: Nr. Poeng | L3: Nr. Poeng | N3: Nr. Poeng | P3: Nr. Poeng | R3: 1 | S3: 2 | T3: 3 | U3: 4 | V3: 5 | W3: 6 | X3: 7 | Y3: 1 | Z3: 2 | AA3: 3 | AB3: 4
A4: =AF4 -> 1 | B4: Halvor Sellesbakk | C4: Byåsen IL | D4: =IF(B4<>"",AC4,"") -> 400 | E4: =IF(AD4<4," ","F") -> F | F4: 1 | G4: =IF(F4>0,INDEX(Poeng!$A$1:$B$100,F4,2),"") -> 100 | H4: 1 | I4: =IF(H4>0,INDEX(Poeng!$A$1:$B$100,H4,2),"") -> 100 | J4: 1 | K4: =IF(J4>0,INDEX(Poeng!$A$1:$B$100,J4,2),"") -> 100 | L4: 1 | M4: =IF(L4>0,INDEX(Poeng!$A$1:$B$100,L4,2),"") -> 100 | N4: 1 | O4: =IF(N4>0,INDEX(Poeng!$A$1:$B$100,N4,2),"") -> 100 | P4: 1 | Q4: =IF(P4>0,INDEX(Poeng!$A$1:$B$100,P4,2),"") -> 100 | R4: =IF(F4>0,G4,0) -> 100 | S4: =IF(H4>0,I4,0) -> 100 | T4: =IF(J4>0,K4,0) -> 100 | U4: =IF(L4>0,M4,0) -> 100 | V4: =IF(N4>0,O4,0) -> 100 | W4: =IF(P4>0,Q4,0) -> 100 | X4: =IF(#REF!>0,#REF!,0) ->  | Y4: =LARGE(R4:W4,1) -> 100 | Z4: =LARGE(R4:W4,2) -> 100 | AA4: =LARGE(R4:W4,3) -> 100 | AB4: =LARGE(R4:W4,4) -> 100 | AC4: =SUM(Y4:AB4) -> 400 | AD4: =COUNT(F4:Q4)/2 -> 6 | AE4: =AC4*10^8+Y4*10^6/2+Z4*10^4/2+AA4*10^2/2+AB4/2 -> 40050505050 | AF4: =IF(B4<>"",RANK(AE4,AE$4:AE$41,0),"") -> 1
A5: 2 | B5: Torarin Osland | C5: Byåsen IL | D5: 290 | E5: F | F5: 2 | G5: =IF(F5>0,INDEX(Poeng!$A$1:$B$100,F5,2),"") -> 80 | H5: 2 | I5: =IF(H5>0,INDEX(Poeng!$A$1:$B$100,H5,2),"") -> 80 | K5: =IF(J5>0,INDEX(Poeng!$A$1:$B$100,J5,2),"") ->  | M5: =IF(L5>0,INDEX(Poeng!$A$1:$B$100,L5,2),"") ->  | N5: 2 | O5: =IF(N5>0,INDEX(Poeng!$A$1:$B$100,N5,2),"") -> 80 | P5: 4 | Q5: =IF(P5>0,INDEX(Poeng!$A$1:$B$100,P5,2),"") -> 50 | R5: 80 | S5: 80 | T5: 0 | U5: 0 | V5: 80 | W5: 50 | X5: =IF(#REF!>0,#REF!,0) ->  | Y5: 80 | Z5: 80 | AA5: 80 | AB5: 50 | AC5: 290 | AD5: 4 | AE5: 29040404025 | AF5: 2
A6: 3 | B6: Markus Rekstad | C6: Byåsen IL | D6: 280 | E6: F | F6: 2 | G6: =IF(F6>0,INDEX(Poeng!$A$1:$B$100,F6,2),"") -> 80 | H6: 5 | I6: =IF(H6>0,INDEX(Poeng!$A$1:$B$100,H6,2),"") -> 45 | J6: 2 | K6: =IF(J6>0,INDEX(Poeng!$A$1:$B$100,J6,2),"") -> 80 | L6: 3 | M6: =IF(L6>0,INDEX(Poeng!$A$1:$B$100,L6,2),"") -> 60 | N6: 3 | O6: =IF(N6>0,INDEX(Poeng!$A$1:$B$100,N6,2),"") -> 60 | P6: 3 | Q6: =IF(P6>0,INDEX(Poeng!$A$1:$B$100,P6,2),"") -> 60 | R6: 80 | S6: 45 | T6: 80 | U6: 60 | V6: 60 | W6: 60 | X6: =IF(#REF!>0,#REF!,0) ->  | Y6: 80 | Z6: 80 | AA6: 60 | AB6: 60 | AC6: 280 | AD6: 6 | AE6: 28040403030 | AF6: 3
A7: 4 | B7: Oskar Lunde | C7: Byåsen IL | D7: 270 | E7: F | F7: 5 | G7: =IF(F7>0,INDEX(Poeng!$A$1:$B$100,F7,2),"") -> 45 | H7: 4 | I7: =IF(H7>0,INDEX(Poeng!$A$1:$B$100,H7,2),"") -> 50 | J7: 3 | K7: =IF(J7>0,INDEX(Poeng!$A$1:$B$100,J7,2),"") -> 60 | L7: 2 | M7: =IF(L7>0,INDEX(Poeng!$A$1:$B$100,L7,2),"") -> 80 | N7: 5 | O7: =IF(N7>0,INDEX(Poeng!$A$1:$B$100,N7,2),"") -> 45 | P7: 2 | Q7: =IF(P7>0,INDEX(Poeng!$A$1:$B$100,P7,2),"") -> 80 | R7: 45 | S7: 50 | T7: 60 | U7: 80 | V7: 45 | W7: 80 | X7: =IF(#REF!>0,#REF!,0) ->  | Y7: 80 | Z7: 80 | AA7: 60 | AB7: 50 | AC7: 270 | AD7: 6 | AE7: 27040403025 | AF7: 4
A8: 5 | B8: Jacob Sæther Myrland | C8: Byåsen IL | D8: 205 | E8: F | F8: 11 | G8: =IF(F8>0,INDEX(Poeng!$A$1:$B$100,F8,2),"") -> 24 | H8: 3 | I8: =IF(H8>0,INDEX(Poeng!$A$1:$B$100,H8,2),"") -> 60 | J8: 4 | K8: =IF(J8>0,INDEX(Poeng!$A$1:$B$100,J8,2),"") -> 50 | L8: 6 | M8: =IF(L8>0,INDEX(Poeng!$A$1:$B$100,L8,2),"") -> 40 | N8: 4 | O8: =IF(N8>0,INDEX(Poeng!$A$1:$B$100,N8,2),"") -> 50 | P8: 5 | Q8: =IF(P8>0,INDEX(Poeng!$A$1:$B$100,P8,2),"") -> 45 | R8: 24 | S8: 60 | T8: 50 | U8: 40 | V8: 50 | W8: 45 | X8: =IF(#REF!>0,#REF!,0) ->  | Y8: 60 | Z8: 50 | AA8: 50 | AB8: 45 | AC8: 205 | AD8: 6 | AE8: 2.053025252e+10 | AF8: 5
A9: 6 | B9: Filip Bjørgen Leinslie | C9: Lundamo IL | D9: 176 | E9: F | F9: 6 | G9: =IF(F9>0,INDEX(Poeng!$A$1:$B$100,F9,2),"") -> 40 | I9: =IF(H9>0,INDEX(Poeng!$A$1:$B$100,H9,2),"") ->  | K9: =IF(J9>0,INDEX(Poeng!$A$1:$B$100,J9,2),"") ->  | L9: 3 | M9: =IF(L9>0,INDEX(Poeng!$A$1:$B$100,L9,2),"") -> 60 | N9: 7 | O9: =IF(N9>0,INDEX(Poeng!$A$1:$B$100,N9,2),"") -> 36 | P9: 6 | Q9: =IF(P9>0,INDEX(Poeng!$A$1:$B$100,P9,2),"") -> 40 | R9: 40 | S9: 0 | T9: 0 | U9: 60 | V9: 36 | W9: 40 | X9: =IF(#REF!>0,#REF!,0) ->  | Y9: 60 | Z9: 40 | AA9: 40 | AB9: 36 | AC9: 176 | AD9: 4 | AE9: 17630202018 | AF9: 6
A10: 7 | B10: Linus Stjern Strand | C10: Byåsen IL | D10: 176 | E10: F | F10: 4 | G10: =IF(F10>0,INDEX(Poeng!$A$1:$B$100,F10,2),"") -> 50 | H10: 5 | I10: =IF(H10>0,INDEX(Poeng!$A$1:$B$100,H10,2),"") -> 45 | J10: 7 | K10: =IF(J10>0,INDEX(Poeng!$A$1:$B$100,J10,2),"") -> 36 | L10: 5 | M10: =IF(L10>0,INDEX(Poeng!$A$1:$B$100,L10,2),"") -> 45 | O10: =IF(N10>0,INDEX(Poeng!$A$1:$B$100,N10,2),"") ->  | Q10: =IF(P10>0,INDEX(Poeng!$A$1:$B$100,P10,2),"") ->  | R10: 50 | S10: 45 | T10: 36 | U10: 45 | V10: 0 | W10: 0 | X10: =IF(#REF!>0,#REF!,0) ->  | Y10: 50 | Z10: 45 | AA10: 45 | AB10: 36 | AC10: 176 | AD10: 4 | AE10: 17625227268 | AF10: 7
A11: 8 | B11: Fredrik Aune Aakerli | C11: Heimdal Ski | D11: 153 | E11: F | F11: 8 | G11: =IF(F11>0,INDEX(Poeng!$A$1:$B$100,F11,2),"") -> 32 | H11: 7 | I11: =IF(H11>0,INDEX(Poeng!$A$1:$B$100,H11,2),"") -> 36 | J11: 5 | K11: =IF(J11>0,INDEX(Poeng!$A$1:$B$100,J11,2),"") -> 45 | L11: 12 | M11: =IF(L11>0,INDEX(Poeng!$A$1:$B$100,L11,2),"") -> 22 | N11: 6 | O11: =IF(N11>0,INDEX(Poeng!$A$1:$B$100,N11,2),"") -> 40 | P11: 8 | Q11: =IF(P11>0,INDEX(Poeng!$A$1:$B$100,P11,2),"") -> 32 | R11: 32 | S11: 36 | T11: 45 | U11: 22 | V11: 40 | W11: 32 | X11: =IF(#REF!>0,#REF!,0) ->  | Y11: 45 | Z11: 40 | AA11: 36 | AB11: 32 | AC11: 153 | AD11: 6 | AE11: 15322701816 | AF11: 8
A12: 9 | B12: Ole Christopher Gaddass Sand | C12: Strindheim IL | D12: 120 | E12: F | F12: 7 | G12: =IF(F12>0,INDEX(Poeng!$A$1:$B$100,F12,2),"") -> 36 | H12: 11 | I12: =IF(H12>0,INDEX(Poeng!$A$1:$B$100,H12,2),"") -> 24 | J12: 10 | K12: =IF(J12>0,INDEX(Poeng!$A$1:$B$100,J12,2),"") -> 26 | L12: 8 | M12: =IF(L12>0,INDEX(Poeng!$A$1:$B$100,L12,2),"") -> 32 | N12: 12 | O12: =IF(N12>0,INDEX(Poeng!$A$1:$B$100,N12,2),"") -> 22 | P12: 10 | Q12: =IF(P12>0,INDEX(Poeng!$A$1:$B$100,P12,2),"") -> 26 | R12: 36 | S12: 24 | T12: 26 | U12: 32 | V12: 22 | W12: 26 | X12: =IF(#REF!>0,#REF!,0) ->  | Y12: 36 | Z12: 32 | AA12: 26 | AB12: 26 | AC12: 120 | AD12: 6 | AE12: 12018161313 | AF12: 9
A13: 10 | B13: Markus Almås | C13: Byåsen IL | D13: 119 | E13: F | F13: 10 | G13: =IF(F13>0,INDEX(Poeng!$A$1:$B$100,F13,2),"") -> 26 | H13: 8 | I13: =IF(H13>0,INDEX(Poeng!$A$1:$B$100,H13,2),"") -> 32 | J13: 8 | K13: =IF(J13>0,INDEX(Poeng!$A$1:$B$100,J13,2),"") -> 32 | L13: 10 | M13: =IF(L13>0,INDEX(Poeng!$A$1:$B$100,L13,2),"") -> 26 | N13: 10 | O13: =IF(N13>0,INDEX(Poeng!$A$1:$B$100,N13,2),"") -> 26 | P13: 9 | Q13: =IF(P13>0,INDEX(Poeng!$A$1:$B$100,P13,2),"") -> 29 | R13: 26 | S13: 32 | T13: 32 | U13: 26 | V13: 26 | W13: 29 | X13: =IF(#REF!>0,#REF!,0) ->  | Y13: 32 | Z13: 32 | AA13: 29 | AB13: 26 | AC13: 119 | AD13: 6 | AE13: 11916161463 | AF13: 10
A14: 11 | B14: Henrik Sæterbø Nielsen | C14: Strindheim IL | D14: 109 | E14: F | F14: 12 | G14: =IF(F14>0,INDEX(Poeng!$A$1:$B$100,F14,2),"") -> 22 | H14: 9 | I14: =IF(H14>0,INDEX(Poeng!$A$1:$B$100,H14,2),"") -> 29 | J14: 12 | K14: =IF(J14>0,INDEX(Poeng!$A$1:$B$100,J14,2),"") -> 22 | L14: 7 | M14: =IF(L14>0,INDEX(Poeng!$A$1:$B$100,L14,2),"") -> 36 | N14: 16 | O14: =IF(N14>0,INDEX(Poeng!$A$1:$B$100,N14,2),"") -> 15 | P14: 12 | Q14: =IF(P14>0,INDEX(Poeng!$A$1:$B$100,P14,2),"") -> 22 | R14: 22 | S14: 29 | T14: 22 | U14: 36 | V14: 15 | W14: 22 | X14: =IF(#REF!>0,#REF!,0) ->  | Y14: 36 | Z14: 29 | AA14: 22 | AB14: 22 | AC14: 109 | AD14: 6 | AE14: 10918146111 | AF14: 11
A15: 12 | B15: Vegard Sundal | C15: Byåsen IL | D15: 105 | E15: F | G15: =IF(F15>0,INDEX(Poeng!$A$1:$B$100,F15,2),"") ->  | H15: 13 | I15: =IF(H15>0,INDEX(Poeng!$A$1:$B$100,H15,2),"") -> 20 | J15: 9 | K15: =IF(J15>0,INDEX(Poeng!$A$1:$B$100,J15,2),"") -> 29 | L15: 14 | M15: =IF(L15>0,INDEX(Poeng!$A$1:$B$100,L15,2),"") -> 18 | N15: 8 | O15: =IF(N15>0,INDEX(Poeng!$A$1:$B$100,N15,2),"") -> 32 | P15: 11 | Q15: =IF(P15>0,INDEX(Poeng!$A$1:$B$100,P15,2),"") -> 24 | R15: 0 | S15: 20 | T15: 29 | U15: 18 | V15: 32 | W15: 24 | X15: =IF(#REF!>0,#REF!,0) ->  | Y15: 32 | Z15: 29 | AA15: 24 | AB15: 20 | AC15: 105 | AD15: 5 | AE15: 10516146210 | AF15: 12
A16: 13 | B16: Magnus Lande | C16: Byåsen IL | D16: 102 | E16: F | F16: 14 | G16: =IF(F16>0,INDEX(Poeng!$A$1:$B$100,F16,2),"") -> 18 | H16: 10 | I16: =IF(H16>0,INDEX(Poeng!$A$1:$B$100,H16,2),"") -> 26 | J16: 13 | K16: =IF(J16>0,INDEX(Poeng!$A$1:$B$100,J16,2),"") -> 20 | L16: 11 | M16: =IF(L16>0,INDEX(Poeng!$A$1:$B$100,L16,2),"") -> 24 | N16: 8 | O16: =IF(N16>0,INDEX(Poeng!$A$1:$B$100,N16,2),"") -> 32 | P16: 13 | Q16: =IF(P16>0,INDEX(Poeng!$A$1:$B$100,P16,2),"") -> 20 | R16: 18 | S16: 26 | T16: 20 | U16: 24 | V16: 32 | W16: 20 | X16: =IF(#REF!>0,#REF!,0) ->  | Y16: 32 | Z16: 26 | AA16: 24 | AB16: 20 | AC16: 102 | AD16: 6 | AE16: 10216131210 | AF16: 13
A17: 14 | B17: Benjamin Finanger | C17: Leik, IL | D17: 97 | E17: F | F17: 13 | G17: =IF(F17>0,INDEX(Poeng!$A$1:$B$100,F17,2),"") -> 20 | H17: 11 | I17: =IF(H17>0,INDEX(Poeng!$A$1:$B$100,H17,2),"") -> 24 | J17: 11 | K17: =IF(J17>0,INDEX(Poeng!$A$1:$B$100,J17,2),"") -> 24 | L17: 9 | M17: =IF(L17>0,INDEX(Poeng!$A$1:$B$100,L17,2),"") -> 29 | O17: =IF(N17>0,INDEX(Poeng!$A$1:$B$100,N17,2),"") ->  | Q17: =IF(P17>0,INDEX(Poeng!$A$1:$B$100,P17,2),"") ->  | R17: 20 | S17: 24 | T17: 24 | U17: 29 | V17: 0 | W17: 0 | X17: =IF(#REF!>0,#REF!,0) ->  | Y17: 29 | Z17: 24 | AA17: 24 | AB17: 20 | AC17: 97 | AD17: 4 | AE17: 9714621210 | AF17: 14
A18: 15 | B18: Tobias Bergquist Reitan | C18: Byåsen IL | D18: 76 | G18: =IF(F18>0,INDEX(Poeng!$A$1:$B$100,F18,2),"") ->  | I18: =IF(H18>0,INDEX(Poeng!$A$1:$B$100,H18,2),"") ->  | J18: 6 | K18: =IF(J18>0,INDEX(Poeng!$A$1:$B$100,J18,2),"") -> 40 | M18: =IF(L18>0,INDEX(Poeng!$A$1:$B$100,L18,2),"") ->  | O18: =IF(N18>0,INDEX(Poeng!$A$1:$B$100,N18,2),"") ->  | P18: 7 | Q18: =IF(P18>0,INDEX(Poeng!$A$1:$B$100,P18,2),"") -> 36 | R18: 0 | S18: 0 | T18: 40 | U18: 0 | V18: 0 | W18: 36 | X18: =IF(#REF!>0,#REF!,0) ->  | Y18: 40 | Z18: 36 | AA18: 0 | AB18: 0 | AC18: 76 | AD18: 2 | AE18: 7620180000 | AF18: 15
A19: 16 | B19: Ola Slind | C19: Selbu IL | D19: 68 | E19: F | F19: 22 | G19: =IF(F19>0,INDEX(Poeng!$A$1:$B$100,F19,2),"") -> 9 | H19: 15 | I19: =IF(H19>0,INDEX(Poeng!$A$1:$B$100,H19,2),"") -> 16 | J19: 17 | K19: =IF(J19>0,INDEX(Poeng!$A$1:$B$100,J19,2),"") -> 14 | M19: =IF(L19>0,INDEX(Poeng!$A$1:$B$100,L19,2),"") ->  | N19: 11 | O19: =IF(N19>0,INDEX(Poeng!$A$1:$B$100,N19,2),"") -> 24 | P19: 17 | Q19: =IF(P19>0,INDEX(Poeng!$A$1:$B$100,P19,2),"") -> 14 | R19: 9 | S19: 16 | T19: 14 | U19: 0 | V19: 24 | W19: 14 | X19: =IF(#REF!>0,#REF!,0) ->  | Y19: 24 | Z19: 16 | AA19: 14 | AB19: 14 | AC19: 68 | AD19: 5 | AE19: 6812080707 | AF19: 16
A20: 17 | B20: Teodor Thorsø | C20: Heimdal Ski | D20: 68 | E20: F | F20: 16 | G20: =IF(F20>0,INDEX(Poeng!$A$1:$B$100,F20,2),"") -> 15 | H20: 16 | I20: =IF(H20>0,INDEX(Poeng!$A$1:$B$100,H20,2),"") -> 15 | J20: 15 | K20: =IF(J20>0,INDEX(Poeng!$A$1:$B$100,J20,2),"") -> 16 | L20: 15 | M20: =IF(L20>0,INDEX(Poeng!$A$1:$B$100,L20,2),"") -> 16 | N20: 14 | O20: =IF(N20>0,INDEX(Poeng!$A$1:$B$100,N20,2),"") -> 18 | P20: 14 | Q20: =IF(P20>0,INDEX(Poeng!$A$1:$B$100,P20,2),"") -> 18 | R20: 15 | S20: 15 | T20: 16 | U20: 16 | V20: 18 | W20: 18 | X20: =IF(#REF!>0,#REF!,0) ->  | Y20: 18 | Z20: 18 | AA20: 16 | AB20: 16 | AC20: 68 | AD20: 6 | AE20: 6809090808 | AF20: 17
A21: 18 | B21: Oliver Vatterholm Jernberg | C21: Byaasen Skiklub | D21: 55 | E21: F | F21: 21 | G21: =IF(F21>0,INDEX(Poeng!$A$1:$B$100,F21,2),"") -> 10 | H21: 18 | I21: =IF(H21>0,INDEX(Poeng!$A$1:$B$100,H21,2),"") -> 13 | J21: 19 | K21: =IF(J21>0,INDEX(Poeng!$A$1:$B$100,J21,2),"") -> 12 | L21: 17 | M21: =IF(L21>0,INDEX(Poeng!$A$1:$B$100,L21,2),"") -> 14 | N21: 15 | O21: =IF(N21>0,INDEX(Poeng!$A$1:$B$100,N21,2),"") -> 16 | P21: 20 | Q21: =IF(P21>0,INDEX(Poeng!$A$1:$B$100,P21,2),"") -> 11 | R21: 10 | S21: 13 | T21: 12 | U21: 14 | V21: 16 | W21: 11 | X21: =IF(#REF!>0,#REF!,0) ->  | Y21: 16 | Z21: 14 | AA21: 13 | AB21: 12 | AC21: 55 | AD21: 6 | AE21: 5508070656 | AF21: 18
A22: 19 | B22: Vegard Aasbø | C22: Surnadal IL | D22: 51 | G22: =IF(F22>0,INDEX(Poeng!$A$1:$B$100,F22,2),"") ->  | H22: 14 | I22: =IF(H22>0,INDEX(Poeng!$A$1:$B$100,H22,2),"") -> 18 | K22: =IF(J22>0,INDEX(Poeng!$A$1:$B$100,J22,2),"") ->  | L22: 13 | M22: =IF(L22>0,INDEX(Poeng!$A$1:$B$100,L22,2),"") -> 20 | O22: =IF(N22>0,INDEX(Poeng!$A$1:$B$100,N22,2),"") ->  | P22: 18 | Q22: =IF(P22>0,INDEX(Poeng!$A$1:$B$100,P22,2),"") -> 13 | R22: 0 | S22: 18 | T22: 0 | U22: 20 | V22: 0 | W22: 13 | X22: =IF(#REF!>0,#REF!,0) ->  | Y22: 20 | Z22: 18 | AA22: 13 | AB22: 0 | AC22: 51 | AD22: 3 | AE22: 5110090650 | AF22: 19
A23: 20 | B23: William Holsing Kottum | C23: Heimdal Ski | D23: 49 | E23: F | F23: 24 | G23: =IF(F23>0,INDEX(Poeng!$A$1:$B$100,F23,2),"") -> 7 | H23: 19 | I23: =IF(H23>0,INDEX(Poeng!$A$1:$B$100,H23,2),"") -> 12 | J23: 20 | K23: =IF(J23>0,INDEX(Poeng!$A$1:$B$100,J23,2),"") -> 11 | L23: 18 | M23: =IF(L23>0,INDEX(Poeng!$A$1:$B$100,L23,2),"") -> 13 | N23: 18 | O23: =IF(N23>0,INDEX(Poeng!$A$1:$B$100,N23,2),"") -> 13 | P23: 25 | Q23: =IF(P23>0,INDEX(Poeng!$A$1:$B$100,P23,2),"") -> 6 | R23: 7 | S23: 12 | T23: 11 | U23: 13 | V23: 13 | W23: 6 | X23: =IF(#REF!>0,#REF!,0) ->  | Y23: 13 | Z23: 13 | AA23: 12 | AB23: 11 | AC23: 49 | AD23: 6 | AE23: 4906565606 | AF23: 20
A24: 21 | B24: Torstein Aam | C24: Byåsen IL | D24: 36 | G24: =IF(F24>0,INDEX(Poeng!$A$1:$B$100,F24,2),"") ->  | I24: =IF(H24>0,INDEX(Poeng!$A$1:$B$100,H24,2),"") ->  | K24: =IF(J24>0,INDEX(Poeng!$A$1:$B$100,J24,2),"") ->  | M24: =IF(L24>0,INDEX(Poeng!$A$1:$B$100,L24,2),"") ->  | N24: 13 | O24: =IF(N24>0,INDEX(Poeng!$A$1:$B$100,N24,2),"") -> 20 | P24: 15 | Q24: =IF(P24>0,INDEX(Poeng!$A$1:$B$100,P24,2),"") -> 16 | R24: 0 | S24: 0 | T24: 0 | U24: 0 | V24: 20 | W24: 16 | X24: =IF(#REF!>0,#REF!,0) ->  | Y24: 20 | Z24: 16 | AA24: 0 | AB24: 0 | AC24: 36 | AD24: 2 | AE24: 3610080000 | AF24: 21
A25: 22 | B25: Nikolai Fosli | C25: Hommelvik IL | D25: 30 | G25: =IF(F25>0,INDEX(Poeng!$A$1:$B$100,F25,2),"") ->  | I25: =IF(H25>0,INDEX(Poeng!$A$1:$B$100,H25,2),"") ->  | J25: 14 | K25: =IF(J25>0,INDEX(Poeng!$A$1:$B$100,J25,2),"") -> 18 | M25: =IF(L25>0,INDEX(Poeng!$A$1:$B$100,L25,2),"") ->  | O25: =IF(N25>0,INDEX(Poeng!$A$1:$B$100,N25,2),"") ->  | P25: 19 | Q25: =IF(P25>0,INDEX(Poeng!$A$1:$B$100,P25,2),"") -> 12 | R25: 0 | S25: 0 | T25: 18 | U25: 0 | V25: 0 | W25: 12 | X25: =IF(#REF!>0,#REF!,0) ->  | Y25: 18 | Z25: 12 | AA25: 0 | AB25: 0 | AC25: 30 | AD25: 2 | AE25: 3009060000 | AF25: 22
A26: 23 | B26: Mathias Reinertsen Leroyer | C26: Byaasen Skiklub | D26: 29 | F26: 9 | G26: =IF(F26>0,INDEX(Poeng!$A$1:$B$100,F26,2),"") -> 29 | I26: =IF(H26>0,INDEX(Poeng!$A$1:$B$100,H26,2),"") ->  | K26: =IF(J26>0,INDEX(Poeng!$A$1:$B$100,J26,2),"") ->  | M26: =IF(L26>0,INDEX(Poeng!$A$1:$B$100,L26,2),"") ->  | O26: =IF(N26>0,INDEX(Poeng!$A$1:$B$100,N26,2),"") ->  | Q26: =IF(P26>0,INDEX(Poeng!$A$1:$B$100,P26,2),"") ->  | R26: 29 | S26: 0 | T26: 0 | U26: 0 | V26: 0 | W26: 0 | X26: =IF(#REF!>0,#REF!,0) ->  | Y26: 29 | Z26: 0 | AA26: 0 | AB26: 0 | AC26: 29 | AD26: 1 | AE26: 2914500000 | AF26: 23
A27: 24 | B27: Aksel Vetlesen | C27: Strindheim IL | D27: 28 | F27: 18 | G27: =IF(F27>0,INDEX(Poeng!$A$1:$B$100,F27,2),"") -> 13 | I27: =IF(H27>0,INDEX(Poeng!$A$1:$B$100,H27,2),"") ->  | K27: =IF(J27>0,INDEX(Poeng!$A$1:$B$100,J27,2),"") ->  | M27: =IF(L27>0,INDEX(Poeng!$A$1:$B$100,L27,2),"") ->  | O27: =IF(N27>0,INDEX(Poeng!$A$1:$B$100,N27,2),"") ->  | P27: 16 | Q27: =IF(P27>0,INDEX(Poeng!$A$1:$B$100,P27,2),"") -> 15 | R27: 13 | S27: 0 | T27: 0 | U27: 0 | V27: 0 | W27: 15 | X27: =IF(#REF!>0,#REF!,0) ->  | Y27: 15 | Z27: 13 | AA27: 0 | AB27: 0 | AC27: 28 | AD27: 2 | AE27: 2807565000 | AF27: 24
A28: 25 | B28: Mats Nergård | C28: Orkdal IL | D28: 26 | F28: 20 | G28: =IF(F28>0,INDEX(Poeng!$A$1:$B$100,F28,2),"") -> 11 | I28: =IF(H28>0,INDEX(Poeng!$A$1:$B$100,H28,2),"") ->  | K28: =IF(J28>0,INDEX(Poeng!$A$1:$B$100,J28,2),"") ->  | L28: 16 | M28: =IF(L28>0,INDEX(Poeng!$A$1:$B$100,L28,2),"") -> 15 | O28: =IF(N28>0,INDEX(Poeng!$A$1:$B$100,N28,2),"") ->  | Q28: =IF(P28>0,INDEX(Poeng!$A$1:$B$100,P28,2),"") ->  | R28: 11 | S28: 0 | T28: 0 | U28: 15 | V28: 0 | W28: 0 | X28: =IF(#REF!>0,#REF!,0) ->  | Y28: 15 | Z28: 11 | AA28: 0 | AB28: 0 | AC28: 26 | AD28: 2 | AE28: 2607555000 | AF28: 25
A29: 26 | B29: Lasse Elvebakk | C29: Byåsen Skiklubb | D29: 24 | G29: =IF(F29>0,INDEX(Poeng!$A$1:$B$100,F29,2),"") ->  | I29: =IF(H29>0,INDEX(Poeng!$A$1:$B$100,H29,2),"") ->  | K29: =IF(J29>0,INDEX(Poeng!$A$1:$B$100,J29,2),"") ->  | M29: =IF(L29>0,INDEX(Poeng!$A$1:$B$100,L29,2),"") ->  | N29: 17 | O29: =IF(N29>0,INDEX(Poeng!$A$1:$B$100,N29,2),"") -> 14 | P29: 21 | Q29: =IF(P29>0,INDEX(Poeng!$A$1:$B$100,P29,2),"") -> 10 | R29: 0 | S29: 0 | T29: 0 | U29: 0 | V29: 14 | W29: 10 | X29: =IF(#REF!>0,#REF!,0) ->  | Y29: 14 | Z29: 10 | AA29: 0 | AB29: 0 | AC29: 24 | AD29: 2 | AE29: 2407050000 | AF29: 26
A30: 27 | B30: Iver-Martin Kjørsvik Fossen | C30: Hommelvik IL | D30: 18 | G30: =IF(F30>0,INDEX(Poeng!$A$1:$B$100,F30,2),"") ->  | I30: =IF(H30>0,INDEX(Poeng!$A$1:$B$100,H30,2),"") ->  | J30: 18 | K30: =IF(J30>0,INDEX(Poeng!$A$1:$B$100,J30,2),"") -> 13 | M30: =IF(L30>0,INDEX(Poeng!$A$1:$B$100,L30,2),"") ->  | O30: =IF(N30>0,INDEX(Poeng!$A$1:$B$100,N30,2),"") ->  | P30: 26 | Q30: =IF(P30>0,INDEX(Poeng!$A$1:$B$100,P30,2),"") -> 5 | R30: 0 | S30: 0 | T30: 13 | U30: 0 | V30: 0 | W30: 5 | X30: =IF(#REF!>0,#REF!,0) ->  | Y30: 13 | Z30: 5 | AA30: 0 | AB30: 0 | AC30: 18 | AD30: 2 | AE30: 1806525000 | AF30: 27
A31: 28 | B31: Ola Øvstedal Brenna | C31: Byaasen Skiklub | D31: 16 | F31: 15 | G31: =IF(F31>0,INDEX(Poeng!$A$1:$B$100,F31,2),"") -> 16 | I31: =IF(H31>0,INDEX(Poeng!$A$1:$B$100,H31,2),"") ->  | K31: =IF(J31>0,INDEX(Poeng!$A$1:$B$100,J31,2),"") ->  | M31: =IF(L31>0,INDEX(Poeng!$A$1:$B$100,L31,2),"") ->  | O31: =IF(N31>0,INDEX(Poeng!$A$1:$B$100,N31,2),"") ->  | Q31: =IF(P31>0,INDEX(Poeng!$A$1:$B$100,P31,2),"") ->  | R31: 16 | S31: 0 | T31: 0 | U31: 0 | V31: 0 | W31: 0 | X31: =IF(#REF!>0,#REF!,0) ->  | Y31: 16 | Z31: 0 | AA31: 0 | AB31: 0 | AC31: 16 | AD31: 1 | AE31: 1608000000 | AF31: 28
A32: 29 | B32: Andreas Sørnes | C32: Hommelvik IL | D32: 15 | G32: =IF(F32>0,INDEX(Poeng!$A$1:$B$100,F32,2),"") ->  | I32: =IF(H32>0,INDEX(Poeng!$A$1:$B$100,H32,2),"") ->  | J32: 16 | K32: =IF(J32>0,INDEX(Poeng!$A$1:$B$100,J32,2),"") -> 15 | M32: =IF(L32>0,INDEX(Poeng!$A$1:$B$100,L32,2),"") ->  | O32: =IF(N32>0,INDEX(Poeng!$A$1:$B$100,N32,2),"") ->  | Q32: =IF(P32>0,INDEX(Poeng!$A$1:$B$100,P32,2),"") ->  | R32: 0 | S32: 0 | T32: 15 | U32: 0 | V32: 0 | W32: 0 | X32: =IF(#REF!>0,#REF!,0) ->  | Y32: 15 | Z32: 0 | AA32: 0 | AB32: 0 | AC32: 15 | AD32: 1 | AE32: 1507500000 | AF32: 29
A33: 30 | B33: Eivind Ekle-Danielsen | C33: Strindheim IL | D33: 15 | F33: 23 | G33: =IF(F33>0,INDEX(Poeng!$A$1:$B$100,F33,2),"") -> 8 | I33: =IF(H33>0,INDEX(Poeng!$A$1:$B$100,H33,2),"") ->  | K33: =IF(J33>0,INDEX(Poeng!$A$1:$B$100,J33,2),"") ->  | M33: =IF(L33>0,INDEX(Poeng!$A$1:$B$100,L33,2),"") ->  | O33: =IF(N33>0,INDEX(Poeng!$A$1:$B$100,N33,2),"") ->  | P33: 24 | Q33: =IF(P33>0,INDEX(Poeng!$A$1:$B$100,P33,2),"") -> 7 | R33: 8 | S33: 0 | T33: 0 | U33: 0 | V33: 0 | W33: 7 | X33: =IF(#REF!>0,#REF!,0) ->  | Y33: 8 | Z33: 7 | AA33: 0 | AB33: 0 | AC33: 15 | AD33: 2 | AE33: 1504035000 | AF33: 30
A34: 31 | B34: Alvin Le | C34: Byåsen IL | D34: 14 | G34: =IF(F34>0,INDEX(Poeng!$A$1:$B$100,F34,2),"") ->  | H34: 17 | I34: =IF(H34>0,INDEX(Poeng!$A$1:$B$100,H34,2),"") -> 14 | K34: =IF(J34>0,INDEX(Poeng!$A$1:$B$100,J34,2),"") ->  | M34: =IF(L34>0,INDEX(Poeng!$A$1:$B$100,L34,2),"") ->  | O34: =IF(N34>0,INDEX(Poeng!$A$1:$B$100,N34,2),"") ->  | Q34: =IF(P34>0,INDEX(Poeng!$A$1:$B$100,P34,2),"") ->  | R34: =IF(F34>0,G34,0) -> 0 | S34: =IF(H34>0,I34,0) -> 14 | T34: =IF(J34>0,K34,0) -> 0 | U34: =IF(L34>0,M34,0) -> 0 | V34: =IF(N34>0,O34,0) -> 0 | W34: =IF(P34>0,Q34,0) -> 0 | X34: =IF(#REF!>0,#REF!,0) ->  | Y34: =LARGE(R34:W34,1) -> 14 | Z34: =LARGE(R34:W34,2) -> 0 | AA34: =LARGE(R34:W34,3) -> 0 | AB34: =LARGE(R34:W34,4) -> 0 | AC34: =SUM(Y34:AB34) -> 14 | AD34: =COUNT(F34:Q34)/2 -> 1 | AE34: =AC34*10^8+Y34*10^6/2+Z34*10^4/2+AA34*10^2/2+AB34/2 -> 1407000000 | AF34: 31
A35: 31 | B35: Dagfinn Stenvik | C35: Byåsen IL | D35: 14 | F35: 17 | G35: =IF(F35>0,INDEX(Poeng!$A$1:$B$100,F35,2),"") -> 14 | I35: =IF(H35>0,INDEX(Poeng!$A$1:$B$100,H35,2),"") ->  | K35: =IF(J35>0,INDEX(Poeng!$A$1:$B$100,J35,2),"") ->  | M35: =IF(L35>0,INDEX(Poeng!$A$1:$B$100,L35,2),"") ->  | O35: =IF(N35>0,INDEX(Poeng!$A$1:$B$100,N35,2),"") ->  | Q35: =IF(P35>0,INDEX(Poeng!$A$1:$B$100,P35,2),"") ->  | R35: 14 | S35: 0 | T35: 0 | U35: 0 | V35: 0 | W35: 0 | X35: =IF(#REF!>0,#REF!,0) ->  | Y35: 14 | Z35: 0 | AA35: 0 | AB35: 0 | AC35: 14 | AD35: 1 | AE35: 1407000000 | AF35: 31
A36: 33 | B36: Konrad Rottem Henriksen | C36: Sjetne IL | D36: 14 | F36: 25 | G36: =IF(F36>0,INDEX(Poeng!$A$1:$B$100,F36,2),"") -> 6 | I36: =IF(H36>0,INDEX(Poeng!$A$1:$B$100,H36,2),"") ->  | K36: =IF(J36>0,INDEX(Poeng!$A$1:$B$100,J36,2),"") ->  | M36: =IF(L36>0,INDEX(Poeng!$A$1:$B$100,L36,2),"") ->  | O36: =IF(N36>0,INDEX(Poeng!$A$1:$B$100,N36,2),"") ->  | P36: 23 | Q36: =IF(P36>0,INDEX(Poeng!$A$1:$B$100,P36,2),"") -> 8 | R36: 6 | S36: 0 | T36: 0 | U36: 0 | V36: 0 | W36: 8 | X36: =IF(#REF!>0,#REF!,0) ->  | Y36: 8 | Z36: 6 | AA36: 0 | AB36: 0 | AC36: 14 | AD36: 2 | AE36: 1404030000 | AF36: =IF(B36<>"",RANK(AE36,AE$4:AE$41,0),"") -> 33
A37: 34 | B37: Adrian Hepsøe | C37: Strindheim IL | D37: 12 | F37: 19 | G37: =IF(F37>0,INDEX(Poeng!$A$1:$B$100,F37,2),"") -> 12 | I37: =IF(H37>0,INDEX(Poeng!$A$1:$B$100,H37,2),"") ->  | K37: =IF(J37>0,INDEX(Poeng!$A$1:$B$100,J37,2),"") ->  | M37: =IF(L37>0,INDEX(Poeng!$A$1:$B$100,L37,2),"") ->  | O37: =IF(N37>0,INDEX(Poeng!$A$1:$B$100,N37,2),"") ->  | Q37: =IF(P37>0,INDEX(Poeng!$A$1:$B$100,P37,2),"") ->  | R37: 12 | S37: 0 | T37: 0 | U37: 0 | V37: 0 | W37: 0 | X37: =IF(#REF!>0,#REF!,0) ->  | Y37: 12 | Z37: 0 | AA37: 0 | AB37: 0 | AC37: 12 | AD37: 1 | AE37: 1206000000 | AF37: 34
A38: 35 | B38: Eirik Owesen Eidem | C38: Melhus IL | D38: 11 | G38: =IF(F38>0,INDEX(Poeng!$A$1:$B$100,F38,2),"") ->  | H38: 20 | I38: =IF(H38>0,INDEX(Poeng!$A$1:$B$100,H38,2),"") -> 11 | K38: =IF(J38>0,INDEX(Poeng!$A$1:$B$100,J38,2),"") ->  | M38: =IF(L38>0,INDEX(Poeng!$A$1:$B$100,L38,2),"") ->  | O38: =IF(N38>0,INDEX(Poeng!$A$1:$B$100,N38,2),"") ->  | Q38: =IF(P38>0,INDEX(Poeng!$A$1:$B$100,P38,2),"") ->  | R38: 0 | S38: 11 | T38: 0 | U38: 0 | V38: 0 | W38: 0 | X38: =IF(#REF!>0,#REF!,0) ->  | Y38: 11 | Z38: 0 | AA38: 0 | AB38: 0 | AC38: 11 | AD38: 1 | AE38: 1105500000 | AF38: 35
A39: 36 | B39: Gabriel Piotrowski Svane | C39: Hommelvik IL | D39: 10 | G39: =IF(F39>0,INDEX(Poeng!$A$1:$B$100,F39,2),"") ->  | I39: =IF(H39>0,INDEX(Poeng!$A$1:$B$100,H39,2),"") ->  | J39: 21 | K39: =IF(J39>0,INDEX(Poeng!$A$1:$B$100,J39,2),"") -> 10 | M39: =IF(L39>0,INDEX(Poeng!$A$1:$B$100,L39,2),"") ->  | O39: =IF(N39>0,INDEX(Poeng!$A$1:$B$100,N39,2),"") ->  | Q39: =IF(P39>0,INDEX(Poeng!$A$1:$B$100,P39,2),"") ->  | R39: 0 | S39: 0 | T39: 10 | U39: 0 | V39: 0 | W39: 0 | X39: =IF(#REF!>0,#REF!,0) ->  | Y39: 10 | Z39: 0 | AA39: 0 | AB39: 0 | AC39: 10 | AD39: 1 | AE39: 1005000000 | AF39: 36
A40: 37 | B40: Magnus Berg Evjen | C40: Hommelvik IL | D40: 9 | G40: =IF(F40>0,INDEX(Poeng!$A$1:$B$100,F40,2),"") ->  | I40: =IF(H40>0,INDEX(Poeng!$A$1:$B$100,H40,2),"") ->  | J40: 22 | K40: =IF(J40>0,INDEX(Poeng!$A$1:$B$100,J40,2),"") -> 9 | M40: =IF(L40>0,INDEX(Poeng!$A$1:$B$100,L40,2),"") ->  | O40: =IF(N40>0,INDEX(Poeng!$A$1:$B$100,N40,2),"") ->  | Q40: =IF(P40>0,INDEX(Poeng!$A$1:$B$100,P40,2),"") ->  | R40: 0 | S40: 0 | T40: 9 | U40: 0 | V40: 0 | W40: 0 | X40: =IF(#REF!>0,#REF!,0) ->  | Y40: 9 | Z40: 0 | AA40: 0 | AB40: 0 | AC40: 9 | AD40: 1 | AE40: 904500000 | AF40: 37
A41: 37 | B41: Leander Østmo Dalheim | C41: Byaasen Skiklub | D41: 9 | G41: =IF(F41>0,INDEX(Poeng!$A$1:$B$100,F41,2),"") ->  | I41: =IF(H41>0,INDEX(Poeng!$A$1:$B$100,H41,2),"") ->  | K41: =IF(J41>0,INDEX(Poeng!$A$1:$B$100,J41,2),"") ->  | M41: =IF(L41>0,INDEX(Poeng!$A$1:$B$100,L41,2),"") ->  | O41: =IF(N41>0,INDEX(Poeng!$A$1:$B$100,N41,2),"") ->  | P41: 22 | Q41: =IF(P41>0,INDEX(Poeng!$A$1:$B$100,P41,2),"") -> 9 | R41: 0 | S41: 0 | T41: 0 | U41: 0 | V41: 0 | W41: 9 | X41: =IF(#REF!>0,#REF!,0) ->  | Y41: 9 | Z41: 0 | AA41: 0 | AB41: 0 | AC41: 9 | AD41: 1 | AE41: 904500000 | AF41: 37
A42: 39 | B42: Magnus Helland Grønningsæter | C42: Sjetne IL | D42: 9 | F42: 26 | G42: =IF(F42>0,INDEX(Poeng!$A$1:$B$100,F42,2),"") -> 5 | I42: =IF(H42>0,INDEX(Poeng!$A$1:$B$100,H42,2),"") ->  | K42: =IF(J42>0,INDEX(Poeng!$A$1:$B$100,J42,2),"") ->  | M42: =IF(L42>0,INDEX(Poeng!$A$1:$B$100,L42,2),"") ->  | O42: =IF(N42>0,INDEX(Poeng!$A$1:$B$100,N42,2),"") ->  | P42: 27 | Q42: =IF(P42>0,INDEX(Poeng!$A$1:$B$100,P42,2),"") -> 4 | R42: 5 | S42: 0 | T42: 0 | U42: 0 | V42: 0 | W42: 4 | X42: =IF(#REF!>0,#REF!,0) ->  | Y42: 5 | Z42: 4 | AA42: 0 | AB42: 0 | AC42: 9 | AD42: 2 | AE42: 902520000 | AF42: =IF(B42<>"",RANK(AE42,AE$4:AE$47,0),"") -> 39
A43: =AF43 ->  | D43: =IF(B43<>"",AC43,"") ->  | E43: =IF(AD43<4," ","F") ->  | G43: =IF(F43>0,INDEX(Poeng!$A$1:$B$100,F43,2),"") ->  | I43: =IF(H43>0,INDEX(Poeng!$A$1:$B$100,H43,2),"") ->  | K43: =IF(J43>0,INDEX(Poeng!$A$1:$B$100,J43,2),"") ->  | M43: =IF(L43>0,INDEX(Poeng!$A$1:$B$100,L43,2),"") ->  | O43: =IF(N43>0,INDEX(Poeng!$A$1:$B$100,N43,2),"") ->  | Q43: =IF(P43>0,INDEX(Poeng!$A$1:$B$100,P43,2),"") ->  | R43: 0 | S43: 0 | T43: 0 | U43: 0 | V43: 0 | W43: 0 | X43: =IF(#REF!>0,#REF!,0) ->  | Y43: 0 | Z43: 0 | AA43: 0 | AB43: 0 | AC43: 0 | AD43: 0 | AE43: 0
G44: =IF(F44>0,INDEX(Poeng!$A$1:$B$100,F44,2),"") ->  | I44: =IF(H44>0,INDEX(Poeng!$A$1:$B$100,H44,2),"") ->  | K44: =IF(J44>0,INDEX(Poeng!$A$1:$B$100,J44,2),"") ->  | M44: =IF(L44>0,INDEX(Poeng!$A$1:$B$100,L44,2),"") ->  | O44: =IF(N44>0,INDEX(Poeng!$A$1:$B$100,N44,2),"") ->  | Q44: =IF(P44>0,INDEX(Poeng!$A$1:$B$100,P44,2),"") ->  | R44: 0 | S44: 0 | T44: 0 | U44: 0 | V44: 0 | W44: 0 | X44: =IF(#REF!>0,#REF!,0) ->  | Y44: 0 | Z44: 0 | AA44: 0 | AB44: 0 | AC44: 0 | AD44: 0 | AE44: 0
G45: =IF(F45>0,INDEX(Poeng!$A$1:$B$100,F45,2),"") ->  | I45: =IF(H45>0,INDEX(Poeng!$A$1:$B$100,H45,2),"") ->  | K45: =IF(J45>0,INDEX(Poeng!$A$1:$B$100,J45,2),"") ->  | M45: =IF(L45>0,INDEX(Poeng!$A$1:$B$100,L45,2),"") ->  | O45: =IF(N45>0,INDEX(Poeng!$A$1:$B$100,N45,2),"") ->  | Q45: =IF(P45>0,INDEX(Poeng!$A$1:$B$100,P45,2),"") ->  | R45: 0 | S45: 0 | T45: 0 | U45: 0 | V45: 0 | W45: 0 | X45: =IF(#REF!>0,#REF!,0) ->  | Y45: 0 | Z45: 0 | AA45: 0 | AB45: 0 | AC45: 0 | AD45: 0 | AE45: 0
A46: =AF46 ->  | D46: =IF(B46<>"",AC46,"") ->  | E46: =IF(AD46<4," ","F") ->  | G46: =IF(F46>0,INDEX(Poeng!$A$1:$B$100,F46,2),"") ->  | I46: =IF(H46>0,INDEX(Poeng!$A$1:$B$100,H46,2),"") ->  | K46: =IF(J46>0,INDEX(Poeng!$A$1:$B$100,J46,2),"") ->  | M46: =IF(L46>0,INDEX(Poeng!$A$1:$B$100,L46,2),"") ->  | O46: =IF(N46>0,INDEX(Poeng!$A$1:$B$100,N46,2),"") ->  | Q46: =IF(P46>0,INDEX(Poeng!$A$1:$B$100,P46,2),"") ->  | R46: 0 | S46: 0 | T46: 0 | U46: 0 | V46: 0 | W46: 0 | X46: =IF(#REF!>0,#REF!,0) ->  | Y46: 0 | Z46: 0 | AA46: 0 | AB46: 0 | AC46: 0 | AD46: 0 | AE46: 0
G47: =IF(F47>0,INDEX(Poeng!$A$1:$B$100,F47,2),"") ->  | I47: =IF(H47>0,INDEX(Poeng!$A$1:$B$100,H47,2),"") ->  | K47: =IF(J47>0,INDEX(Poeng!$A$1:$B$100,J47,2),"") ->  | M47: =IF(L47>0,INDEX(Poeng!$A$1:$B$100,L47,2),"") ->  | O47: =IF(N47>0,INDEX(Poeng!$A$1:$B$100,N47,2),"") ->  | Q47: =IF(P47>0,INDEX(Poeng!$A$1:$B$100,P47,2),"") ->  | R47: 0 | S47: 0 | T47: 0 | U47: 0 | V47: 0 | W47: 0 | X47: =IF(#REF!>0,#REF!,0) ->  | Y47: 0 | Z47: 0 | AA47: 0 | AB47: 0 | AC47: 0 | AD47: 0 | AE47: 0
G48: =IF(F48>0,INDEX(Poeng!$A$1:$B$100,F48,2),"") ->  | I48: =IF(H48>0,INDEX(Poeng!$A$1:$B$100,H48,2),"") ->  | K48: =IF(J48>0,INDEX(Poeng!$A$1:$B$100,J48,2),"") ->  | M48: =IF(L48>0,INDEX(Poeng!$A$1:$B$100,L48,2),"") ->  | O48: =IF(N48>0,INDEX(Poeng!$A$1:$B$100,N48,2),"") ->  | Q48: =IF(P48>0,INDEX(Poeng!$A$1:$B$100,P48,2),"") ->  | R48: 0 | S48: 0 | T48: 0 | U48: 0 | V48: 0 | W48: 0 | X48: =IF(#REF!>0,#REF!,0) ->  | Y48: 0 | Z48: 0 | AA48: 0 | AB48: 0 | AC48: 0 | AD48: 0 | AE48: 0
G49: =IF(F49>0,INDEX(Poeng!$A$1:$B$100,F49,2),"") ->  | I49: =IF(H49>0,INDEX(Poeng!$A$1:$B$100,H49,2),"") ->  | K49: =IF(J49>0,INDEX(Poeng!$A$1:$B$100,J49,2),"") ->  | M49: =IF(L49>0,INDEX(Poeng!$A$1:$B$100,L49,2),"") ->  | O49: =IF(N49>0,INDEX(Poeng!$A$1:$B$100,N49,2),"") ->  | Q49: =IF(P49>0,INDEX(Poeng!$A$1:$B$100,P49,2),"") ->  | R49: 0 | S49: 0 | T49: 0 | U49: 0 | V49: 0 | W49: 0 | X49: =IF(#REF!>0,#REF!,0) ->  | Y49: 0 | Z49: 0 | AA49: 0 | AB49: 0 | AC49: 0 | AD49: 0 | AE49: 0
G50: =IF(F50>0,INDEX(Poeng!$A$1:$B$100,F50,2),"") ->  | I50: =IF(H50>0,INDEX(Poeng!$A$1:$B$100,H50,2),"") ->  | K50: =IF(J50>0,INDEX(Poeng!$A$1:$B$100,J50,2),"") ->  | M50: =IF(L50>0,INDEX(Poeng!$A$1:$B$100,L50,2),"") ->  | O50: =IF(N50>0,INDEX(Poeng!$A$1:$B$100,N50,2),"") ->  | Q50: =IF(P50>0,INDEX(Poeng!$A$1:$B$100,P50,2),"") ->  | R50: 0 | S50: 0 | T50: 0 | U50: 0 | V50: 0 | W50: 0 | X50: =IF(#REF!>0,#REF!,0) ->  | Y50: 0 | Z50: 0 | AA50: 0 | AB50: 0 | AC50: 0 | AD50: 0 | AE50: 0
G51: =IF(F51>0,INDEX(Poeng!$A$1:$B$100,F51,2),"") ->  | I51: =IF(H51>0,INDEX(Poeng!$A$1:$B$100,H51,2),"") ->  | K51: =IF(J51>0,INDEX(Poeng!$A$1:$B$100,J51,2),"") ->  | M51: =IF(L51>0,INDEX(Poeng!$A$1:$B$100,L51,2),"") ->  | O51: =IF(N51>0,INDEX(Poeng!$A$1:$B$100,N51,2),"") ->  | Q51: =IF(P51>0,INDEX(Poeng!$A$1:$B$100,P51,2),"") ->  | R51: 0 | S51: 0 | T51: 0 | U51: 0 | V51: 0 | W51: 0 | X51: =IF(#REF!>0,#REF!,0) ->  | Y51: 0 | Z51: 0 | AA51: 0 | AB51: 0 | AC51: 0 | AD51: 0 | AE51: 0
A52: =AF52 ->  | G52: =IF(F52>0,INDEX(Poeng!$A$1:$B$100,F52,2),"") ->  | I52: =IF(H52>0,INDEX(Poeng!$A$1:$B$100,H52,2),"") ->  | K52: =IF(J52>0,INDEX(Poeng!$A$1:$B$100,J52,2),"") ->  | M52: =IF(L52>0,INDEX(Poeng!$A$1:$B$100,L52,2),"") ->  | O52: =IF(N52>0,INDEX(Poeng!$A$1:$B$100,N52,2),"") ->  | Q52: =IF(P52>0,INDEX(Poeng!$A$1:$B$100,P52,2),"") ->  | R52: 0 | S52: 0 | T52: 0 | U52: 0 | V52: 0 | W52: 0 | X52: =IF(#REF!>0,#REF!,0) ->  | Y52: 0 | Z52: 0 | AA52: 0 | AB52: 0 | AC52: 0 | AD52: 0 | AE52: 0
I53: =IF(H53>0,INDEX(Poeng!$A$1:$B$100,H53,2),"") ->  | K53: =IF(J53>0,INDEX(Poeng!$A$1:$B$100,J53,2),"") ->  | M53: =IF(L53>0,INDEX(Poeng!$A$1:$B$100,L53,2),"") ->  | O53: =IF(N53>0,INDEX(Poeng!$A$1:$B$100,N53,2),"") ->  | Q53: =IF(P53>0,INDEX(Poeng!$A$1:$B$100,P53,2),"") ->  | R53: 0 | S53: 0 | T53: 0 | U53: 0 | V53: 0 | W53: 0 | X53: =IF(#REF!>0,#REF!,0) ->  | Y53: 0 | Z53: 0 | AA53: 0 | AB53: 0 | AC53: 0 | AD53: 0 | AE53: 0
I54: =IF(H54>0,INDEX(Poeng!$A$1:$B$100,H54,2),"") ->  | K54: =IF(J54>0,INDEX(Poeng!$A$1:$B$100,J54,2),"") ->  | M54: =IF(L54>0,INDEX(Poeng!$A$1:$B$100,L54,2),"") ->  | O54: =IF(N54>0,INDEX(Poeng!$A$1:$B$100,N54,2),"") ->  | Q54: =IF(P54>0,INDEX(Poeng!$A$1:$B$100,P54,2),"") ->  | R54: 0 | S54: 0 | T54: 0 | U54: 0 | V54: 0 | W54: 0 | X54: =IF(#REF!>0,#REF!,0) ->  | Y54: 0 | Z54: 0 | AA54: 0 | AB54: 0 | AC54: 0 | AD54: 0 | AE54: 0
I55: =IF(H55>0,INDEX(Poeng!$A$1:$B$100,H55,2),"") ->  | K55: =IF(J55>0,INDEX(Poeng!$A$1:$B$100,J55,2),"") ->  | M55: =IF(L55>0,INDEX(Poeng!$A$1:$B$100,L55,2),"") ->  | O55: =IF(N55>0,INDEX(Poeng!$A$1:$B$100,N55,2),"") ->  | Q55: =IF(P55>0,INDEX(Poeng!$A$1:$B$100,P55,2),"") ->  | R55: 0 | S55: 0 | T55: 0 | U55: 0 | V55: 0 | W55: 0 | X55: =IF(#REF!>0,#REF!,0) ->  | Y55: 0 | Z55: 0 | AA55: 0 | AB55: 0 | AC55: 0 | AD55: 0 | AE55: 0
I56: =IF(H56>0,INDEX(Poeng!$A$1:$B$100,H56,2),"") ->  | K56: =IF(J56>0,INDEX(Poeng!$A$1:$B$100,J56,2),"") ->  | M56: =IF(L56>0,INDEX(Poeng!$A$1:$B$100,L56,2),"") ->  | O56: =IF(N56>0,INDEX(Poeng!$A$1:$B$100,N56,2),"") ->  | Q56: =IF(P56>0,INDEX(Poeng!$A$1:$B$100,P56,2),"") ->  | R56: 0 | S56: 0 | T56: 0 | U56: 0 | V56: 0 | W56: 0 | X56: =IF(#REF!>0,#REF!,0) ->  | Y56: 0 | Z56: 0 | AA56: 0 | AB56: 0 | AC56: 0 | AD56: 0 | AE56: 0
I57: =IF(H57>0,INDEX(Poeng!$A$1:$B$100,H57,2),"") ->  | K57: =IF(J57>0,INDEX(Poeng!$A$1:$B$100,J57,2),"") ->  | M57: =IF(L57>0,INDEX(Poeng!$A$1:$B$100,L57,2),"") ->  | O57: =IF(N57>0,INDEX(Poeng!$A$1:$B$100,N57,2),"") ->  | Q57: =IF(P57>0,INDEX(Poeng!$A$1:$B$100,P57,2),"") ->  | R57: 0 | S57: 0 | T57: 0 | U57: 0 | V57: 0 | W57: 0 | X57: =IF(#REF!>0,#REF!,0) ->  | Y57: 0 | Z57: 0 | AA57: 0 | AB57: 0 | AC57: 0 | AD57: 0 | AE57: 0
I58: =IF(H58>0,INDEX(Poeng!$A$1:$B$100,H58,2),"") ->  | K58: =IF(J58>0,INDEX(Poeng!$A$1:$B$100,J58,2),"") ->  | M58: =IF(L58>0,INDEX(Poeng!$A$1:$B$100,L58,2),"") ->  | O58: =IF(N58>0,INDEX(Poeng!$A$1:$B$100,N58,2),"") ->  | Q58: =IF(P58>0,INDEX(Poeng!$A$1:$B$100,P58,2),"") ->  | R58: 0 | S58: 0 | T58: 0 | U58: 0 | V58: 0 | W58: 0 | X58: =IF(#REF!>0,#REF!,0) ->  | Y58: 0 | Z58: 0 | AA58: 0 | AB58: 0 | AC58: 0 | AD58: 0 | AE58: 0
I59: =IF(H59>0,INDEX(Poeng!$A$1:$B$100,H59,2),"") ->  | K59: =IF(J59>0,INDEX(Poeng!$A$1:$B$100,J59,2),"") ->  | M59: =IF(L59>0,INDEX(Poeng!$A$1:$B$100,L59,2),"") ->  | O59: =IF(N59>0,INDEX(Poeng!$A$1:$B$100,N59,2),"") ->  | Q59: =IF(P59>0,INDEX(Poeng!$A$1:$B$100,P59,2),"") ->  | R59: 0 | S59: 0 | T59: 0 | U59: 0 | V59: 0 | W59: 0 | X59: =IF(#REF!>0,#REF!,0) ->  | Y59: 0 | Z59: 0 | AA59: 0 | AB59: 0 | AC59: 0 | AD59: 0 | AE59: 0
I60: =IF(H60>0,INDEX(Poeng!$A$1:$B$100,H60,2),"") ->  | K60: =IF(J60>0,INDEX(Poeng!$A$1:$B$100,J60,2),"") ->  | M60: =IF(L60>0,INDEX(Poeng!$A$1:$B$100,L60,2),"") ->  | O60: =IF(N60>0,INDEX(Poeng!$A$1:$B$100,N60,2),"") ->  | Q60: =IF(P60>0,INDEX(Poeng!$A$1:$B$100,P60,2),"") ->  | R60: 0 | S60: 0 | T60: 0 | U60: 0 | V60: 0 | W60: 0 | X60: =IF(#REF!>0,#REF!,0) ->  | Y60: 0 | Z60: 0 | AA60: 0 | AB60: 0 | AC60: 0 | AD60: 0 | AE60: 0
I61: =IF(H61>0,INDEX(Poeng!$A$1:$B$100,H61,2),"") ->  | K61: =IF(J61>0,INDEX(Poeng!$A$1:$B$100,J61,2),"") ->  | M61: =IF(L61>0,INDEX(Poeng!$A$1:$B$100,L61,2),"") ->  | O61: =IF(N61>0,INDEX(Poeng!$A$1:$B$100,N61,2),"") ->  | Q61: =IF(P61>0,INDEX(Poeng!$A$1:$B$100,P61,2),"") ->  | R61: 0 | S61: 0 | T61: 0 | U61: 0 | V61: 0 | W61: 0 | X61: =IF(#REF!>0,#REF!,0) ->  | Y61: 0 | Z61: 0 | AA61: 0 | AB61: 0 | AC61: 0 | AD61: 0 | AE61: 0
I62: =IF(H62>0,INDEX(Poeng!$A$1:$B$100,H62,2),"") ->  | K62: =IF(J62>0,INDEX(Poeng!$A$1:$B$100,J62,2),"") ->  | M62: =IF(L62>0,INDEX(Poeng!$A$1:$B$100,L62,2),"") ->  | O62: =IF(N62>0,INDEX(Poeng!$A$1:$B$100,N62,2),"") ->  | Q62: =IF(P62>0,INDEX(Poeng!$A$1:$B$100,P62,2),"") ->  | R62: 0 | S62: 0 | T62: 0 | U62: 0 | V62: 0 | W62: 0 | X62: =IF(#REF!>0,#REF!,0) ->  | Y62: 0 | Z62: 0 | AA62: 0 | AB62: 0 | AC62: 0 | AD62: 0 | AE62: 0
I63: =IF(H63>0,INDEX(Poeng!$A$1:$B$100,H63,2),"") ->  | K63: =IF(J63>0,INDEX(Poeng!$A$1:$B$100,J63,2),"") ->  | M63: =IF(L63>0,INDEX(Poeng!$A$1:$B$100,L63,2),"") ->  | O63: =IF(N63>0,INDEX(Poeng!$A$1:$B$100,N63,2),"") ->  | Q63: =IF(P63>0,INDEX(Poeng!$A$1:$B$100,P63,2),"") ->  | R63: 0 | S63: 0 | T63: 0 | U63: 0 | V63: 0 | W63: 0 | X63: =IF(#REF!>0,#REF!,0) ->  | Y63: 0 | Z63: 0 | AA63: 0 | AB63: 0 | AC63: 0 | AD63: 0 | AE63: 0
I64: =IF(H64>0,INDEX(Poeng!$A$1:$B$100,H64,2),"") ->  | K64: =IF(J64>0,INDEX(Poeng!$A$1:$B$100,J64,2),"") ->  | M64: =IF(L64>0,INDEX(Poeng!$A$1:$B$100,L64,2),"") ->  | O64: =IF(N64>0,INDEX(Poeng!$A$1:$B$100,N64,2),"") ->  | Q64: =IF(P64>0,INDEX(Poeng!$A$1:$B$100,P64,2),"") ->  | R64: 0 | S64: 0 | T64: 0 | U64: 0 | V64: 0 | W64: 0 | X64: =IF(#REF!>0,#REF!,0) ->  | Y64: 0 | Z64: 0 | AA64: 0 | AB64: 0 | AC64: 0 | AD64: 0 | AE64: 0
I65: =IF(H65>0,INDEX(Poeng!$A$1:$B$100,H65,2),"") ->  | K65: =IF(J65>0,INDEX(Poeng!$A$1:$B$100,J65,2),"") ->  | M65: =IF(L65>0,INDEX(Poeng!$A$1:$B$100,L65,2),"") ->  | O65: =IF(N65>0,INDEX(Poeng!$A$1:$B$100,N65,2),"") ->  | Q65: =IF(P65>0,INDEX(Poeng!$A$1:$B$100,P65,2),"") ->  | R65: 0 | S65: 0 | T65: 0 | U65: 0 | V65: 0 | W65: 0 | X65: =IF(#REF!>0,#REF!,0) ->  | Y65: 0 | Z65: 0 | AA65: 0 | AB65: 0 | AC65: 0 | AD65: 0 | AE65: 0
I66: =IF(H66>0,INDEX(Poeng!$A$1:$B$100,H66,2),"") ->  | K66: =IF(J66>0,INDEX(Poeng!$A$1:$B$100,J66,2),"") ->  | M66: =IF(L66>0,INDEX(Poeng!$A$1:$B$100,L66,2),"") ->  | O66: =IF(N66>0,INDEX(Poeng!$A$1:$B$100,N66,2),"") ->  | Q66: =IF(P66>0,INDEX(Poeng!$A$1:$B$100,P66,2),"") ->  | R66: 0 | S66: 0 | T66: 0 | U66: 0 | V66: 0 | W66: 0 | X66: =IF(#REF!>0,#REF!,0) ->  | Y66: 0 | Z66: 0 | AA66: 0 | AB66: 0 | AC66: =SUM(Y66:AB66) -> 0 | AD66: 0 | AE66: 0

Sheet G14
A1: Gutter 14 | C1: Sparebank1-CUP 2021
F2: SP1- CUP 1 | H2: SP1- CUP 2 | J2: SP1- CUP 3 | L2: SP1- CUP 4 | N2: SP1- CUP 5 | P2: SP1- CUP 6 | R2: Poeng | X2: Fire beste | AB2: Sum
A3: Nr | B3: NAVN | C3: KLUBB | D3: POENG | E3: Fullført | F3: Nr. Poeng | H3: Nr. Poeng | J3: Nr. Poeng | L3: Nr. Poeng | N3: Nr. Poeng | P3: Nr. Poeng
A4: =AE4 -> 1 | B4: Henrik Garmo Hov | C4: Byåsen IL | D4: =IF(B4<>"",AB4,"") -> 380 | E4: =IF(AC4<4," ","F") -> F | F4: 1 | G4: =IF(F4>0,INDEX(Poeng!$A$1:$B$100,F4,2),"") -> 100 | H4: 1 | I4: =IF(H4>0,INDEX(Poeng!$A$1:$B$100,H4,2),"") -> 100 | J4: 1 | K4: =IF(J4>0,INDEX(Poeng!$A$1:$B$100,J4,2),"") -> 100 | L4: 3 | M4: =IF(L4>0,INDEX(Poeng!$A$1:$B$100,L4,2),"") -> 60 | N4: 2 | O4: =IF(N4>0,INDEX(Poeng!$A$1:$B$100,N4,2),"") -> 80 | P4: 2 | Q4: =IF(P4>0,INDEX(Poeng!$A$1:$B$100,P4,2),"") -> 80 | R4: =IF(F4>0,G4,0) -> 100 | S4: =IF(H4>0,I4,0) -> 100 | T4: =IF(J4>0,K4,0) -> 100 | U4: =IF(L4>0,M4,0) -> 60 | V4: =IF(N4>0,O4,0) -> 80 | W4: =IF(P4>0,Q4,0) -> 80 | X4: =LARGE(R4:W4,1) -> 100 | Y4: =LARGE(R4:W4,2) -> 100 | Z4: =LARGE(R4:W4,3) -> 100 | AA4: =LARGE(R4:W4,4) -> 80 | AB4: =SUM(X4:AA4) -> 380 | AC4: =COUNT(F4:Q4)/2 -> 6 | AD4: =AB4*10^8+X4*10^6/2+Y4*10^4/2+Z4*10^2/2+AA4/2 -> 38050505040 | AE4: =IF(B4<>"",RANK(AD4,AD$4:AD$55,0),"") -> 1
A5: 1 | B5: Iver Lund Gjerde | C5: Byåsen IL | D5: 380 | E5: F | F5: 2 | G5: =IF(F5>0,INDEX(Poeng!$A$1:$B$100,F5,2),"") -> 80 | H5: 1 | I5: =IF(H5>0,INDEX(Poeng!$A$1:$B$100,H5,2),"") -> 100 | J5: 5 | K5: =IF(J5>0,INDEX(Poeng!$A$1:$B$100,J5,2),"") -> 45 | L5: 1 | M5: =IF(L5>0,INDEX(Poeng!$A$1:$B$100,L5,2),"") -> 100 | N5: 1 | O5: =IF(N5>0,INDEX(Poeng!$A$1:$B$100,N5,2),"") -> 100 | P5: 3 | Q5: =IF(P5>0,INDEX(Poeng!$A$1:$B$100,P5,2),"") -> 60 | R5: 80 | S5: 100 | T5: 45 | U5: 100 | V5: 100 | W5: 60 | X5: 100 | Y5: 100 | Z5: 100 | AA5: 80 | AB5: 380 | AC5: 6 | AD5: 38050505040 | AE5: 1
A6: 3 | B6: Håkon Bøklep | C6: Surnadal IL | D6: 300 | E6: F | F6: 3 | G6: =IF(F6>0,INDEX(Poeng!$A$1:$B$100,F6,2),"") -> 60 | H6: 3 | I6: =IF(H6>0,INDEX(Poeng!$A$1:$B$100,H6,2),"") -> 60 | J6: 3 | K6: =IF(J6>0,INDEX(Poeng!$A$1:$B$100,J6,2),"") -> 60 | L6: 2 | M6: =IF(L6>0,INDEX(Poeng!$A$1:$B$100,L6,2),"") -> 80 | N6: 4 | O6: =IF(N6>0,INDEX(Poeng!$A$1:$B$100,N6,2),"") -> 50 | P6: 1 | Q6: =IF(P6>0,INDEX(Poeng!$A$1:$B$100,P6,2),"") -> 100 | R6: 60 | S6: 60 | T6: 60 | U6: 80 | V6: 50 | W6: 100 | X6: 100 | Y6: 80 | Z6: 60 | AA6: 60 | AB6: 300 | AC6: 6 | AD6: 30050403030 | AE6: 3
A7: 4 | B7: Jon Sæter | C7: Byåsen IL | D7: 220 | E7: F | F7: 8 | G7: =IF(F7>0,INDEX(Poeng!$A$1:$B$100,F7,2),"") -> 32 | H7: 4 | I7: =IF(H7>0,INDEX(Poeng!$A$1:$B$100,H7,2),"") -> 50 | J7: 2 | K7: =IF(J7>0,INDEX(Poeng!$A$1:$B$100,J7,2),"") -> 80 | L7: 6 | M7: =IF(L7>0,INDEX(Poeng!$A$1:$B$100,L7,2),"") -> 40 | N7: 5 | O7: =IF(N7>0,INDEX(Poeng!$A$1:$B$100,N7,2),"") -> 45 | P7: 5 | Q7: =IF(P7>0,INDEX(Poeng!$A$1:$B$100,P7,2),"") -> 45 | R7: 32 | S7: 50 | T7: 80 | U7: 40 | V7: 45 | W7: 45 | X7: 80 | Y7: 50 | Z7: 45 | AA7: 45 | AB7: 220 | AC7: 6 | AD7: 2.204025227e+10 | AE7: 4
A8: 5 | B8: Sondre Mæhlum Krüger | C8: Byaasen Skiklub | D8: 200 | E8: F | F8: 5 | G8: =IF(F8>0,INDEX(Poeng!$A$1:$B$100,F8,2),"") -> 45 | I8: =IF(H8>0,INDEX(Poeng!$A$1:$B$100,H8,2),"") ->  | J8: 4 | K8: =IF(J8>0,INDEX(Poeng!$A$1:$B$100,J8,2),"") -> 50 | L8: 5 | M8: =IF(L8>0,INDEX(Poeng!$A$1:$B$100,L8,2),"") -> 45 | N8: 3 | O8: =IF(N8>0,INDEX(Poeng!$A$1:$B$100,N8,2),"") -> 60 | P8: 6 | Q8: =IF(P8>0,INDEX(Poeng!$A$1:$B$100,P8,2),"") -> 40 | R8: 45 | S8: 0 | T8: 50 | U8: 45 | V8: 60 | W8: 40 | X8: 60 | Y8: 50 | Z8: 45 | AA8: 45 | AB8: 200 | AC8: 5 | AD8: 2.003025227e+10 | AE8: 5
A9: 6 | B9: Andreas Sundal | C9: Byåsen IL | D9: 176 | E9: F | F9: 4 | G9: =IF(F9>0,INDEX(Poeng!$A$1:$B$100,F9,2),"") -> 50 | H9: 6 | I9: =IF(H9>0,INDEX(Poeng!$A$1:$B$100,H9,2),"") -> 40 | J9: 7 | K9: =IF(J9>0,INDEX(Poeng!$A$1:$B$100,J9,2),"") -> 36 | L9: 7 | M9: =IF(L9>0,INDEX(Poeng!$A$1:$B$100,L9,2),"") -> 36 | N9: 8 | O9: =IF(N9>0,INDEX(Poeng!$A$1:$B$100,N9,2),"") -> 32 | P9: 4 | Q9: =IF(P9>0,INDEX(Poeng!$A$1:$B$100,P9,2),"") -> 50 | R9: 50 | S9: 40 | T9: 36 | U9: 36 | V9: 32 | W9: 50 | X9: 50 | Y9: 50 | Z9: 40 | AA9: 36 | AB9: 176 | AC9: 6 | AD9: 17625252018 | AE9: 6
A10: 7 | B10: Sivert Sverklie Andreassen | C10: Byåsen IL | D10: 161 | E10: F | F10: 6 | G10: =IF(F10>0,INDEX(Poeng!$A$1:$B$100,F10,2),"") -> 40 | H10: 5 | I10: =IF(H10>0,INDEX(Poeng!$A$1:$B$100,H10,2),"") -> 45 | J10: 9 | K10: =IF(J10>0,INDEX(Poeng!$A$1:$B$100,J10,2),"") -> 29 | L10: 12 | M10: =IF(L10>0,INDEX(Poeng!$A$1:$B$100,L10,2),"") -> 22 | N10: 6 | O10: =IF(N10>0,INDEX(Poeng!$A$1:$B$100,N10,2),"") -> 40 | P10: 7 | Q10: =IF(P10>0,INDEX(Poeng!$A$1:$B$100,P10,2),"") -> 36 | R10: 40 | S10: 45 | T10: 29 | U10: 22 | V10: 40 | W10: 36 | X10: 45 | Y10: 40 | Z10: 40 | AA10: 36 | AB10: 161 | AC10: 6 | AD10: 16122702018 | AE10: 7
A11: 8 | B11: Haakon Oddebug | C11: Kyrksæterøra IL | D11: 150 | E11: F | F11: 9 | G11: =IF(F11>0,INDEX(Poeng!$A$1:$B$100,F11,2),"") -> 29 | H11: 8 | I11: =IF(H11>0,INDEX(Poeng!$A$1:$B$100,H11,2),"") -> 32 | K11: =IF(J11>0,INDEX(Poeng!$A$1:$B$100,J11,2),"") ->  | L11: 4 | M11: =IF(L11>0,INDEX(Poeng!$A$1:$B$100,L11,2),"") -> 50 | N11: 7 | O11: =IF(N11>0,INDEX(Poeng!$A$1:$B$100,N11,2),"") -> 36 | P11: 8 | Q11: =IF(P11>0,INDEX(Poeng!$A$1:$B$100,P11,2),"") -> 32 | R11: 29 | S11: 32 | T11: 0 | U11: 50 | V11: 36 | W11: 32 | X11: 50 | Y11: 36 | Z11: 32 | AA11: 32 | AB11: 150 | AC11: 5 | AD11: 15025181616 | AE11: 8
A12: 9 | B12: Sondre Holås Sødring | C12: Heimdal Ski | D12: 141 | E12: F | F12: 6 | G12: =IF(F12>0,INDEX(Poeng!$A$1:$B$100,F12,2),"") -> 40 | H12: 9 | I12: =IF(H12>0,INDEX(Poeng!$A$1:$B$100,H12,2),"") -> 29 | J12: 6 | K12: =IF(J12>0,INDEX(Poeng!$A$1:$B$100,J12,2),"") -> 40 | L12: 8 | M12: =IF(L12>0,INDEX(Poeng!$A$1:$B$100,L12,2),"") -> 32 | N12: 10 | O12: =IF(N12>0,INDEX(Poeng!$A$1:$B$100,N12,2),"") -> 26 | P12: 10 | Q12: =IF(P12>0,INDEX(Poeng!$A$1:$B$100,P12,2),"") -> 26 | R12: 40 | S12: 29 | T12: 40 | U12: 32 | V12: 26 | W12: 26 | X12: 40 | Y12: 40 | Z12: 32 | AA12: 29 | AB12: 141 | AC12: 6 | AD12: 1.412020161e+10 | AE12: 9
A13: 10 | B13: Oscar Skjetlein | C13: Byåsen IL | D13: 92 | E13: F | F13: 11 | G13: =IF(F13>0,INDEX(Poeng!$A$1:$B$100,F13,2),"") -> 24 | I13: =IF(H13>0,INDEX(Poeng!$A$1:$B$100,H13,2),"") ->  | K13: =IF(J13>0,INDEX(Poeng!$A$1:$B$100,J13,2),"") ->  | L13: 10 | M13: =IF(L13>0,INDEX(Poeng!$A$1:$B$100,L13,2),"") -> 26 | N13: 11 | O13: =IF(N13>0,INDEX(Poeng!$A$1:$B$100,N13,2),"") -> 24 | P13: 14 | Q13: =IF(P13>0,INDEX(Poeng!$A$1:$B$100,P13,2),"") -> 18 | R13: 24 | S13: 0 | T13: 0 | U13: 26 | V13: 24 | W13: 18 | X13: 26 | Y13: 24 | Z13: 24 | AA13: 18 | AB13: 92 | AC13: 4 | AD13: 9213121209 | AE13: 10
A14: 11 | B14: Sverre Lohne- Nilsen | C14: Hommelvik IL | D14: 91 | G14: =IF(F14>0,INDEX(Poeng!$A$1:$B$100,F14,2),"") ->  | H14: 7 | I14: =IF(H14>0,INDEX(Poeng!$A$1:$B$100,H14,2),"") -> 36 | J14: 10 | K14: =IF(J14>0,INDEX(Poeng!$A$1:$B$100,J14,2),"") -> 26 | M14: =IF(L14>0,INDEX(Poeng!$A$1:$B$100,L14,2),"") ->  | N14: 9 | O14: =IF(N14>0,INDEX(Poeng!$A$1:$B$100,N14,2),"") -> 29 | Q14: =IF(P14>0,INDEX(Poeng!$A$1:$B$100,P14,2),"") ->  | R14: 0 | S14: 36 | T14: 26 | U14: 0 | V14: 29 | W14: 0 | X14: 36 | Y14: 29 | Z14: 26 | AA14: 0 | AB14: 91 | AC14: 3 | AD14: 9118146300 | AE14: 11
A15: 12 | B15: Lars Skarsbakk | C15: Malvik IL | D15: 84 | E15: F | G15: =IF(F15>0,INDEX(Poeng!$A$1:$B$100,F15,2),"") ->  | H15: 11 | I15: =IF(H15>0,INDEX(Poeng!$A$1:$B$100,H15,2),"") -> 24 | J15: 11 | K15: =IF(J15>0,INDEX(Poeng!$A$1:$B$100,J15,2),"") -> 24 | M15: =IF(L15>0,INDEX(Poeng!$A$1:$B$100,L15,2),"") ->  | N15: 12 | O15: =IF(N15>0,INDEX(Poeng!$A$1:$B$100,N15,2),"") -> 22 | P15: 17 | Q15: =IF(P15>0,INDEX(Poeng!$A$1:$B$100,P15,2),"") -> 14 | R15: 0 | S15: 24 | T15: 24 | U15: 0 | V15: 22 | W15: 14 | X15: 24 | Y15: 24 | Z15: 22 | AA15: 14 | AB15: 84 | AC15: 4 | AD15: 8412121107 | AE15: 12
A16: 13 | B16: Jon Ingstad | C16: Dalguten IL | D16: 77 | E16: F | F16: 15 | G16: =IF(F16>0,INDEX(Poeng!$A$1:$B$100,F16,2),"") -> 16 | H16: 10 | I16: =IF(H16>0,INDEX(Poeng!$A$1:$B$100,H16,2),"") -> 26 | K16: =IF(J16>0,INDEX(Poeng!$A$1:$B$100,J16,2),"") ->  | M16: =IF(L16>0,INDEX(Poeng!$A$1:$B$100,L16,2),"") ->  | N16: 13 | O16: =IF(N16>0,INDEX(Poeng!$A$1:$B$100,N16,2),"") -> 20 | P16: 16 | Q16: =IF(P16>0,INDEX(Poeng!$A$1:$B$100,P16,2),"") -> 15 | R16: 16 | S16: 26 | T16: 0 | U16: 0 | V16: 20 | W16: 15 | X16: 26 | Y16: 20 | Z16: 16 | AA16: 15 | AB16: 77 | AC16: 4 | AD16: 7713100808 | AE16: 13
A17: 14 | B17: Sebastian Børset | C17: Rindal IL | D17: 63 | F17: 14 | G17: =IF(F17>0,INDEX(Poeng!$A$1:$B$100,F17,2),"") -> 18 | I17: =IF(H17>0,INDEX(Poeng!$A$1:$B$100,H17,2),"") ->  | K17: =IF(J17>0,INDEX(Poeng!$A$1:$B$100,J17,2),"") ->  | L17: 9 | M17: =IF(L17>0,INDEX(Poeng!$A$1:$B$100,L17,2),"") -> 29 | O17: =IF(N17>0,INDEX(Poeng!$A$1:$B$100,N17,2),"") ->  | P17: 15 | Q17: =IF(P17>0,INDEX(Poeng!$A$1:$B$100,P17,2),"") -> 16 | R17: 18 | S17: 0 | T17: 0 | U17: 29 | V17: 0 | W17: 16 | X17: 29 | Y17: 18 | Z17: 16 | AA17: 0 | AB17: 63 | AC17: 3 | AD17: 6314590800 | AE17: 14
A18: 15 | B18: Ludvik Giæver-Engesmo | C18: Byaasen Skiklub | D18: 54 | G18: =IF(F18>0,INDEX(Poeng!$A$1:$B$100,F18,2),"") ->  | I18: =IF(H18>0,INDEX(Poeng!$A$1:$B$100,H18,2),"") ->  | J18: 8 | K18: =IF(J18>0,INDEX(Poeng!$A$1:$B$100,J18,2),"") -> 32 | M18: =IF(L18>0,INDEX(Poeng!$A$1:$B$100,L18,2),"") ->  | O18: =IF(N18>0,INDEX(Poeng!$A$1:$B$100,N18,2),"") ->  | P18: 12 | Q18: =IF(P18>0,INDEX(Poeng!$A$1:$B$100,P18,2),"") -> 22 | R18: 0 | S18: 0 | T18: 32 | U18: 0 | V18: 0 | W18: 22 | X18: 32 | Y18: 22 | Z18: 0 | AA18: 0 | AB18: 54 | AC18: 2 | AD18: 5416110000 | AE18: 15
A19: 16 | B19: Lukas Stilson Arstad | C19: Strindheim IL | D19: 44 | G19: =IF(F19>0,INDEX(Poeng!$A$1:$B$100,F19,2),"") ->  | I19: =IF(H19>0,INDEX(Poeng!$A$1:$B$100,H19,2),"") ->  | K19: =IF(J19>0,INDEX(Poeng!$A$1:$B$100,J19,2),"") ->  | L19: 11 | M19: =IF(L19>0,INDEX(Poeng!$A$1:$B$100,L19,2),"") -> 24 | O19: =IF(N19>0,INDEX(Poeng!$A$1:$B$100,N19,2),"") ->  | P19: 13 | Q19: =IF(P19>0,INDEX(Poeng!$A$1:$B$100,P19,2),"") -> 20 | R19: 0 | S19: 0 | T19: 0 | U19: 24 | V19: 0 | W19: 20 | X19: 24 | Y19: 20 | Z19: 0 | AA19: 0 | AB19: 44 | AC19: 2 | AD19: 4412100000 | AE19: 16
A20: 17 | B20: Jonas Hamnes Øye | C20: Surnadal IL | D20: 34 | I20: =IF(H20>0,INDEX(Poeng!$A$1:$B$100,H20,2),"") ->  | J20: 12 | K20: =IF(J20>0,INDEX(Poeng!$A$1:$B$100,J20,2),"") -> 22 | M20: =IF(L20>0,INDEX(Poeng!$A$1:$B$100,L20,2),"") ->  | O20: =IF(N20>0,INDEX(Poeng!$A$1:$B$100,N20,2),"") ->  | P20: 19 | Q20: =IF(P20>0,INDEX(Poeng!$A$1:$B$100,P20,2),"") -> 12 | R20: 0 | S20: 0 | T20: 22 | U20: 0 | V20: 0 | W20: 12 | X20: 22 | Y20: 12 | Z20: 0 | AA20: 0 | AB20: 34 | AC20: 2 | AD20: 3411060000 | AE20: 17
A21: 18 | B21: Gustav Skei Nilsen | C21: Trønder-Lyn IL | D21: 33 | G21: =IF(F21>0,INDEX(Poeng!$A$1:$B$100,F21,2),"") ->  | H21: 12 | I21: =IF(H21>0,INDEX(Poeng!$A$1:$B$100,H21,2),"") -> 22 | K21: =IF(J21>0,INDEX(Poeng!$A$1:$B$100,J21,2),"") ->  | M21: =IF(L21>0,INDEX(Poeng!$A$1:$B$100,L21,2),"") ->  | O21: =IF(N21>0,INDEX(Poeng!$A$1:$B$100,N21,2),"") ->  | P21: 20 | Q21: =IF(P21>0,INDEX(Poeng!$A$1:$B$100,P21,2),"") -> 11 | R21: 0 | S21: 22 | T21: 0 | U21: 0 | V21: 0 | W21: 11 | X21: 22 | Y21: 11 | Z21: 0 | AA21: 0 | AB21: 33 | AC21: 2 | AD21: 3311055000 | AE21: 18
A22: 19 | B22: Markus Tørum | C22: Selbu IL | D22: 31 | G22: =IF(F22>0,INDEX(Poeng!$A$1:$B$100,F22,2),"") ->  | I22: =IF(H22>0,INDEX(Poeng!$A$1:$B$100,H22,2),"") ->  | K22: =IF(J22>0,INDEX(Poeng!$A$1:$B$100,J22,2),"") ->  | M22: =IF(L22>0,INDEX(Poeng!$A$1:$B$100,L22,2),"") ->  | N22: 14 | O22: =IF(N22>0,INDEX(Poeng!$A$1:$B$100,N22,2),"") -> 18 | P22: 18 | Q22: =IF(P22>0,INDEX(Poeng!$A$1:$B$100,P22,2),"") -> 13 | R22: 0 | S22: 0 | T22: 0 | U22: 0 | V22: 18 | W22: 13 | X22: 18 | Y22: 13 | Z22: 0 | AA22: 0 | AB22: 31 | AC22: 2 | AD22: 3109065000 | AE22: 19
A23: 20 | B23: Sven William Nevin | C23: Byaasen Skiklub | D23: 29 | G23: =IF(F23>0,INDEX(Poeng!$A$1:$B$100,F23,2),"") ->  | I23: =IF(H23>0,INDEX(Poeng!$A$1:$B$100,H23,2),"") ->  | K23: =IF(J23>0,INDEX(Poeng!$A$1:$B$100,J23,2),"") ->  | M23: =IF(L23>0,INDEX(Poeng!$A$1:$B$100,L23,2),"") ->  | O23: =IF(N23>0,INDEX(Poeng!$A$1:$B$100,N23,2),"") ->  | P23: 9 | Q23: =IF(P23>0,INDEX(Poeng!$A$1:$B$100,P23,2),"") -> 29 | R23: 0 | S23: 0 | T23: 0 | U23: 0 | V23: 0 | W23: 29 | X23: 29 | Y23: 0 | Z23: 0 | AA23: 0 | AB23: 29 | AC23: 1 | AD23: 2914500000 | AE23: 20
A24: 21 | B24: Magnus Øyen | C24: Rindal IL | D24: 26 | F24: 10 | G24: =IF(F24>0,INDEX(Poeng!$A$1:$B$100,F24,2),"") -> 26 | I24: =IF(H24>0,INDEX(Poeng!$A$1:$B$100,H24,2),"") ->  | K24: =IF(J24>0,INDEX(Poeng!$A$1:$B$100,J24,2),"") ->  | M24: =IF(L24>0,INDEX(Poeng!$A$1:$B$100,L24,2),"") ->  | O24: =IF(N24>0,INDEX(Poeng!$A$1:$B$100,N24,2),"") ->  | Q24: =IF(P24>0,INDEX(Poeng!$A$1:$B$100,P24,2),"") ->  | R24: 26 | S24: 0 | T24: 0 | U24: 0 | V24: 0 | W24: 0 | X24: 26 | Y24: 0 | Z24: 0 | AA24: 0 | AB24: 26 | AC24: 1 | AD24: 2613000000 | AE24: 21
A25: 22 | B25: Erlend Wirum Evensen | D25: 24 | G25: =IF(F25>0,INDEX(Poeng!$A$1:$B$100,F25,2),"") ->  | I25: =IF(H25>0,INDEX(Poeng!$A$1:$B$100,H25,2),"") ->  | K25: =IF(J25>0,INDEX(Poeng!$A$1:$B$100,J25,2),"") ->  | M25: =IF(L25>0,INDEX(Poeng!$A$1:$B$100,L25,2),"") ->  | O25: =IF(N25>0,INDEX(Poeng!$A$1:$B$100,N25,2),"") ->  | P25: 11 | Q25: =IF(P25>0,INDEX(Poeng!$A$1:$B$100,P25,2),"") -> 24 | R25: 0 | S25: 0 | T25: 0 | U25: 0 | V25: 0 | W25: 24 | X25: 24 | Y25: 0 | Z25: 0 | AA25: 0 | AB25: 24 | AC25: 1 | AD25: 2412000000 | AE25: 22
A26: 23 | B26: Lars Wangen | C26: Orkdal IL | D26: 22 | F26: 12 | G26: =IF(F26>0,INDEX(Poeng!$A$1:$B$100,F26,2),"") -> 22 | I26: =IF(H26>0,INDEX(Poeng!$A$1:$B$100,H26,2),"") ->  | K26: =IF(J26>0,INDEX(Poeng!$A$1:$B$100,J26,2),"") ->  | M26: =IF(L26>0,INDEX(Poeng!$A$1:$B$100,L26,2),"") ->  | O26: =IF(N26>0,INDEX(Poeng!$A$1:$B$100,N26,2),"") ->  | Q26: =IF(P26>0,INDEX(Poeng!$A$1:$B$100,P26,2),"") ->  | R26: 22 | S26: 0 | T26: 0 | U26: 0 | V26: 0 | W26: 0 | X26: 22 | Y26: 0 | Z26: 0 | AA26: 0 | AB26: 22 | AC26: 1 | AD26: 2211000000 | AE26: 23
A27: 23 | B27: Einar Meland | C27: Oppdal IL | D27: 22 | F27: 12 | G27: =IF(F27>0,INDEX(Poeng!$A$1:$B$100,F27,2),"") -> 22 | I27: =IF(H27>0,INDEX(Poeng!$A$1:$B$100,H27,2),"") ->  | K27: =IF(J27>0,INDEX(Poeng!$A$1:$B$100,J27,2),"") ->  | M27: =IF(L27>0,INDEX(Poeng!$A$1:$B$100,L27,2),"") ->  | O27: =IF(N27>0,INDEX(Poeng!$A$1:$B$100,N27,2),"") ->  | Q27: =IF(P27>0,INDEX(Poeng!$A$1:$B$100,P27,2),"") ->  | R27: 22 | S27: 0 | T27: 0 | U27: 0 | V27: 0 | W27: 0 | X27: 22 | Y27: 0 | Z27: 0 | AA27: 0 | AB27: 22 | AC27: 1 | AD27: 2211000000 | AE27: 23
A28: =AE28 ->  | D28: =IF(B28<>"",AB28,"") ->  | E28: =IF(AC28<4," ","F") ->  | G28: =IF(F28>0,INDEX(Poeng!$A$1:$B$100,F28,2),"") ->  | I28: =IF(H28>0,INDEX(Poeng!$A$1:$B$100,H28,2),"") ->  | K28: =IF(J28>0,INDEX(Poeng!$A$1:$B$100,J28,2),"") ->  | M28: =IF(L28>0,INDEX(Poeng!$A$1:$B$100,L28,2),"") ->  | O28: =IF(N28>0,INDEX(Poeng!$A$1:$B$100,N28,2),"") ->  | Q28: =IF(P28>0,INDEX(Poeng!$A$1:$B$100,P28,2),"") ->  | R28: 0 | S28: 0 | T28: 0 | U28: 0 | V28: 0 | W28: 0 | X28: 0 | Y28: 0 | Z28: 0 | AA28: 0 | AB28: 0 | AC28: 0 | AD28: 0
G29: =IF(F29>0,INDEX(Poeng!$A$1:$B$100,F29,2),"") ->  | I29: =IF(H29>0,INDEX(Poeng!$A$1:$B$100,H29,2),"") ->  | K29: =IF(J29>0,INDEX(Poeng!$A$1:$B$100,J29,2),"") ->  | M29: =IF(L29>0,INDEX(Poeng!$A$1:$B$100,L29,2),"") ->  | O29: =IF(N29>0,INDEX(Poeng!$A$1:$B$100,N29,2),"") ->  | Q29: =IF(P29>0,INDEX(Poeng!$A$1:$B$100,P29,2),"") ->  | R29: 0 | S29: 0 | T29: 0 | U29: 0 | V29: 0 | W29: 0 | X29: 0 | Y29: 0 | Z29: 0 | AA29: 0 | AB29: 0 | AC29: 0 | AD29: 0
G30: =IF(F30>0,INDEX(Poeng!$A$1:$B$100,F30,2),"") ->  | I30: =IF(H30>0,INDEX(Poeng!$A$1:$B$100,H30,2),"") ->  | K30: =IF(J30>0,INDEX(Poeng!$A$1:$B$100,J30,2),"") ->  | M30: =IF(L30>0,INDEX(Poeng!$A$1:$B$100,L30,2),"") ->  | O30: =IF(N30>0,INDEX(Poeng!$A$1:$B$100,N30,2),"") ->  | Q30: =IF(P30>0,INDEX(Poeng!$A$1:$B$100,P30,2),"") ->  | R30: =IF(F30>0,G30,0) -> 0 | S30: =IF(H30>0,I30,0) -> 0 | T30: =IF(J30>0,K30,0) -> 0 | U30: =IF(L30>0,M30,0) -> 0 | V30: =IF(N30>0,O30,0) -> 0 | W30: =IF(P30>0,Q30,0) -> 0 | X30: =LARGE(R30:W30,1) -> 0 | Y30: =LARGE(R30:W30,2) -> 0 | Z30: =LARGE(R30:W30,3) -> 0 | AA30: =LARGE(R30:W30,4) -> 0 | AB30: =SUM(X30:AA30) -> 0 | AC30: =COUNT(F30:Q30)/2 -> 0 | AD30: =AB30*10^8+X30*10^6/2+Y30*10^4/2+Z30*10^2/2+AA30/2 -> 0
I31: =IF(H31>0,INDEX(Poeng!$A$1:$B$100,H31,2),"") ->  | K31: =IF(J31>0,INDEX(Poeng!$A$1:$B$100,J31,2),"") ->  | M31: =IF(L31>0,INDEX(Poeng!$A$1:$B$100,L31,2),"") ->  | O31: =IF(N31>0,INDEX(Poeng!$A$1:$B$100,N31,2),"") ->  | Q31: =IF(P31>0,INDEX(Poeng!$A$1:$B$100,P31,2),"") ->  | R31: 0 | S31: 0 | T31: 0 | U31: 0 | V31: 0 | W31: 0 | X31: 0 | Y31: 0 | Z31: 0 | AA31: 0 | AB31: 0 | AC31: 0 | AD31: 0
I32: =IF(H32>0,INDEX(Poeng!$A$1:$B$100,H32,2),"") ->  | K32: =IF(J32>0,INDEX(Poeng!$A$1:$B$100,J32,2),"") ->  | M32: =IF(L32>0,INDEX(Poeng!$A$1:$B$100,L32,2),"") ->  | O32: =IF(N32>0,INDEX(Poeng!$A$1:$B$100,N32,2),"") ->  | Q32: =IF(P32>0,INDEX(Poeng!$A$1:$B$100,P32,2),"") ->  | R32: 0 | S32: 0 | T32: 0 | U32: 0 | V32: 0 | W32: 0 | X32: 0 | Y32: 0 | Z32: 0 | AA32: 0 | AB32: 0 | AC32: 0 | AD32: 0
I33: =IF(H33>0,INDEX(Poeng!$A$1:$B$100,H33,2),"") ->  | K33: =IF(J33>0,INDEX(Poeng!$A$1:$B$100,J33,2),"") ->  | M33: =IF(L33>0,INDEX(Poeng!$A$1:$B$100,L33,2),"") ->  | O33: =IF(N33>0,INDEX(Poeng!$A$1:$B$100,N33,2),"") ->  | Q33: =IF(P33>0,INDEX(Poeng!$A$1:$B$100,P33,2),"") ->  | R33: 0 | S33: 0 | T33: 0 | U33: 0 | V33: 0 | W33: 0 | X33: 0 | Y33: 0 | Z33: 0 | AA33: 0 | AB33: 0 | AC33: 0 | AD33: 0
I34: =IF(H34>0,INDEX(Poeng!$A$1:$B$100,H34,2),"") ->  | K34: =IF(J34>0,INDEX(Poeng!$A$1:$B$100,J34,2),"") ->  | M34: =IF(L34>0,INDEX(Poeng!$A$1:$B$100,L34,2),"") ->  | O34: =IF(N34>0,INDEX(Poeng!$A$1:$B$100,N34,2),"") ->  | Q34: =IF(P34>0,INDEX(Poeng!$A$1:$B$100,P34,2),"") ->  | R34: 0 | S34: 0 | T34: 0 | U34: 0 | V34: 0 | W34: 0 | X34: 0 | Y34: 0 | Z34: 0 | AA34: 0 | AB34: 0 | AC34: 0 | AD34: 0
I35: =IF(H35>0,INDEX(Poeng!$A$1:$B$100,H35,2),"") ->  | K35: =IF(J35>0,INDEX(Poeng!$A$1:$B$100,J35,2),"") ->  | M35: =IF(L35>0,INDEX(Poeng!$A$1:$B$100,L35,2),"") ->  | O35: =IF(N35>0,INDEX(Poeng!$A$1:$B$100,N35,2),"") ->  | Q35: =IF(P35>0,INDEX(Poeng!$A$1:$B$100,P35,2),"") ->  | R35: 0 | S35: 0 | T35: 0 | U35: 0 | V35: 0 | W35: 0 | X35: 0 | Y35: 0 | Z35: 0 | AA35: 0 | AB35: 0 | AC35: 0 | AD35: 0
G36: =IF(F36>0,INDEX(Poeng!$A$1:$B$100,F36,2),"") ->  | I36: =IF(H36>0,INDEX(Poeng!$A$1:$B$100,H36,2),"") ->  | K36: =IF(J36>0,INDEX(Poeng!$A$1:$B$100,J36,2),"") ->  | M36: =IF(L36>0,INDEX(Poeng!$A$1:$B$100,L36,2),"") ->  | O36: =IF(N36>0,INDEX(Poeng!$A$1:$B$100,N36,2),"") ->  | Q36: =IF(P36>0,INDEX(Poeng!$A$1:$B$100,P36,2),"") ->  | R36: 0 | S36: 0 | T36: 0 | U36: 0 | V36: 0 | W36: 0 | X36: 0 | Y36: 0 | Z36: 0 | AA36: 0 | AB36: 0 | AC36: 0 | AD36: 0 | AE36: =IF(B36<>"",RANK(AD36,AD$4:AD$55,0),"") -> 
G37: =IF(F37>0,INDEX(Poeng!$A$1:$B$100,F37,2),"") ->  | I37: =IF(H37>0,INDEX(Poeng!$A$1:$B$100,H37,2),"") ->  | K37: =IF(J37>0,INDEX(Poeng!$A$1:$B$100,J37,2),"") ->  | M37: =IF(L37>0,INDEX(Poeng!$A$1:$B$100,L37,2),"") ->  | O37: =IF(N37>0,INDEX(Poeng!$A$1:$B$100,N37,2),"") ->  | Q37: =IF(P37>0,INDEX(Poeng!$A$1:$B$100,P37,2),"") ->  | R37: 0 | S37: 0 | T37: 0 | U37: 0 | V37: 0 | W37: 0 | X37: 0 | Y37: 0 | Z37: 0 | AA37: 0 | AB37: 0 | AC37: 0 | AD37: 0
I38: =IF(H38>0,INDEX(Poeng!$A$1:$B$100,H38,2),"") ->  | K38: =IF(J38>0,INDEX(Poeng!$A$1:$B$100,J38,2),"") ->  | M38: =IF(L38>0,INDEX(Poeng!$A$1:$B$100,L38,2),"") ->  | O38: =IF(N38>0,INDEX(Poeng!$A$1:$B$100,N38,2),"") ->  | Q38: =IF(P38>0,INDEX(Poeng!$A$1:$B$100,P38,2),"") ->  | R38: 0 | S38: 0 | T38: 0 | U38: 0 | V38: 0 | W38: 0 | X38: 0 | Y38: 0 | Z38: 0 | AA38: 0 | AB38: 0 | AC38: 0 | AD38: 0
G39: =IF(F39>0,INDEX(Poeng!$A$1:$B$100,F39,2),"") ->  | I39: =IF(H39>0,INDEX(Poeng!$A$1:$B$100,H39,2),"") ->  | K39: =IF(J39>0,INDEX(Poeng!$A$1:$B$100,J39,2),"") ->  | M39: =IF(L39>0,INDEX(Poeng!$A$1:$B$100,L39,2),"") ->  | O39: =IF(N39>0,INDEX(Poeng!$A$1:$B$100,N39,2),"") ->  | Q39: =IF(P39>0,INDEX(Poeng!$A$1:$B$100,P39,2),"") ->  | R39: 0 | S39: 0 | T39: 0 | U39: 0 | V39: 0 | W39: 0 | X39: 0 | Y39: 0 | Z39: 0 | AA39: 0 | AB39: =SUM(X39:AA39) -> 0 | AC39: 0 | AD39: =AB39*10^8+X39*10^6/2+Y39*10^4/2+Z39*10^2/2+AA39/2 -> 0
I40: =IF(H40>0,INDEX(Poeng!$A$1:$B$100,H40,2),"") ->  | K40: =IF(J40>0,INDEX(Poeng!$A$1:$B$100,J40,2),"") ->  | M40: =IF(L40>0,INDEX(Poeng!$A$1:$B$100,L40,2),"") ->  | O40: =IF(N40>0,INDEX(Poeng!$A$1:$B$100,N40,2),"") ->  | Q40: =IF(P40>0,INDEX(Poeng!$A$1:$B$100,P40,2),"") ->  | R40: 0 | S40: 0 | T40: 0 | U40: 0 | V40: 0 | W40: 0 | X40: 0 | Y40: 0 | Z40: 0 | AA40: 0 | AB40: 0 | AC40: 0 | AD40: 0
G41: =IF(F41>0,INDEX(Poeng!$A$1:$B$100,F41,2),"") ->  | I41: =IF(H41>0,INDEX(Poeng!$A$1:$B$100,H41,2),"") ->  | K41: =IF(J41>0,INDEX(Poeng!$A$1:$B$100,J41,2),"") ->  | M41: =IF(L41>0,INDEX(Poeng!$A$1:$B$100,L41,2),"") ->  | O41: =IF(N41>0,INDEX(Poeng!$A$1:$B$100,N41,2),"") ->  | Q41: =IF(P41>0,INDEX(Poeng!$A$1:$B$100,P41,2),"") ->  | R41: 0 | S41: 0 | T41: 0 | U41: 0 | V41: 0 | W41: 0 | X41: 0 | Y41: 0 | Z41: 0 | AA41: 0 | AB41: 0 | AC41: 0 | AD41: 0
G42: =IF(F42>0,INDEX(Poeng!$A$1:$B$100,F42,2),"") ->  | I42: =IF(H42>0,INDEX(Poeng!$A$1:$B$100,H42,2),"") ->  | K42: =IF(J42>0,INDEX(Poeng!$A$1:$B$100,J42,2),"") ->  | M42: =IF(L42>0,INDEX(Poeng!$A$1:$B$100,L42,2),"") ->  | O42: =IF(N42>0,INDEX(Poeng!$A$1:$B$100,N42,2),"") ->  | Q42: =IF(P42>0,INDEX(Poeng!$A$1:$B$100,P42,2),"") ->  | R42: 0 | S42: 0 | T42: 0 | U42: 0 | V42: 0 | W42: 0 | X42: 0 | Y42: 0 | Z42: 0 | AA42: 0 | AB42: 0 | AC42: 0 | AD42: 0
I43: =IF(H43>0,INDEX(Poeng!$A$1:$B$100,H43,2),"") ->  | K43: =IF(J43>0,INDEX(Poeng!$A$1:$B$100,J43,2),"") ->  | M43: =IF(L43>0,INDEX(Poeng!$A$1:$B$100,L43,2),"") ->  | O43: =IF(N43>0,INDEX(Poeng!$A$1:$B$100,N43,2),"") ->  | Q43: =IF(P43>0,INDEX(Poeng!$A$1:$B$100,P43,2),"") ->  | R43: 0 | S43: 0 | T43: 0 | U43: 0 | V43: 0 | W43: 0 | X43: 0 | Y43: 0 | Z43: 0 | AA43: 0 | AB43: 0 | AC43: 0 | AD43: 0
A44: =AE44 ->  | D44: =IF(B44<>"",AB44,"") ->  | E44: =IF(AC44<4," ","F") ->  | I44: =IF(H44>0,INDEX(Poeng!$A$1:$B$100,H44,2),"") ->  | K44: =IF(J44>0,INDEX(Poeng!$A$1:$B$100,J44,2),"") ->  | M44: =IF(L44>0,INDEX(Poeng!$A$1:$B$100,L44,2),"") ->  | O44: =IF(N44>0,INDEX(Poeng!$A$1:$B$100,N44,2),"") ->  | Q44: =IF(P44>0,INDEX(Poeng!$A$1:$B$100,P44,2),"") ->  | R44: 0 | S44: 0 | T44: 0 | U44: 0 | V44: 0 | W44: 0 | X44: 0 | Y44: 0 | Z44: 0 | AA44: 0 | AB44: 0 | AC44: 0 | AD44: 0
I45: =IF(H45>0,INDEX(Poeng!$A$1:$B$100,H45,2),"") ->  | K45: =IF(J45>0,INDEX(Poeng!$A$1:$B$100,J45,2),"") ->  | M45: =IF(L45>0,INDEX(Poeng!$A$1:$B$100,L45,2),"") ->  | O45: =IF(N45>0,INDEX(Poeng!$A$1:$B$100,N45,2),"") ->  | Q45: =IF(P45>0,INDEX(Poeng!$A$1:$B$100,P45,2),"") ->  | R45: 0 | S45: 0 | T45: 0 | U45: 0 | V45: 0 | W45: 0 | X45: 0 | Y45: 0 | Z45: 0 | AA45: 0 | AB45: 0 | AC45: 0 | AD45: 0
I46: =IF(H46>0,INDEX(Poeng!$A$1:$B$100,H46,2),"") ->  | K46: =IF(J46>0,INDEX(Poeng!$A$1:$B$100,J46,2),"") ->  | M46: =IF(L46>0,INDEX(Poeng!$A$1:$B$100,L46,2),"") ->  | O46: =IF(N46>0,INDEX(Poeng!$A$1:$B$100,N46,2),"") ->  | Q46: =IF(P46>0,INDEX(Poeng!$A$1:$B$100,P46,2),"") ->  | R46: 0 | S46: 0 | T46: 0 | U46: 0 | V46: 0 | W46: 0 | X46: 0 | Y46: 0 | Z46: 0 | AA46: 0 | AB46: 0 | AC46: 0 | AD46: 0
I47: =IF(H47>0,INDEX(Poeng!$A$1:$B$100,H47,2),"") ->  | K47: =IF(J47>0,INDEX(Poeng!$A$1:$B$100,J47,2),"") ->  | M47: =IF(L47>0,INDEX(Poeng!$A$1:$B$100,L47,2),"") ->  | O47: =IF(N47>0,INDEX(Poeng!$A$1:$B$100,N47,2),"") ->  | Q47: =IF(P47>0,INDEX(Poeng!$A$1:$B$100,P47,2),"") ->  | R47: 0 | S47: 0 | T47: 0 | U47: 0 | V47: 0 | W47: 0 | X47: 0 | Y47: 0 | Z47: 0 | AA47: 0 | AB47: 0 | AC47: 0 | AD47: 0
I48: =IF(H48>0,INDEX(Poeng!$A$1:$B$100,H48,2),"") ->  | K48: =IF(J48>0,INDEX(Poeng!$A$1:$B$100,J48,2),"") ->  | M48: =IF(L48>0,INDEX(Poeng!$A$1:$B$100,L48,2),"") ->  | O48: =IF(N48>0,INDEX(Poeng!$A$1:$B$100,N48,2),"") ->  | Q48: =IF(P48>0,INDEX(Poeng!$A$1:$B$100,P48,2),"") ->  | R48: 0 | S48: 0 | T48: 0 | U48: 0 | V48: 0 | W48: 0 | X48: 0 | Y48: 0 | Z48: 0 | AA48: 0 | AB48: 0 | AC48: 0 | AD48: 0
I49: =IF(H49>0,INDEX(Poeng!$A$1:$B$100,H49,2),"") ->  | K49: =IF(J49>0,INDEX(Poeng!$A$1:$B$100,J49,2),"") ->  | M49: =IF(L49>0,INDEX(Poeng!$A$1:$B$100,L49,2),"") ->  | O49: =IF(N49>0,INDEX(Poeng!$A$1:$B$100,N49,2),"") ->  | Q49: =IF(P49>0,INDEX(Poeng!$A$1:$B$100,P49,2),"") ->  | R49: 0 | S49: 0 | T49: 0 | U49: 0 | V49: 0 | W49: 0 | X49: 0 | Y49: 0 | Z49: 0 | AA49: 0 | AB49: =SUM(X49:AA49) -> 0 | AC49: 0 | AD49: =AB49*10^8+X49*10^6/2+Y49*10^4/2+Z49*10^2/2+AA49/2 -> 0
I50: =IF(H50>0,INDEX(Poeng!$A$1:$B$100,H50,2),"") ->  | K50: =IF(J50>0,INDEX(Poeng!$A$1:$B$100,J50,2),"") ->  | M50: =IF(L50>0,INDEX(Poeng!$A$1:$B$100,L50,2),"") ->  | O50: =IF(N50>0,INDEX(Poeng!$A$1:$B$100,N50,2),"") ->  | Q50: =IF(P50>0,INDEX(Poeng!$A$1:$B$100,P50,2),"") ->  | R50: 0 | S50: 0 | T50: 0 | U50: 0 | V50: 0 | W50: 0 | X50: 0 | Y50: 0 | Z50: 0 | AA50: 0 | AB50: 0 | AC50: 0 | AD50: 0
I51: =IF(H51>0,INDEX(Poeng!$A$1:$B$100,H51,2),"") ->  | K51: =IF(J51>0,INDEX(Poeng!$A$1:$B$100,J51,2),"") ->  | M51: =IF(L51>0,INDEX(Poeng!$A$1:$B$100,L51,2),"") ->  | O51: =IF(N51>0,INDEX(Poeng!$A$1:$B$100,N51,2),"") ->  | Q51: =IF(P51>0,INDEX(Poeng!$A$1:$B$100,P51,2),"") ->  | R51: 0 | S51: 0 | T51: 0 | U51: 0 | V51: 0 | W51: 0 | X51: 0 | Y51: 0 | Z51: 0 | AA51: 0 | AB51: 0 | AC51: 0 | AD51: 0
A52: =AE52 ->  | I52: =IF(H52>0,INDEX(Poeng!$A$1:$B$100,H52,2),"") ->  | K52: =IF(J52>0,INDEX(Poeng!$A$1:$B$100,J52,2),"") ->  | M52: =IF(L52>0,INDEX(Poeng!$A$1:$B$100,L52,2),"") ->  | O52: =IF(N52>0,INDEX(Poeng!$A$1:$B$100,N52,2),"") ->  | Q52: =IF(P52>0,INDEX(Poeng!$A$1:$B$100,P52,2),"") ->  | R52: 0 | S52: 0 | T52: 0 | U52: 0 | V52: 0 | W52: 0 | X52: 0 | Y52: 0 | Z52: 0 | AA52: 0 | AB52: 0 | AC52: 0 | AD52: 0
E53: =IF(AC53<4," ","F") ->  | I53: =IF(H53>0,INDEX(Poeng!$A$1:$B$100,H53,2),"") ->  | K53: =IF(J53>0,INDEX(Poeng!$A$1:$B$100,J53,2),"") ->  | M53: =IF(L53>0,INDEX(Poeng!$A$1:$B$100,L53,2),"") ->  | O53: =IF(N53>0,INDEX(Poeng!$A$1:$B$100,N53,2),"") ->  | Q53: =IF(P53>0,INDEX(Poeng!$A$1:$B$100,P53,2),"") ->  | R53: 0 | S53: 0 | T53: 0 | U53: 0 | V53: 0 | W53: 0 | X53: 0 | Y53: 0 | Z53: 0 | AA53: 0 | AB53: 0 | AC53: 0 | AD53: 0
D54: =IF(B54<>"",AB54,"") ->  | I54: =IF(H54>0,INDEX(Poeng!$A$1:$B$100,H54,2),"") ->  | K54: =IF(J54>0,INDEX(Poeng!$A$1:$B$100,J54,2),"") ->  | M54: =IF(L54>0,INDEX(Poeng!$A$1:$B$100,L54,2),"") ->  | O54: =IF(N54>0,INDEX(Poeng!$A$1:$B$100,N54,2),"") ->  | Q54: =IF(P54>0,INDEX(Poeng!$A$1:$B$100,P54,2),"") ->  | R54: =IF(F54>0,G54,0) -> 0 | S54: =IF(H54>0,I54,0) -> 0 | T54: =IF(J54>0,K54,0) -> 0 | U54: =IF(L54>0,M54,0) -> 0 | V54: =IF(N54>0,O54,0) -> 0 | W54: =IF(P54>0,Q54,0) -> 0 | X54: =LARGE(R54:W54,1) -> 0 | Y54: =LARGE(R54:W54,2) -> 0 | Z54: =LARGE(R54:W54,3) -> 0 | AA54: =LARGE(R54:W54,4) -> 0 | AB54: 0 | AC54: =COUNT(F54:Q54)/2 -> 0 | AD54: 0
I55: =IF(H55>0,INDEX(Poeng!$A$1:$B$100,H55,2),"") ->  | K55: =IF(J55>0,INDEX(Poeng!$A$1:$B$100,J55,2),"") ->  | M55: =IF(L55>0,INDEX(Poeng!$A$1:$B$100,L55,2),"") ->  | O55: =IF(N55>0,INDEX(Poeng!$A$1:$B$100,N55,2),"") ->  | Q55: =IF(P55>0,INDEX(Poeng!$A$1:$B$100,P55,2),"") ->  | R55: 0 | S55: 0 | T55: 0 | U55: 0 | V55: 0 | W55: 0 | X55: 0 | Y55: 0 | Z55: 0 | AA55: 0 | AB55: 0 | AC55: 0 | AD55: 0
I56: =IF(H56>0,INDEX(Poeng!$A$1:$B$100,H56,2),"") ->  | K56: =IF(J56>0,INDEX(Poeng!$A$1:$B$100,J56,2),"") ->  | M56: =IF(L56>0,INDEX(Poeng!$A$1:$B$100,L56,2),"") ->  | O56: =IF(N56>0,INDEX(Poeng!$A$1:$B$100,N56,2),"") ->  | Q56: =IF(P56>0,INDEX(Poeng!$A$1:$B$100,P56,2),"") ->  | R56: 0 | S56: 0 | T56: 0 | U56: 0 | V56: 0 | W56: 0 | X56: 0 | Y56: 0 | Z56: 0 | AA56: 0 | AB56: 0 | AC56: 0 | AD56: 0
I57: =IF(H57>0,INDEX(Poeng!$A$1:$B$100,H57,2),"") ->  | K57: =IF(J57>0,INDEX(Poeng!$A$1:$B$100,J57,2),"") ->  | M57: =IF(L57>0,INDEX(Poeng!$A$1:$B$100,L57,2),"") ->  | O57: =IF(N57>0,INDEX(Poeng!$A$1:$B$100,N57,2),"") ->  | Q57: =IF(P57>0,INDEX(Poeng!$A$1:$B$100,P57,2),"") ->  | R57: 0 | S57: 0 | T57: 0 | U57: 0 | V57: 0 | W57: 0 | X57: 0 | Y57: 0 | Z57: 0 | AA57: 0 | AB57: 0 | AC57: 0 | AD57: 0
I58: =IF(H58>0,INDEX(Poeng!$A$1:$B$100,H58,2),"") ->  | K58: =IF(J58>0,INDEX(Poeng!$A$1:$B$100,J58,2),"") ->  | M58: =IF(L58>0,INDEX(Poeng!$A$1:$B$100,L58,2),"") ->  | O58: =IF(N58>0,INDEX(Poeng!$A$1:$B$100,N58,2),"") ->  | Q58: =IF(P58>0,INDEX(Poeng!$A$1:$B$100,P58,2),"") ->  | R58: 0 | S58: 0 | T58: 0 | U58: 0 | V58: 0 | W58: 0 | X58: 0 | Y58: 0 | Z58: 0 | AA58: 0 | AB58: 0 | AC58: 0 | AD58: 0
I59: =IF(H59>0,INDEX(Poeng!$A$1:$B$100,H59,2),"") ->  | K59: =IF(J59>0,INDEX(Poeng!$A$1:$B$100,J59,2),"") ->  | M59: =IF(L59>0,INDEX(Poeng!$A$1:$B$100,L59,2),"") ->  | O59: =IF(N59>0,INDEX(Poeng!$A$1:$B$100,N59,2),"") ->  | Q59: =IF(P59>0,INDEX(Poeng!$A$1:$B$100,P59,2),"") ->  | R59: 0 | S59: 0 | T59: 0 | U59: 0 | V59: 0 | W59: 0 | X59: 0 | Y59: 0 | Z59: 0 | AA59: 0 | AB59: 0 | AC59: 0 | AD59: 0
I60: =IF(H60>0,INDEX(Poeng!$A$1:$B$100,H60,2),"") ->  | K60: =IF(J60>0,INDEX(Poeng!$A$1:$B$100,J60,2),"") ->  | M60: =IF(L60>0,INDEX(Poeng!$A$1:$B$100,L60,2),"") ->  | O60: =IF(N60>0,INDEX(Poeng!$A$1:$B$100,N60,2),"") ->  | Q60: =IF(P60>0,INDEX(Poeng!$A$1:$B$100,P60,2),"") ->  | R60: 0 | S60: 0 | T60: 0 | U60: 0 | V60: 0 | W60: 0 | X60: 0 | Y60: 0 | Z60: 0 | AA60: 0 | AB60: 0 | AC60: 0 | AD60: 0
I61: =IF(H61>0,INDEX(Poeng!$A$1:$B$100,H61,2),"") ->  | K61: =IF(J61>0,INDEX(Poeng!$A$1:$B$100,J61,2),"") ->  | M61: =IF(L61>0,INDEX(Poeng!$A$1:$B$100,L61,2),"") ->  | O61: =IF(N61>0,INDEX(Poeng!$A$1:$B$100,N61,2),"") ->  | Q61: =IF(P61>0,INDEX(Poeng!$A$1:$B$100,P61,2),"") ->  | R61: 0 | S61: 0 | T61: 0 | U61: 0 | V61: 0 | W61: 0 | X61: 0 | Y61: 0 | Z61: 0 | AA61: 0 | AB61: 0 | AC61: 0 | AD61: 0
I62: =IF(H62>0,INDEX(Poeng!$A$1:$B$100,H62,2),"") ->  | K62: =IF(J62>0,INDEX(Poeng!$A$1:$B$100,J62,2),"") ->  | M62: =IF(L62>0,INDEX(Poeng!$A$1:$B$100,L62,2),"") ->  | O62: =IF(N62>0,INDEX(Poeng!$A$1:$B$100,N62,2),"") ->  | Q62: =IF(P62>0,INDEX(Poeng!$A$1:$B$100,P62,2),"") ->  | R62: 0 | S62: 0 | T62: 0 | U62: 0 | V62: 0 | W62: 0 | X62: 0 | Y62: 0 | Z62: 0 | AA62: 0 | AB62: 0 | AC62: 0 | AD62: 0
I63: =IF(H63>0,INDEX(Poeng!$A$1:$B$100,H63,2),"") ->  | K63: =IF(J63>0,INDEX(Poeng!$A$1:$B$100,J63,2),"") ->  | M63: =IF(L63>0,INDEX(Poeng!$A$1:$B$100,L63,2),"") ->  | O63: =IF(N63>0,INDEX(Poeng!$A$1:$B$100,N63,2),"") ->  | Q63: =IF(P63>0,INDEX(Poeng!$A$1:$B$100,P63,2),"") ->  | R63: 0 | S63: 0 | T63: 0 | U63: 0 | V63: 0 | W63: 0 | X63: 0 | Y63: 0 | Z63: 0 | AA63: 0 | AB63: 0 | AC63: 0 | AD63: 0
I64: =IF(H64>0,INDEX(Poeng!$A$1:$B$100,H64,2),"") ->  | K64: =IF(J64>0,INDEX(Poeng!$A$1:$B$100,J64,2),"") ->  | M64: =IF(L64>0,INDEX(Poeng!$A$1:$B$100,L64,2),"") ->  | O64: =IF(N64>0,INDEX(Poeng!$A$1:$B$100,N64,2),"") ->  | Q64: =IF(P64>0,INDEX(Poeng!$A$1:$B$100,P64,2),"") ->  | R64: 0 | S64: 0 | T64: 0 | U64: 0 | V64: 0 | W64: 0 | X64: 0 | Y64: 0 | Z64: 0 | AA64: 0 | AB64: 0 | AC64: 0 | AD64: 0
I65: =IF(H65>0,INDEX(Poeng!$A$1:$B$100,H65,2),"") ->  | K65: =IF(J65>0,INDEX(Poeng!$A$1:$B$100,J65,2),"") ->  | M65: =IF(L65>0,INDEX(Poeng!$A$1:$B$100,L65,2),"") ->  | O65: =IF(N65>0,INDEX(Poeng!$A$1:$B$100,N65,2),"") ->  | Q65: =IF(P65>0,INDEX(Poeng!$A$1:$B$100,P65,2),"") ->  | R65: 0 | S65: 0 | T65: 0 | U65: 0 | V65: 0 | W65: 0 | X65: 0 | Y65: 0 | Z65: 0 | AA65: 0 | AB65: 0 | AC65: 0 | AD65: 0
I66: =IF(H66>0,INDEX(Poeng!$A$1:$B$100,H66,2),"") ->  | K66: =IF(J66>0,INDEX(Poeng!$A$1:$B$100,J66,2),"") ->  | M66: =IF(L66>0,INDEX(Poeng!$A$1:$B$100,L66,2),"") ->  | O66: =IF(N66>0,INDEX(Poeng!$A$1:$B$100,N66,2),"") ->  | Q66: =IF(P66>0,INDEX(Poeng!$A$1:$B$100,P66,2),"") ->  | R66: 0 | S66: 0 | T66: 0 | U66: 0 | V66: 0 | W66: 0 | X66: 0 | Y66: 0 | Z66: 0 | AA66: 0 | AB66: 0 | AC66: 0 | AD66: 0
I67: =IF(H67>0,INDEX(Poeng!$A$1:$B$100,H67,2),"") ->  | K67: =IF(J67>0,INDEX(Poeng!$A$1:$B$100,J67,2),"") ->  | M67: =IF(L67>0,INDEX(Poeng!$A$1:$B$100,L67,2),"") ->  | O67: =IF(N67>0,INDEX(Poeng!$A$1:$B$100,N67,2),"") ->  | Q67: =IF(P67>0,INDEX(Poeng!$A$1:$B$100,P67,2),"") ->  | R67: 0 | S67: 0 | T67: 0 | U67: 0 | V67: 0 | W67: 0 | X67: 0 | Y67: 0 | Z67: 0 | AA67: 0 | AB67: 0 | AC67: 0 | AD67: 0
I68: =IF(H68>0,INDEX(Poeng!$A$1:$B$100,H68,2),"") ->  | K68: =IF(J68>0,INDEX(Poeng!$A$1:$B$100,J68,2),"") ->  | M68: =IF(L68>0,INDEX(Poeng!$A$1:$B$100,L68,2),"") ->  | O68: =IF(N68>0,INDEX(Poeng!$A$1:$B$100,N68,2),"") ->  | Q68: =IF(P68>0,INDEX(Poeng!$A$1:$B$100,P68,2),"") ->  | R68: 0 | S68: 0 | T68: 0 | U68: 0 | V68: 0 | W68: 0 | X68: 0 | Y68: 0 | Z68: 0 | AA68: 0 | AB68: 0 | AC68: 0 | AD68: 0 | AE68: =IF(B68<>"",RANK(AD68,AD$4:AD$55,0),"") -> 
I69: =IF(H69>0,INDEX(Poeng!$A$1:$B$100,H69,2),"") ->  | K69: =IF(J69>0,INDEX(Poeng!$A$1:$B$100,J69,2),"") ->  | M69: =IF(L69>0,INDEX(Poeng!$A$1:$B$100,L69,2),"") ->  | O69: =IF(N69>0,INDEX(Poeng!$A$1:$B$100,N69,2),"") ->  | Q69: =IF(P69>0,INDEX(Poeng!$A$1:$B$100,P69,2),"") ->  | R69: 0 | S69: 0 | T69: 0 | U69: 0 | V69: 0 | W69: 0 | X69: 0 | Y69: 0 | Z69: 0 | AA69: 0 | AB69: 0 | AC69: 0 | AD69: 0
I70: =IF(H70>0,INDEX(Poeng!$A$1:$B$100,H70,2),"") ->  | K70: =IF(J70>0,INDEX(Poeng!$A$1:$B$100,J70,2),"") ->  | M70: =IF(L70>0,INDEX(Poeng!$A$1:$B$100,L70,2),"") ->  | O70: =IF(N70>0,INDEX(Poeng!$A$1:$B$100,N70,2),"") ->  | Q70: =IF(P70>0,INDEX(Poeng!$A$1:$B$100,P70,2),"") ->  | R70: 0 | S70: 0 | T70: 0 | U70: 0 | V70: 0 | W70: 0 | X70: 0 | Y70: 0 | Z70: 0 | AA70: 0 | AB70: 0 | AC70: 0 | AD70: 0
I71: =IF(H71>0,INDEX(Poeng!$A$1:$B$100,H71,2),"") ->  | K71: =IF(J71>0,INDEX(Poeng!$A$1:$B$100,J71,2),"") ->  | M71: =IF(L71>0,INDEX(Poeng!$A$1:$B$100,L71,2),"") ->  | O71: =IF(N71>0,INDEX(Poeng!$A$1:$B$100,N71,2),"") ->  | Q71: =IF(P71>0,INDEX(Poeng!$A$1:$B$100,P71,2),"") ->  | R71: 0 | S71: 0 | T71: 0 | U71: 0 | V71: 0 | W71: 0 | X71: 0 | Y71: 0 | Z71: 0 | AA71: 0 | AB71: 0 | AC71: 0 | AD71: 0
I72: =IF(H72>0,INDEX(Poeng!$A$1:$B$100,H72,2),"") ->  | K72: =IF(J72>0,INDEX(Poeng!$A$1:$B$100,J72,2),"") ->  | M72: =IF(L72>0,INDEX(Poeng!$A$1:$B$100,L72,2),"") ->  | O72: =IF(N72>0,INDEX(Poeng!$A$1:$B$100,N72,2),"") ->  | Q72: =IF(P72>0,INDEX(Poeng!$A$1:$B$100,P72,2),"") ->  | R72: 0 | S72: 0 | T72: 0 | U72: 0 | V72: 0 | W72: 0 | X72: 0 | Y72: 0 | Z72: 0 | AA72: 0 | AB72: 0 | AC72: 0 | AD72: 0
I73: =IF(H73>0,INDEX(Poeng!$A$1:$B$100,H73,2),"") ->  | K73: =IF(J73>0,INDEX(Poeng!$A$1:$B$100,J73,2),"") ->  | M73: =IF(L73>0,INDEX(Poeng!$A$1:$B$100,L73,2),"") ->  | O73: =IF(N73>0,INDEX(Poeng!$A$1:$B$100,N73,2),"") ->  | Q73: =IF(P73>0,INDEX(Poeng!$A$1:$B$100,P73,2),"") ->  | R73: 0 | S73: 0 | T73: 0 | U73: 0 | V73: 0 | W73: 0 | X73: 0 | Y73: 0 | Z73: 0 | AA73: 0 | AB73: 0 | AC73: 0 | AD73: 0
I74: =IF(H74>0,INDEX(Poeng!$A$1:$B$100,H74,2),"") ->  | K74: =IF(J74>0,INDEX(Poeng!$A$1:$B$100,J74,2),"") ->  | M74: =IF(L74>0,INDEX(Poeng!$A$1:$B$100,L74,2),"") ->  | O74: =IF(N74>0,INDEX(Poeng!$A$1:$B$100,N74,2),"") ->  | Q74: =IF(P74>0,INDEX(Poeng!$A$1:$B$100,P74,2),"") ->  | R74: 0 | S74: 0 | T74: 0 | U74: 0 | V74: 0 | W74: 0 | X74: 0 | Y74: 0 | Z74: 0 | AA74: 0 | AB74: 0 | AC74: 0 | AD74: 0
I75: =IF(H75>0,INDEX(Poeng!$A$1:$B$100,H75,2),"") ->  | K75: =IF(J75>0,INDEX(Poeng!$A$1:$B$100,J75,2),"") ->  | M75: =IF(L75>0,INDEX(Poeng!$A$1:$B$100,L75,2),"") ->  | O75: =IF(N75>0,INDEX(Poeng!$A$1:$B$100,N75,2),"") ->  | Q75: =IF(P75>0,INDEX(Poeng!$A$1:$B$100,P75,2),"") ->  | R75: 0 | S75: 0 | T75: 0 | U75: 0 | V75: 0 | W75: 0 | X75: 0 | Y75: 0 | Z75: 0 | AA75: 0 | AB75: 0 | AC75: 0 | AD75: 0
I76: =IF(H76>0,INDEX(Poeng!$A$1:$B$100,H76,2),"") ->  | K76: =IF(J76>0,INDEX(Poeng!$A$1:$B$100,J76,2),"") ->  | M76: =IF(L76>0,INDEX(Poeng!$A$1:$B$100,L76,2),"") ->  | O76: =IF(N76>0,INDEX(Poeng!$A$1:$B$100,N76,2),"") ->  | Q76: =IF(P76>0,INDEX(Poeng!$A$1:$B$100,P76,2),"") ->  | R76: 0 | S76: 0 | T76: 0 | U76: 0 | V76: 0 | W76: 0 | X76: 0 | Y76: 0 | Z76: 0 | AA76: 0 | AB76: 0 | AC76: 0 | AD76: 0
I77: =IF(H77>0,INDEX(Poeng!$A$1:$B$100,H77,2),"") ->  | K77: =IF(J77>0,INDEX(Poeng!$A$1:$B$100,J77,2),"") ->  | M77: =IF(L77>0,INDEX(Poeng!$A$1:$B$100,L77,2),"") ->  | O77: =IF(N77>0,INDEX(Poeng!$A$1:$B$100,N77,2),"") ->  | Q77: =IF(P77>0,INDEX(Poeng!$A$1:$B$100,P77,2),"") ->  | R77: 0 | S77: 0 | T77: 0 | U77: 0 | V77: 0 | W77: 0 | X77: 0 | Y77: 0 | Z77: 0 | AA77: 0 | AB77: 0 | AC77: 0 | AD77: 0
I78: =IF(H78>0,INDEX(Poeng!$A$1:$B$100,H78,2),"") ->  | K78: =IF(J78>0,INDEX(Poeng!$A$1:$B$100,J78,2),"") ->  | M78: =IF(L78>0,INDEX(Poeng!$A$1:$B$100,L78,2),"") ->  | O78: =IF(N78>0,INDEX(Poeng!$A$1:$B$100,N78,2),"") ->  | Q78: =IF(P78>0,INDEX(Poeng!$A$1:$B$100,P78,2),"") ->  | R78: 0 | S78: 0 | T78: 0 | U78: 0 | V78: 0 | W78: 0 | X78: 0 | Y78: 0 | Z78: 0 | AA78: 0 | AB78: 0 | AC78: 0 | AD78: 0
I79: =IF(H79>0,INDEX(Poeng!$A$1:$B$100,H79,2),"") ->  | K79: =IF(J79>0,INDEX(Poeng!$A$1:$B$100,J79,2),"") ->  | M79: =IF(L79>0,INDEX(Poeng!$A$1:$B$100,L79,2),"") ->  | O79: =IF(N79>0,INDEX(Poeng!$A$1:$B$100,N79,2),"") ->  | Q79: =IF(P79>0,INDEX(Poeng!$A$1:$B$100,P79,2),"") ->  | R79: 0 | S79: 0 | T79: 0 | U79: 0 | V79: 0 | W79: 0 | X79: 0 | Y79: 0 | Z79: 0 | AA79: 0 | AB79: 0 | AC79: 0 | AD79: 0
I80: =IF(H80>0,INDEX(Poeng!$A$1:$B$100,H80,2),"") ->  | K80: =IF(J80>0,INDEX(Poeng!$A$1:$B$100,J80,2),"") ->  | M80: =IF(L80>0,INDEX(Poeng!$A$1:$B$100,L80,2),"") ->  | O80: =IF(N80>0,INDEX(Poeng!$A$1:$B$100,N80,2),"") ->  | Q80: =IF(P80>0,INDEX(Poeng!$A$1:$B$100,P80,2),"") ->  | R80: 0 | S80: 0 | T80: 0 | U80: 0 | V80: 0 | W80: 0 | X80: 0 | Y80: 0 | Z80: 0 | AA80: 0 | AB80: 0 | AC80: 0 | AD80: 0

Sheet G15
A1: Gutter 15 | C1: Sparebank1-CUP 2021
F2: SP1- CUP 1 | H2: SP1- CUP 2 | J2: SP1- CUP 3 | L2: SP1- CUP 4 | N2: SP1- CUP 5 | P2: SP1- CUP 6 | R2: Poeng | X2: Fire beste | AB2: Sum
A3: Nr | B3: NAVN | C3: KLUBB | D3: POENG | E3: Fullført | F3: Nr. Poeng | H3: Nr. Poeng | J3: Nr. Poeng | L3: Nr. Poeng | N3: Nr. Poeng | P3: Nr. Poeng | R3: 1 | S3: 2 | T3: 3 | U3: 4 | V3: 5 | W3: 6 | X3: 1 | Y3: 2 | Z3: 3 | AA3: 4
A4: =AE4 -> 1 | B4: Halvor Kvennås | C4: Byåsen IL | D4: =IF(B4<>"",AB4,"") -> 360 | E4: =IF(AC4<4," ","F") -> F | F4: 5 | G4: =IF(F4>0,INDEX(Poeng!$A$1:$B$100,F4,2),"") -> 45 | H4: 1 | I4: =IF(H4>0,INDEX(Poeng!$A$1:$B$100,H4,2),"") -> 100 | J4: 3 | K4: =IF(J4>0,INDEX(Poeng!$A$1:$B$100,J4,2),"") -> 60 | L4: 1 | M4: =IF(L4>0,INDEX(Poeng!$A$1:$B$100,L4,2),"") -> 100 | N4: 1 | O4: =IF(N4>0,INDEX(Poeng!$A$1:$B$100,N4,2),"") -> 100 | P4: 4 | Q4: =IF(P4>0,INDEX(Poeng!$A$1:$B$100,P4,2),"") -> 50 | R4: =IF(F4>0,G4,0) -> 45 | S4: =IF(H4>0,I4,0) -> 100 | T4: =IF(J4>0,K4,0) -> 60 | U4: =IF(L4>0,M4,0) -> 100 | V4: =IF(N4>0,O4,0) -> 100 | W4: =IF(P4>0,Q4,0) -> 50 | X4: =LARGE(R4:W4,1) -> 100 | Y4: =LARGE(R4:W4,2) -> 100 | Z4: =LARGE(R4:W4,3) -> 100 | AA4: =LARGE(R4:W4,4) -> 60 | AB4: =SUM(X4:AA4) -> 360 | AC4: =COUNT(F4:Q4)/2 -> 6 | AD4: =AB4*10^8+X4*10^6/2+Y4*10^4/2+Z4*10^2/2+AA4/2 -> 36050505030 | AE4: =IF(B4<>"",RANK(AD4,AD$4:AD$51,0),"") -> 1
A5: 2 | B5: Olav Fugelsøy | C5: Surnadal IL | D5: 340 | E5: F | F5: 4 | G5: =IF(F5>0,INDEX(Poeng!$A$1:$B$100,F5,2),"") -> 50 | H5: 1 | I5: =IF(H5>0,INDEX(Poeng!$A$1:$B$100,H5,2),"") -> 100 | J5: 13 | K5: =IF(J5>0,INDEX(Poeng!$A$1:$B$100,J5,2),"") -> 20 | L5: 3 | M5: =IF(L5>0,INDEX(Poeng!$A$1:$B$100,L5,2),"") -> 60 | N5: 2 | O5: =IF(N5>0,INDEX(Poeng!$A$1:$B$100,N5,2),"") -> 80 | P5: 1 | Q5: =IF(P5>0,INDEX(Poeng!$A$1:$B$100,P5,2),"") -> 100 | R5: 50 | S5: 100 | T5: 20 | U5: 60 | V5: 80 | W5: 100 | X5: 100 | Y5: 100 | Z5: 80 | AA5: 60 | AB5: 340 | AC5: 6 | AD5: 34050504030 | AE5: 2
A6: 3 | B6: Benjamin Kulsetås | C6: Strindheim IL | D6: 245 | E6: F | F6: 3 | G6: =IF(F6>0,INDEX(Poeng!$A$1:$B$100,F6,2),"") -> 60 | H6: 5 | I6: =IF(H6>0,INDEX(Poeng!$A$1:$B$100,H6,2),"") -> 45 | J6: 1 | K6: =IF(J6>0,INDEX(Poeng!$A$1:$B$100,J6,2),"") -> 100 | L6: 6 | M6: =IF(L6>0,INDEX(Poeng!$A$1:$B$100,L6,2),"") -> 40 | O6: =IF(N6>0,INDEX(Poeng!$A$1:$B$100,N6,2),"") ->  | Q6: =IF(P6>0,INDEX(Poeng!$A$1:$B$100,P6,2),"") ->  | R6: 60 | S6: 45 | T6: 100 | U6: 40 | V6: 0 | W6: 0 | X6: 100 | Y6: 60 | Z6: 45 | AA6: 40 | AB6: 245 | AC6: 4 | AD6: 24550302270 | AE6: 3
A7: 4 | B7: Abel Sæterbø Raaen | C7: Surnadal IL | D7: 245 | E7: F | F7: 6 | G7: =IF(F7>0,INDEX(Poeng!$A$1:$B$100,F7,2),"") -> 40 | H7: 3 | I7: =IF(H7>0,INDEX(Poeng!$A$1:$B$100,H7,2),"") -> 60 | J7: 5 | K7: =IF(J7>0,INDEX(Poeng!$A$1:$B$100,J7,2),"") -> 45 | L7: 2 | M7: =IF(L7>0,INDEX(Poeng!$A$1:$B$100,L7,2),"") -> 80 | N7: 3 | O7: =IF(N7>0,INDEX(Poeng!$A$1:$B$100,N7,2),"") -> 60 | P7: 5 | Q7: =IF(P7>0,INDEX(Poeng!$A$1:$B$100,P7,2),"") -> 45 | R7: 40 | S7: 60 | T7: 45 | U7: 80 | V7: 60 | W7: 45 | X7: 80 | Y7: 60 | Z7: 60 | AA7: 45 | AB7: 245 | AC7: 6 | AD7: 2.454030302e+10 | AE7: 4
A8: 5 | B8: Ottar Rekstad | C8: Byåsen IL | D8: 240 | E8: F | F8: 2 | G8: =IF(F8>0,INDEX(Poeng!$A$1:$B$100,F8,2),"") -> 80 | H8: 4 | I8: =IF(H8>0,INDEX(Poeng!$A$1:$B$100,H8,2),"") -> 50 | J8: 9 | K8: =IF(J8>0,INDEX(Poeng!$A$1:$B$100,J8,2),"") -> 29 | L8: 4 | M8: =IF(L8>0,INDEX(Poeng!$A$1:$B$100,L8,2),"") -> 50 | N8: 4 | O8: =IF(N8>0,INDEX(Poeng!$A$1:$B$100,N8,2),"") -> 50 | P8: 3 | Q8: =IF(P8>0,INDEX(Poeng!$A$1:$B$100,P8,2),"") -> 60 | R8: 80 | S8: 50 | T8: 29 | U8: 50 | V8: 50 | W8: 60 | X8: 80 | Y8: 60 | Z8: 50 | AA8: 50 | AB8: 240 | AC8: 6 | AD8: 24040302525 | AE8: 5
A9: 6 | B9: Sverre Smistad | C9: Byåsen IL | D9: 215 | E9: F | F9: 9 | G9: =IF(F9>0,INDEX(Poeng!$A$1:$B$100,F9,2),"") -> 29 | H9: 6 | I9: =IF(H9>0,INDEX(Poeng!$A$1:$B$100,H9,2),"") -> 40 | J9: 4 | K9: =IF(J9>0,INDEX(Poeng!$A$1:$B$100,J9,2),"") -> 50 | L9: 5 | M9: =IF(L9>0,INDEX(Poeng!$A$1:$B$100,L9,2),"") -> 45 | N9: 6 | O9: =IF(N9>0,INDEX(Poeng!$A$1:$B$100,N9,2),"") -> 40 | P9: 2 | Q9: =IF(P9>0,INDEX(Poeng!$A$1:$B$100,P9,2),"") -> 80 | R9: 29 | S9: 40 | T9: 50 | U9: 45 | V9: 40 | W9: 80 | X9: 80 | Y9: 50 | Z9: 45 | AA9: 40 | AB9: 215 | AC9: 6 | AD9: 21540252270 | AE9: 6
A10: 7 | B10: Philip Lindkvist-Fløtten | C10: Strindheim IL | D10: 164 | F10: 1 | G10: =IF(F10>0,INDEX(Poeng!$A$1:$B$100,F10,2),"") -> 100 | I10: =IF(H10>0,INDEX(Poeng!$A$1:$B$100,H10,2),"") ->  | J10: 6 | K10: =IF(J10>0,INDEX(Poeng!$A$1:$B$100,J10,2),"") -> 40 | L10: 11 | M10: =IF(L10>0,INDEX(Poeng!$A$1:$B$100,L10,2),"") -> 24 | O10: =IF(N10>0,INDEX(Poeng!$A$1:$B$100,N10,2),"") ->  | Q10: =IF(P10>0,INDEX(Poeng!$A$1:$B$100,P10,2),"") ->  | R10: 100 | S10: 0 | T10: 40 | U10: 24 | V10: 0 | W10: 0 | X10: 100 | Y10: 40 | Z10: 24 | AA10: 0 | AB10: 164 | AC10: 3 | AD10: 16450201200 | AE10: 7
A11: 8 | B11: Erik Sjømo | C11: Ranheim SK | D11: 162 | E11: F | F11: 10 | G11: =IF(F11>0,INDEX(Poeng!$A$1:$B$100,F11,2),"") -> 26 | H11: 11 | I11: =IF(H11>0,INDEX(Poeng!$A$1:$B$100,H11,2),"") -> 24 | J11: 2 | K11: =IF(J11>0,INDEX(Poeng!$A$1:$B$100,J11,2),"") -> 80 | L11: 8 | M11: =IF(L11>0,INDEX(Poeng!$A$1:$B$100,L11,2),"") -> 32 | O11: =IF(N11>0,INDEX(Poeng!$A$1:$B$100,N11,2),"") ->  | Q11: =IF(P11>0,INDEX(Poeng!$A$1:$B$100,P11,2),"") ->  | R11: 26 | S11: 24 | T11: 80 | U11: 32 | V11: 0 | W11: 0 | X11: 80 | Y11: 32 | Z11: 26 | AA11: 24 | AB11: 162 | AC11: 4 | AD11: 16240161312 | AE11: 8
A12: 9 | B12: Jørgen Storli | C12: Strindheim IL | D12: 148 | E12: F | F12: 7 | G12: =IF(F12>0,INDEX(Poeng!$A$1:$B$100,F12,2),"") -> 36 | H12: 9 | I12: =IF(H12>0,INDEX(Poeng!$A$1:$B$100,H12,2),"") -> 29 | J12: 7 | K12: =IF(J12>0,INDEX(Poeng!$A$1:$B$100,J12,2),"") -> 36 | L12: 7 | M12: =IF(L12>0,INDEX(Poeng!$A$1:$B$100,L12,2),"") -> 36 | N12: 16 | O12: =IF(N12>0,INDEX(Poeng!$A$1:$B$100,N12,2),"") -> 15 | P12: 6 | Q12: =IF(P12>0,INDEX(Poeng!$A$1:$B$100,P12,2),"") -> 40 | R12: 36 | S12: 29 | T12: 36 | U12: 36 | V12: 15 | W12: 40 | X12: 40 | Y12: 36 | Z12: 36 | AA12: 36 | AB12: 148 | AC12: 6 | AD12: 14820181818 | AE12: 9
A13: 10 | B13: Kristian Viken Strand | C13: Byåsen IL | D13: 123 | E13: F | F13: 8 | G13: =IF(F13>0,INDEX(Poeng!$A$1:$B$100,F13,2),"") -> 32 | H13: 7 | I13: =IF(H13>0,INDEX(Poeng!$A$1:$B$100,H13,2),"") -> 36 | J13: 12 | K13: =IF(J13>0,INDEX(Poeng!$A$1:$B$100,J13,2),"") -> 22 | L13: 12 | M13: =IF(L13>0,INDEX(Poeng!$A$1:$B$100,L13,2),"") -> 22 | N13: 9 | O13: =IF(N13>0,INDEX(Poeng!$A$1:$B$100,N13,2),"") -> 29 | P13: 10 | Q13: =IF(P13>0,INDEX(Poeng!$A$1:$B$100,P13,2),"") -> 26 | R13: 32 | S13: 36 | T13: 22 | U13: 22 | V13: 29 | W13: 26 | X13: 36 | Y13: 32 | Z13: 29 | AA13: 26 | AB13: 123 | AC13: 6 | AD13: 12318161463 | AE13: 10
A14: 11 | B14: Oliver Furuhaug | C14: Byåsen IL | D14: 122 | E14: F | F14: 11 | G14: =IF(F14>0,INDEX(Poeng!$A$1:$B$100,F14,2),"") -> 24 | H14: 13 | I14: =IF(H14>0,INDEX(Poeng!$A$1:$B$100,H14,2),"") -> 20 | J14: 8 | K14: =IF(J14>0,INDEX(Poeng!$A$1:$B$100,J14,2),"") -> 32 | L14: 9 | M14: =IF(L14>0,INDEX(Poeng!$A$1:$B$100,L14,2),"") -> 29 | N14: 8 | O14: =IF(N14>0,INDEX(Poeng!$A$1:$B$100,N14,2),"") -> 32 | P14: 9 | Q14: =IF(P14>0,INDEX(Poeng!$A$1:$B$100,P14,2),"") -> 29 | R14: 24 | S14: 20 | T14: 32 | U14: 29 | V14: 32 | W14: 29 | X14: 32 | Y14: 32 | Z14: 29 | AA14: 29 | AB14: 122 | AC14: 6 | AD14: 1.221616146e+10 | AE14: 11
A15: 12 | B15: Endre Sæterbø Nielsen | C15: Strindheim IL | D15: 118 | E15: F | F15: 11 | G15: =IF(F15>0,INDEX(Poeng!$A$1:$B$100,F15,2),"") -> 24 | H15: 8 | I15: =IF(H15>0,INDEX(Poeng!$A$1:$B$100,H15,2),"") -> 32 | J15: 15 | K15: =IF(J15>0,INDEX(Poeng!$A$1:$B$100,J15,2),"") -> 16 | L15: 10 | M15: =IF(L15>0,INDEX(Poeng!$A$1:$B$100,L15,2),"") -> 26 | N15: 13 | O15: =IF(N15>0,INDEX(Poeng!$A$1:$B$100,N15,2),"") -> 20 | P15: 7 | Q15: =IF(P15>0,INDEX(Poeng!$A$1:$B$100,P15,2),"") -> 36 | R15: 24 | S15: 32 | T15: 16 | U15: 26 | V15: 20 | W15: 36 | X15: 36 | Y15: 32 | Z15: 26 | AA15: 24 | AB15: 118 | AC15: 6 | AD15: 11818161312 | AE15: 12
A16: 13 | B16: Håkon Moe Berg | C16: Kyrksæterøra IL | D16: 112 | E16: F | F16: 16 | G16: =IF(F16>0,INDEX(Poeng!$A$1:$B$100,F16,2),"") -> 15 | H16: 9 | I16: =IF(H16>0,INDEX(Poeng!$A$1:$B$100,H16,2),"") -> 29 | J16: 16 | K16: =IF(J16>0,INDEX(Poeng!$A$1:$B$100,J16,2),"") -> 15 | M16: =IF(L16>0,INDEX(Poeng!$A$1:$B$100,L16,2),"") ->  | N16: 7 | O16: =IF(N16>0,INDEX(Poeng!$A$1:$B$100,N16,2),"") -> 36 | P16: 8 | Q16: =IF(P16>0,INDEX(Poeng!$A$1:$B$100,P16,2),"") -> 32 | R16: 15 | S16: 29 | T16: 15 | U16: 0 | V16: 36 | W16: 32 | X16: 36 | Y16: 32 | Z16: 29 | AA16: 15 | AB16: 112 | AC16: 5 | AD16: 1.121816146e+10 | AE16: 13
A17: 14 | B17: Jonas Bakken Berg | C17: Leik, IL | D17: 93 | E17: F | F17: 24 | G17: =IF(F17>0,INDEX(Poeng!$A$1:$B$100,F17,2),"") -> 7 | H17: 15 | I17: =IF(H17>0,INDEX(Poeng!$A$1:$B$100,H17,2),"") -> 16 | J17: 17 | K17: =IF(J17>0,INDEX(Poeng!$A$1:$B$100,J17,2),"") -> 14 | L17: 14 | M17: =IF(L17>0,INDEX(Poeng!$A$1:$B$100,L17,2),"") -> 18 | N17: 5 | O17: =IF(N17>0,INDEX(Poeng!$A$1:$B$100,N17,2),"") -> 45 | Q17: =IF(P17>0,INDEX(Poeng!$A$1:$B$100,P17,2),"") ->  | R17: 7 | S17: 16 | T17: 14 | U17: 18 | V17: 45 | W17: 0 | X17: 45 | Y17: 18 | Z17: 16 | AA17: 14 | AB17: 93 | AC17: 5 | AD17: 9322590807 | AE17: 14
A18: 15 | B18: Milo Mathias Høve Ødegaard | C18: Strindheim IL | D18: 77 | E18: F | F18: 19 | G18: =IF(F18>0,INDEX(Poeng!$A$1:$B$100,F18,2),"") -> 12 | H18: 14 | I18: =IF(H18>0,INDEX(Poeng!$A$1:$B$100,H18,2),"") -> 18 | J18: 18 | K18: =IF(J18>0,INDEX(Poeng!$A$1:$B$100,J18,2),"") -> 13 | L18: 26 | M18: =IF(L18>0,INDEX(Poeng!$A$1:$B$100,L18,2),"") -> 5 | N18: 12 | O18: =IF(N18>0,INDEX(Poeng!$A$1:$B$100,N18,2),"") -> 22 | P18: 11 | Q18: =IF(P18>0,INDEX(Poeng!$A$1:$B$100,P18,2),"") -> 24 | R18: 12 | S18: 18 | T18: 13 | U18: 5 | V18: 22 | W18: 24 | X18: 24 | Y18: 22 | Z18: 18 | AA18: 13 | AB18: 77 | AC18: 6 | AD18: 7712110906 | AE18: 15
A19: 16 | B19: Nichlas Storø | C19: Hommelvik IL | D19: 75 | E19: F | F19: 18 | G19: =IF(F19>0,INDEX(Poeng!$A$1:$B$100,F19,2),"") -> 13 | I19: =IF(H19>0,INDEX(Poeng!$A$1:$B$100,H19,2),"") ->  | J19: 11 | K19: =IF(J19>0,INDEX(Poeng!$A$1:$B$100,J19,2),"") -> 24 | M19: =IF(L19>0,INDEX(Poeng!$A$1:$B$100,L19,2),"") ->  | N19: 14 | O19: =IF(N19>0,INDEX(Poeng!$A$1:$B$100,N19,2),"") -> 18 | P19: 13 | Q19: =IF(P19>0,INDEX(Poeng!$A$1:$B$100,P19,2),"") -> 20 | R19: 13 | S19: 0 | T19: 24 | U19: 0 | V19: 18 | W19: 20 | X19: 24 | Y19: 20 | Z19: 18 | AA19: 13 | AB19: 75 | AC19: 4 | AD19: 7512100906 | AE19: 16
A20: 17 | B20: Even Jordet Ratøien | C20: Meldal IL | D20: 66 | E20: F | F20: 17 | G20: =IF(F20>0,INDEX(Poeng!$A$1:$B$100,F20,2),"") -> 14 | H20: 17 | I20: =IF(H20>0,INDEX(Poeng!$A$1:$B$100,H20,2),"") -> 14 | K20: =IF(J20>0,INDEX(Poeng!$A$1:$B$100,J20,2),"") ->  | L20: 19 | M20: =IF(L20>0,INDEX(Poeng!$A$1:$B$100,L20,2),"") -> 12 | N20: 15 | O20: =IF(N20>0,INDEX(Poeng!$A$1:$B$100,N20,2),"") -> 16 | P20: 12 | Q20: =IF(P20>0,INDEX(Poeng!$A$1:$B$100,P20,2),"") -> 22 | R20: 14 | S20: 14 | T20: 0 | U20: 12 | V20: 16 | W20: 22 | X20: 22 | Y20: 16 | Z20: 14 | AA20: 14 | AB20: 66 | AC20: 5 | AD20: 6611080707 | AE20: 17
A21: 18 | B21: Jonathan Hovdal | C21: Klæbu IL | D21: 52 | E21: F | F21: 25 | G21: =IF(F21>0,INDEX(Poeng!$A$1:$B$100,F21,2),"") -> 6 | H21: 19 | I21: =IF(H21>0,INDEX(Poeng!$A$1:$B$100,H21,2),"") -> 12 | J21: 21 | K21: =IF(J21>0,INDEX(Poeng!$A$1:$B$100,J21,2),"") -> 10 | L21: 18 | M21: =IF(L21>0,INDEX(Poeng!$A$1:$B$100,L21,2),"") -> 13 | N21: 18 | O21: =IF(N21>0,INDEX(Poeng!$A$1:$B$100,N21,2),"") -> 13 | P21: 17 | Q21: =IF(P21>0,INDEX(Poeng!$A$1:$B$100,P21,2),"") -> 14 | R21: 6 | S21: 12 | T21: 10 | U21: 13 | V21: 13 | W21: 14 | X21: 14 | Y21: 13 | Z21: 13 | AA21: 12 | AB21: 52 | AC21: 6 | AD21: 5207065656 | AE21: 18
A22: 19 | B22: Arnulf Stefanussen | C22: Ranheim SK | D22: 50 | I22: =IF(H22>0,INDEX(Poeng!$A$1:$B$100,H22,2),"") ->  | J22: 10 | K22: =IF(J22>0,INDEX(Poeng!$A$1:$B$100,J22,2),"") -> 26 | M22: =IF(L22>0,INDEX(Poeng!$A$1:$B$100,L22,2),"") ->  | N22: 11 | O22: =IF(N22>0,INDEX(Poeng!$A$1:$B$100,N22,2),"") -> 24 | Q22: =IF(P22>0,INDEX(Poeng!$A$1:$B$100,P22,2),"") ->  | R22: 0 | S22: 0 | T22: 26 | U22: 0 | V22: 24 | W22: 0 | X22: 26 | Y22: 24 | Z22: 0 | AA22: 0 | AB22: 50 | AC22: 2 | AD22: 5013120000 | AE22: 19
A23: 20 | B23: Gustav Bjørgen Sjøvold | C23: Strindheim IL | D23: 48 | E23: F | F23: 26 | G23: =IF(F23>0,INDEX(Poeng!$A$1:$B$100,F23,2),"") -> 5 | H23: 21 | I23: =IF(H23>0,INDEX(Poeng!$A$1:$B$100,H23,2),"") -> 10 | J23: 20 | K23: =IF(J23>0,INDEX(Poeng!$A$1:$B$100,J23,2),"") -> 11 | L23: 22 | M23: =IF(L23>0,INDEX(Poeng!$A$1:$B$100,L23,2),"") -> 9 | N23: 19 | O23: =IF(N23>0,INDEX(Poeng!$A$1:$B$100,N23,2),"") -> 12 | P23: 16 | Q23: =IF(P23>0,INDEX(Poeng!$A$1:$B$100,P23,2),"") -> 15 | R23: 5 | S23: 10 | T23: 11 | U23: 9 | V23: 12 | W23: 15 | X23: 15 | Y23: 12 | Z23: 11 | AA23: 10 | AB23: 48 | AC23: 6 | AD23: 4807560555 | AE23: 20
A24: 21 | B24: Ask Holmvassdal | C24: Ranheim SK | D24: 43 | E24: F | F24: 23 | G24: =IF(F24>0,INDEX(Poeng!$A$1:$B$100,F24,2),"") -> 8 | H24: 16 | I24: =IF(H24>0,INDEX(Poeng!$A$1:$B$100,H24,2),"") -> 15 | J24: 19 | K24: =IF(J24>0,INDEX(Poeng!$A$1:$B$100,J24,2),"") -> 12 | L24: 23 | M24: =IF(L24>0,INDEX(Poeng!$A$1:$B$100,L24,2),"") -> 8 | O24: =IF(N24>0,INDEX(Poeng!$A$1:$B$100,N24,2),"") ->  | Q24: =IF(P24>0,INDEX(Poeng!$A$1:$B$100,P24,2),"") ->  | R24: 8 | S24: 15 | T24: 12 | U24: 8 | V24: 0 | W24: 0 | X24: 15 | Y24: 12 | Z24: 8 | AA24: 8 | AB24: 43 | AC24: 4 | AD24: 4307560404 | AE24: 21
A25: 22 | B25: Anders Spets Renå | C25: Hommelvik IL | D25: 42 | I25: =IF(H25>0,INDEX(Poeng!$A$1:$B$100,H25,2),"") ->  | K25: =IF(J25>0,INDEX(Poeng!$A$1:$B$100,J25,2),"") ->  | L25: 15 | M25: =IF(L25>0,INDEX(Poeng!$A$1:$B$100,L25,2),"") -> 16 | N25: 10 | O25: =IF(N25>0,INDEX(Poeng!$A$1:$B$100,N25,2),"") -> 26 | Q25: =IF(P25>0,INDEX(Poeng!$A$1:$B$100,P25,2),"") ->  | R25: 0 | S25: 0 | T25: 0 | U25: 16 | V25: 26 | W25: 0 | X25: 26 | Y25: 16 | Z25: 0 | AA25: 0 | AB25: 42 | AC25: 2 | AD25: 4213080000 | AE25: 22
A26: 23 | B26: Sigurd Ekle-Danielsen | C26: Strindheim IL | D26: 42 | F26: 21 | G26: =IF(F26>0,INDEX(Poeng!$A$1:$B$100,F26,2),"") -> 10 | I26: =IF(H26>0,INDEX(Poeng!$A$1:$B$100,H26,2),"") ->  | K26: =IF(J26>0,INDEX(Poeng!$A$1:$B$100,J26,2),"") ->  | M26: =IF(L26>0,INDEX(Poeng!$A$1:$B$100,L26,2),"") ->  | N26: 17 | O26: =IF(N26>0,INDEX(Poeng!$A$1:$B$100,N26,2),"") -> 14 | P26: 14 | Q26: =IF(P26>0,INDEX(Poeng!$A$1:$B$100,P26,2),"") -> 18 | R26: 10 | S26: 0 | T26: 0 | U26: 0 | V26: 14 | W26: 18 | X26: 18 | Y26: 14 | Z26: 10 | AA26: 0 | AB26: 42 | AC26: 3 | AD26: 4209070500 | AE26: 23
A27: 24 | B27: Eirik Høgli | C27: Byåsen IL | D27: 40 | G27: =IF(F27>0,INDEX(Poeng!$A$1:$B$100,F27,2),"") ->  | H27: 12 | I27: =IF(H27>0,INDEX(Poeng!$A$1:$B$100,H27,2),"") -> 22 | J27: 14 | K27: =IF(J27>0,INDEX(Poeng!$A$1:$B$100,J27,2),"") -> 18 | M27: =IF(L27>0,INDEX(Poeng!$A$1:$B$100,L27,2),"") ->  | O27: =IF(N27>0,INDEX(Poeng!$A$1:$B$100,N27,2),"") ->  | Q27: =IF(P27>0,INDEX(Poeng!$A$1:$B$100,P27,2),"") ->  | R27: 0 | S27: 22 | T27: 18 | U27: 0 | V27: 0 | W27: 0 | X27: 22 | Y27: 18 | Z27: 0 | AA27: 0 | AB27: 40 | AC27: 2 | AD27: 4011090000 | AE27: 24
A28: 25 | B28: Alf Håvard Bråten Stensø | C28: Flatås IL | D28: 40 | F28: 13 | G28: =IF(F28>0,INDEX(Poeng!$A$1:$B$100,F28,2),"") -> 20 | I28: =IF(H28>0,INDEX(Poeng!$A$1:$B$100,H28,2),"") ->  | K28: =IF(J28>0,INDEX(Poeng!$A$1:$B$100,J28,2),"") ->  | L28: 13 | M28: =IF(L28>0,INDEX(Poeng!$A$1:$B$100,L28,2),"") -> 20 | O28: =IF(N28>0,INDEX(Poeng!$A$1:$B$100,N28,2),"") ->  | Q28: =IF(P28>0,INDEX(Poeng!$A$1:$B$100,P28,2),"") ->  | R28: 20 | S28: 0 | T28: 0 | U28: 20 | V28: 0 | W28: 0 | X28: 20 | Y28: 20 | Z28: 0 | AA28: 0 | AB28: 40 | AC28: 2 | AD28: 4010100000 | AE28: 25
A29: 26 | B29: Magnus Gravdal Brusveen | C29: Strindheim IL | D29: 39 | E29: F | F29: 27 | G29: =IF(F29>0,INDEX(Poeng!$A$1:$B$100,F29,2),"") -> 4 | H29: 22 | I29: =IF(H29>0,INDEX(Poeng!$A$1:$B$100,H29,2),"") -> 9 | J29: 25 | K29: =IF(J29>0,INDEX(Poeng!$A$1:$B$100,J29,2),"") -> 6 | L29: 25 | M29: =IF(L29>0,INDEX(Poeng!$A$1:$B$100,L29,2),"") -> 6 | N29: 20 | O29: =IF(N29>0,INDEX(Poeng!$A$1:$B$100,N29,2),"") -> 11 | P29: 18 | Q29: =IF(P29>0,INDEX(Poeng!$A$1:$B$100,P29,2),"") -> 13 | R29: 4 | S29: 9 | T29: 6 | U29: 6 | V29: 11 | W29: 13 | X29: 13 | Y29: 11 | Z29: 9 | AA29: 6 | AB29: 39 | AC29: 6 | AD29: 3906555453 | AE29: 26
A30: 27 | B30: Ludvik Storler Snøfugl | C30: Byaasen Skiklub | D30: 39 | E30: F | F30: 22 | G30: =IF(F30>0,INDEX(Poeng!$A$1:$B$100,F30,2),"") -> 9 | H30: 20 | I30: =IF(H30>0,INDEX(Poeng!$A$1:$B$100,H30,2),"") -> 11 | J30: 24 | K30: =IF(J30>0,INDEX(Poeng!$A$1:$B$100,J30,2),"") -> 7 | M30: =IF(L30>0,INDEX(Poeng!$A$1:$B$100,L30,2),"") ->  | O30: =IF(N30>0,INDEX(Poeng!$A$1:$B$100,N30,2),"") ->  | P30: 19 | Q30: =IF(P30>0,INDEX(Poeng!$A$1:$B$100,P30,2),"") -> 12 | R30: 9 | S30: 11 | T30: 7 | U30: 0 | V30: 0 | W30: 12 | X30: 12 | Y30: 11 | Z30: 9 | AA30: 7 | AB30: 39 | AC30: 4 | AD30: 3906055454 | AE30: 27
A31: 28 | B31: Theodor Eikemo-Nilsen | C31: Byåsen IL | D31: 36 | G31: =IF(F31>0,INDEX(Poeng!$A$1:$B$100,F31,2),"") ->  | H31: 18 | I31: =IF(H31>0,INDEX(Poeng!$A$1:$B$100,H31,2),"") -> 13 | J31: 22 | K31: =IF(J31>0,INDEX(Poeng!$A$1:$B$100,J31,2),"") -> 9 | L31: 17 | M31: =IF(L31>0,INDEX(Poeng!$A$1:$B$100,L31,2),"") -> 14 | O31: =IF(N31>0,INDEX(Poeng!$A$1:$B$100,N31,2),"") ->  | Q31: =IF(P31>0,INDEX(Poeng!$A$1:$B$100,P31,2),"") ->  | R31: =IF(F31>0,G31,0) -> 0 | S31: =IF(H31>0,I31,0) -> 13 | T31: =IF(J31>0,K31,0) -> 9 | U31: =IF(L31>0,M31,0) -> 14 | V31: =IF(N31>0,O31,0) -> 0 | W31: =IF(P31>0,Q31,0) -> 0 | X31: =LARGE(R31:W31,1) -> 14 | Y31: =LARGE(R31:W31,2) -> 13 | Z31: =LARGE(R31:W31,3) -> 9 | AA31: =LARGE(R31:W31,4) -> 0 | AB31: 36 | AC31: =COUNT(F31:Q31)/2 -> 3 | AD31: 3607065450 | AE31: 28
A32: 29 | B32: Steinar Sugustad | C32: Skaun IL | D32: 31 | F32: 15 | G32: =IF(F32>0,INDEX(Poeng!$A$1:$B$100,F32,2),"") -> 16 | I32: =IF(H32>0,INDEX(Poeng!$A$1:$B$100,H32,2),"") ->  | K32: =IF(J32>0,INDEX(Poeng!$A$1:$B$100,J32,2),"") ->  | L32: 16 | M32: =IF(L32>0,INDEX(Poeng!$A$1:$B$100,L32,2),"") -> 15 | O32: =IF(N32>0,INDEX(Poeng!$A$1:$B$100,N32,2),"") ->  | Q32: =IF(P32>0,INDEX(Poeng!$A$1:$B$100,P32,2),"") ->  | R32: 16 | S32: 0 | T32: 0 | U32: 15 | V32: 0 | W32: 0 | X32: 16 | Y32: 15 | Z32: 0 | AA32: 0 | AB32: 31 | AC32: 2 | AD32: 3108075000 | AE32: 29
A33: 30 | B33: Linus Stilson Arstad | C33: Strindheim IL | D33: 27 | I33: =IF(H33>0,INDEX(Poeng!$A$1:$B$100,H33,2),"") ->  | K33: =IF(J33>0,INDEX(Poeng!$A$1:$B$100,J33,2),"") ->  | L33: 20 | M33: =IF(L33>0,INDEX(Poeng!$A$1:$B$100,L33,2),"") -> 11 | O33: =IF(N33>0,INDEX(Poeng!$A$1:$B$100,N33,2),"") ->  | P33: 15 | Q33: =IF(P33>0,INDEX(Poeng!$A$1:$B$100,P33,2),"") -> 16 | R33: 0 | S33: 0 | T33: 0 | U33: 11 | V33: 0 | W33: 16 | X33: 16 | Y33: 11 | Z33: 0 | AA33: 0 | AB33: =SUM(X33:AA33) -> 27 | AC33: 2 | AD33: =AB33*10^8+X33*10^6/2+Y33*10^4/2+Z33*10^2/2+AA33/2 -> 2708055000 | AE33: 30
A34: 31 | B34: Martin Haabeth | C34: IL Aasguten | D34: 18 | F34: 14 | G34: =IF(F34>0,INDEX(Poeng!$A$1:$B$100,F34,2),"") -> 18 | I34: =IF(H34>0,INDEX(Poeng!$A$1:$B$100,H34,2),"") ->  | K34: =IF(J34>0,INDEX(Poeng!$A$1:$B$100,J34,2),"") ->  | M34: =IF(L34>0,INDEX(Poeng!$A$1:$B$100,L34,2),"") ->  | O34: =IF(N34>0,INDEX(Poeng!$A$1:$B$100,N34,2),"") ->  | Q34: =IF(P34>0,INDEX(Poeng!$A$1:$B$100,P34,2),"") ->  | R34: 18 | S34: 0 | T34: 0 | U34: 0 | V34: 0 | W34: 0 | X34: 18 | Y34: 0 | Z34: 0 | AA34: 0 | AB34: 18 | AC34: 1 | AD34: 1809000000 | AE34: 31
A35: 32 | B35: Magnus Stormo Isaksen | C35: Byaasen Skiklub | D35: 11 | F35: 20 | G35: =IF(F35>0,INDEX(Poeng!$A$1:$B$100,F35,2),"") -> 11 | I35: =IF(H35>0,INDEX(Poeng!$A$1:$B$100,H35,2),"") ->  | K35: =IF(J35>0,INDEX(Poeng!$A$1:$B$100,J35,2),"") ->  | M35: =IF(L35>0,INDEX(Poeng!$A$1:$B$100,L35,2),"") ->  | O35: =IF(N35>0,INDEX(Poeng!$A$1:$B$100,N35,2),"") ->  | Q35: =IF(P35>0,INDEX(Poeng!$A$1:$B$100,P35,2),"") ->  | R35: 11 | S35: 0 | T35: 0 | U35: 0 | V35: 0 | W35: 0 | X35: 11 | Y35: 0 | Z35: 0 | AA35: 0 | AB35: 11 | AC35: 1 | AD35: 1105500000 | AE35: 32
A36: 33 | B36: Remi Korsnes Andresen | C36: Klæbu IL | D36: 10 | I36: =IF(H36>0,INDEX(Poeng!$A$1:$B$100,H36,2),"") ->  | K36: =IF(J36>0,INDEX(Poeng!$A$1:$B$100,J36,2),"") ->  | L36: 21 | M36: =IF(L36>0,INDEX(Poeng!$A$1:$B$100,L36,2),"") -> 10 | O36: =IF(N36>0,INDEX(Poeng!$A$1:$B$100,N36,2),"") ->  | Q36: =IF(P36>0,INDEX(Poeng!$A$1:$B$100,P36,2),"") ->  | R36: 0 | S36: 0 | T36: 0 | U36: 10 | V36: 0 | W36: 0 | X36: 10 | Y36: 0 | Z36: 0 | AA36: 0 | AB36: 10 | AC36: 1 | AD36: 1005000000 | AE36: =IF(B36<>"",RANK(AD36,AD$4:AD$51,0),"") -> 33
A37: 34 | B37: Simon Frøseth | C37: Hommelvik IL | D37: 8 | I37: =IF(H37>0,INDEX(Poeng!$A$1:$B$100,H37,2),"") ->  | J37: 23 | K37: =IF(J37>0,INDEX(Poeng!$A$1:$B$100,J37,2),"") -> 8 | M37: =IF(L37>0,INDEX(Poeng!$A$1:$B$100,L37,2),"") ->  | O37: =IF(N37>0,INDEX(Poeng!$A$1:$B$100,N37,2),"") ->  | Q37: =IF(P37>0,INDEX(Poeng!$A$1:$B$100,P37,2),"") ->  | R37: 0 | S37: 0 | T37: 8 | U37: 0 | V37: 0 | W37: 0 | X37: 8 | Y37: 0 | Z37: 0 | AA37: 0 | AB37: 8 | AC37: 1 | AD37: 804000000 | AE37: 34
A38: 35 | B38: Ola Uvaas | C38: Skaun IL | D38: 7 | I38: =IF(H38>0,INDEX(Poeng!$A$1:$B$100,H38,2),"") ->  | K38: =IF(J38>0,INDEX(Poeng!$A$1:$B$100,J38,2),"") ->  | L38: 24 | M38: =IF(L38>0,INDEX(Poeng!$A$1:$B$100,L38,2),"") -> 7 | O38: =IF(N38>0,INDEX(Poeng!$A$1:$B$100,N38,2),"") ->  | Q38: =IF(P38>0,INDEX(Poeng!$A$1:$B$100,P38,2),"") ->  | R38: 0 | S38: 0 | T38: 0 | U38: 7 | V38: 0 | W38: 0 | X38: 7 | Y38: 0 | Z38: 0 | AA38: 0 | AB38: 7 | AC38: 1 | AD38: 703500000 | AE38: 35
A39: 36 | B39: Sondre Aune | C39: Strindheim IL | D39: 4 | F39: 27 | G39: =IF(F39>0,INDEX(Poeng!$A$1:$B$100,F39,2),"") -> 4 | I39: =IF(H39>0,INDEX(Poeng!$A$1:$B$100,H39,2),"") ->  | K39: =IF(J39>0,INDEX(Poeng!$A$1:$B$100,J39,2),"") ->  | M39: =IF(L39>0,INDEX(Poeng!$A$1:$B$100,L39,2),"") ->  | O39: =IF(N39>0,INDEX(Poeng!$A$1:$B$100,N39,2),"") ->  | Q39: =IF(P39>0,INDEX(Poeng!$A$1:$B$100,P39,2),"") ->  | R39: 4 | S39: 0 | T39: 0 | U39: 0 | V39: 0 | W39: 0 | X39: 4 | Y39: 0 | Z39: 0 | AA39: 0 | AB39: 4 | AC39: 1 | AD39: 402000000 | AE39: 36
A40: =AE40 ->  | D40: =IF(B40<>"",AB40,"") ->  | E40: =IF(AC40<4," ","F") ->  | I40: =IF(H40>0,INDEX(Poeng!$A$1:$B$100,H40,2),"") ->  | K40: =IF(J40>0,INDEX(Poeng!$A$1:$B$100,J40,2),"") ->  | M40: =IF(L40>0,INDEX(Poeng!$A$1:$B$100,L40,2),"") ->  | O40: =IF(N40>0,INDEX(Poeng!$A$1:$B$100,N40,2),"") ->  | Q40: =IF(P40>0,INDEX(Poeng!$A$1:$B$100,P40,2),"") ->  | R40: 0 | S40: 0 | T40: 0 | U40: 0 | V40: 0 | W40: 0 | X40: 0 | Y40: 0 | Z40: 0 | AA40: 0 | AB40: 0 | AC40: 0 | AD40: 0
A41: =AE41 ->  | D41: =IF(B41<>"",AB41,"") ->  | E41: =IF(AC41<4," ","F") ->  | I41: =IF(H41>0,INDEX(Poeng!$A$1:$B$100,H41,2),"") ->  | K41: =IF(J41>0,INDEX(Poeng!$A$1:$B$100,J41,2),"") ->  | M41: =IF(L41>0,INDEX(Poeng!$A$1:$B$100,L41,2),"") ->  | O41: =IF(N41>0,INDEX(Poeng!$A$1:$B$100,N41,2),"") ->  | Q41: =IF(P41>0,INDEX(Poeng!$A$1:$B$100,P41,2),"") ->  | R41: 0 | S41: 0 | T41: 0 | U41: 0 | V41: 0 | W41: 0 | X41: 0 | Y41: 0 | Z41: 0 | AA41: 0 | AB41: 0 | AC41: 0 | AD41: 0
E42: =IF(AC42<4," ","F") ->  | I42: =IF(H42>0,INDEX(Poeng!$A$1:$B$100,H42,2),"") ->  | K42: =IF(J42>0,INDEX(Poeng!$A$1:$B$100,J42,2),"") ->  | M42: =IF(L42>0,INDEX(Poeng!$A$1:$B$100,L42,2),"") ->  | O42: =IF(N42>0,INDEX(Poeng!$A$1:$B$100,N42,2),"") ->  | Q42: =IF(P42>0,INDEX(Poeng!$A$1:$B$100,P42,2),"") ->  | R42: 0 | S42: 0 | T42: 0 | U42: 0 | V42: 0 | W42: 0 | X42: 0 | Y42: 0 | Z42: 0 | AA42: 0 | AB42: 0 | AC42: 0 | AD42: 0
I43: =IF(H43>0,INDEX(Poeng!$A$1:$B$100,H43,2),"") ->  | K43: =IF(J43>0,INDEX(Poeng!$A$1:$B$100,J43,2),"") ->  | M43: =IF(L43>0,INDEX(Poeng!$A$1:$B$100,L43,2),"") ->  | O43: =IF(N43>0,INDEX(Poeng!$A$1:$B$100,N43,2),"") ->  | Q43: =IF(P43>0,INDEX(Poeng!$A$1:$B$100,P43,2),"") ->  | R43: 0 | S43: 0 | T43: 0 | U43: 0 | V43: 0 | W43: 0 | X43: 0 | Y43: 0 | Z43: 0 | AA43: 0 | AB43: 0 | AC43: 0 | AD43: 0
I44: =IF(H44>0,INDEX(Poeng!$A$1:$B$100,H44,2),"") ->  | K44: =IF(J44>0,INDEX(Poeng!$A$1:$B$100,J44,2),"") ->  | M44: =IF(L44>0,INDEX(Poeng!$A$1:$B$100,L44,2),"") ->  | O44: =IF(N44>0,INDEX(Poeng!$A$1:$B$100,N44,2),"") ->  | Q44: =IF(P44>0,INDEX(Poeng!$A$1:$B$100,P44,2),"") ->  | R44: 0 | S44: 0 | T44: 0 | U44: 0 | V44: 0 | W44: 0 | X44: 0 | Y44: 0 | Z44: 0 | AA44: 0 | AB44: 0 | AC44: 0 | AD44: 0
I45: =IF(H45>0,INDEX(Poeng!$A$1:$B$100,H45,2),"") ->  | K45: =IF(J45>0,INDEX(Poeng!$A$1:$B$100,J45,2),"") ->  | M45: =IF(L45>0,INDEX(Poeng!$A$1:$B$100,L45,2),"") ->  | O45: =IF(N45>0,INDEX(Poeng!$A$1:$B$100,N45,2),"") ->  | Q45: =IF(P45>0,INDEX(Poeng!$A$1:$B$100,P45,2),"") ->  | R45: 0 | S45: 0 | T45: 0 | U45: 0 | V45: 0 | W45: 0 | X45: 0 | Y45: 0 | Z45: 0 | AA45: 0 | AB45: 0 | AC45: 0 | AD45: 0
I46: =IF(H46>0,INDEX(Poeng!$A$1:$B$100,H46,2),"") ->  | K46: =IF(J46>0,INDEX(Poeng!$A$1:$B$100,J46,2),"") ->  | M46: =IF(L46>0,INDEX(Poeng!$A$1:$B$100,L46,2),"") ->  | O46: =IF(N46>0,INDEX(Poeng!$A$1:$B$100,N46,2),"") ->  | Q46: =IF(P46>0,INDEX(Poeng!$A$1:$B$100,P46,2),"") ->  | R46: 0 | S46: 0 | T46: 0 | U46: 0 | V46: 0 | W46: 0 | X46: 0 | Y46: 0 | Z46: 0 | AA46: 0 | AB46: 0 | AC46: 0 | AD46: 0
I47: =IF(H47>0,INDEX(Poeng!$A$1:$B$100,H47,2),"") ->  | K47: =IF(J47>0,INDEX(Poeng!$A$1:$B$100,J47,2),"") ->  | M47: =IF(L47>0,INDEX(Poeng!$A$1:$B$100,L47,2),"") ->  | O47: =IF(N47>0,INDEX(Poeng!$A$1:$B$100,N47,2),"") ->  | Q47: =IF(P47>0,INDEX(Poeng!$A$1:$B$100,P47,2),"") ->  | R47: 0 | S47: 0 | T47: 0 | U47: 0 | V47: 0 | W47: 0 | X47: 0 | Y47: 0 | Z47: 0 | AA47: 0 | AB47: 0 | AC47: 0 | AD47: 0
I48: =IF(H48>0,INDEX(Poeng!$A$1:$B$100,H48,2),"") ->  | K48: =IF(J48>0,INDEX(Poeng!$A$1:$B$100,J48,2),"") ->  | M48: =IF(L48>0,INDEX(Poeng!$A$1:$B$100,L48,2),"") ->  | O48: =IF(N48>0,INDEX(Poeng!$A$1:$B$100,N48,2),"") ->  | Q48: =IF(P48>0,INDEX(Poeng!$A$1:$B$100,P48,2),"") ->  | R48: 0 | S48: 0 | T48: 0 | U48: 0 | V48: 0 | W48: 0 | X48: 0 | Y48: 0 | Z48: 0 | AA48: 0 | AB48: 0 | AC48: 0 | AD48: 0
I49: =IF(H49>0,INDEX(Poeng!$A$1:$B$100,H49,2),"") ->  | K49: =IF(J49>0,INDEX(Poeng!$A$1:$B$100,J49,2),"") ->  | M49: =IF(L49>0,INDEX(Poeng!$A$1:$B$100,L49,2),"") ->  | O49: =IF(N49>0,INDEX(Poeng!$A$1:$B$100,N49,2),"") ->  | Q49: =IF(P49>0,INDEX(Poeng!$A$1:$B$100,P49,2),"") ->  | R49: 0 | S49: 0 | T49: 0 | U49: 0 | V49: 0 | W49: 0 | X49: 0 | Y49: 0 | Z49: 0 | AA49: 0 | AB49: 0 | AC49: 0 | AD49: 0
I50: =IF(H50>0,INDEX(Poeng!$A$1:$B$100,H50,2),"") ->  | K50: =IF(J50>0,INDEX(Poeng!$A$1:$B$100,J50,2),"") ->  | M50: =IF(L50>0,INDEX(Poeng!$A$1:$B$100,L50,2),"") ->  | O50: =IF(N50>0,INDEX(Poeng!$A$1:$B$100,N50,2),"") ->  | Q50: =IF(P50>0,INDEX(Poeng!$A$1:$B$100,P50,2),"") ->  | R50: 0 | S50: 0 | T50: 0 | U50: 0 | V50: 0 | W50: 0 | X50: 0 | Y50: 0 | Z50: 0 | AA50: 0 | AB50: 0 | AC50: 0 | AD50: 0
I51: =IF(H51>0,INDEX(Poeng!$A$1:$B$100,H51,2),"") ->  | K51: =IF(J51>0,INDEX(Poeng!$A$1:$B$100,J51,2),"") ->  | M51: =IF(L51>0,INDEX(Poeng!$A$1:$B$100,L51,2),"") ->  | O51: =IF(N51>0,INDEX(Poeng!$A$1:$B$100,N51,2),"") ->  | Q51: =IF(P51>0,INDEX(Poeng!$A$1:$B$100,P51,2),"") ->  | R51: 0 | S51: 0 | T51: 0 | U51: 0 | V51: 0 | W51: 0 | X51: 0 | Y51: 0 | Z51: 0 | AA51: 0 | AB51: 0 | AC51: 0 | AD51: 0
A52: =AE52 ->  | D52: =IF(B52<>"",AB52,"") ->  | I52: =IF(H52>0,INDEX(Poeng!$A$1:$B$100,H52,2),"") ->  | K52: =IF(J52>0,INDEX(Poeng!$A$1:$B$100,J52,2),"") ->  | M52: =IF(L52>0,INDEX(Poeng!$A$1:$B$100,L52,2),"") ->  | O52: =IF(N52>0,INDEX(Poeng!$A$1:$B$100,N52,2),"") ->  | Q52: =IF(P52>0,INDEX(Poeng!$A$1:$B$100,P52,2),"") ->  | R52: =IF(F52>0,G52,0) -> 0 | S52: =IF(H52>0,I52,0) -> 0 | T52: =IF(J52>0,K52,0) -> 0 | U52: =IF(L52>0,M52,0) -> 0 | V52: =IF(N52>0,O52,0) -> 0 | W52: =IF(P52>0,Q52,0) -> 0 | X52: =LARGE(R52:W52,1) -> 0 | Y52: =LARGE(R52:W52,2) -> 0 | Z52: =LARGE(R52:W52,3) -> 0 | AA52: =LARGE(R52:W52,4) -> 0 | AB52: =SUM(X52:AA52) -> 0 | AC52: =COUNT(F52:Q52)/2 -> 0 | AD52: =AB52*10^8+X52*10^6/2+Y52*10^4/2+Z52*10^2/2+AA52/2 -> 0
I53: =IF(H53>0,INDEX(Poeng!$A$1:$B$100,H53,2),"") ->  | K53: =IF(J53>0,INDEX(Poeng!$A$1:$B$100,J53,2),"") ->  | M53: =IF(L53>0,INDEX(Poeng!$A$1:$B$100,L53,2),"") ->  | O53: =IF(N53>0,INDEX(Poeng!$A$1:$B$100,N53,2),"") ->  | Q53: =IF(P53>0,INDEX(Poeng!$A$1:$B$100,P53,2),"") ->  | R53: 0 | S53: 0 | T53: 0 | U53: 0 | V53: 0 | W53: 0 | X53: 0 | Y53: 0 | Z53: 0 | AA53: 0 | AB53: 0 | AC53: 0 | AD53: 0
I54: =IF(H54>0,INDEX(Poeng!$A$1:$B$100,H54,2),"") ->  | K54: =IF(J54>0,INDEX(Poeng!$A$1:$B$100,J54,2),"") ->  | M54: =IF(L54>0,INDEX(Poeng!$A$1:$B$100,L54,2),"") ->  | O54: =IF(N54>0,INDEX(Poeng!$A$1:$B$100,N54,2),"") ->  | Q54: =IF(P54>0,INDEX(Poeng!$A$1:$B$100,P54,2),"") ->  | R54: 0 | S54: 0 | T54: 0 | U54: 0 | V54: 0 | W54: 0 | X54: 0 | Y54: 0 | Z54: 0 | AA54: 0 | AB54: 0 | AC54: 0 | AD54: 0
I55: =IF(H55>0,INDEX(Poeng!$A$1:$B$100,H55,2),"") ->  | K55: =IF(J55>0,INDEX(Poeng!$A$1:$B$100,J55,2),"") ->  | M55: =IF(L55>0,INDEX(Poeng!$A$1:$B$100,L55,2),"") ->  | O55: =IF(N55>0,INDEX(Poeng!$A$1:$B$100,N55,2),"") ->  | Q55: =IF(P55>0,INDEX(Poeng!$A$1:$B$100,P55,2),"") ->  | R55: 0 | S55: 0 | T55: 0 | U55: 0 | V55: 0 | W55: 0 | X55: 0 | Y55: 0 | Z55: 0 | AA55: 0 | AB55: 0 | AC55: 0 | AD55: 0
I56: =IF(H56>0,INDEX(Poeng!$A$1:$B$100,H56,2),"") ->  | K56: =IF(J56>0,INDEX(Poeng!$A$1:$B$100,J56,2),"") ->  | M56: =IF(L56>0,INDEX(Poeng!$A$1:$B$100,L56,2),"") ->  | O56: =IF(N56>0,INDEX(Poeng!$A$1:$B$100,N56,2),"") ->  | Q56: =IF(P56>0,INDEX(Poeng!$A$1:$B$100,P56,2),"") ->  | R56: 0 | S56: 0 | T56: 0 | U56: 0 | V56: 0 | W56: 0 | X56: 0 | Y56: 0 | Z56: 0 | AA56: 0 | AB56: 0 | AC56: 0 | AD56: 0
I57: =IF(H57>0,INDEX(Poeng!$A$1:$B$100,H57,2),"") ->  | K57: =IF(J57>0,INDEX(Poeng!$A$1:$B$100,J57,2),"") ->  | M57: =IF(L57>0,INDEX(Poeng!$A$1:$B$100,L57,2),"") ->  | O57: =IF(N57>0,INDEX(Poeng!$A$1:$B$100,N57,2),"") ->  | Q57: =IF(P57>0,INDEX(Poeng!$A$1:$B$100,P57,2),"") ->  | R57: 0 | S57: 0 | T57: 0 | U57: 0 | V57: 0 | W57: 0 | X57: 0 | Y57: 0 | Z57: 0 | AA57: 0 | AB57: 0 | AC57: 0 | AD57: 0
I58: =IF(H58>0,INDEX(Poeng!$A$1:$B$100,H58,2),"") ->  | K58: =IF(J58>0,INDEX(Poeng!$A$1:$B$100,J58,2),"") ->  | M58: =IF(L58>0,INDEX(Poeng!$A$1:$B$100,L58,2),"") ->  | O58: =IF(N58>0,INDEX(Poeng!$A$1:$B$100,N58,2),"") ->  | Q58: =IF(P58>0,INDEX(Poeng!$A$1:$B$100,P58,2),"") ->  | R58: 0 | S58: 0 | T58: 0 | U58: 0 | V58: 0 | W58: 0 | X58: 0 | Y58: 0 | Z58: 0 | AA58: 0 | AB58: 0 | AC58: 0 | AD58: 0
I59: =IF(H59>0,INDEX(Poeng!$A$1:$B$100,H59,2),"") ->  | K59: =IF(J59>0,INDEX(Poeng!$A$1:$B$100,J59,2),"") ->  | M59: =IF(L59>0,INDEX(Poeng!$A$1:$B$100,L59,2),"") ->  | O59: =IF(N59>0,INDEX(Poeng!$A$1:$B$100,N59,2),"") ->  | Q59: =IF(P59>0,INDEX(Poeng!$A$1:$B$100,P59,2),"") ->  | R59: 0 | S59: 0 | T59: 0 | U59: 0 | V59: 0 | W59: 0 | X59: 0 | Y59: 0 | Z59: 0 | AA59: 0 | AB59: 0 | AC59: 0 | AD59: 0
I60: =IF(H60>0,INDEX(Poeng!$A$1:$B$100,H60,2),"") ->  | K60: =IF(J60>0,INDEX(Poeng!$A$1:$B$100,J60,2),"") ->  | M60: =IF(L60>0,INDEX(Poeng!$A$1:$B$100,L60,2),"") ->  | O60: =IF(N60>0,INDEX(Poeng!$A$1:$B$100,N60,2),"") ->  | Q60: =IF(P60>0,INDEX(Poeng!$A$1:$B$100,P60,2),"") ->  | R60: 0 | S60: 0 | T60: 0 | U60: 0 | V60: 0 | W60: 0 | X60: 0 | Y60: 0 | Z60: 0 | AA60: 0 | AB60: 0 | AC60: 0 | AD60: 0
I61: =IF(H61>0,INDEX(Poeng!$A$1:$B$100,H61,2),"") ->  | K61: =IF(J61>0,INDEX(Poeng!$A$1:$B$100,J61,2),"") ->  | M61: =IF(L61>0,INDEX(Poeng!$A$1:$B$100,L61,2),"") ->  | O61: =IF(N61>0,INDEX(Poeng!$A$1:$B$100,N61,2),"") ->  | Q61: =IF(P61>0,INDEX(Poeng!$A$1:$B$100,P61,2),"") ->  | R61: 0 | S61: 0 | T61: 0 | U61: 0 | V61: 0 | W61: 0 | X61: 0 | Y61: 0 | Z61: 0 | AA61: 0 | AB61: 0 | AC61: 0 | AD61: 0
A62: =AE62 ->  | E62: =IF(AC62<4," ","F") ->  | I62: =IF(H62>0,INDEX(Poeng!$A$1:$B$100,H62,2),"") ->  | K62: =IF(J62>0,INDEX(Poeng!$A$1:$B$100,J62,2),"") ->  | M62: =IF(L62>0,INDEX(Poeng!$A$1:$B$100,L62,2),"") ->  | O62: =IF(N62>0,INDEX(Poeng!$A$1:$B$100,N62,2),"") ->  | Q62: =IF(P62>0,INDEX(Poeng!$A$1:$B$100,P62,2),"") ->  | R62: 0 | S62: 0 | T62: 0 | U62: 0 | V62: 0 | W62: 0 | X62: 0 | Y62: 0 | Z62: 0 | AA62: 0 | AB62: =SUM(X62:AA62) -> 0 | AC62: 0 | AD62: =AB62*10^8+X62*10^6/2+Y62*10^4/2+Z62*10^2/2+AA62/2 -> 0
I63: =IF(H63>0,INDEX(Poeng!$A$1:$B$100,H63,2),"") ->  | K63: =IF(J63>0,INDEX(Poeng!$A$1:$B$100,J63,2),"") ->  | M63: =IF(L63>0,INDEX(Poeng!$A$1:$B$100,L63,2),"") ->  | O63: =IF(N63>0,INDEX(Poeng!$A$1:$B$100,N63,2),"") ->  | Q63: =IF(P63>0,INDEX(Poeng!$A$1:$B$100,P63,2),"") ->  | R63: 0 | S63: 0 | T63: 0 | U63: 0 | V63: 0 | W63: 0 | X63: 0 | Y63: 0 | Z63: 0 | AA63: 0 | AB63: 0 | AC63: 0 | AD63: 0
I64: =IF(H64>0,INDEX(Poeng!$A$1:$B$100,H64,2),"") ->  | K64: =IF(J64>0,INDEX(Poeng!$A$1:$B$100,J64,2),"") ->  | M64: =IF(L64>0,INDEX(Poeng!$A$1:$B$100,L64,2),"") ->  | O64: =IF(N64>0,INDEX(Poeng!$A$1:$B$100,N64,2),"") ->  | Q64: =IF(P64>0,INDEX(Poeng!$A$1:$B$100,P64,2),"") ->  | R64: 0 | S64: 0 | T64: 0 | U64: 0 | V64: 0 | W64: 0 | X64: 0 | Y64: 0 | Z64: 0 | AA64: 0 | AB64: 0 | AC64: 0 | AD64: 0
I65: =IF(H65>0,INDEX(Poeng!$A$1:$B$100,H65,2),"") ->  | K65: =IF(J65>0,INDEX(Poeng!$A$1:$B$100,J65,2),"") ->  | M65: =IF(L65>0,INDEX(Poeng!$A$1:$B$100,L65,2),"") ->  | O65: =IF(N65>0,INDEX(Poeng!$A$1:$B$100,N65,2),"") ->  | Q65: =IF(P65>0,INDEX(Poeng!$A$1:$B$100,P65,2),"") ->  | R65: 0 | S65: 0 | T65: 0 | U65: 0 | V65: 0 | W65: 0 | X65: 0 | Y65: 0 | Z65: 0 | AA65: 0 | AB65: 0 | AC65: 0 | AD65: 0
I66: =IF(H66>0,INDEX(Poeng!$A$1:$B$100,H66,2),"") ->  | K66: =IF(J66>0,INDEX(Poeng!$A$1:$B$100,J66,2),"") ->  | M66: =IF(L66>0,INDEX(Poeng!$A$1:$B$100,L66,2),"") ->  | O66: =IF(N66>0,INDEX(Poeng!$A$1:$B$100,N66,2),"") ->  | Q66: =IF(P66>0,INDEX(Poeng!$A$1:$B$100,P66,2),"") ->  | R66: 0 | S66: 0 | T66: 0 | U66: 0 | V66: 0 | W66: 0 | X66: 0 | Y66: 0 | Z66: 0 | AA66: 0 | AB66: 0 | AC66: 0 | AD66: 0
I67: =IF(H67>0,INDEX(Poeng!$A$1:$B$100,H67,2),"") ->  | K67: =IF(J67>0,INDEX(Poeng!$A$1:$B$100,J67,2),"") ->  | M67: =IF(L67>0,INDEX(Poeng!$A$1:$B$100,L67,2),"") ->  | O67: =IF(N67>0,INDEX(Poeng!$A$1:$B$100,N67,2),"") ->  | Q67: =IF(P67>0,INDEX(Poeng!$A$1:$B$100,P67,2),"") ->  | R67: 0 | S67: 0 | T67: 0 | U67: 0 | V67: 0 | W67: 0 | X67: 0 | Y67: 0 | Z67: 0 | AA67: 0 | AB67: 0 | AC67: 0 | AD67: 0
I68: =IF(H68>0,INDEX(Poeng!$A$1:$B$100,H68,2),"") ->  | K68: =IF(J68>0,INDEX(Poeng!$A$1:$B$100,J68,2),"") ->  | M68: =IF(L68>0,INDEX(Poeng!$A$1:$B$100,L68,2),"") ->  | O68: =IF(N68>0,INDEX(Poeng!$A$1:$B$100,N68,2),"") ->  | Q68: =IF(P68>0,INDEX(Poeng!$A$1:$B$100,P68,2),"") ->  | R68: 0 | S68: 0 | T68: 0 | U68: 0 | V68: 0 | W68: 0 | X68: 0 | Y68: 0 | Z68: 0 | AA68: 0 | AB68: 0 | AC68: 0 | AD68: 0 | AE68: =IF(B68<>"",RANK(AD68,AD$4:AD$51,0),"") -> 
I69: =IF(H69>0,INDEX(Poeng!$A$1:$B$100,H69,2),"") ->  | K69: =IF(J69>0,INDEX(Poeng!$A$1:$B$100,J69,2),"") ->  | M69: =IF(L69>0,INDEX(Poeng!$A$1:$B$100,L69,2),"") ->  | O69: =IF(N69>0,INDEX(Poeng!$A$1:$B$100,N69,2),"") ->  | Q69: =IF(P69>0,INDEX(Poeng!$A$1:$B$100,P69,2),"") ->  | R69: 0 | S69: 0 | T69: 0 | U69: 0 | V69: 0 | W69: 0 | X69: 0 | Y69: 0 | Z69: 0 | AA69: 0 | AB69: 0 | AC69: 0 | AD69: 0
I70: =IF(H70>0,INDEX(Poeng!$A$1:$B$100,H70,2),"") ->  | K70: =IF(J70>0,INDEX(Poeng!$A$1:$B$100,J70,2),"") ->  | M70: =IF(L70>0,INDEX(Poeng!$A$1:$B$100,L70,2),"") ->  | O70: =IF(N70>0,INDEX(Poeng!$A$1:$B$100,N70,2),"") ->  | Q70: =IF(P70>0,INDEX(Poeng!$A$1:$B$100,P70,2),"") ->  | R70: 0 | S70: 0 | T70: 0 | U70: 0 | V70: 0 | W70: 0 | X70: 0 | Y70: 0 | Z70: 0 | AA70: 0 | AB70: 0 | AC70: 0 | AD70: 0
I71: =IF(H71>0,INDEX(Poeng!$A$1:$B$100,H71,2),"") ->  | K71: =IF(J71>0,INDEX(Poeng!$A$1:$B$100,J71,2),"") ->  | M71: =IF(L71>0,INDEX(Poeng!$A$1:$B$100,L71,2),"") ->  | O71: =IF(N71>0,INDEX(Poeng!$A$1:$B$100,N71,2),"") ->  | Q71: =IF(P71>0,INDEX(Poeng!$A$1:$B$100,P71,2),"") ->  | R71: 0 | S71: 0 | T71: 0 | U71: 0 | V71: 0 | W71: 0 | X71: 0 | Y71: 0 | Z71: 0 | AA71: 0 | AB71: 0 | AC71: 0 | AD71: 0
I72: =IF(H72>0,INDEX(Poeng!$A$1:$B$100,H72,2),"") ->  | K72: =IF(J72>0,INDEX(Poeng!$A$1:$B$100,J72,2),"") ->  | M72: =IF(L72>0,INDEX(Poeng!$A$1:$B$100,L72,2),"") ->  | O72: =IF(N72>0,INDEX(Poeng!$A$1:$B$100,N72,2),"") ->  | Q72: =IF(P72>0,INDEX(Poeng!$A$1:$B$100,P72,2),"") ->  | R72: 0 | S72: 0 | T72: 0 | U72: 0 | V72: 0 | W72: 0 | X72: 0 | Y72: 0 | Z72: 0 | AA72: 0 | AB72: 0 | AC72: 0 | AD72: 0
I73: =IF(H73>0,INDEX(Poeng!$A$1:$B$100,H73,2),"") ->  | K73: =IF(J73>0,INDEX(Poeng!$A$1:$B$100,J73,2),"") ->  | M73: =IF(L73>0,INDEX(Poeng!$A$1:$B$100,L73,2),"") ->  | O73: =IF(N73>0,INDEX(Poeng!$A$1:$B$100,N73,2),"") ->  | Q73: =IF(P73>0,INDEX(Poeng!$A$1:$B$100,P73,2),"") ->  | R73: 0 | S73: 0 | T73: 0 | U73: 0 | V73: 0 | W73: 0 | X73: 0 | Y73: 0 | Z73: 0 | AA73: 0 | AB73: 0 | AC73: 0 | AD73: 0
I74: =IF(H74>0,INDEX(Poeng!$A$1:$B$100,H74,2),"") ->  | K74: =IF(J74>0,INDEX(Poeng!$A$1:$B$100,J74,2),"") ->  | M74: =IF(L74>0,INDEX(Poeng!$A$1:$B$100,L74,2),"") ->  | O74: =IF(N74>0,INDEX(Poeng!$A$1:$B$100,N74,2),"") ->  | Q74: =IF(P74>0,INDEX(Poeng!$A$1:$B$100,P74,2),"") ->  | R74: 0 | S74: 0 | T74: 0 | U74: 0 | V74: 0 | W74: 0 | X74: 0 | Y74: 0 | Z74: 0 | AA74: 0 | AB74: 0 | AC74: 0 | AD74: 0
I75: =IF(H75>0,INDEX(Poeng!$A$1:$B$100,H75,2),"") ->  | K75: =IF(J75>0,INDEX(Poeng!$A$1:$B$100,J75,2),"") ->  | M75: =IF(L75>0,INDEX(Poeng!$A$1:$B$100,L75,2),"") ->  | O75: =IF(N75>0,INDEX(Poeng!$A$1:$B$100,N75,2),"") ->  | Q75: =IF(P75>0,INDEX(Poeng!$A$1:$B$100,P75,2),"") ->  | R75: 0 | S75: 0 | T75: 0 | U75: 0 | V75: 0 | W75: 0 | X75: 0 | Y75: 0 | Z75: 0 | AA75: 0 | AB75: =SUM(X75:AA75) -> 0 | AC75: 0 | AD75: 0
I76: =IF(H76>0,INDEX(Poeng!$A$1:$B$100,H76,2),"") ->  | K76: =IF(J76>0,INDEX(Poeng!$A$1:$B$100,J76,2),"") ->  | M76: =IF(L76>0,INDEX(Poeng!$A$1:$B$100,L76,2),"") ->  | O76: =IF(N76>0,INDEX(Poeng!$A$1:$B$100,N76,2),"") ->  | Q76: =IF(P76>0,INDEX(Poeng!$A$1:$B$100,P76,2),"") ->  | R76: 0 | S76: 0 | T76: 0 | U76: 0 | V76: 0 | W76: 0 | X76: 0 | Y76: 0 | Z76: 0 | AA76: 0 | AB76: =SUM(X76:AA76) -> 0 | AC76: 0 | AD76: 0

Sheet G16
A1: Gutter 16 | C1: Sparebank1-CUP 2021
F2: SP1- CUP 1 | H2: SP1- CUP 2 | J2: SP1- CUP 3 | L2: SP1- CUP 4 | N2: SP1- CUP 5 | P2: SP1- CUP 6 | R2: Poeng | Y2: Fire beste | AC2: Sum
A3: Nr | B3: NAVN | C3: KLUBB | D3: POENG | E3: Fullført | F3: Nr. Poeng | H3: Nr. Poeng | J3: Nr. Poeng | L3: Nr. Poeng | N3: Nr. Poeng | P3: Nr. Poeng | R3: 1 | S3: 2 | T3: 3 | U3: 4 | V3: 5 | W3: 6 | X3: 7 | Y3: 1 | Z3: 2 | AA3: 3 | AB3: 4
A4: =AF4 -> 1 | B4: Adrian Cornelius Kaasbøll | C4: Byåsen IL | D4: =IF(B4<>"",AC4,"") -> 400 | E4: =IF(AD4<4," ","F") -> F | F4: 1 | G4: =IF(F4>0,INDEX(Poeng!$A$1:$B$100,F4,2),"") -> 100 | H4: 1 | I4: =IF(H4>0,INDEX(Poeng!$A$1:$B$100,H4,2),"") -> 100 | J4: 1 | K4: =IF(J4>0,INDEX(Poeng!$A$1:$B$100,J4,2),"") -> 100 | L4: 1 | M4: =IF(L4>0,INDEX(Poeng!$A$1:$B$100,L4,2),"") -> 100 | N4: 1 | O4: =IF(N4>0,INDEX(Poeng!$A$1:$B$100,N4,2),"") -> 100 | P4: 1 | Q4: =IF(P4>0,INDEX(Poeng!$A$1:$B$100,P4,2),"") -> 100 | R4: =IF(F4>0,G4,0) -> 100 | S4: =IF(H4>0,I4,0) -> 100 | T4: =IF(J4>0,K4,0) -> 100 | U4: =IF(L4>0,M4,0) -> 100 | V4: =IF(N4>0,O4,0) -> 100 | W4: =IF(P4>0,Q4,0) -> 100 | X4: =IF(#REF!>0,#REF!,0) ->  | Y4: =LARGE(R4:W4,1) -> 100 | Z4: =LARGE(R4:W4,2) -> 100 | AA4: =LARGE(R4:W4,3) -> 100 | AB4: =LARGE(R4:W4,4) -> 100 | AC4: =SUM(Y4:AB4) -> 400 | AD4: =COUNT(F4:Q4)/2 -> 6 | AE4: =AC4*10^8+Y4*10^6/2+Z4*10^4/2+AA4*10^2/2+AB4/2 -> 40050505050 | AF4: =IF(B4<>"",RANK(AE4,AE$4:AE$62,0),"") -> 1
A5: 2 | B5: Niklas Almås | C5: Byåsen IL | D5: 300 | E5: F | F5: 2 | G5: =IF(F5>0,INDEX(Poeng!$A$1:$B$100,F5,2),"") -> 80 | H5: 2 | I5: =IF(H5>0,INDEX(Poeng!$A$1:$B$100,H5,2),"") -> 80 | J5: 4 | K5: =IF(J5>0,INDEX(Poeng!$A$1:$B$100,J5,2),"") -> 50 | L5: 3 | M5: =IF(L5>0,INDEX(Poeng!$A$1:$B$100,L5,2),"") -> 60 | N5: 2 | O5: =IF(N5>0,INDEX(Poeng!$A$1:$B$100,N5,2),"") -> 80 | P5: 3 | Q5: =IF(P5>0,INDEX(Poeng!$A$1:$B$100,P5,2),"") -> 60 | R5: 80 | S5: 80 | T5: 50 | U5: 60 | V5: 80 | W5: 60 | X5: =IF(#REF!>0,#REF!,0) ->  | Y5: 80 | Z5: 80 | AA5: 80 | AB5: 60 | AC5: 300 | AD5: 6 | AE5: 30040404030 | AF5: 2
